Workbook

Sheet Letter (hidden)
A1: clean
A2: Important!!
A3: If you accidentally stumbled into this page do not change any information on this page.
A5: Contact Name | C5: Contact Name
A6: Company Name | C6: Company Name
A7: Address | C7: Address
A8: =B8&", "&C8&" "&D8 -> , City, State Zip | C8: City, State Zip
A9: Dear | C9: Dear
A10: Rep Name | C10: Rep Name
A11: Contact Phone | C11: Contact Phone
C12: Sap ID
C13: Cust grp 3
A14: Date | C14: Date
A16: =LEN(Salutation) -> 5 | C16: // Number of chars in Salutation string
A17: =FIND(" ",Salutation,1) -> 5 | C17: // Location of first "blank space" in the Salutation string
A18: =LEFT(Salutation,A17-1) -> Dear | C18: // Text to the left of the "blank space" in the Salutation string (Actual Salutation)
A19: =IF(A16=A17, "No Contact From SA", LEFT(RIGHT(Salutation,A16-A17), A16-A17-2)) -> No Contact From SA | C19: // Text to the right of the "blank space" in the Salutation string
A20: =IF(A16=A17, "formal", IF(A5 = A19, "formal", "informal")) -> formal | C20: //Determines whether the letter is formal or informal. If there was no contact from SA then the letter is assumed to be formal
A22: =Start_Here!#REF!&", " ->  | C22: // Get the Contact name form Start_Here to make check whether the rep changed it or not and concat a ", "
A23: =FIND(" ",A22,1) ->  | C23: //Get the first blank space of the contact name from Start_Here. This will be used in the informal letter to derive the first name.
A24: Please do not change cell A25.
A25: 2014-10-02 | B25: Quote Date
A26: =LEFT(A22,A23-1) ->  | C26: // Contact name form start here. This is only the First name if there is a first and last name
A28: =IF(A22 = ", ", "Good Morning,", IF(A22 = 0, "Good Morning,", IF(A9 = "Good Morning, ", "Good Morning, ", IF(A5=A22,Letter!$A$9, IF(A20 = "informal", "Dear "&A26&",", "Dear "&A22))))) ->  | C28: //creates the salutation:
C29: 1: Check to see if there is a contact specified in Start_here, if not then Good Morning is used
C30: 2: Same as case one, except this will be the case from SA since the cell will have a 0 value if there was no Contact specified.
C31: 3: Check to see if "Good Morning" was the original greeting, if so, then use Good Morning for the letter no Matter What.
C32: 4: Check whether the Contact name has been changed. If so then use the original SA salutation
C33: 5: If the Contact name has been changed then, check whether the letter was origninaly a formal letter or an informal letter:
D34: 5a: If informal use the first name which will reside in cell a20
D35: 5b: if formal use the the whole name which is in cell a 18
A36: Equipment Type | B36: Scrubber
A37: Country | B37: Canada

Sheet CRM Mapping (hidden)

Sheet Log (hidden)
A1: Date | B1: UpdatedBy | C1: Description
A2: 2019-08-23 | B2: Pao Leepalao | C2: show user ID instead of full name on approve box
A3: 2019-08-23 | B3: Pao Leepalao | C3: date stamp when it's approved (yellow and red)
A4: 2019-08-23 | B4: Pao Leepalao | C4: revision date on all machine tabs
A5: 2019-08-23 | B5: Pao Leepalao | C5: change log (date, name, what changed) - hide tab
A6: 2019-08-23 | B6: Pao Leepalao | C6: fix T6 quick ship hide/show blank qty issue
A7: 2019-08-23 | B7: Jeannie Smallish | C7: T300/SS300: removed drain hose/cap
A8: 2019-08-23 | B8: Jeannie Smallish | C8: T20/M20/M30/S30/800/T16 quick ship: update built-in values
A9: 2019-08-23 | B9: Jeannie Smallish | C9: T16: update preconfigured machines
A10: 2019-08-23 | B10: Jeannie Smallish | C10: T20/S30: prices correction
A11: 2019-09-16 | B11: Jeannie Smallish | C11: corrected column issue on Extractors
A12: 2019-09-16 | B12: Jeannie Smallish | C12: Add new machine S10_Quick_Ship
A13: 2019-09-16 | B13: Pao Leepalao | C13: Discount/Service rates for S10_Quick_Ship
A14: 2019-09-16 | B14: Pao Leepalao | C14: Update leasing contact for Tennant
A15: 2019-10-02 | B15: Pao Leepalao | C15: Update finance rates - US Bank
A16: 2019-10-02 | B16: Pao Leepalao | C16: Add governance approval process
A17: 2019-11-04 | B17: Jeannie/Pao | C17: VC Changes for T17, M17, T600, T600e, T12, and T16
A18: 2019-11-04 | B18: Jeannie/Pao | C18: Price update for T600
A19: 2019-11-08 | B19: Pao Leepalao | C19: Fix GT formatting issue
A20: 2019-12-04 | B20: Pao/Jeannie | C20: New 2020 price increase
A21: 2019-12-04 | B21: Pao Leepalao | C21: Only positive allow in custom solution

Sheet Start_Here
A1: Distributor | C1: Please fill out as much buyer information as you can. Overkey addresses and contacts for proper display on the machine sheets. | O1: Alabama | P1: Discount | Q1: ALL OTHER COUNTIES
O2: Arkansas | P2: =TTDiscountLow -> 0 | Q2: BARBOUR
A3: Buyer Information | O3: Arizona | P3: =TTDiscountHigh -> 5 | Q3: COVINGTON
B4: CRM Address Information | F4: Who is Buying the Machine? (Bill-To for Machine Aquisition Info) (Please Verify) | I4: Select One | O4: British Columbia | Q4: DALE
B5: Company | C5: =Letter!$A$6 -> Company Name | F5: Company | H5: Company Name | O5: Canada | Q5: ESCAMBIA
B6: Address | C6: =Address -> Address | F6: Address | H6: Address | O6: California | Q6: GENEVA
B7: City, State Zip | C7: =CityStateZip -> , City, State Zip | F7: City, State Zip | H7: City, State Zip | O7: Colorado | Q7: HENRY
B8: Name | C8: =ContactName -> Contact Name | F8: Name | H8: Contact Name | O8: Connecticut | Q8: HOUSTON
B9: Phone | C9: =Letter!$A$11 -> Contact Phone | F9: Phone | H9: Contact Phone | O9: District of Columbia | Q9: LEE
O10: Delaware | Q10: RUSSELL
B11: Where is the Machine Being Shipped? (Ship-To Info) (Please Verify) | D11: Select One | F11: Where is the Machine Being Used? (Machine Use Location - Specific) (Please Verify) | I11: Select One | O11: Florida
B12: Company | C12: Company Name | F12: Company | H12: Company Name | O12: Georgia
B13: Address | C13: Address | F13: Address | H13: Address | O13: Hawaii
B14: City, State Zip | C14: City, State Zip | F14: City, State Zip | H14: City, State Zip | O14: Iowa
B15: Name | C15: Contact Name | F15: Name | H15: Contact Name | O15: Idaho
B16: Phone | C16: Contact Phone | F16: Phone | H16: Contact Phone | O16: Illinois
O17: Indiana
B18: Who Owns the Machine? (Sold-To Info) (Please Verify) | D18: Select One | F18: Who Pays for Service on the Machine? (Service Bill-To Info) (Please Verify) | I18: Select One | O18: Kansas
B19: Company | C19: Company Name | F19: Company | H19: Company Name | O19: Kentucky
B20: Address | C20: Address | F20: Address | H20: Address | O20: Louisiana
B21: City, State Zip | C21: City, State Zip | F21: City, State Zip | H21: City, State Zip | O21: Massachusetts
B22: Name | C22: Contact Name | F22: Name | H22: Contact Name | O22: Maryland
B23: Phone | C23: Contact Phone | F23: Phone | H23: Contact Phone | O23: Maine
O24: Michigan
B25: Customer Number | C25: =Letter!$A$12 -> 0 | F25: Finance Partner | H25: TennantTrue Details | O25: Minnesota
B26: Authorized Buyer's Name | F26: First Western Equipment Finance | H26: State | O26: Missouri
B27: Buyer's Phone # | O27: Mississippi
B28: Requested Delivery Date | F28: Select Market | H28: County | O28: Montana
B29: Cust Grp 3 | C29: =Letter!$A$13 -> 0 | F29: Internal use only | O29: North Carolina
H30: National Account | O30: North Dakota
B31: Shipping / Carrier Instructions: | F31: Quote Service | O31: Nebraska
F32: Yes | H32: TennantTrue Discount (%) | O32: New Hampshire
O33: New Jersey
O34: New Mexico
B35: Seller Info | O35: Nevada
B36: Letter/Quote | E36: Terms and Conditions | O36: New York
B37: Company | C37: Tennant Sales and Service Company | E37: Ask your local sales rep for estimated lead times. Verify when placing order | O37: Ohio
B38: Address | C38: 10400 Clean Street | E38: All orders subject to acceptance by Tennant Sales and Service Company, Minneapolis, Minnesota | O38: Oklahoma
C39: Eden Prairie, MN 55344 | E39: Prices subject to change without notice. Subject to any applicable taxes. | O39: Ontario
E40: Terms: Net 30 days. Payable in Canadian Funds | O40: Oregon
B41: Name | C41: =RepName -> Rep Name | E41: Freight: Accessories, parts, supplies, detergents, and floor coatings orders delivered DDP | O41: Pennsylvania
E42: shipping point Frt PPD. Machine orders delivered DDP shipping point Frt PPD and add. | O42: Prince Edward Isle
B43: Phone | C43: 800-553-8033 | E43: Returned Merchandise is subject to a restocking fee. | O43: Rhode Island
B44: Fax | C44: 763-513-2116 | E44: All orders are subject to Tennant’s General Terms and Conditions available at http://www.tennantco.com/terms. | O44: Quebec
E45: Printed General Terms and Conditions are also available upon request. | O45: South Carolina
O46: South Dakota
B47: Footer | O47: Tennessee
B48: Line 1 | C48: TENNANT · 10400 Clean Street · Eden Prairie, MN 55344 · | O48: Texas
B49: Line 2 | C49: PHONE:800-553-8033 · FAX:763-513-2116 | O49: Utah
O50: Virginia
O51: Vermont
O52: Washington
O53: West Virginia
O54: Wisconsin
O55: Wyoming
C58: Battery Surcharge | D58: Price
C59: 36 Volt Machines | D59: 0
C60: 24 Volt Machines | D60: 0
C61: Small 24 Volt Machines | D61: 0

Sheet Cover_Letter
A1: =Letter!$A$25 -> 2014-10-02
A4: =Start_Here!C37 -> Tennant Sales and Service Company
A5: =Start_Here!C38 -> 10400 Clean Street
A6: =Start_Here!C39 -> Eden Prairie, MN 55344
A7: =Start_Here!C40 -> 0
A9: =Start_Here!$C$22 -> Contact Name
A10: =Start_Here!$C$19 -> Company Name
A11: =Start_Here!$C$20 -> Address
A12: =Start_Here!$C$21 -> City, State Zip
A15: =Salutation -> Dear
A17: Thank you for your interest in TENNANT maintenance equipment. We are pleased to send you the attached quotation and literature on the products you are considering.
A19: A variety of lease and finance programs are available that will allow you to maximize the cost savings and productivity advantages that Tennant provides.
A21: I will be in contact with you, but in the meantime, feel free to call my sales office listed below, should you need to--your questions are invited and your orders will be given prompt attention.
A23: Yours Truly,
A27: =Start_Here!$C$41 -> Rep Name
A28: =Start_Here!C37 -> Tennant Sales and Service Company
A29: =Start_Here!C38 -> 10400 Clean Street
A30: =Start_Here!C39 -> Eden Prairie, MN 55344
A31: =Start_Here!C43 -> 800-553-8033
A33: attachment
A36: =Start_Here!C48 -> TENNANT · 10400 Clean Street · Eden Prairie, MN 55344 ·
A37: =Start_Here!C49 -> PHONE:800-553-8033 · FAX:763-513-2116

Sheet TennantTrue Summary_ (hidden)
O8: Choose the best plan for you
B9: Prepared for: | K9: Prepared On:
B10: =Start_Here!$C$22 -> Contact Name | K10: =Letter!$A$25 -> 2014-10-02
B11: =Start_Here!$C$19 -> Company Name
B12: =Start_Here!$C$20 -> Address
B13: =Start_Here!$C$21 -> City, State Zip
C16: Machine 1 | E16: Term | I16: Service Hours
C18: Used Machine? | E18: Gold | F18: Silver | G18: Pay As You Go | H18: Block of Time - Weekly | I18: Block of Time - Bi-Weekly | K18: On Demand
C19: Monthly Rate
C20: Annually
C21: Pre Pay 36 mo
C22: Per Visit
C23: Hourly Labor Rate | E23: See Below
C24: Site Visit Charge
C28: Machine 2 | E28: Term | I28: Service Hours
C30: Used Machine? | E30: Gold | F30: Silver | G30: Pay As You Go | H30: Block of Time - Weekly | I30: Block of Time - Bi-Weekly | K30: On Demand
C31: Monthly Rate
C32: Annually
C33: Pre Pay 36 mo
C34: Per Visit
C35: Hourly Labor Rate | E35: See Below
C36: Site Visit Charge
C40: Machine 3 | E40: Term | I40: Service Hours
C42: Used Machine? | E42: Gold | F42: Silver | G42: Pay As You Go | H42: Block of Time - Weekly | I42: Block of Time - Bi-Weekly | K42: On Demand
C43: Monthly Rate
C44: Annually
C45: Pre Pay 36 mo
C46: Per Visit
C47: Hourly Labor Rate | E47: See Below
C48: Site Visit Charge
B50: **All rates and fees above reflect service for one (1) unit with the exception of Block of Time service.
B52: ** Breakdown service calls for Silver customers include a Site Visit Charge and will be billed at the current "Pay As You Go" Hourly Labor Rate. Parts will be billed at list price.
B57: Tennant Company Sales Representative: | G57: =Start_Here!$C$41 -> Rep Name
B59: Customer
B60: Accepted By*:
B61: Print Name:
B62: Title:
B63: Date:
C64: *Acceptance is contingent upon customer review and approval of the Master Usage Agreement and the Usage Schedule / Equipment Schedule.
C66: **This quote is good for 60 days from the above date.

Sheet AMR Autonomy Parts (hidden)
B1: Term | C1: Part Number | D1: Price | F1: based | G1: difference | I1: Discount %
A2: T7AMR | B2: 1 Year | C2: T7AMRRENEW1 | D2: 8400 | I2: 1
A3: T7AMR | B3: 2 Years | C3: T7AMRRENEW2 | D3: 16800 | I3: 2
A4: T7AMR | B4: 3 Years | C4: T7AMRRENEW3 | D4: 25200 | I4: 3
A5: T7AMR | B5: 4 Years | C5: T7AMRRENEW4 | D5: 33600 | I5: 4
A6: T7AMR | B6: 5 Years | C6: T7AMRRENEW5 | D6: 42000 | I6: 5
A7: T7AMR | B7: Monthly | C7: T7AMRMONTH | D7: 700 | I7: 6
A8: T380AMR | B8: 1 Year | C8: T380AMRRENEW1 | D8: 6720 | I8: 7
A9: T380AMR | B9: 2 Years | C9: T380AMRRENEW2 | D9: 13440 | I9: 8
A10: T380AMR | B10: 3 Years | C10: T380AMRRENEW3 | D10: 20160 | I10: 9
A11: T380AMR | B11: 4 Years | C11: T380AMRRENEW4 | D11: 26880 | I11: 10
A12: T380AMR | B12: 5 Years | C12: T380AMRRENEW5 | D12: 33600 | I12: 11
A13: T380AMR | B13: Monthly | C13: T380AMRMONTH | D13: 560 | I13: 12
A14: T16AMR | B14: 1 Year | C14: T16AMRRENEW1 | D14: 12096 | I14: 13
A15: T16AMR | B15: 2 Years | C15: T16AMRRENEW2 | D15: 24192 | I15: 14
A16: T16AMR | B16: 3 Years | C16: T16AMRRENEW3 | D16: 36288 | I16: 15
A17: T16AMR | B17: 4 Years | C17: T16AMRRENEW4 | D17: 48384 | I17: 16
A18: T16AMR | B18: 5 Years | C18: T16AMRRENEW5 | D18: 60480 | I18: 17
A19: T16AMR | B19: Monthly | C19: T16AMRMONTH | D19: 1008 | I19: 18
A20: M_X4ROVR | B20: A | C20: X4ROVR5 1-4 | D20: 21700 | E20: 5YR AUTONOMY SERVICES (Qty1-4) | F20: 21700 | G20: 0 | I20: 19
A21: M_X4ROVR | B21: B | C21: X4ROVR5 5-49 | D21: 20300 | E21: 5YR AUTONOMY SERVICES (Qty5-49) | F21: 21700 | G21: =SUM(D$20-D21) -> 1400 | I21: 20
A22: M_X4ROVR | B22: B | C22: X4ROVR5 50-299 | D22: 16100 | E22: 5YR AUTONOMY SERVICES (Qty50-299) | F22: 21700 | G22: =SUM(D$20-D22) -> 5600 | I22: 21
A23: M_X4ROVR | B23: C | C23: X4ROVR5 300 | D23: 11900 | E23: 5YR AUTONOMY SERVICES (Qty300+) | F23: 21700 | G23: 9800 | I23: 22
A24: T16AMR | B24: A | C24: T16AMR3 1-4 | D24: 36288 | E24: 3YR AUTONOMY SERVICES (Qty1-4) | F24: 36288 | G24: 0 | I24: 23
A25: T16AMR | B25: B | C25: T16AMR3 5-9 | D25: 35743.4 | E25: 3YR AUTONOMY SERVICES (Qty5-9) | F25: 36288 | G25: =SUM(D$24-D25) -> 544.6 | I25: 24
A26: T16AMR | B26: B | C26: T16AMR3 10-19 | D26: 34291.6 | E26: 3YR AUTONOMY SERVICES (Qty10-19) | F26: 36288 | G26: =SUM(D$24-D26) -> 1996.4 | I26: 25
A27: T16AMR | B27: C | C27: T16AMR3 20 | D27: 33203.8 | E27: 3YR AUTONOMY SERVICES (Qty20+) | F27: 36288 | G27: 3084.2 | I27: 26
A28: T16AMR | B28: A | C28: T16AMR5 1-4 | D28: 60480 | E28: 5YR AUTONOMY SERVICES (Qty1-4) | F28: 60480 | G28: 0 | I28: 27
A29: T16AMR | B29: B | C29: T16AMR5 5-9 | D29: 58665.6 | E29: 5YR AUTONOMY SERVICES (Qty5-9) | F29: 60480 | G29: =SUM(D$28-D29) -> 1814.4 | I29: 28
A30: T16AMR | B30: B | C30: T16AMR5 10-19 | D30: 53827.2 | E30: 5YR AUTONOMY SERVICES (Qty10-19) | F30: 60480 | G30: =SUM(D$28-D30) -> 6652.8 | I30: 29
A31: T16AMR | B31: C | C31: T16AMR5 20 | D31: 50198.4 | E31: 5YR AUTONOMY SERVICES (Qty20+) | F31: 60480 | G31: 10281.6 | I31: 30
A32: T7AMR | B32: A | C32: T7AMR(3) | D32: 25200 | E32: 3YR AUTONOMY SERVICES | F32: 25200 | G32: 0 | I32: 31
A33: T7AMR | B33: A | C33: T7AMR(5) | D33: 42000 | E33: 5YR AUTONOMY SERVICES | F33: 42000 | G33: 0 | I33: 32
A34: T7AMR | B34: A | C34: T7AMREDU5 1-4 | D34: 42000 | E34: 5YR AUTONOMY SERVICES ED&H(Qty1-4) | F34: 42000 | G34: 0 | I34: 33
A35: T7AMR | B35: B | C35: T7AMREDU5 5-9 | D35: 40740 | E35: 5YR AUTONOMY SERVICES ED&H(Qty5-9) | F35: 42000 | G35: =SUM(D$34-D35) -> 1260 | I35: 34
A36: T7AMR | B36: B | C36: T7AMREDU5 10-19 | D36: 37380 | E36: 5YR AUTONOMY SERVICES ED&H(Qty10-19) | F36: 42000 | G36: =SUM(D$34-D36) -> 4620 | I36: 35
A37: T7AMR | B37: C | C37: T7AMREDU5 20 | D37: 34860 | E37: 5YR AUTONOMY SERVICES ED&H(Qty20+) | F37: 42000 | G37: 7140 | I37: 36
A38: T7AMR | B38: A | C38: T7AMRBR5 1-9 | D38: 42000 | E38: 5YR AUTONOMY SERVICES B&R(Qty1-9) | F38: 42000 | G38: 0 | I38: 37
A39: T7AMR | B39: B | C39: T7AMRBR5 10-49 | D39: 40740 | E39: 5YR AUTONOMY SERVICES B&R(Qty10-49) | F39: 42000 | G39: =SUM(D$38-D39) -> 1260 | I39: 38
A40: T7AMR | B40: B | C40: T7AMRBR5 50-99 | D40: 37380 | E40: 5YR AUTONOMY SERVICES B&R(Qty50-99) | F40: 42000 | G40: =SUM(D$38-D40) -> 4620 | I40: 39
A41: T7AMR | B41: C | C41: T7AMRBR5 100 | D41: 34860 | E41: 5YR AUTONOMY SERVICES B&R(Qty100+) | F41: 42000 | G41: 7140 | I41: 40
A42: T380AMR | B42: A | C42: T380AMR(3) | D42: 20160 | E42: 3YR AUTONOMY SERVICES | F42: 20160 | G42: 0 | I42: 41
A43: T380AMR | B43: A | C43: T380AMR(5) | D43: 33600 | E43: 5YR AUTONOMY SERVICES | F43: 33600 | G43: 0 | I43: 42
A44: T380AMR | B44: A | C44: T380AMREDU5 1-4 | D44: 33600 | E44: 5YR AUTONOMY SERVICES ED&H(Qty1-4) | F44: 33600 | G44: 0 | I44: 43
A45: T380AMR | B45: B | C45: T380AMREDU5 5-9 | D45: 32592 | E45: 5YR AUTONOMY SERVICES ED&H(Qty5-9) | F45: 33600 | G45: =SUM(D$44-D45) -> 1008 | I45: 44
A46: T380AMR | B46: B | C46: T380AMREDU5 10-19 | D46: 29904 | E46: 5YR AUTONOMY SERVICES ED&H(Qty10-19) | F46: 33600 | G46: =SUM(D$44-D46) -> 3696 | I46: 45
A47: T380AMR | B47: C | C47: T380AMREDU5 20 | D47: 27888 | E47: 5YR AUTONOMY SERVICES ED&H(Qty20+) | F47: 33600 | G47: 5712 | I47: 46
A48: T380AMR | B48: A | C48: T380AMRBR5 1-9 | D48: 33600 | E48: 5YR AUTONOMY SERVICES B&R(Qty1-9) | F48: 33600 | G48: 0 | I48: 47
A49: T380AMR | B49: B | C49: T380AMRBR5 10-49 | D49: 32592 | E49: 5YR AUTONOMY SERVICES B&R(Qty10-49) | F49: 33600 | G49: =SUM(D$48-D49) -> 1008 | I49: 48
A50: T380AMR | B50: B | C50: T380AMRBR5 50-99 | D50: 29904 | E50: 5YR AUTONOMY SERVICES B&R(Qty50-99) | F50: 33600 | G50: =SUM(D$48-D50) -> 3696 | I50: 49
A51: T380AMR | B51: C | C51: T380AMRBR5 100 | D51: 27888 | E51: 5YR AUTONOMY SERVICES B&R(Qty100+) | F51: 33600 | G51: 5712 | I51: 50
A52: M_X6ROVR | B52: A | C52: X6ROVR(3) | D52: 19152 | E52: 3YR AUTONOMY SERVICES | F52: 19152 | G52: 0
A53: M_X6ROVR | B53: A | C53: X6ROVR5 1-4 | D53: 31920 | E53: 5YR AUTONOMY SERVICES (Qty1-4) | F53: 31920 | G53: 0
A54: M_X6ROVR | B54: B | C54: X6ROVR5 5-9 | D54: 31122 | E54: 5YR AUTONOMY SERVICES (Qty5-9) | F54: 31920 | G54: =SUM(D$53-D54) -> 798
A55: M_X6ROVR | B55: B | C55: X6ROVR5 10-24 | D55: 30324 | E55: 5YR AUTONOMY SERVICES (Qty10-24) | F55: 31920 | G55: 1596
A56: M_X6ROVR | B56: B | C56: X6ROVR5 25-74 | D56: 28728 | E56: 5YR AUTONOMY SERVICES (Qty25-74) | F56: 31920 | G56: 3192
A57: M_X6ROVR | B57: B | C57: X6ROVR5 75-149 | D57: 27132 | E57: 5YR AUTONOMY SERVICES (Qty 75-149) | F57: 31920 | G57: 4788
A58: M_X6ROVR | B58: B | C58: X6ROVR5 150-299 | D58: 23940 | E58: 5YR AUTONOMY SERVICES (Qty 150-299) | F58: 31920 | G58: 7980
A59: M_X6ROVR | B59: C | C59: X6ROVR5 300 | D59: 19152 | E59: 5YR AUTONOMY SERVICES (Qty300+) | F59: 31920 | G59: 12768

Sheet Specialty
A1: Specialty | C1: =Start_Here!$C19 -> Company Name
A2: =SUM(G72) -> 0 | C2: =Start_Here!$C20 -> Address
C3: =Start_Here!$C21 -> City, State Zip
C4: =Start_Here!$C22 -> Contact Name
C5: =Start_Here!$C$41 -> Rep Name
C6: =Start_Here!$C$37 -> Tennant Sales and Service Company
C7: =Start_Here!$C$38 -> 10400 Clean Street
C8: =Start_Here!$C$39 -> Eden Prairie, MN 55344
C9: =Start_Here!$C$43 -> 800-553-8033 | E9: Quote Date : | G9: =Letter!$A$25 -> 2014-10-02
C11: =Help!C2 -> CAN Date Rev - 5/6/2025
C15: EXCLUSIVE FACTORY-DIRECT WARRANTY | E15: Quote Request Information
C16: BLOWER | G16: Fax (quote only)
C17: 12 MONTHS ON PARTS / LABOR (Blower) | G17: Mail (quote,lit, specs)
C18: ASC15 | G18: Fax + Mail
C19: 36 MONTHS
C20: 36 MONTHS – LABOR | E20: Primary Use
C21: NO TRAVEL | G21: Inside
G22: Outside
C24: Description | D24: Reference No. | E24: Canada Price | F24: Qty. | G24: Extended Price
F25: *
C26: Q12 Multi-Surface Cleaner | F26: =SUM(F32:F33) -> 0 | L26: =SUM(F26) -> 0 | M26: Surcharge Qty
C27: 15 gal (57 L) capacity, variable 400-1200 psi (27.6 to 83 bar), Hard Surface Turbo Tool option, 25 ft (8 m) vacuum and solution hoses, and two 40 ft (12 m) hospital grade safety yellow electrical cords. | F27: =SUM(F26) -> 0 | L27: 0 | M27: Surcharge Qty
C28: ETL (US/C) certified to UL & CSA Standards. | F28: =SUM(F27) -> 0 | L28: 0 | M28: Surcharge Qty
C29: Boxed Dimensions: 28.5 in x 38 in x 55 in (724 mm x 965 mm x 1397 mm) | F29: =SUM(F28) -> 0 | L29: 0 | M29: Surcharge Qty
C30: Shipping Weight: 205 lb (93 kg) | F30: =SUM(F29) -> 0 | L30: 0 | M30: Surcharge Qty
L31: 0 | M31: Surcharge Qty
C32: Q12, 400-1200 psi (27.6 to 83 bar) Multi-Surface Cleaner w/ vacuum and solution hoses. | D32: 1072856 | E32: 16728 | G32: =F32*E32 -> 0 | H32: =IFERROR(IFERROR(VLOOKUP(D32,Surcharge!A:B,2,FALSE)*F32, VLOOKUP(D32 & "",Surcharge!A:B,2,FALSE)*F32), "") ->  | L32: 0 | M32: Surcharge Qty | P32: =VLOOKUP(D32,'MPF SAP Canada Pre-Configured'!C:E,3,FALSE) -> 15633
C33: Q12, 400-1200 psi (27.6 to 83 bar) Multi-Surface Cleaner w/ hard surface turbo tool, vacuum, and solution hoses. | D33: 9011458 | E33: 20401 | G33: =F33*E33 -> 0 | H33: =IFERROR(IFERROR(VLOOKUP(D33,Surcharge!A:B,2,FALSE)*F33, VLOOKUP(D33 & "",Surcharge!A:B,2,FALSE)*F33), "") ->  | L33: 0 | M33: Surcharge Qty | P33: =VLOOKUP(D33,'MPF SAP Canada Pre-Configured'!C:E,3,FALSE) -> 19066
H34: =IFERROR(IFERROR(VLOOKUP(D34,Surcharge!A:B,2,FALSE)*F34, VLOOKUP(D34 & "",Surcharge!A:B,2,FALSE)*F34), "") ->  | L34: 0 | M34: Surcharge Qty
H35: =IFERROR(IFERROR(VLOOKUP(D35,Surcharge!A:B,2,FALSE)*F35, VLOOKUP(D35 & "",Surcharge!A:B,2,FALSE)*F35), "") -> 
F36: =SUM(F37) -> 0 | H36: =IFERROR(IFERROR(VLOOKUP(D36,Surcharge!A:B,2,FALSE)*F36, VLOOKUP(D36 & "",Surcharge!A:B,2,FALSE)*F36), "") -> 
C37: ASC-15 All Surface Cleaner | D37: 9007449 | E37: 9698 | G37: =F37*E37 -> 0 | H37: =IFERROR(IFERROR(VLOOKUP(D37,Surcharge!A:B,2,FALSE)*F37, VLOOKUP(D37 & "",Surcharge!A:B,2,FALSE)*F37), "") ->  | P37: =VLOOKUP(D37,'MPF SAP Canada Pre-Configured'!C:E,3,FALSE) -> 9063
C38: 15-gal. (57L) solution capacity 19-gal. (72L) recovery capacity. Includes double-bend telescopic aluminum wand, 25-ft. (7.6m) recovery hose, scrub brush, standard 6-ft. (1.8m) to 25-ft. (7.6m) expandable blower hose, 25-ft. (7.6m) high pressure hose with variable pressure gun, floor squeegee tool, hand squeegee tool, blower tool, gulper floor drain tool, fill hose and metering tip packet with 3 different dilution ratio tips. | F38: =SUM(F37) -> 0 | H38: =IFERROR(IFERROR(VLOOKUP(D38,Surcharge!A:B,2,FALSE)*F38, VLOOKUP(D38 & "",Surcharge!A:B,2,FALSE)*F38), "") -> 
C39: Boxed dimensions: 45L x 22.25W x 42H (1143mm x 565mm x 1067mm) | F39: =SUM(F38) -> 0 | H39: =IFERROR(IFERROR(VLOOKUP(D39,Surcharge!A:B,2,FALSE)*F39, VLOOKUP(D39 & "",Surcharge!A:B,2,FALSE)*F39), "") -> 
C40: Shipping Weight: 190 lbs. (86 kg) / Cu. Ft.: 19 (Cu.M. .54) | F40: =SUM(F39) -> 0 | H40: =IFERROR(IFERROR(VLOOKUP(D40,Surcharge!A:B,2,FALSE)*F40, VLOOKUP(D40 & "",Surcharge!A:B,2,FALSE)*F40), "") -> 
H41: =IFERROR(IFERROR(VLOOKUP(D41,Surcharge!A:B,2,FALSE)*F41, VLOOKUP(D41 & "",Surcharge!A:B,2,FALSE)*F41), "") -> 
H42: =IFERROR(IFERROR(VLOOKUP(D42,Surcharge!A:B,2,FALSE)*F42, VLOOKUP(D42 & "",Surcharge!A:B,2,FALSE)*F42), "") -> 
F43: =SUM(F44) -> 0 | H43: =IFERROR(IFERROR(VLOOKUP(D43,Surcharge!A:B,2,FALSE)*F43, VLOOKUP(D43 & "",Surcharge!A:B,2,FALSE)*F43), "") -> 
C44: Blower - Three-speed Air Mover | D44: 9014819 | E44: 587 | G44: =F44*E44 -> 0 | H44: =IFERROR(IFERROR(VLOOKUP(D44,Surcharge!A:B,2,FALSE)*F44, VLOOKUP(D44 & "",Surcharge!A:B,2,FALSE)*F44), "") ->  | P44: =VLOOKUP(D44,'MPF SAP Canada Pre-Configured'!C:E,3,FALSE) -> 587
C45: 1/2 Horsepower, Three speeds, Stackable, Rotomolded durability. | F45: =SUM(F44) -> 0
C46: ETL-certified to UL & CSA Standards. | F46: =SUM(F45) -> 0
C47: Boxed dimensions: 20.5L x 17.75W x 22.5H (521mm x 451mmx 572mm) * | F47: =SUM(F46) -> 0
C48: Shipping Weight: 37.3 lbs. | F48: =SUM(F47) -> 0
B51: Custom Solution--write in description, qty, price, and PN if applicable | F51: =SUM(F52) -> 0
E52: Insert Prices Here | F52: =SUM(F53:F56) -> 0
D53: Custom | F53: =IF(E53 <> "", 1, 0) -> 0 | G53: =F53*E53 -> 0
D54: Custom | F54: =IF(E54 <> "", 1, 0) -> 0 | G54: =F54*E54 -> 0
D55: Custom | F55: =IF(E55 <> "", 1, 0) -> 0 | G55: =F55*E55 -> 0
D56: Custom | F56: =IF(E56 <> "", 1, 0) -> 0 | G56: =F56*E56 -> 0
E57: =ROUND(SUM(G25:G56), 0) -> 0 | F57: =SUM(E58) -> 0
D58: Machine Subtotal | E58: =ROUND(SUM(G25:G56), 0) -> 0 | F58: =F57 -> 0
B59: Discounts | F59: =SUM(F60) -> 0
F60: =SUM(F62:F65) -> 0
D61: Applicable Currency Adj % | F61: =IF(E61 <> "", 1, 0) -> 0 | G61: =IF(F61*(E61*0.01)*E57 < 0, F61*(E61*0.01)*E57, -(F61*(E61*0.01)*E57)) -> 0
D62: Discount % | F62: =IF(E62 <> "", 1, 0) -> 0 | G62: =IF(F62*(E62*0.01)*(E57+G61) < 0, F62*(E62*0.01)*(E57+G61), -(F62*(E62*0.01)*(E57+G61))) -> 0
D63: Discount $ | F63: =IF(E63 <> "", 1, 0) -> 0 | G63: =IF(F63*E63 < 0, F63*E63, -(F63*E63)) -> 0
D64: Discount $ | F64: =IF(E64 <> "", 1, 0) -> 0 | G64: =IF(F64*E64 < 0, F64*E64, -(F64*E64)) -> 0
D65: Discount $ | F65: =IF(E65 <> "", 1, 0) -> 0 | G65: =IF(F65*E65 < 0, F65*E65, -(F65*E65)) -> 0
D66: Discount Total | E66: =SUM(G61:G65) -> 0 | F66: =SUM(E66) -> 0
F67: =#REF! -> 
C69: Prepaid and Add | D69: Freight | F69: =IF(E69 <> "", 1, 0) -> 0 | G69: =F69*E69 -> 0
C70: Subject to all applicable taxes | D70: Tax | F70: =IF(E70 <> "", 1, 0) -> 0 | G70: =F70*E70 -> 0
F71: =SUM(F72) -> 0
D72: MACHINE TOTAL* | F72: =SUM(G72) -> 0 | G72: =SUM(G25:G70) -> 0 | N72: This goes to "My Documents"
G73: =SUM(G72) -> 0
C78: First Western Equipment Finance - Leasing Calculation Option: | D78: Option 1 | F78: Option 2 | J78: =Financing!A38 -> Rates 2025 - Rev 2/4/2025
D79: Monthly Payment | E79: Cost Per Day | F79: Monthly Payment | G79: Cost Per Day | J79: =Financing!A39 -> “Blank Payment Amounts Indicate The Financing Option Or Purchase Options Selected Are Not
C80: Purchase Option: | D80: FWEF: $1 Buyout Lease | F80: FWEF: Municipal Lease | J80: =Financing!A40 -> Applicable Or The Machine Total Is Below The Minimum Amount For The Selected Vendor”
C81: 24 Months | D81: FALSE | E81: 0 | F81: FALSE | G81: 0 | J81: =Financing!A41 -> "Quoted monthly payments are estimates only and are based on a certain level of credit rating.
C82: 30 Months | D82: FALSE | E82: 0 | F82: FALSE | G82: 0 | J82: =Financing!A42 -> Actual monthly payments may be higher depending on your credit rating."
C83: 36 Months | D83: FALSE | E83: 0 | F83: FALSE | G83: 0 | J83: =Financing!A43 -> “Financing rates do not include Pre-Paid Service”
C84: 48 Months | D84: 0 | E84: 0 | F84: 0 | G84: 0 | I84: =Financing!A44 -> 0 | J84: =Financing!A44 -> 0
D86: Benefits of Equipment Financing:
D87: • Spreads out investment over time. | F87: • Keep current with latest technology.
D88: • Preserve capital. | F88: • Service and parts bundling available.
D89: • Low monthly payment. | F89: • Pay for labor savings as you go.
B91: TennantTrue | E91: 0 | F91: 0
C93: Is customer interested in service program? | D93: Yes | E93: *State/County selection required for TennantTrue service options
C95: If not, why?
C97: Term: | D97: 36 | G97: AB Brushes | H97: No
C98: Monthly machine usage (hrs): | D98: < 30/mo. (Avg. 1hr./day)
C100: TennantTrue: | D100: Gold Contract | F100: Silver Contract
C101: Per Visit
C102: Monthly
C103: Annually
C104: Pre-Pay Full Term
C105: Hourly Labor Rate
C106: Site Visit
C108: * Verify customer current pricing prior to quote.
C109: **All rates and fees above reflect service for one (1) unit with the exception of Block of Time service.
C110: *Block of Time is available in 1 Year Term only and is priced as such no matter the term selection on this template.
C114: Quote Special Instructions:
C117: =Start_Here!E36 -> Terms and Conditions
C118: =Start_Here!E37 -> Ask your local sales rep for estimated lead times. Verify when placing order
C119: =Start_Here!E38 -> All orders subject to acceptance by Tennant Sales and Service Company, Minneapolis, Minnesota
C120: =Start_Here!E39 -> Prices subject to change without notice. Subject to any applicable taxes.
C121: =Start_Here!E40 -> Terms: Net 30 days. Payable in Canadian Funds
C122: =Start_Here!E41 -> Freight: Accessories, parts, supplies, detergents, and floor coatings orders delivered DDP
C123: =Start_Here!E42 -> shipping point Frt PPD. Machine orders delivered DDP shipping point Frt PPD and add.
C124: =Start_Here!E43 -> Returned Merchandise is subject to a restocking fee.
C125: =Start_Here!E45 -> Printed General Terms and Conditions are also available upon request.
C126: =Start_Here!E46 -> 0
E129: Quote Date : | G129: =Letter!$A$25 -> 2014-10-02
A130: Order Placement Information: To place your order, fill in PO# and customer signatures,
A131: call or fax to the numbers listed below. Customer Purchase Order is required.
A132: If information is missing, orders will be entered and held until all information is received.
C133: Customer Number | E133: Cust Grp 3
C134: =Start_Here!$C$25 -> 0 | E134: =Start_Here!$C$29 -> 0
C135: =Start_Here!$B$18 -> Who Owns the Machine? (Sold-To Info) (Please Verify)
A136: Company | C136: =Start_Here!$C$19 -> Company Name
A137: Address | C137: =Start_Here!$C$20 -> Address
C138: =Start_Here!$C$21 -> City, State Zip
A139: Name | C139: =Start_Here!$C$22 -> Contact Name
A140: Phone | C140: =Start_Here!$C$23 -> Contact Phone
C141: =Start_Here!$B$11 -> Where is the Machine Being Shipped? (Ship-To Info) (Please Verify)
A142: Company | C142: =Start_Here!$C$12 -> Company Name
A143: Address | C143: =Start_Here!$C$13 -> Address
C144: =Start_Here!$C$14 -> City, State Zip
A145: Name | C145: =Start_Here!$C$15 -> Contact Name
A146: Phone | C146: =Start_Here!$C$16 -> Contact Phone
C147: =Start_Here!$B$31 -> Shipping / Carrier Instructions: | E147: Order Special Instructions:
C148: =Start_Here!$C$32 -> 0
C150: Customer Purchase Order No.
C151: (please attach copy)
C154: Tax Exempt | E154: Yes
E155: No
C156: If Yes, attach a copy of your exemption certificate.
C158: Requested Delivery Date
C159: =Start_Here!$C$28 -> 0
C161: =Start_Here!$C$26 -> 0 | E161: =Start_Here!$C$27 -> 0
C162: Authorized Buyer (please print) | E162: Phone Number
C165: Authorized Buyer Signature
C167: =Start_Here!$C$41 -> Rep Name
C168: Tennant Representative
A170: Specialized Maintenance Equipment
A171: =Start_Here!$C$48 -> TENNANT · 10400 Clean Street · Eden Prairie, MN 55344 ·
A172: =Start_Here!$C$49 -> PHONE:800-553-8033 · FAX:763-513-2116
B174: Special Information
B177: 1 | C177: Pre-Configured Machines cannot add or change options. All units are packaged on a Skid w/Carton and will ship via LTL Carrier.
C178: When ordering, provide the reference number listed above. Price does not include freight or tax. Availability of units
C179: and lead time may vary.
B181: 2 | C181: One pad driver comes standard with a T2.
B183: 3 | C183: Skid w/Carton, Stackable is the default packaging method and will be added to the configuration unless otherwise specified.
B185: 4 | C185: Machine Weights and dimensions | D185: Skid w/Carton
C187: Weight (w/105AH battery) | D187: 331 lbs / 150 Kg
C188: Length | D188: 47" / 1200mm
C189: Width | D189: 30" / 750mm
C190: Height | D190: 45" / 1150mm

Sheet i_mop_Lite
A1: i_mop_Lite | C1: =Start_Here!$C19 -> Company Name
A2: =SUM(G62) -> 0 | C2: =Start_Here!$C20 -> Address
C3: =Start_Here!$C21 -> City, State Zip
C4: =Start_Here!$C22 -> Contact Name
C5: =Start_Here!$C$41 -> Rep Name
C6: =Start_Here!$C$37 -> Tennant Sales and Service Company
C7: =Start_Here!$C$38 -> 10400 Clean Street
C8: =Start_Here!$C$39 -> Eden Prairie, MN 55344
C9: =Start_Here!$C$43 -> 800-553-8033 | E9: Quote Date : | G9: =Letter!$A$25 -> 2014-10-02
C11: =Help!C2 -> CAN Date Rev - 5/6/2025
C13: EXCLUSIVE FACTORY-DIRECT WARRANTY
C14: 12 MONTHS - PARTS
C15: 12 MONTHS LABOR
C16: 12 MONTHS BATTERY | E16: Quote Request Information
C17: 90 DAYS – TRAVEL | G17: Fax (quote only)
G18: Mail (quote,lit, specs)
G19: Fax + Mail
E21: Primary Use
G22: Inside
G23: Outside
C25: Description | D25: Reference No. | E25: Canada Price | F25: Qty. | G25: Extended Price
F26: *
C27: i-mop® Lite - Lithium-Ion Auto Disk Scrubber | D27: 1263271 | E27: 6489 | G27: =F27*E27 -> 0 | P27: =VLOOKUP(D27,'MPF SAP Canada Pre-Configured'!C:E,3,FALSE) -> 
C28: 14.1" (37 cm) cleaning path. Includes battery pack, removable .79 gal (3 L) solution and 1.0 gal (4 L) recovery tank with ball float, battery safe guard switch, angle switch, charger w/ power cord, 2 medium blue brushes, squeegee, and multi-language operator manual. | F28: =SUM(F27) -> 0
F29: =SUM(F28) -> 0
C30: Boxed Dimensions: 48" H x 15.7" W x 15" L (1220 mm x 400 mm x 380 mm) | F30: 0
C31: Shipping Weight with Batteries: 46.4 lbs (21.0 kg) | F31: 0
P33: =VLOOKUP(D33,'MPF SAP Canada Pre-Configured'!C:E,3,FALSE) -> 
C34: i-mop® Lite - Lithium-Ion Auto Disk Scrubber + Extra Battery Pack | D34: 9022310 | E34: 7859 | G34: =F34*E34 -> 0
C35: 14.1" (37 cm) cleaning path. Includes TWO battery packs, removable .79 gal (3 L) solution and 1.0 gal (4 L) recovery tank with ball float, battery safe guard switch, angle switch, charger w/ power cord, 2 medium blue brushes, squeegee, and multi-language operator manual. | F35: =SUM(F34) -> 0
F36: =SUM(F35) -> 0
C37: Note: Batteries do not ship in machine box, but separately. | F37: 0
H39: =IFERROR(IFERROR(VLOOKUP(D39,Surcharge!A:B,2,FALSE)*F39, VLOOKUP(D39 & "",Surcharge!A:B,2,FALSE)*F39), "") -> 
B41: Custom Solution--write in description, qty, price, and PN if applicable | F41: =SUM(F42) -> 0
E42: Insert Prices Here | F42: =SUM(F43:F46) -> 0
D43: Custom | F43: =IF(E43 <> "", 1, 0) -> 0 | G43: =F43*E43 -> 0
D44: Custom | F44: =IF(E44 <> "", 1, 0) -> 0 | G44: =F44*E44 -> 0
D45: Custom | F45: =IF(E45 <> "", 1, 0) -> 0 | G45: =F45*E45 -> 0
D46: Custom | F46: =IF(E46 <> "", 1, 0) -> 0 | G46: =F46*E46 -> 0
E47: =ROUND(SUM(G27:G46), 0) -> 0 | F47: =SUM(E48) -> 0
D48: Machine Subtotal | E48: =ROUND(SUM(G27:G46), 0) -> 0 | F48: =F47 -> 0
B49: Discounts | F49: =SUM(F50) -> 0
F50: =SUM(F52:F55) -> 0
D51: Applicable Currency Adj % | F51: =IF(E51 <> "", 1, 0) -> 0 | G51: =IF(F51*(E51*0.01)*E47 < 0, F51*(E51*0.01)*E47, -(F51*(E51*0.01)*E47)) -> 0
D52: Discount % | F52: =IF(E52 <> "", 1, 0) -> 0 | G52: =IF(F52*(E52*0.01)*(E47+G51) < 0, F52*(E52*0.01)*(E47+G51), -(F52*(E52*0.01)*(E47+G51))) -> 0
D53: Discount $ | F53: =IF(E53 <> "", 1, 0) -> 0 | G53: =IF(F53*E53 < 0, F53*E53, -(F53*E53)) -> 0
D54: Discount $ | F54: =IF(E54 <> "", 1, 0) -> 0 | G54: =IF(F54*E54 < 0, F54*E54, -(F54*E54)) -> 0
D55: Discount $ | F55: =IF(E55 <> "", 1, 0) -> 0 | G55: =IF(F55*E55 < 0, F55*E55, -(F55*E55)) -> 0
D56: Discount Total | E56: =SUM(G51:G55) -> 0 | F56: =SUM(E56) -> 0
F57: =#REF! -> 
F58: =F57 -> 
C59: Prepaid and Add | D59: Freight | F59: =IF(E59 <> "", 1, 0) -> 0 | G59: =F59*E59 -> 0
C60: Subject to all applicable taxes | D60: Tax | F60: =IF(E60 <> "", 1, 0) -> 0 | G60: =F60*E60 -> 0
F61: =SUM(F62) -> 0
D62: MACHINE TOTAL* | F62: =SUM(G62) -> 0 | G62: =SUM(G27:G60) -> 0 | N62: This goes to "My Documents"
G63: =SUM(G62) -> 0
C68: First Western Equipment Finance - Leasing Calculation Option: | D68: Option 1 | F68: Option 2 | J68: =Financing!A38 -> Rates 2025 - Rev 2/4/2025
D69: Monthly Payment | E69: Cost Per Day | F69: Monthly Payment | G69: Cost Per Day | J69: =Financing!A39 -> “Blank Payment Amounts Indicate The Financing Option Or Purchase Options Selected Are Not
C70: Purchase Option: | D70: FWEF: $1 Buyout Lease | F70: FWEF: Municipal Lease | J70: =Financing!A40 -> Applicable Or The Machine Total Is Below The Minimum Amount For The Selected Vendor”
C71: 24 Months | D71: FALSE | E71: 0 | F71: FALSE | G71: 0 | J71: =Financing!A41 -> "Quoted monthly payments are estimates only and are based on a certain level of credit rating.
C72: 30 Months | D72: FALSE | E72: 0 | F72: FALSE | G72: 0 | J72: =Financing!A42 -> Actual monthly payments may be higher depending on your credit rating."
C73: 36 Months | D73: FALSE | E73: 0 | F73: FALSE | G73: 0 | J73: =Financing!A43 -> “Financing rates do not include Pre-Paid Service”
C74: 48 Months | D74: 0 | E74: 0 | F74: 0 | G74: 0 | I74: =Financing!A44 -> 0
D76: Benefits of Equipment Financing:
D77: • Spreads out investment over time. | F77: • Keep current with latest technology.
D78: • Preserve capital. | F78: • Service and parts bundling available.
D79: • Low monthly payment. | F79: • Pay for labor savings as you go.
B81: TennantTrue | E81: 0 | F81: 0
C83: Is customer interested in service program? | D83: Yes | E83: *State/County selection required for TennantTrue service options
C85: If not, why?
C87: Term: | D87: 36 | G87: AB Brushes | H87: No
C88: Monthly machine usage (hrs): | D88: < 30/mo. (Avg. 1hr./day)
C90: TennantTrue: | D90: Gold Contract | F90: Silver Contract
C91: Per Visit
C92: Monthly
C93: Annually
C94: Pre-Pay Full Term
C95: Hourly Labor Rate
C96: Site Visit
C98: * Verify customer current pricing prior to quote.
C99: **All rates and fees above reflect service for one (1) unit with the exception of Block of Time service.
C100: *Block of Time is available in 1 Year Term only and is priced as such no matter the term selection on this template.
C104: Quote Special Instructions:
C107: =Start_Here!E36 -> Terms and Conditions
C108: =Start_Here!E37 -> Ask your local sales rep for estimated lead times. Verify when placing order
C109: =Start_Here!E38 -> All orders subject to acceptance by Tennant Sales and Service Company, Minneapolis, Minnesota
C110: =Start_Here!E39 -> Prices subject to change without notice. Subject to any applicable taxes.
C111: =Start_Here!E40 -> Terms: Net 30 days. Payable in Canadian Funds
C112: =Start_Here!E41 -> Freight: Accessories, parts, supplies, detergents, and floor coatings orders delivered DDP
C113: =Start_Here!E42 -> shipping point Frt PPD. Machine orders delivered DDP shipping point Frt PPD and add.
C114: =Start_Here!E43 -> Returned Merchandise is subject to a restocking fee.
C115: =Start_Here!E45 -> Printed General Terms and Conditions are also available upon request.
C116: =Start_Here!E46 -> 0
E119: Quote Date : | G119: =Letter!$A$25 -> 2014-10-02
A120: Order Placement Information: To place your order, fill in PO# and customer signatures,
A121: call or fax to the numbers listed below. Customer Purchase Order is required.
A122: If information is missing, orders will be entered and held until all information is received.
C123: Customer Number | E123: Cust Grp 3
C124: =Start_Here!$C$25 -> 0 | E124: =Start_Here!$C$29 -> 0
C125: =Start_Here!$B$18 -> Who Owns the Machine? (Sold-To Info) (Please Verify)
A126: Company | C126: =Start_Here!$C$19 -> Company Name
A127: Address | C127: =Start_Here!$C$20 -> Address
C128: =Start_Here!$C$21 -> City, State Zip
A129: Name | C129: =Start_Here!$C$22 -> Contact Name
A130: Phone | C130: =Start_Here!$C$23 -> Contact Phone
C131: =Start_Here!$B$11 -> Where is the Machine Being Shipped? (Ship-To Info) (Please Verify)
A132: Company | C132: =Start_Here!$C$12 -> Company Name
A133: Address | C133: =Start_Here!$C$13 -> Address
C134: =Start_Here!$C$14 -> City, State Zip
A135: Name | C135: =Start_Here!$C$15 -> Contact Name
A136: Phone | C136: =Start_Here!$C$16 -> Contact Phone
C137: =Start_Here!$B$31 -> Shipping / Carrier Instructions: | E137: Order Special Instructions:
C138: =Start_Here!$C$32 -> 0
C140: Customer Purchase Order No.
C141: (please attach copy)
C144: Tax Exempt | E144: Yes
E145: No
C146: If Yes, attach a copy of your exemption certificate.
C148: Requested Delivery Date
C149: =Start_Here!$C$28 -> 0
C151: =Start_Here!$C$26 -> 0 | E151: =Start_Here!$C$27 -> 0
C152: Authorized Buyer (please print) | E152: Phone Number
C155: Authorized Buyer Signature
C157: =Start_Here!$C$41 -> Rep Name
C158: Tennant Representative
A160: Specialized Maintenance Equipment
A161: =Start_Here!$C$48 -> TENNANT · 10400 Clean Street · Eden Prairie, MN 55344 ·
A162: =Start_Here!$C$49 -> PHONE:800-553-8033 · FAX:763-513-2116
B164: Special Information
B167: 1 | C167: Pre-Configured Machines cannot add or change options. All units are packaged on a Skid w/Carton and will ship via LTL Carrier.
C168: When ordering, provide the reference number listed above. Price does not include freight or tax. Availability of units
C169: and lead time may vary.
B171: 2 | C171: One pad driver comes standard with a T2.
B173: 3 | C173: Skid w/Carton, Stackable is the default packaging method and will be added to the configuration unless otherwise specified.
B175: 4 | C175: Machine Weights and dimensions | D175: Skid w/Carton
C177: Weight (w/105AH battery) | D177: 331 lbs / 150 Kg
C178: Length | D178: 47" / 1200mm
C179: Width | D179: 30" / 750mm
C180: Height | D180: 45" / 1150mm

Sheet i_mop_XL
A1: i_mop_XL | C1: =Start_Here!$C19 -> Company Name
A2: =SUM(G71) -> 0 | C2: =Start_Here!$C20 -> Address
C3: =Start_Here!$C21 -> City, State Zip
C4: =Start_Here!$C22 -> Contact Name
C5: =Start_Here!$C$41 -> Rep Name
C6: =Start_Here!$C$37 -> Tennant Sales and Service Company
C7: =Start_Here!$C$38 -> 10400 Clean Street
C8: =Start_Here!$C$39 -> Eden Prairie, MN 55344
C9: =Start_Here!$C$43 -> 800-553-8033 | E9: Quote Date : | G9: =Letter!$A$25 -> 2014-10-02
C11: =Help!C2 -> CAN Date Rev - 5/6/2025
C13: EXCLUSIVE FACTORY-DIRECT WARRANTY
C14: 12 MONTHS - PARTS
C15: 12 MONTHS LABOR
C16: 12 MONTHS BATTERY | E16: Quote Request Information
C17: 90 DAYS – TRAVEL | G17: Fax (quote only)
G18: Mail (quote,lit, specs)
G19: Fax + Mail
E21: Primary Use
G22: Inside
G23: Outside
C25: Description | D25: Reference No. | E25: Canada Price | F25: Qty. | G25: Extended Price
C27: i-mop XL Plus Lithium-Ion Auto Disk Scrubber | D27: 1264254 | E27: 8732 | G27: =F27*E27 -> 0 | H27: =IFERROR(IFERROR(VLOOKUP(D27,Surcharge!A:B,2,FALSE)*F27, VLOOKUP(D27 & "",Surcharge!A:B,2,FALSE)*F27), "") ->  | Q27: =VLOOKUP(D27,'MPF SAP Canada Pre-Configured'!$C:$E,3,FALSE) -> 
C28: 18.1" (46 cm) cleaning path. Includes white batteries, removable 1 gal (4 L) solution and 1.5 gal (6 L) recovery tank with ball float, battery safe guard switch, angle switch & i-Balance lever, removable splash guards, XL Plus charger w/ power cord, 2 medium blue brushes, quick change squeegee assembly with Linatex blades, and multi-language operator manual. | F28: =SUM(F27) -> 0 | H28: =IFERROR(IFERROR(VLOOKUP(D28,Surcharge!A:B,2,FALSE)*F28, VLOOKUP(D28 & "",Surcharge!A:B,2,FALSE)*F28), "") -> 
F29: =SUM(F28) -> 0 | H29: =IFERROR(IFERROR(VLOOKUP(D29,Surcharge!A:B,2,FALSE)*F29, VLOOKUP(D29 & "",Surcharge!A:B,2,FALSE)*F29), "") -> 
C30: Boxed Dimensions: 49.6" H x 22.4" W x 14.6" L (1260 mm x 570 mm x 370 mm) | F30: 0 | H30: =IFERROR(IFERROR(VLOOKUP(D30,Surcharge!A:B,2,FALSE)*F30, VLOOKUP(D30 & "",Surcharge!A:B,2,FALSE)*F30), "") -> 
C31: Shipping Weight with Batteries: 77.2 lbs (35 kg) | F31: 0 | H31: =IFERROR(IFERROR(VLOOKUP(D31,Surcharge!A:B,2,FALSE)*F31, VLOOKUP(D31 & "",Surcharge!A:B,2,FALSE)*F31), "") -> 
H32: =IFERROR(IFERROR(VLOOKUP(D32,Surcharge!A:B,2,FALSE)*F32, VLOOKUP(D32 & "",Surcharge!A:B,2,FALSE)*F32), "") -> 
C33: i-mop XL Plus Lithium-Ion Auto Disk Scrubber + 2 Sets of Batteries | D33: 9022386 | E33: 10445 | G33: =F33*E33 -> 0 | H33: =IFERROR(IFERROR(VLOOKUP(D33,Surcharge!A:B,2,FALSE)*F33, VLOOKUP(D33 & "",Surcharge!A:B,2,FALSE)*F33), "") ->  | Q33: =VLOOKUP(D33,'MPF SAP Canada Pre-Configured'!$C:$E,3,FALSE) -> 
C34: 18.1" (46 cm) cleaning path. Includes i-mop XL Plus (1264254) with white battery and charger, as well as a second set of spare white batteries (two sets in total). | F34: =SUM(F33) -> 0 | H34: =IFERROR(IFERROR(VLOOKUP(D34,Surcharge!A:B,2,FALSE)*F34, VLOOKUP(D34 & "",Surcharge!A:B,2,FALSE)*F34), "") -> 
F35: =SUM(F34) -> 0 | H35: =IFERROR(IFERROR(VLOOKUP(D35,Surcharge!A:B,2,FALSE)*F35, VLOOKUP(D35 & "",Surcharge!A:B,2,FALSE)*F35), "") -> 
C36: Note: Batteries do not ship in the machine box, but separately. | F36: 0 | H36: =IFERROR(IFERROR(VLOOKUP(D36,Surcharge!A:B,2,FALSE)*F36, VLOOKUP(D36 & "",Surcharge!A:B,2,FALSE)*F36), "") -> 
H37: =IFERROR(IFERROR(VLOOKUP(D37,Surcharge!A:B,2,FALSE)*F37, VLOOKUP(D37 & "",Surcharge!A:B,2,FALSE)*F37), "") -> 
H38: =IFERROR(IFERROR(VLOOKUP(D38,Surcharge!A:B,2,FALSE)*F38, VLOOKUP(D38 & "",Surcharge!A:B,2,FALSE)*F38), "") -> 
C39: iCart L Integrated Work Cart | D39: 1232057 | E39: 3008.6 | G39: =F39*E39 -> 0 | H39: =IFERROR(IFERROR(VLOOKUP(D39,Surcharge!A:B,2,FALSE)*F39, VLOOKUP(D39 & "",Surcharge!A:B,2,FALSE)*F39), "") ->  | Q39: =VLOOKUP(D39,'MPF SAP Canada Pre-Configured'!$C:$E,3,FALSE) -> 2756
C40: Transports the i-mop XL, includes ramp, and has storage. i-mop XL only. | F40: =SUM(F39) -> 0 | H40: =IFERROR(IFERROR(VLOOKUP(D40,Surcharge!A:B,2,FALSE)*F40, VLOOKUP(D40 & "",Surcharge!A:B,2,FALSE)*F40), "") -> 
F41: =SUM(F40) -> 0 | H41: =IFERROR(IFERROR(VLOOKUP(D41,Surcharge!A:B,2,FALSE)*F41, VLOOKUP(D41 & "",Surcharge!A:B,2,FALSE)*F41), "") -> 
C42: Boxed Dimensions: 42.5" x 34.6" x 25.2" (1080 mm x 880 mm x 640 mm) | F42: 0 | H42: =IFERROR(IFERROR(VLOOKUP(D42,Surcharge!A:B,2,FALSE)*F42, VLOOKUP(D42 & "",Surcharge!A:B,2,FALSE)*F42), "") -> 
C43: Shipping Weight: 132.2 lbs (60 kg) | F43: 0 | H43: =IFERROR(IFERROR(VLOOKUP(D43,Surcharge!A:B,2,FALSE)*F43, VLOOKUP(D43 & "",Surcharge!A:B,2,FALSE)*F43), "") -> 
F44: 0 | H44: =IFERROR(IFERROR(VLOOKUP(D44,Surcharge!A:B,2,FALSE)*F44, VLOOKUP(D44 & "",Surcharge!A:B,2,FALSE)*F44), "") -> 
C45: Cabinet Assy, Storage (iMop) | D45: 1233400 | E45: 1929 | G45: =F45*E45 -> 0 | H45: =IFERROR(IFERROR(VLOOKUP(D45,Surcharge!A:B,2,FALSE)*F45, VLOOKUP(D45 & "",Surcharge!A:B,2,FALSE)*F45), "") ->  | Q45: =VLOOKUP(D45,'MPF SAP Canada Pre-Configured'!$C:$E,3,FALSE) -> 1872
C46: iMop Storage Cabinet | F46: =SUM(F45) -> 0 | H46: =IFERROR(IFERROR(VLOOKUP(D46,Surcharge!A:B,2,FALSE)*F46, VLOOKUP(D46 & "",Surcharge!A:B,2,FALSE)*F46), "") -> 
H47: =IFERROR(IFERROR(VLOOKUP(D47,Surcharge!A:B,2,FALSE)*F47, VLOOKUP(D47 & "",Surcharge!A:B,2,FALSE)*F47), "") -> 
H48: =IFERROR(IFERROR(VLOOKUP(D48,Surcharge!A:B,2,FALSE)*F48, VLOOKUP(D48 & "",Surcharge!A:B,2,FALSE)*F48), "") -> 
B50: Custom Solution--write in description, qty, price, and PN if applicable | F50: =SUM(F51) -> 0
E51: Insert Prices Here | F51: =SUM(F52:F55) -> 0
D52: Custom | F52: =IF(E52 <> "", 1, 0) -> 0 | G52: =F52*E52 -> 0
D53: Custom | F53: =IF(E53 <> "", 1, 0) -> 0 | G53: =F53*E53 -> 0
D54: Custom | F54: =IF(E54 <> "", 1, 0) -> 0 | G54: =F54*E54 -> 0
D55: Custom | F55: =IF(E55 <> "", 1, 0) -> 0 | G55: =F55*E55 -> 0
E56: =ROUND(SUM(G26:G55), 0) -> 0 | F56: =SUM(E57) -> 0
D57: Machine Subtotal | E57: =ROUND(SUM(G26:G55), 0) -> 0 | F57: =F56 -> 0
B58: Discounts | F58: =SUM(F59) -> 0
F59: =SUM(F61:F64) -> 0
D60: Applicable Currency Adj % | F60: =IF(E60 <> "", 1, 0) -> 0 | G60: =IF(F60*(E60*0.01)*E56 < 0, F60*(E60*0.01)*E56, -(F60*(E60*0.01)*E56)) -> 0
D61: Discount % | F61: =IF(E61 <> "", 1, 0) -> 0 | G61: =IF(F61*(E61*0.01)*(E56+G60) < 0, F61*(E61*0.01)*(E56+G60), -(F61*(E61*0.01)*(E56+G60))) -> 0
D62: Discount $ | F62: =IF(E62 <> "", 1, 0) -> 0 | G62: =IF(F62*E62 < 0, F62*E62, -(F62*E62)) -> 0
D63: Discount $ | F63: =IF(E63 <> "", 1, 0) -> 0 | G63: =IF(F63*E63 < 0, F63*E63, -(F63*E63)) -> 0
D64: Discount $ | F64: =IF(E64 <> "", 1, 0) -> 0 | G64: =IF(F64*E64 < 0, F64*E64, -(F64*E64)) -> 0
D65: Discount Total | E65: =SUM(G60:G64) -> 0 | F65: =SUM(E65) -> 0
F66: =#REF! -> 
F67: =F66 -> 
C68: Prepaid and Add | D68: Freight | F68: =IF(E68 <> "", 1, 0) -> 0 | G68: =F68*E68 -> 0
C69: Subject to all applicable taxes | D69: Tax | F69: =IF(E69 <> "", 1, 0) -> 0 | G69: =F69*E69 -> 0
F70: =SUM(F71) -> 0
D71: MACHINE TOTAL* | F71: =SUM(G71) -> 0 | G71: =SUM(G26:G69) -> 0 | N71: This goes to "My Documents"
G72: =SUM(G71) -> 0
C77: First Western Equipment Finance - Leasing Calculation Option: | D77: Option 1 | F77: Option 2 | J77: =Financing!A38 -> Rates 2025 - Rev 2/4/2025
D78: Monthly Payment | E78: Cost Per Day | F78: Monthly Payment | G78: Cost Per Day | J78: =Financing!A39 -> “Blank Payment Amounts Indicate The Financing Option Or Purchase Options Selected Are Not
C79: Purchase Option: | D79: FWEF: $1 Buyout Lease | F79: FWEF: Municipal Lease | J79: =Financing!A40 -> Applicable Or The Machine Total Is Below The Minimum Amount For The Selected Vendor”
C80: 24 Months | D80: FALSE | E80: 0 | F80: FALSE | G80: 0 | J80: =Financing!A41 -> "Quoted monthly payments are estimates only and are based on a certain level of credit rating.
C81: 30 Months | D81: FALSE | E81: 0 | F81: FALSE | G81: 0 | J81: =Financing!A42 -> Actual monthly payments may be higher depending on your credit rating."
C82: 36 Months | D82: FALSE | E82: 0 | F82: FALSE | G82: 0 | J82: =Financing!A43 -> “Financing rates do not include Pre-Paid Service”
C83: 48 Months | D83: 0 | E83: 0 | F83: 0 | G83: 0 | I83: =Financing!A44 -> 0
D85: Benefits of Equipment Financing:
D86: • Spreads out investment over time. | F86: • Keep current with latest technology.
D87: • Preserve capital. | F87: • Service and parts bundling available.
D88: • Low monthly payment. | F88: • Pay for labor savings as you go.
B90: TennantTrue | E90: 0 | F90: 0
C92: Is customer interested in service program? | D92: Yes | E92: *State/County selection required for TennantTrue service options
C94: If not, why?
C96: Term: | D96: 36 | G96: AB Brushes | H96: No
C97: Monthly machine usage (hrs): | D97: < 30/mo. (Avg. 1hr./day)
C99: TennantTrue: | D99: Gold Contract | F99: Silver Contract
C100: Per Visit
C101: Monthly
C102: Annually
C103: Pre-Pay Full Term
C104: Hourly Labor Rate
C105: Site Visit
C107: * Verify customer current pricing prior to quote.
C108: **All rates and fees above reflect service for one (1) unit with the exception of Block of Time service.
C109: *Block of Time is available in 1 Year Term only and is priced as such no matter the term selection on this template.
C113: Quote Special Instructions:
C116: =Start_Here!E36 -> Terms and Conditions
C117: =Start_Here!E37 -> Ask your local sales rep for estimated lead times. Verify when placing order
C118: =Start_Here!E38 -> All orders subject to acceptance by Tennant Sales and Service Company, Minneapolis, Minnesota
C119: =Start_Here!E39 -> Prices subject to change without notice. Subject to any applicable taxes.
C120: =Start_Here!E40 -> Terms: Net 30 days. Payable in Canadian Funds
C121: =Start_Here!E41 -> Freight: Accessories, parts, supplies, detergents, and floor coatings orders delivered DDP
C122: =Start_Here!E42 -> shipping point Frt PPD. Machine orders delivered DDP shipping point Frt PPD and add.
C123: =Start_Here!E43 -> Returned Merchandise is subject to a restocking fee.
C124: =Start_Here!E45 -> Printed General Terms and Conditions are also available upon request.
C125: =Start_Here!E46 -> 0
E128: Quote Date : | G128: =Letter!$A$25 -> 2014-10-02
A129: Order Placement Information: To place your order, fill in PO# and customer signatures,
A130: call or fax to the numbers listed below. Customer Purchase Order is required.
A131: If information is missing, orders will be entered and held until all information is received.
C132: Customer Number | E132: Cust Grp 3
C133: =Start_Here!$C$25 -> 0 | E133: =Start_Here!$C$29 -> 0
C134: =Start_Here!$B$18 -> Who Owns the Machine? (Sold-To Info) (Please Verify)
A135: Company | C135: =Start_Here!$C$19 -> Company Name
A136: Address | C136: =Start_Here!$C$20 -> Address
C137: =Start_Here!$C$21 -> City, State Zip
A138: Name | C138: =Start_Here!$C$22 -> Contact Name
A139: Phone | C139: =Start_Here!$C$23 -> Contact Phone
C140: =Start_Here!$B$11 -> Where is the Machine Being Shipped? (Ship-To Info) (Please Verify)
A141: Company | C141: =Start_Here!$C$12 -> Company Name
A142: Address | C142: =Start_Here!$C$13 -> Address
C143: =Start_Here!$C$14 -> City, State Zip
A144: Name | C144: =Start_Here!$C$15 -> Contact Name
A145: Phone | C145: =Start_Here!$C$16 -> Contact Phone
C146: =Start_Here!$B$31 -> Shipping / Carrier Instructions: | E146: Order Special Instructions:
C147: =Start_Here!$C$32 -> 0
C149: Customer Purchase Order No.
C150: (please attach copy)
C153: Tax Exempt | E153: Yes
E154: No
C155: If Yes, attach a copy of your exemption certificate.
C157: Requested Delivery Date
C158: =Start_Here!$C$28 -> 0
C160: =Start_Here!$C$26 -> 0 | E160: =Start_Here!$C$27 -> 0
C161: Authorized Buyer (please print) | E161: Phone Number
C164: Authorized Buyer Signature
C166: =Start_Here!$C$41 -> Rep Name
C167: Tennant Representative
A169: Specialized Maintenance Equipment
A170: =Start_Here!$C$48 -> TENNANT · 10400 Clean Street · Eden Prairie, MN 55344 ·
A171: =Start_Here!$C$49 -> PHONE:800-553-8033 · FAX:763-513-2116
B173: Special Information
B176: 1 | C176: Pre-Configured Machines cannot add or change options. All units are packaged on a Skid w/Carton and will ship via LTL Carrier.
C177: When ordering, provide the reference number listed above. Price does not include freight or tax. Availability of units
C178: and lead time may vary.
B180: 2 | C180: One pad driver comes standard with a T2.
B182: 3 | C182: Skid w/Carton, Stackable is the default packaging method and will be added to the configuration unless otherwise specified.
B184: 4 | C184: Machine Weights and dimensions | D184: Skid w/Carton
C186: Weight (w/105AH battery) | D186: 331 lbs / 150 Kg
C187: Length | D187: 47" / 1200mm
C188: Width | D188: 30" / 750mm
C189: Height | D189: 45" / 1150mm

Sheet i_mop_XXL
A1: i_mop_XXL | C1: =Start_Here!$C19 -> Company Name
A2: =SUM(G61) -> 0 | C2: =Start_Here!$C20 -> Address
C3: =Start_Here!$C21 -> City, State Zip
C4: =Start_Here!$C22 -> Contact Name
C5: =Start_Here!$C$41 -> Rep Name
C6: =Start_Here!$C$37 -> Tennant Sales and Service Company
C7: =Start_Here!$C$38 -> 10400 Clean Street
C8: =Start_Here!$C$39 -> Eden Prairie, MN 55344
C9: =Start_Here!$C$43 -> 800-553-8033 | E9: Quote Date : | G9: =Letter!$A$25 -> 2014-10-02
C11: =Help!C2 -> CAN Date Rev - 5/6/2025
C13: EXCLUSIVE FACTORY-DIRECT WARRANTY
C14: 12 MONTHS - PARTS
C15: 12 MONTHS LABOR
C16: 12 MONTHS BATTERY | E16: Quote Request Information
C17: 90 DAYS – TRAVEL | F17: _ | G17: Fax (quote only)
G18: Mail (quote,lit, specs)
G19: Fax + Mail
E21: Primary Use
G22: Inside
G23: Outside
C25: Description | D25: Reference No. | E25: Canada Price | F25: Qty. | G25: Extended Price
F26: *
C27: i-mop XXL Plus Lithium-Ion Auto Disk Scrubber | D27: 1264255 | E27: 11721 | G27: =F27*E27 -> 0 | H27: =IFERROR(IFERROR(VLOOKUP(D27,Surcharge!A:B,2,FALSE)*F27, VLOOKUP(D27 & "",Surcharge!A:B,2,FALSE)*F27), "") ->  | P27: =VLOOKUP(D27,'MPF SAP Canada Pre-Configured'!$C:$E,3,FALSE) -> 
C28: 24.4" (62 cm) cleaning path. Includes gray batteries, removable 1.25 gal (5 L) solution and 2 gal (8 L) recovery tank with ball float, battery safe guard switch, angle switch & i-Balance lever, removable splash guards, XXL Plus charger w/ power cord, 2 medium blue brushes, quick change squeegee assembly with Linatex blades, and multi-language operator manual. | F28: =SUM(F27) -> 0 | H28: =IFERROR(IFERROR(VLOOKUP(D28,Surcharge!A:B,2,FALSE)*F28, VLOOKUP(D28 & "",Surcharge!A:B,2,FALSE)*F28), "") -> 
F29: =SUM(F28) -> 0 | H29: =IFERROR(IFERROR(VLOOKUP(D29,Surcharge!A:B,2,FALSE)*F29, VLOOKUP(D29 & "",Surcharge!A:B,2,FALSE)*F29), "") -> 
C30: Boxed Dimensions: 49" H x 25" W x 13" L (1240 mm x 640 mm x 330 mm) | F30: 0 | H30: =IFERROR(IFERROR(VLOOKUP(D30,Surcharge!A:B,2,FALSE)*F30, VLOOKUP(D30 & "",Surcharge!A:B,2,FALSE)*F30), "") -> 
C31: Shipping Weight with Batteries: 90.2 lbs (40.9 kg) | F31: 0 | H31: =IFERROR(IFERROR(VLOOKUP(D31,Surcharge!A:B,2,FALSE)*F31, VLOOKUP(D31 & "",Surcharge!A:B,2,FALSE)*F31), "") -> 
H32: =IFERROR(IFERROR(VLOOKUP(D32,Surcharge!A:B,2,FALSE)*F32, VLOOKUP(D32 & "",Surcharge!A:B,2,FALSE)*F32), "") -> 
H33: =IFERROR(IFERROR(VLOOKUP(D33,Surcharge!A:B,2,FALSE)*F33, VLOOKUP(D33 & "",Surcharge!A:B,2,FALSE)*F33), "") -> 
C34: i-mop XXL Plus Lithium-Ion Auto Disk Scrubber + 2 Sets of Batteries | D34: 9022387 | E34: 13901 | G34: =F34*E34 -> 0 | H34: =IFERROR(IFERROR(VLOOKUP(D34,Surcharge!A:B,2,FALSE)*F34, VLOOKUP(D34 & "",Surcharge!A:B,2,FALSE)*F34), "") ->  | P34: =VLOOKUP(D34,'MPF SAP Canada Pre-Configured'!$C:$E,3,FALSE) -> 
C35: 24.4" (62 cm) cleaning path. Includes i-mop XXL Plus (1264255) with grey battery and charger, as well as a second set of spare grey batteries (two sets in total). | F35: =SUM(F34) -> 0 | H35: =IFERROR(IFERROR(VLOOKUP(D35,Surcharge!A:B,2,FALSE)*F35, VLOOKUP(D35 & "",Surcharge!A:B,2,FALSE)*F35), "") -> 
C36: Note: Extra batteries do not ship in machine box, but separately. | F36: =SUM(F35) -> 0 | H36: =IFERROR(IFERROR(VLOOKUP(D36,Surcharge!A:B,2,FALSE)*F36, VLOOKUP(D36 & "",Surcharge!A:B,2,FALSE)*F36), "") -> 
H37: =IFERROR(IFERROR(VLOOKUP(D37,Surcharge!A:B,2,FALSE)*F37, VLOOKUP(D37 & "",Surcharge!A:B,2,FALSE)*F37), "") -> 
H38: =IFERROR(IFERROR(VLOOKUP(D38,Surcharge!A:B,2,FALSE)*F38, VLOOKUP(D38 & "",Surcharge!A:B,2,FALSE)*F38), "") -> 
B40: Custom Solution--write in description, qty, price, and PN if applicable | F40: =SUM(F41) -> 0
E41: Insert Prices Here | F41: =SUM(F42:F45) -> 0
D42: Custom | F42: =IF(E42 <> "", 1, 0) -> 0 | G42: =F42*E42 -> 0
D43: Custom | F43: =IF(E43 <> "", 1, 0) -> 0 | G43: =F43*E43 -> 0
D44: Custom | F44: =IF(E44 <> "", 1, 0) -> 0 | G44: =F44*E44 -> 0
D45: Custom | F45: =IF(E45 <> "", 1, 0) -> 0 | G45: =F45*E45 -> 0
E46: =ROUND(SUM(G27:G45), 0) -> 0 | F46: =SUM(E47) -> 0
D47: Machine Subtotal | E47: =ROUND(SUM(G27:G45), 0) -> 0 | F47: =F46 -> 0
B48: Discounts | F48: =SUM(F49) -> 0
F49: =SUM(F51:F54) -> 0
D50: Applicable Currency Adj % | F50: =IF(E50 <> "", 1, 0) -> 0 | G50: =IF(F50*(E50*0.01)*E46 < 0, F50*(E50*0.01)*E46, -(F50*(E50*0.01)*E46)) -> 0
D51: Discount % | F51: =IF(E51 <> "", 1, 0) -> 0 | G51: =IF(F51*(E51*0.01)*(E46+G50) < 0, F51*(E51*0.01)*(E46+G50), -(F51*(E51*0.01)*(E46+G50))) -> 0
D52: Discount $ | F52: =IF(E52 <> "", 1, 0) -> 0 | G52: =IF(F52*E52 < 0, F52*E52, -(F52*E52)) -> 0
D53: Discount $ | F53: =IF(E53 <> "", 1, 0) -> 0 | G53: =IF(F53*E53 < 0, F53*E53, -(F53*E53)) -> 0
D54: Discount $ | F54: =IF(E54 <> "", 1, 0) -> 0 | G54: =IF(F54*E54 < 0, F54*E54, -(F54*E54)) -> 0
D55: Discount Total | E55: =SUM(G50:G54) -> 0 | F55: =SUM(E55) -> 0
F56: =#REF! -> 
F57: =F56 -> 
C58: Prepaid and Add | D58: Freight | F58: =IF(E58 <> "", 1, 0) -> 0 | G58: =F58*E58 -> 0
C59: Subject to all applicable taxes | D59: Tax | F59: =IF(E59 <> "", 1, 0) -> 0 | G59: =F59*E59 -> 0
F60: =SUM(F61) -> 0
D61: MACHINE TOTAL* | F61: =SUM(G61) -> 0 | G61: =SUM(G27:G59) -> 0 | N61: This goes to "My Documents"
G62: =SUM(G61) -> 0
C67: First Western Equipment Finance - Leasing Calculation Option: | D67: Option 1 | F67: Option 2 | J67: =Financing!A38 -> Rates 2025 - Rev 2/4/2025
D68: Monthly Payment | E68: Cost Per Day | F68: Monthly Payment | G68: Cost Per Day | J68: =Financing!A39 -> “Blank Payment Amounts Indicate The Financing Option Or Purchase Options Selected Are Not
C69: Purchase Option: | D69: FWEF: $1 Buyout Lease | F69: FWEF: Municipal Lease | J69: =Financing!A40 -> Applicable Or The Machine Total Is Below The Minimum Amount For The Selected Vendor”
C70: 24 Months | D70: FALSE | E70: 0 | F70: FALSE | G70: 0 | J70: =Financing!A41 -> "Quoted monthly payments are estimates only and are based on a certain level of credit rating.
C71: 30 Months | D71: FALSE | E71: 0 | F71: FALSE | G71: 0 | J71: =Financing!A42 -> Actual monthly payments may be higher depending on your credit rating."
C72: 36 Months | D72: FALSE | E72: 0 | F72: FALSE | G72: 0 | J72: =Financing!A43 -> “Financing rates do not include Pre-Paid Service”
C73: 48 Months | D73: 0 | E73: 0 | F73: 0 | G73: 0 | I73: =Financing!A44 -> 0
D75: Benefits of Equipment Financing:
D76: • Spreads out investment over time. | F76: • Keep current with latest technology.
D77: • Preserve capital. | F77: • Service and parts bundling available.
D78: • Low monthly payment. | F78: • Pay for labor savings as you go.
B80: TennantTrue | E80: 0 | F80: 0
C82: Is customer interested in service program? | D82: Yes | E82: *State/County selection required for TennantTrue service options
C84: If not, why?
C86: Term: | D86: 36 | G86: AB Brushes | H86: No
C87: Monthly machine usage (hrs): | D87: < 30/mo. (Avg. 1hr./day)
C89: TennantTrue: | D89: Gold Contract | F89: Silver Contract
C90: Per Visit
C91: Monthly
C92: Annually
C93: Pre-Pay Full Term
C94: Hourly Labor Rate
C95: Site Visit
C97: * Verify customer current pricing prior to quote.
C98: **All rates and fees above reflect service for one (1) unit with the exception of Block of Time service.
C99: *Block of Time is available in 1 Year Term only and is priced as such no matter the term selection on this template.
C103: Quote Special Instructions:
C106: =Start_Here!E36 -> Terms and Conditions
C107: =Start_Here!E37 -> Ask your local sales rep for estimated lead times. Verify when placing order
C108: =Start_Here!E38 -> All orders subject to acceptance by Tennant Sales and Service Company, Minneapolis, Minnesota
C109: =Start_Here!E39 -> Prices subject to change without notice. Subject to any applicable taxes.
C110: =Start_Here!E40 -> Terms: Net 30 days. Payable in Canadian Funds
C111: =Start_Here!E41 -> Freight: Accessories, parts, supplies, detergents, and floor coatings orders delivered DDP
C112: =Start_Here!E42 -> shipping point Frt PPD. Machine orders delivered DDP shipping point Frt PPD and add.
C113: =Start_Here!E43 -> Returned Merchandise is subject to a restocking fee.
C114: =Start_Here!E45 -> Printed General Terms and Conditions are also available upon request.
C115: =Start_Here!E46 -> 0
E118: Quote Date : | G118: =Letter!$A$25 -> 2014-10-02
A119: Order Placement Information: To place your order, fill in PO# and customer signatures,
A120: call or fax to the numbers listed below. Customer Purchase Order is required.
A121: If information is missing, orders will be entered and held until all information is received.
C122: Customer Number | E122: Cust Grp 3
C123: =Start_Here!$C$25 -> 0 | E123: =Start_Here!$C$29 -> 0
C124: =Start_Here!$B$18 -> Who Owns the Machine? (Sold-To Info) (Please Verify)
A125: Company | C125: =Start_Here!$C$19 -> Company Name
A126: Address | C126: =Start_Here!$C$20 -> Address
C127: =Start_Here!$C$21 -> City, State Zip
A128: Name | C128: =Start_Here!$C$22 -> Contact Name
A129: Phone | C129: =Start_Here!$C$23 -> Contact Phone
C130: =Start_Here!$B$11 -> Where is the Machine Being Shipped? (Ship-To Info) (Please Verify)
A131: Company | C131: =Start_Here!$C$12 -> Company Name
A132: Address | C132: =Start_Here!$C$13 -> Address
C133: =Start_Here!$C$14 -> City, State Zip
A134: Name | C134: =Start_Here!$C$15 -> Contact Name
A135: Phone | C135: =Start_Here!$C$16 -> Contact Phone
C136: =Start_Here!$B$31 -> Shipping / Carrier Instructions: | E136: Order Special Instructions:
C137: =Start_Here!$C$32 -> 0
C139: Customer Purchase Order No.
C140: (please attach copy)
C143: Tax Exempt | E143: Yes
E144: No
C145: If Yes, attach a copy of your exemption certificate.
C147: Requested Delivery Date
C148: =Start_Here!$C$28 -> 0
C150: =Start_Here!$C$26 -> 0 | E150: =Start_Here!$C$27 -> 0
C151: Authorized Buyer (please print) | E151: Phone Number
C154: Authorized Buyer Signature
C156: =Start_Here!$C$41 -> Rep Name
C157: Tennant Representative
A159: Specialized Maintenance Equipment
A160: =Start_Here!$C$48 -> TENNANT · 10400 Clean Street · Eden Prairie, MN 55344 ·
A161: =Start_Here!$C$49 -> PHONE:800-553-8033 · FAX:763-513-2116
B163: Special Information
B166: 1 | C166: Pre-Configured Machines cannot add or change options. All units are packaged on a Skid w/Carton and will ship via LTL Carrier.
C167: When ordering, provide the reference number listed above. Price does not include freight or tax. Availability of units
C168: and lead time may vary.
B170: 2 | C170: One pad driver comes standard with a T2.
B172: 3 | C172: Skid w/Carton, Stackable is the default packaging method and will be added to the configuration unless otherwise specified.
B174: 4 | C174: Machine Weights and dimensions | D174: Skid w/Carton
C176: Weight (w/105AH battery) | D176: 331 lbs / 150 Kg
C177: Length | D177: 47" / 1200mm
C178: Width | D178: 30" / 750mm
C179: Height | D179: 45" / 1150mm

Sheet CS5_CS16
A1: CS5_CS16 | C1: =Start_Here!$C19 -> Company Name
A2: =SUM(G58) -> 0 | C2: =Start_Here!$C20 -> Address
C3: =Start_Here!$C21 -> City, State Zip
C4: =Start_Here!$C22 -> Contact Name
C5: =Start_Here!$C$41 -> Rep Name
C6: =Start_Here!$C$37 -> Tennant Sales and Service Company
C7: =Start_Here!$C$38 -> 10400 Clean Street
C8: =Start_Here!$C$39 -> Eden Prairie, MN 55344
C9: =Start_Here!$C$43 -> 800-553-8033 | E9: Quote Date : | G9: =Letter!$A$25 -> 2014-10-02
C11: =Help!C2 -> CAN Date Rev - 5/6/2025
C13: EXCLUSIVE FACTORY-DIRECT WARRANTY -CS5
C14: 12 MONTHS - PARTS
C15: 12 MONTHS BATTERY
E16: Quote Request Information
C17: EXCLUSIVE FACTORY-DIRECT WARRANTY -CS16 | G17: Fax (quote only)
C18: 12 MONTHS PARTS AND LABOR | G18: Mail (quote,lit, specs)
C19: 12 MONTHS BATTERY | G19: Fax + Mail
C20: 3 MONTHS TRAVEL
C21: 12 MONTHS ON Rotationally Molded Components | E21: Primary Use
G22: Inside
G23: Outside
C25: Description | D25: Reference No. | E25: Canada Price | F25: Qty. | G25: Extended Price
C26: CS5 Li-ON Battery Micro-scrubber | D26: 1251580 | E26: 3802 | G26: =F26*E26 -> 0 | P26: =VLOOKUP(D26,'MPF SAP Canada Pre-Configured'!$C:$E,3,FALSE) -> 4224
C27: 11" cleaning path. Includes 5.5 AH Lithium ion battery, removable, fill and dump nearly anywhere 1.3 gallon (5 liter) solution & recovery tanks, forward and reverse dry system, foldable handle, medium polyproplylene brush, Linatex squeegees, charger with power cord and multi-language operator manual. | F27: =SUM(F26) -> 0
F28: =SUM(F27) -> 0
C29: Boxed Dimensions: 31.5" L x 15.74" W x 18.5" H (800 mm x 400 mm x 470 mm) | F29: =SUM(F28) -> 0
C30: Shipping Weight 48.62 lbs/ 22 kg | F30: =SUM(F29) -> 0
C33: CS16 Sealed AGM Battery Micro-Scrubber | D33: LPTB03328 | E33: 6123 | G33: =F33*E33 -> 0 | P33: =VLOOKUP(D33,'MPF SAP Canada Pre-Configured'!$C:$E,3,FALSE) -> 5944
C34: 14" cleaning path. Includes 2 x12V Sealed AGM battery, foldable handle, removeable 3.9 gal (15 L) solution and 4.4 gal (16.5 L) recovery tank. Plus charger w/ power cord, medium bristle polypropylene brush, squeegee, and multi-language operator manual. | F34: =SUM(F33) -> 0
C36: CS16 Li-Ion Battery Micro-Scrubber | D36: LPTB03794 | E36: 6544 | G36: =F36*E36 -> 0
C37: 14" cleaning path. Includes 1 x 24V Li-Ion battery, foldable handle, removeable 3.9 gal (15 L) solution and 4.4 gal (16.5 L) recovery tank. Plus onboard charger, medium bristle polypropylene brush, squeegee, and multi-language operator manual. | F37: =SUM(F36) -> 0
F38: =SUM(F33,F36) -> 0
C39: Boxed Dimensions: 31.9" L x 18.1" W x 27.6" H (810 mm x 460 mm x 700 mm) | F39: =SUM(F38) -> 0
C40: Shipping Weight: 125.7 lbs/ 57 kg | F40: =SUM(F39) -> 0
E43: =ROUND(SUM(G26:G42), 0) -> 0 | F43: =SUM(E44) -> 0
D44: Machine Subtotal | E44: =ROUND(SUM(G26:G42), 0) -> 0 | F44: =F43 -> 0
B45: Discounts | F45: =SUM(F46) -> 0
F46: =SUM(F48:F51) -> 0
D47: Applicable Currency Adj % | F47: =IF(E47 <> "", 1, 0) -> 0 | G47: =IF(F47*(E47*0.01)*E43 < 0, F47*(E47*0.01)*E43, -(F47*(E47*0.01)*E43)) -> 0
D48: Discount % | F48: =IF(E48 <> "", 1, 0) -> 0 | G48: =IF(F48*(E48*0.01)*(E43+G47) < 0, F48*(E48*0.01)*(E43+G47), -(F48*(E48*0.01)*(E43+G47))) -> 0
D49: Discount $ | F49: =IF(E49 <> "", 1, 0) -> 0 | G49: =IF(F49*E49 < 0, F49*E49, -(F49*E49)) -> 0
D50: Discount $ | F50: =IF(E50 <> "", 1, 0) -> 0 | G50: =IF(F50*E50 < 0, F50*E50, -(F50*E50)) -> 0
D51: Discount $ | F51: =IF(E51 <> "", 1, 0) -> 0 | G51: =IF(F51*E51 < 0, F51*E51, -(F51*E51)) -> 0
D52: Discount Total | E52: =SUM(G47:G51) -> 0 | F52: =SUM(E52) -> 0
F53: =#REF! -> 
F54: =F53 -> 
C55: Prepaid and Add | D55: Freight | F55: =IF(E55 <> "", 1, 0) -> 0 | G55: =F55*E55 -> 0
C56: Subject to all applicable taxes | D56: Tax | F56: =IF(E56 <> "", 1, 0) -> 0 | G56: =F56*E56 -> 0
F57: =SUM(F58) -> 0
D58: MACHINE TOTAL* | F58: =SUM(G58) -> 0 | G58: =SUM(G26:G56) -> 0 | N58: This goes to "My Documents"
G59: =SUM(G58) -> 0
C64: First Western Equipment Finance - Leasing Calculation Option: | D64: Option 1 | F64: Option 2 | J64: =Financing!A38 -> Rates 2025 - Rev 2/4/2025
D65: Monthly Payment | E65: Cost Per Day | F65: Monthly Payment | G65: Cost Per Day | J65: =Financing!A39 -> “Blank Payment Amounts Indicate The Financing Option Or Purchase Options Selected Are Not
C66: Purchase Option: | D66: FWEF: $1 Buyout Lease | F66: FWEF: Municipal Lease | J66: =Financing!A40 -> Applicable Or The Machine Total Is Below The Minimum Amount For The Selected Vendor”
C67: 24 Months | D67: FALSE | E67: 0 | F67: FALSE | G67: 0 | J67: =Financing!A41 -> "Quoted monthly payments are estimates only and are based on a certain level of credit rating.
C68: 30 Months | D68: FALSE | E68: 0 | F68: FALSE | G68: 0 | J68: =Financing!A42 -> Actual monthly payments may be higher depending on your credit rating."
C69: 36 Months | D69: FALSE | E69: 0 | F69: FALSE | G69: 0 | J69: =Financing!A43 -> “Financing rates do not include Pre-Paid Service”
C70: 48 Months | D70: 0 | E70: 0 | F70: 0 | G70: 0 | I70: =Financing!A44 -> 0
D72: Benefits of Equipment Financing:
D73: • Spreads out investment over time. | F73: • Keep current with latest technology.
D74: • Preserve capital. | F74: • Service and parts bundling available.
D75: • Low monthly payment. | F75: • Pay for labor savings as you go.
B77: TennantTrue | E77: 0 | F77: 0
C79: Is customer interested in service program? | D79: Yes | E79: *State/County selection required for TennantTrue service options
C81: If not, why?
C83: Term: | D83: 36 | G83: AB Brushes | H83: No
C84: Monthly machine usage (hrs): | D84: < 30/mo. (Avg. 1hr./day)
C86: TennantTrue: | D86: Gold Contract | F86: Silver Contract
C87: Per Visit
C88: Monthly
C89: Annually
C90: Pre-Pay Full Term
C91: Hourly Labor Rate
C92: Site Visit
C94: * Verify customer current pricing prior to quote.
C95: **All rates and fees above reflect service for one (1) unit with the exception of Block of Time service.
C96: *Block of Time is available in 1 Year Term only and is priced as such no matter the term selection on this template.
C100: Quote Special Instructions:
C103: =Start_Here!E36 -> Terms and Conditions
C104: =Start_Here!E37 -> Ask your local sales rep for estimated lead times. Verify when placing order
C105: =Start_Here!E38 -> All orders subject to acceptance by Tennant Sales and Service Company, Minneapolis, Minnesota
C106: =Start_Here!E39 -> Prices subject to change without notice. Subject to any applicable taxes.
C107: =Start_Here!E40 -> Terms: Net 30 days. Payable in Canadian Funds
C108: =Start_Here!E41 -> Freight: Accessories, parts, supplies, detergents, and floor coatings orders delivered DDP
C109: =Start_Here!E42 -> shipping point Frt PPD. Machine orders delivered DDP shipping point Frt PPD and add.
C110: =Start_Here!E43 -> Returned Merchandise is subject to a restocking fee.
C111: =Start_Here!E45 -> Printed General Terms and Conditions are also available upon request.
C112: =Start_Here!E46 -> 0
E115: Quote Date : | G115: =Letter!$A$25 -> 2014-10-02
A116: Order Placement Information: To place your order, fill in PO# and customer signatures,
A117: call or fax to the numbers listed below. Customer Purchase Order is required.
A118: If information is missing, orders will be entered and held until all information is received.
C119: Customer Number | E119: Cust Grp 3
C120: =Start_Here!$C$25 -> 0 | E120: =Start_Here!$C$29 -> 0
C121: =Start_Here!$B$18 -> Who Owns the Machine? (Sold-To Info) (Please Verify)
A122: Company | C122: =Start_Here!$C$19 -> Company Name
A123: Address | C123: =Start_Here!$C$20 -> Address
C124: =Start_Here!$C$21 -> City, State Zip
A125: Name | C125: =Start_Here!$C$22 -> Contact Name
A126: Phone | C126: =Start_Here!$C$23 -> Contact Phone
C127: =Start_Here!$B$11 -> Where is the Machine Being Shipped? (Ship-To Info) (Please Verify)
A128: Company | C128: =Start_Here!$C$12 -> Company Name
A129: Address | C129: =Start_Here!$C$13 -> Address
C130: =Start_Here!$C$14 -> City, State Zip
A131: Name | C131: =Start_Here!$C$15 -> Contact Name
A132: Phone | C132: =Start_Here!$C$16 -> Contact Phone
C133: =Start_Here!$B$31 -> Shipping / Carrier Instructions: | E133: Order Special Instructions:
C134: =Start_Here!$C$32 -> 0
C136: Customer Purchase Order No.
C137: (please attach copy)
C140: Tax Exempt | E140: Yes
E141: No
C142: If Yes, attach a copy of your exemption certificate.
C144: Requested Delivery Date
C145: =Start_Here!$C$28 -> 0
C147: =Start_Here!$C$26 -> 0 | E147: =Start_Here!$C$27 -> 0
C148: Authorized Buyer (please print) | E148: Phone Number
C151: Authorized Buyer Signature
C153: =Start_Here!$C$41 -> Rep Name
C154: Tennant Representative
A156: Specialized Maintenance Equipment
A157: =Start_Here!$C$48 -> TENNANT · 10400 Clean Street · Eden Prairie, MN 55344 ·
A158: =Start_Here!$C$49 -> PHONE:800-553-8033 · FAX:763-513-2116
B160: Special Information

Sheet T1_T1B
A1: T1_T1B | C1: =Start_Here!$C19 -> Company Name
A2: =SUM(G65) -> 0 | C2: =Start_Here!$C20 -> Address
C3: =Start_Here!$C21 -> City, State Zip
C4: =Start_Here!$C22 -> Contact Name
C5: =Start_Here!$C$41 -> Rep Name
C6: =Start_Here!$C$37 -> Tennant Sales and Service Company
C7: =Start_Here!$C$38 -> 10400 Clean Street
C8: =Start_Here!$C$39 -> Eden Prairie, MN 55344
C9: =Start_Here!$C$43 -> 800-553-8033 | E9: Quote Date : | G9: =Letter!$A$25 -> 2014-10-02
C11: =Help!C2 -> CAN Date Rev - 5/6/2025
C13: EXCLUSIVE FACTORY-DIRECT WARRANTY
C14: 10 YEARS - ROTOMOLDED PARTS
C15: 36 MONTHS OR 2500 HOURS - PARTS
C16: 36 MONTHS LABOR | E16: Quote Request Information
C17: 90 DAYS – TRAVEL ON T1B, NO TRAVEL ON T1 | G17: Fax (quote only)
C18: BATTERIES AGM PRO-RATED 6 MONTHS | G18: Mail (quote,lit, specs)
C19: LITHIUM ION 24 MONTHS (Full Replacement) | G19: Fax + Mail
E21: Primary Use
G22: Inside
G23: Outside
C25: Description | D25: Reference No. | E25: Canada Price | F25: Qty. | G25: Extended Price
C27: T1 Cord-Electric Cylindrical Scrubber | D27: 9004191 | E27: 6663 | G27: =F27*E27 -> 0 | H27: =IFERROR(IFERROR(VLOOKUP(D27,Surcharge!A:B,2,FALSE)*F27, VLOOKUP(D27 & "",Surcharge!A:B,2,FALSE)*F27), "") ->  | L27: =SUM(F27) -> 0 | M27: Surcharge Qty | P27: =VLOOKUP(D27,'MPF SAP Canada Pre-Configured'!$C:$E,3,FALSE) -> 6663
C28: 15" (380 mm) cleaning path. Complete package includes removable, Hygenic® fully cleanable 3 gallon (11.4 liter) solution/ 4.5 gallon (17 liters) recovery tanks, Insta-AdjustTM handle, nylon brush, 50-ft (15-m) "safety yellow" power cord and multi-language operator manual. | F28: =SUM(F27) -> 0 | H28: =IFERROR(IFERROR(VLOOKUP(D28,Surcharge!A:B,2,FALSE)*F28, VLOOKUP(D28 & "",Surcharge!A:B,2,FALSE)*F28), "") ->  | L28: 0 | M28: Surcharge Qty
C29: Boxed Dimensions: 34" L x 22" W x 32" H (864 mm x 559 mm x 813 mm). | F29: =SUM(F28) -> 0 | H29: =IFERROR(IFERROR(VLOOKUP(D29,Surcharge!A:B,2,FALSE)*F29, VLOOKUP(D29 & "",Surcharge!A:B,2,FALSE)*F29), "") ->  | L29: 0 | M29: Surcharge Qty
C30: Shipping Weight / Volume: 125 lb (57 kg) / 13.9 ft3 (.39 m3) | F30: =SUM(F29) -> 0 | H30: =IFERROR(IFERROR(VLOOKUP(D30,Surcharge!A:B,2,FALSE)*F30, VLOOKUP(D30 & "",Surcharge!A:B,2,FALSE)*F30), "") ->  | L30: 0 | M30: Surcharge Qty
H31: =IFERROR(IFERROR(VLOOKUP(D31,Surcharge!A:B,2,FALSE)*F31, VLOOKUP(D31 & "",Surcharge!A:B,2,FALSE)*F31), "") ->  | L31: =SUM(F31) -> 0 | M31: Surcharge Qty
H32: =IFERROR(IFERROR(VLOOKUP(D32,Surcharge!A:B,2,FALSE)*F32, VLOOKUP(D32 & "",Surcharge!A:B,2,FALSE)*F32), "") ->  | L32: 0 | M32: Surcharge Qty
C33: T1B Battery Cylindrical Scrubber - 15" cleaning path. Complete package includes removable, Hygenic® fully cleanable 2.5 gallon (9.5liter) solution/ 3.4 gallon (12.9 liters) recovery tanks, Insta-AdjustTM handle, nylon brush, appropriate off board world charger with power cord and multi-language operator manual. | F33: =SUM(F37,F40) -> 0 | H33: =IFERROR(IFERROR(VLOOKUP(D33,Surcharge!A:B,2,FALSE)*F33, VLOOKUP(D33 & "",Surcharge!A:B,2,FALSE)*F33), "") ->  | L33: 0 | M33: Surcharge Qty
C34: Boxed Dimensions: 32" L x 24" W x 37" H (813 mm x 610 mm x 940 mm). | F34: =SUM(F33) -> 0 | H34: =IFERROR(IFERROR(VLOOKUP(D34,Surcharge!A:B,2,FALSE)*F34, VLOOKUP(D34 & "",Surcharge!A:B,2,FALSE)*F34), "") ->  | L34: 0 | M34: Surcharge Qty
C35: Shipping Weight (see battery options below) | F35: =SUM(F34) -> 0 | H35: =IFERROR(IFERROR(VLOOKUP(D35,Surcharge!A:B,2,FALSE)*F35, VLOOKUP(D35 & "",Surcharge!A:B,2,FALSE)*F35), "") -> 
H36: =IFERROR(IFERROR(VLOOKUP(D36,Surcharge!A:B,2,FALSE)*F36, VLOOKUP(D36 & "",Surcharge!A:B,2,FALSE)*F36), "") -> 
C37: T1B Battery Cylindrical Scrubber (with AGM batteries) | D37: 9008635 | E37: 9214 | G37: =F37*E37 -> 0 | H37: =IFERROR(IFERROR(VLOOKUP(D37,Surcharge!A:B,2,FALSE)*F37, VLOOKUP(D37 & "",Surcharge!A:B,2,FALSE)*F37), "") -> 0 | P37: =VLOOKUP(D37,'MPF SAP Canada Pre-Configured'!$C:$E,3,FALSE) -> 8611
C38: Shipping Weight: 158 lbs/ 72 kg | F38: =SUM(F37) -> 0 | H38: =IFERROR(IFERROR(VLOOKUP(D38,Surcharge!A:B,2,FALSE)*F38, VLOOKUP(D38 & "",Surcharge!A:B,2,FALSE)*F38), "") -> 
C40: T1B Battery Cylindrical Scrubber (with Li-ion batteries) | D40: 9008638 | E40: 11887 | G40: =F40*E40 -> 0 | H40: =IFERROR(IFERROR(VLOOKUP(D40,Surcharge!A:B,2,FALSE)*F40, VLOOKUP(D40 & "",Surcharge!A:B,2,FALSE)*F40), "") ->  | P40: =VLOOKUP(D40,'MPF SAP Canada Pre-Configured'!$C:$E,3,FALSE) -> 11109
C41: Shipping Weight: 143 lbs/ 65 kg | F41: =SUM(F40) -> 0 | H41: =IFERROR(IFERROR(VLOOKUP(D41,Surcharge!A:B,2,FALSE)*F41, VLOOKUP(D41 & "",Surcharge!A:B,2,FALSE)*F41), "") -> 
B44: Custom Solution--write in description, qty, price, and PN if applicable | F44: =SUM(F45) -> 0
E45: Insert Prices Here | F45: =SUM(F46:F49) -> 0
D46: Custom | F46: =IF(E46 <> "", 1, 0) -> 0 | G46: =F46*E46 -> 0
D47: Custom | F47: =IF(E47 <> "", 1, 0) -> 0 | G47: =F47*E47 -> 0
D48: Custom | F48: =IF(E48 <> "", 1, 0) -> 0 | G48: =F48*E48 -> 0
D49: Custom | F49: =IF(E49 <> "", 1, 0) -> 0 | G49: =F49*E49 -> 0
E50: =ROUND(SUM(G27:G49), 0) -> 0 | F50: =SUM(E51) -> 0
D51: Machine Subtotal | E51: =ROUND(SUM(G27:G49), 0) -> 0 | F51: =F50 -> 0
B52: Discounts | F52: =SUM(F53) -> 0
F53: =SUM(F55:F58) -> 0
D54: Applicable Currency Adj % | F54: =IF(E54 <> "", 1, 0) -> 0 | G54: =IF(F54*(E54*0.01)*E50 < 0, F54*(E54*0.01)*E50, -(F54*(E54*0.01)*E50)) -> 0
D55: Discount % | F55: =IF(E55 <> "", 1, 0) -> 0 | G55: =IF(F55*(E55*0.01)*(E50+G54) < 0, F55*(E55*0.01)*(E50+G54), -(F55*(E55*0.01)*(E50+G54))) -> 0
D56: Discount $ | F56: =IF(E56 <> "", 1, 0) -> 0 | G56: =IF(F56*E56 < 0, F56*E56, -(F56*E56)) -> 0
D57: Discount $ | F57: =IF(E57 <> "", 1, 0) -> 0 | G57: =IF(F57*E57 < 0, F57*E57, -(F57*E57)) -> 0
D58: Discount $ | F58: =IF(E58 <> "", 1, 0) -> 0 | G58: =IF(F58*E58 < 0, F58*E58, -(F58*E58)) -> 0
D59: Discount Total | E59: =SUM(G54:G58) -> 0 | F59: =SUM(E59) -> 0
F60: =#REF! -> 
F61: =F60 -> 
C62: Prepaid and Add | D62: Freight | F62: =IF(E62 <> "", 1, 0) -> 0 | G62: =F62*E62 -> 0
C63: Subject to all applicable taxes | D63: Tax | F63: =IF(E63 <> "", 1, 0) -> 0 | G63: =F63*E63 -> 0
F64: =SUM(F65) -> 0
D65: MACHINE TOTAL* | F65: =SUM(G65) -> 0 | G65: =SUM(G27:G63) -> 0 | N65: This goes to "My Documents"
G66: =SUM(G65) -> 0
C71: First Western Equipment Finance - Leasing Calculation Option: | D71: Option 1 | F71: Option 2 | J71: =Financing!A38 -> Rates 2025 - Rev 2/4/2025
D72: Monthly Payment | E72: Cost Per Day | F72: Monthly Payment | G72: Cost Per Day | J72: =Financing!A39 -> “Blank Payment Amounts Indicate The Financing Option Or Purchase Options Selected Are Not
C73: Purchase Option: | D73: FWEF: $1 Buyout Lease | F73: FWEF: Municipal Lease | J73: =Financing!A40 -> Applicable Or The Machine Total Is Below The Minimum Amount For The Selected Vendor”
C74: 24 Months | D74: FALSE | E74: 0 | F74: FALSE | G74: 0 | J74: =Financing!A41 -> "Quoted monthly payments are estimates only and are based on a certain level of credit rating.
C75: 30 Months | D75: FALSE | E75: 0 | F75: FALSE | G75: 0 | J75: =Financing!A42 -> Actual monthly payments may be higher depending on your credit rating."
C76: 36 Months | D76: FALSE | E76: 0 | F76: FALSE | G76: 0 | J76: =Financing!A43 -> “Financing rates do not include Pre-Paid Service”
C77: 48 Months | D77: 0 | E77: 0 | F77: 0 | G77: 0 | I77: =Financing!A44 -> 0
D79: Benefits of Equipment Financing:
D80: • Spreads out investment over time. | F80: • Keep current with latest technology.
D81: • Preserve capital. | F81: • Service and parts bundling available.
D82: • Low monthly payment. | F82: • Pay for labor savings as you go.
B84: TennantTrue | E84: 0 | F84: 0
C86: Is customer interested in service program? | D86: Yes | E86: *State/County selection required for TennantTrue service options
C88: If not, why?
C90: Term: | D90: 36 | G90: AB Brushes | H90: No
C91: Monthly machine usage (hrs): | D91: < 30/mo. (Avg. 1hr./day)
C93: TennantTrue: | D93: Gold Contract | F93: Silver Contract
C94: Per Visit
C95: Monthly
C96: Annually
C97: Pre-Pay Full Term
C98: Hourly Labor Rate
C99: Site Visit
C101: * Verify customer current pricing prior to quote.
C102: **All rates and fees above reflect service for one (1) unit with the exception of Block of Time service.
C103: *Block of Time is available in 1 Year Term only and is priced as such no matter the term selection on this template.
C107: Quote Special Instructions:
C110: =Start_Here!E36 -> Terms and Conditions
C111: =Start_Here!E37 -> Ask your local sales rep for estimated lead times. Verify when placing order
C112: =Start_Here!E38 -> All orders subject to acceptance by Tennant Sales and Service Company, Minneapolis, Minnesota
C113: =Start_Here!E39 -> Prices subject to change without notice. Subject to any applicable taxes.
C114: =Start_Here!E40 -> Terms: Net 30 days. Payable in Canadian Funds
C115: =Start_Here!E41 -> Freight: Accessories, parts, supplies, detergents, and floor coatings orders delivered DDP
C116: =Start_Here!E42 -> shipping point Frt PPD. Machine orders delivered DDP shipping point Frt PPD and add.
C117: =Start_Here!E43 -> Returned Merchandise is subject to a restocking fee.
C118: =Start_Here!E45 -> Printed General Terms and Conditions are also available upon request.
C119: =Start_Here!E46 -> 0
E122: Quote Date : | G122: =Letter!$A$25 -> 2014-10-02
A123: Order Placement Information: To place your order, fill in PO# and customer signatures,
A124: call or fax to the numbers listed below. Customer Purchase Order is required.
A125: If information is missing, orders will be entered and held until all information is received.
C126: Customer Number | E126: Cust Grp 3
C127: =Start_Here!$C$25 -> 0 | E127: =Start_Here!$C$29 -> 0
C128: =Start_Here!$B$18 -> Who Owns the Machine? (Sold-To Info) (Please Verify)
A129: Company | C129: =Start_Here!$C$19 -> Company Name
A130: Address | C130: =Start_Here!$C$20 -> Address
C131: =Start_Here!$C$21 -> City, State Zip
A132: Name | C132: =Start_Here!$C$22 -> Contact Name
A133: Phone | C133: =Start_Here!$C$23 -> Contact Phone
C134: =Start_Here!$B$11 -> Where is the Machine Being Shipped? (Ship-To Info) (Please Verify)
A135: Company | C135: =Start_Here!$C$12 -> Company Name
A136: Address | C136: =Start_Here!$C$13 -> Address
C137: =Start_Here!$C$14 -> City, State Zip
A138: Name | C138: =Start_Here!$C$15 -> Contact Name
A139: Phone | C139: =Start_Here!$C$16 -> Contact Phone
C140: =Start_Here!$B$31 -> Shipping / Carrier Instructions: | E140: Order Special Instructions:
C141: =Start_Here!$C$32 -> 0
C143: Customer Purchase Order No.
C144: (please attach copy)
C147: Tax Exempt | E147: Yes
E148: No
C149: If Yes, attach a copy of your exemption certificate.
C151: Requested Delivery Date
C152: =Start_Here!$C$28 -> 0
C154: =Start_Here!$C$26 -> 0 | E154: =Start_Here!$C$27 -> 0
C155: Authorized Buyer (please print) | E155: Phone Number
C158: Authorized Buyer Signature
C160: =Start_Here!$C$41 -> Rep Name
C161: Tennant Representative
A163: Specialized Maintenance Equipment
A164: =Start_Here!$C$48 -> TENNANT · 10400 Clean Street · Eden Prairie, MN 55344 ·
A165: =Start_Here!$C$49 -> PHONE:800-553-8033 · FAX:763-513-2116
B167: Special Information
B170: 1 | C170: Pre-Configured Machines cannot add or change options. All units are packaged on a Skid w/Carton and will ship via LTL Carrier.
C171: When ordering, provide the reference number listed above. Price does not include freight or tax. Availability of units
C172: and lead time may vary.
B174: 2 | C174: One pad driver comes standard with a T2.
B176: 3 | C176: Skid w/Carton, Stackable is the default packaging method and will be added to the configuration unless otherwise specified.
B178: 4 | C178: Machine Weights and dimensions | D178: Skid w/Carton
C180: Weight (w/105AH battery) | D180: 331 lbs / 150 Kg
C181: Length | D181: 47" / 1200mm
C182: Width | D182: 30" / 750mm
C183: Height | D183: 45" / 1150mm

Sheet T260
A1: T260 | C1: =Start_Here!$C19 -> Company Name
A2: =SUM(G58) -> 0 | C2: =Start_Here!$C20 -> Address
C3: =Start_Here!$C21 -> City, State Zip
C4: =Start_Here!$C22 -> Contact Name
C5: =Start_Here!$C$41 -> Rep Name
C6: =Start_Here!$C$37 -> Tennant Sales and Service Company
C7: =Start_Here!$C$38 -> 10400 Clean Street
C8: =Start_Here!$C$39 -> Eden Prairie, MN 55344
C9: =Start_Here!$C$43 -> 800-553-8033 | E9: Quote Date : | G9: =Letter!$A$25 -> 2014-10-02
C11: =Help!C2 -> CAN Date Rev - 5/6/2025
C13: TENNANT COMPANY WARRANTY
C14: 1 YEAR BATTERY CHARGER
C15: 1 YEAR BATTERY PRO-RATED
C16: 10 YEARS ON DURAMERTM ROTOMOLD TANKS - ALL MACHINES
C17: 3 YEARS or 1000 HRS PARTS
C18: 1 YEAR - LABOR, 3 MONTHS TRAVEL
E22: Quote Request Information
G23: Fax (quote only)
G24: Mail (quote,lit, specs)
G25: Fax + Mail
C28: Description | D28: Reference No. | E28: Canada Price | F28: Qty. | G28: Extended Price
E29: Price | H29: =IFERROR(IFERROR(VLOOKUP(D29,Surcharge!A:B,2,FALSE)*F29, VLOOKUP(D29 & "",Surcharge!A:B,2,FALSE)*F29), "") ->  | L29: =SUM(F29) -> 0 | M29: Surcharge Qty
C30: Cleaning Type | F30: =SUM(F32) -> 0 | H30: =IFERROR(IFERROR(VLOOKUP(D30,Surcharge!A:B,2,FALSE)*F30, VLOOKUP(D30 & "",Surcharge!A:B,2,FALSE)*F30), "") ->  | L30: 0 | M30: Surcharge Qty
C32: T260 Walk Behind Scrubber - Pad Assist - 135AH Sealed Gel Batteries | D32: TN8001004 | E32: 6878 | G32: =F32*E32 -> 0
C33: 20in (50cm) single disk cleaning path, Linatex squeegee blades. Includes off-board charger, 2-12V sealed Gel batteries, nylon brush, pad driver, and 1 red pad. | F33: =SUM(F32) -> 0
C35: Shipped on skid. | F35: =SUM(F32) -> 0
C36: T260 - Pad Assist - Shipping Weight and Dimensions | D36: Skid w/Carton | F36: =SUM(F33) -> 0
C37: Weight (w/ batteries) | D37: 364 lb | F37: 0
C38: Length | D38: 54.3 in / 138 cm | F38: 0
C39: Width | D39: 24 in / 61cm | F39: 0
C40: Height | D40: 47.24 in / 120 cm | F40: 0
E43: =ROUND(SUM(G29:G42), 0) -> 0 | F43: =SUM(E44) -> 0
D44: Machine Subtotal | E44: =ROUND(SUM(G29:G42), 0) -> 0 | F44: =F43 -> 0
B45: Discounts | F45: =SUM(F46) -> 0
F46: =SUM(F48:F51) -> 0
D47: Applicable Currency Adj % | F47: =IF(E47 <> "", 1, 0) -> 0 | G47: =IF(F47*(E47*0.01)*E43 < 0, F47*(E47*0.01)*E43, -(F47*(E47*0.01)*E43)) -> 0
D48: Discount % | F48: =IF(E48 <> "", 1, 0) -> 0 | G48: =IF(F48*(E48*0.01)*(E43+G47) < 0, F48*(E48*0.01)*(E43+G47), -(F48*(E48*0.01)*(E43+G47))) -> 0
D49: Discount $ | F49: =IF(E49 <> "", 1, 0) -> 0 | G49: =IF(F49*E49 < 0, F49*E49, -(F49*E49)) -> 0
D50: Discount $ | F50: =IF(E50 <> "", 1, 0) -> 0 | G50: =IF(F50*E50 < 0, F50*E50, -(F50*E50)) -> 0
D51: Discount $ | F51: =IF(E51 <> "", 1, 0) -> 0 | G51: =IF(F51*E51 < 0, F51*E51, -(F51*E51)) -> 0
D52: Discount Total | E52: =SUM(G47:G51) -> 0 | F52: =SUM(E52) -> 0
F53: =#REF! -> 
F54: =F53 -> 
C55: Prepaid and Add | D55: Freight | F55: =IF(E55 <> "", 1, 0) -> 0 | G55: =F55*E55 -> 0
C56: Subject to all applicable taxes | D56: Tax | F56: =IF(E56 <> "", 1, 0) -> 0 | G56: =F56*E56 -> 0
F57: =SUM(F58) -> 0
D58: MACHINE TOTAL* | F58: =SUM(G58) -> 0 | G58: =SUM(G29:G56) -> 0 | N58: This goes to "My Documents"
G59: =SUM(G58) -> 0
C64: First Western Equipment Finance - Leasing Calculation Option: | D64: Option 1 | F64: Option 2 | I64: =Financing!A38 -> Rates 2025 - Rev 2/4/2025
D65: Monthly Payment | E65: Cost Per Day | F65: Monthly Payment | G65: Cost Per Day | I65: =Financing!A39 -> “Blank Payment Amounts Indicate The Financing Option Or Purchase Options Selected Are Not
C66: Purchase Option: | D66: FWEF: $1 Buyout Lease | F66: FWEF: Municipal Lease | I66: =Financing!A40 -> Applicable Or The Machine Total Is Below The Minimum Amount For The Selected Vendor”
C67: 24 Months | D67: FALSE | E67: 0 | F67: FALSE | G67: 0 | I67: =Financing!A41 -> "Quoted monthly payments are estimates only and are based on a certain level of credit rating.
C68: 30 Months | D68: FALSE | E68: 0 | F68: FALSE | G68: 0 | I68: =Financing!A42 -> Actual monthly payments may be higher depending on your credit rating."
C69: 36 Months | D69: FALSE | E69: 0 | F69: FALSE | G69: 0 | I69: =Financing!A43 -> “Financing rates do not include Pre-Paid Service”
C70: 48 Months | D70: 0 | E70: 0 | F70: 0 | G70: 0
D72: Benefits of Equipment Financing:
D73: • Spreads out investment over time. | F73: • Keep current with latest technology.
D74: • Preserve capital. | F74: • Service and parts bundling available.
D75: • Low monthly payment. | F75: • Pay for labor savings as you go.
B76: TennantTrue | E76: 0 | F76: 0
C78: Is customer interested in service program? | D78: Yes | E78: *State/County selection required for TennantTrue service options
C80: If not, why?
C82: Term: | D82: 36 | G82: AB Brushes | H82: No
C83: Monthly machine usage (hrs): | D83: < 30/mo. (Avg. 1hr./day)
C85: TennantTrue: | D85: Gold Contract | F85: Silver Contract
C86: Per Visit | F86: 425
C87: Monthly | F87: 69
C88: Annually | F88: 816
C89: Pre-Pay Full Term | F89: 2397
C90: Hourly Labor Rate
C91: Site Visit
C93: * Verify customer current pricing prior to quote.
C94: **All rates and fees above reflect service for one (1) unit with the exception of Block of Time service.
C95: *Block of Time is available in 1 Year Term only and is priced as such no matter the term selection on this template.
C99: Quote Special Instructions:
C102: =Start_Here!E36 -> Terms and Conditions
C103: =Start_Here!E37 -> Ask your local sales rep for estimated lead times. Verify when placing order
C104: =Start_Here!E38 -> All orders subject to acceptance by Tennant Sales and Service Company, Minneapolis, Minnesota
C105: =Start_Here!E39 -> Prices subject to change without notice. Subject to any applicable taxes.
C106: =Start_Here!E40 -> Terms: Net 30 days. Payable in Canadian Funds
C107: =Start_Here!E41 -> Freight: Accessories, parts, supplies, detergents, and floor coatings orders delivered DDP
C108: =Start_Here!E42 -> shipping point Frt PPD. Machine orders delivered DDP shipping point Frt PPD and add.
C109: =Start_Here!E43 -> Returned Merchandise is subject to a restocking fee.
C110: =Start_Here!E45 -> Printed General Terms and Conditions are also available upon request.
C111: =Start_Here!E46 -> 0
E114: Quote Date : | G114: =Letter!$A$25 -> 2014-10-02
A115: Order Placement Information: To place your order, fill in PO# and customer signatures,
A116: call or fax to the numbers listed below. Customer Purchase Order is required.
A117: If information is missing, orders will be entered and held until all information is received.
C118: Customer Number | E118: Cust Grp 3
C119: =Start_Here!$C$25 -> 0 | E119: =Start_Here!$C$29 -> 0
C120: =Start_Here!$B$18 -> Who Owns the Machine? (Sold-To Info) (Please Verify)
A121: Company | C121: =Start_Here!$C$19 -> Company Name
A122: Address | C122: =Start_Here!$C$20 -> Address
C123: =Start_Here!$C$21 -> City, State Zip
A124: Name | C124: =Start_Here!$C$22 -> Contact Name
A125: Phone | C125: =Start_Here!$C$23 -> Contact Phone
C126: =Start_Here!$B$11 -> Where is the Machine Being Shipped? (Ship-To Info) (Please Verify)
A127: Company | C127: =Start_Here!$C$12 -> Company Name
A128: Address | C128: =Start_Here!$C$13 -> Address
C129: =Start_Here!$C$14 -> City, State Zip
A130: Name | C130: =Start_Here!$C$15 -> Contact Name
A131: Phone | C131: =Start_Here!$C$16 -> Contact Phone
C132: =Start_Here!$B$31 -> Shipping / Carrier Instructions: | E132: Order Special Instructions:
C133: =Start_Here!$C$32 -> 0
C135: Customer Purchase Order No.
C136: (please attach copy)
C139: Tax Exempt | E139: Yes
E140: No
C141: If Yes, attach a copy of your exemption certificate.
C143: Requested Delivery Date
C144: =Start_Here!$C$28 -> 0
C146: =Start_Here!$C$26 -> 0 | E146: =Start_Here!$C$27 -> 0
C147: Authorized Buyer (please print) | E147: Phone Number
C150: Authorized Buyer Signature
C152: =Start_Here!$C$41 -> Rep Name
C153: Tennant Representative
A155: Specialized Maintenance Equipment
A156: =Start_Here!$C$48 -> TENNANT · 10400 Clean Street · Eden Prairie, MN 55344 ·
A157: =Start_Here!$C$49 -> PHONE:800-553-8033 · FAX:763-513-2116

Sheet T391_T291
A1: T391_T291 | C1: =Start_Here!$C19 -> Company Name
A2: =SUM(G138) -> 0 | C2: =Start_Here!$C20 -> Address
C3: =Start_Here!$C21 -> City, State Zip
C4: =Start_Here!$C22 -> Contact Name
C5: =Start_Here!$C$41 -> Rep Name
C6: =Start_Here!$C$37 -> Tennant Sales and Service Company
C7: =Start_Here!$C$38 -> 10400 Clean Street
C8: =Start_Here!$C$39 -> Eden Prairie, MN 55344
C9: =Start_Here!$C$43 -> 800-553-8033 | E9: Quote Date : | G9: =Letter!$A$25 -> 2014-10-02
C11: =Help!C2 -> CAN Date Rev - 5/6/2025
C13: TENNANT COMPANY WARRANTY
C14: 1 YEAR BATTERY CHARGER
C15: 1 YEAR BATTERY PRO-RATED
C16: 10 YEARS ON DURAMERTM ROTOMOLD TANKS - ALL MACHINES
C17: 3 YEARS or 1500 HRS PARTS
C18: 2 YEARS - LABOR, 6 MONTHS TRAVEL
E22: Quote Request Information
G23: Fax (quote only)
G24: Mail (quote,lit, specs)
G25: Fax + Mail
C28: Description | D28: Reference No. | E28: Canada Price | F28: Qty. | G28: Extended Price
E29: Price | H29: =IFERROR(IFERROR(VLOOKUP(D29,Surcharge!A:B,2,FALSE)*F29, VLOOKUP(D29 & "",Surcharge!A:B,2,FALSE)*F29), "") ->  | L29: =SUM(F29) -> 0 | M29: Surcharge Qty
C30: Cleaning Type | F30: =SUM(F32:F62) -> 0 | H30: =IFERROR(IFERROR(VLOOKUP(D30,Surcharge!A:B,2,FALSE)*F30, VLOOKUP(D30 & "",Surcharge!A:B,2,FALSE)*F30), "") ->  | L30: 0 | M30: Surcharge Qty
C32: T391 - Walk Behind Scrubber 130AH Wet Batteries | D32: 9022790 | E32: 15067 | G32: =F32*E32 -> 0
C33: 28in (70cm) dual disk cleaning path, conventional, pad driver, red pads, Linatex squeegee blades. Includes onboard charger, 2-12V batteries | F33: =SUM(F32) -> 0
F34: =SUM(F35) -> 0
C35: T391 - Walk Behind Scrubber 140AH Sealed AGM Batteries | D35: 9022789 | E35: 16576 | G35: =F35*E35 -> 0
C36: 28in (70cm) dual disk cleaning path, conventional, pad driver, red pads, Linatex squeegee blades. Includes onboard charger, 2-12V batteries | F36: =SUM(F35) -> 0
C38: T391 - Walk Behind Scrubber 130AH Wet Batteries w/ EcH2O nanoclean | D38: 9022792 | E38: 19044 | G38: =F38*E38 -> 0
C39: 28in (70cm) dual disk cleaning path, ecH2O nanoclean with severe environment, pad driver, red pads, Linatex squeegee blades. Includes onboard charger, 2-12V batteries | F39: =SUM(F38) -> 0
C41: T391 - Walk Behind Scrubber 90 AH Li-Ion Battery | D41: 9300496 | E41: 18567 | G41: =F41*E41 -> 0
C42: 28in (70cm) dual disk cleaning path, conventional, pad driver, red pads, Linatex squeegee blades. Includes onboard charger, 1-24V battery | F42: =SUM(F41) -> 0
C44: T391 - Walk Behind Scrubber 140AH Sealed AGM Batteries w/ EcH2O nanoclean | D44: 9022791 | E44: 20553 | G44: =F44*E44 -> 0
C45: 28in (70cm) dual disk cleaning path, ecH2O nanoclean with severe environment, pad driver, red pads, Linatex squeegee blades. Includes onboard charger, 2-12V batteries | F45: =SUM(F44) -> 0
C47: T391 - Walk Behind Scrubber 90AH Li-Ion Battery w/ EcH2O nanoclean | D47: 9300497 | E47: 22545 | G47: =F47*E47 -> 0
C48: 28in (70cm) dual disk cleaning path, ecH2O nanoclean with severe environment, pad driver, red pads, Linatex squeegee blades. Includes onboard charger, 1-24V battery | F48: =SUM(F47) -> 0
C50: T391 - Walk Behind Scrubber 130AH Wet Batteries | D50: 9022794 | E50: 16229 | G50: =F50*E50 -> 0
C51: 32in (80cm) dual disk cleaning path, conventional, pad driver, red pads, Linatex squeegee blades. Includes onboard charger, 2-12V batteries | F51: =SUM(F50) -> 0
C53: T391 - Walk Behind Scrubber 140AH Sealed AGM Batteries | D53: 9022793 | E53: 17738 | G53: =F53*E53 -> 0
C54: 32in (80cm) dual disk cleaning path, conventional, pad driver, red pads, Linatex squeegee blades. Includes onboard charger, 2-12V batteries | F54: =SUM(F53) -> 0
C56: T391 - Walk Behind Scrubber 90AH Li-Ion Battery | D56: 9300498 | E56: 19729 | G56: =F56*E56 -> 0
C57: 32in (80cm) dual disk cleaning path, conventional, pad driver, red pads, Linatex squeegee blades. Includes onboard charger, 1-24V battery | F57: =SUM(F56) -> 0
C59: T391 - Walk Behind Scrubber 130AH Wet Batteries w/ EcH2O nanoclean | D59: 9022796 | E59: 20206 | G59: =F59*E59 -> 0
C60: 32in (80cm) dual disk cleaning path, ecH2O nanoclean with severe environment, pad driver, red pads, Linatex squeegee blades. Includes onboard charger, 2-12V batteries | F60: =SUM(F59) -> 0
C62: T391 - Walk Behind Scrubber 140AH Sealed AGM Batteries w/ EcH2O nanoclean | D62: 9022795 | E62: 21715 | G62: =F62*E62 -> 0
C63: 32in (80cm) dual disk cleaning path, ecH2O nanoclean with severe environment, pad driver, red pads, Linatex squeegee blades. Includes onboard charger, 2-12V batteries | F63: =SUM(F62) -> 0
C65: T391 - Walk Behind Scrubber 90AH Battery w/ EcH2O nanoclean | D65: 9300499 | E65: 23707 | G65: =F65*E65 -> 0
C66: 32in (80cm) dual disk cleaning path, ecH2O nanoclean with severe environment, pad driver, red pads, Linatex squeegee blades. Includes onboard charger, 1-24V battery | F66: =SUM(F65) -> 0
C69: T391 - Shipping Weight and Dimensions | F69: =SUM(F30) -> 0
C70: Weight (w/ heaviest batteries) | D70: 422.8 lbs | F70: =SUM(F31) -> 0
C71: Length | D71: 52.55 in / 134 cm | F71: =SUM(F32) -> 0
C72: Width | D72: 30.70 in / 78 cm | F72: =SUM(F33) -> 0
C73: Height | D73: 45.11 in / 115 cm | F73: =SUM(F34) -> 0
C76: T291 - Walk Behind Scrubber - Pad Assist - 130AH Wet Batteries | D76: 9300480 | E76: 8809 | G76: =F76*E76 -> 0
C77: 20in (50cm) single disk cleaning path, conventional cleaning, Linatex squeegee blades. Includes on-board charger, splash guard, 2-12V batteries, pad driver, and 1 red pad. | F77: =SUM(F76) -> 0
C79: T291 - Walk Behind Scrubber - Pad Assist - 140AH Sealed AGM Batteries | D79: 9300484 | E79: 10318 | G79: =F79*E79 -> 0
C81: T291 - Walk Behind Scrubber - Pad Assist - 90AH Li-Ion Battery | D81: 9300488 | E81: 12309 | G81: =F81*E81 -> 0
C83: T291 - Walk Behind Scrubber - Pad Assist - No Battery | D83: 9300492 | E83: 8179 | G83: =F83*E83 -> 0
F84: =SUM(F83) -> 0
C86: T291 - Walk Behind Scrubber - Self Propel - 130AH Wet Batteries | D86: 9300482 | E86: 10629 | G86: =F86*E86 -> 0
C87: 20in (50cm) single disk cleaning path, conventional cleaning, self-propel, Linatex squeegee blades. Includes on-board charger, splash guard, 2-12V batteries, pad driver, and 1 red pad. | F87: =SUM(F86) -> 0
C89: T291 - Walk Behind Scrubber - Self Propel - 140AH Sealed AGM Batteries | D89: 9300486 | E89: 12138 | G89: =F89*E89 -> 0
C91: T291 - Walk Behind Scrubber - Self Propel - 90AH Li-Ion Battery | D91: 9300490 | E91: 14129 | G91: =F91*E91 -> 0
C93: T291 - Walk Behind Scrubber - Self Propel - No Battery | D93: 9300494 | E93: 9999 | G93: =F93*E93 -> 0
C96: T291 - Walk Behind Scrubber - Pad Assist - ec-H20 NanoClean w/ severe environment - 130AH Wet Batteries | D96: 9300481 | E96: 11715 | G96: =F96*E96 -> 0
C97: 20in (50cm) single disk cleaning path, ec-H20 NanoClean w/ severe environment, pad-assist, Linatex squeegee blades. Includes on-board charger, splash guard, 2-12V batteries, pad driver, and 1 red pad. | F97: =SUM(F96) -> 0
C99: T291 - Walk Behind Scrubber - Pad Assist - ec-H20 NanoClean w/ severe environment - 140AH AGM Batteries | D99: 9300485 | E99: 13224 | G99: =F99*E99 -> 0
C101: T291 - Walk Behind Scrubber - Pad Assist - ec-H20 NanoClean w/ severe environment - 90AH Li-Ion Battery | D101: 9300489 | E101: 15216 | G101: =F101*E101 -> 0
C103: T291 - Walk Behind Scrubber - Pad Assist - ec-H20 NanoClean w/ severe environment - No Battery | D103: 9300493 | E103: 11085 | G103: =F103*E103 -> 0
C106: T291 - Walk Behind Scrubber - Self Propel - ec-H20 NanoClean w/ severe environment - 130AH Wet Batteries | D106: 9300483 | E106: 13535 | G106: =F106*E106 -> 0
C107: 20in (50cm) single disk cleaning path, ec-H20 NanoClean w/ severe environment, self-propel, Linatex squeegee blades. Includes on-board charger, splash guard, 2-12V batteries, pad driver, and 1 red pad. | F107: =SUM(F106) -> 0
C109: T291 - Walk Behind Scrubber - Self Propel - ec-H20 NanoClean w/ severe environment - 140AH AGM Batteries | D109: 9300487 | E109: 15044 | G109: =F109*E109 -> 0
C111: T291 - Walk Behind Scrubber - Self Propel - ec-H20 NanoClean w/ severe environment - 90AH Li-Ion Battery | D111: 9300491 | E111: 17036 | G111: =F111*E111 -> 0
F112: =SUM(F109) -> 0
C113: T291 - Walk Behind Scrubber - Self Propel - ec-H20 NanoClean w/ severe environment - No Battery | D113: 9300495 | E113: 12905 | G113: =F113*E113 -> 0
F114: =SUM(F113) -> 0
C116: T291 - Shipping Weight and Dimensions | F116: =SUM(F76:F113) -> 0
C117: Weight (w/ heaviest batteries) | D117: 390.22 lbs | F117: =SUM(F116) -> 0
C118: Length | D118: 53.74 in / 137 cm | F118: =SUM(F117) -> 0
C119: Width | D119: 27.36 in / 70 cm | F119: 0
C120: Height | D120: 45.11 in / 115 cm | F120: 0
E123: =ROUND(SUM(G29:G122), 0) -> 0 | F123: =SUM(E124) -> 0
D124: Machine Subtotal | E124: =ROUND(SUM(G29:G122), 0) -> 0 | F124: =F123 -> 0
B125: Discounts | F125: =SUM(F126) -> 0
F126: =SUM(F128:F131) -> 0
D127: Applicable Currency Adj % | F127: =IF(E127 <> "", 1, 0) -> 0 | G127: =IF(F127*(E127*0.01)*E123 < 0, F127*(E127*0.01)*E123, -(F127*(E127*0.01)*E123)) -> 0
D128: Discount % | F128: =IF(E128 <> "", 1, 0) -> 0 | G128: =IF(F128*(E128*0.01)*(E123+G127) < 0, F128*(E128*0.01)*(E123+G127), -(F128*(E128*0.01)*(E123+G127))) -> 0
D129: Discount $ | F129: =IF(E129 <> "", 1, 0) -> 0 | G129: =IF(F129*E129 < 0, F129*E129, -(F129*E129)) -> 0
D130: Discount $ | F130: =IF(E130 <> "", 1, 0) -> 0 | G130: =IF(F130*E130 < 0, F130*E130, -(F130*E130)) -> 0
D131: Discount $ | F131: =IF(E131 <> "", 1, 0) -> 0 | G131: =IF(F131*E131 < 0, F131*E131, -(F131*E131)) -> 0
D132: Discount Total | E132: =SUM(G127:G131) -> 0 | F132: =SUM(E132) -> 0
F133: =#REF! -> 
F134: =F133 -> 
C135: Prepaid and Add | D135: Freight | F135: =IF(E135 <> "", 1, 0) -> 0 | G135: =F135*E135 -> 0
C136: Subject to all applicable taxes | D136: Tax | F136: =IF(E136 <> "", 1, 0) -> 0 | G136: =F136*E136 -> 0
F137: =SUM(F138) -> 0
D138: MACHINE TOTAL* | F138: =SUM(G138) -> 0 | G138: =SUM(G29:G136) -> 0 | N138: This goes to "My Documents"
G139: =SUM(G138) -> 0
C144: First Western Equipment Finance - Leasing Calculation Option: | D144: Option 1 | F144: Option 2 | I144: =Financing!A38 -> Rates 2025 - Rev 2/4/2025
D145: Monthly Payment | E145: Cost Per Day | F145: Monthly Payment | G145: Cost Per Day | I145: =Financing!A39 -> “Blank Payment Amounts Indicate The Financing Option Or Purchase Options Selected Are Not
C146: Purchase Option: | D146: FWEF: $1 Buyout Lease | F146: FWEF: Municipal Lease | I146: =Financing!A40 -> Applicable Or The Machine Total Is Below The Minimum Amount For The Selected Vendor”
C147: 24 Months | D147: FALSE | E147: 0 | F147: FALSE | G147: 0 | I147: =Financing!A41 -> "Quoted monthly payments are estimates only and are based on a certain level of credit rating.
C148: 30 Months | D148: FALSE | E148: 0 | F148: FALSE | G148: 0 | I148: =Financing!A42 -> Actual monthly payments may be higher depending on your credit rating."
C149: 36 Months | D149: FALSE | E149: 0 | F149: FALSE | G149: 0 | I149: =Financing!A43 -> “Financing rates do not include Pre-Paid Service”
C150: 48 Months | D150: 0 | E150: 0 | F150: 0 | G150: 0
D152: Benefits of Equipment Financing:
D153: • Spreads out investment over time. | F153: • Keep current with latest technology.
D154: • Preserve capital. | F154: • Service and parts bundling available.
D155: • Low monthly payment. | F155: • Pay for labor savings as you go.
B156: TennantTrue | E156: 0 | F156: 0
C158: Is customer interested in service program? | D158: Yes | E158: *State/County selection required for TennantTrue service options
C160: If not, why?
C162: Term: | D162: 36 | G162: AB Brushes | H162: No
C163: Monthly machine usage (hrs): | D163: < 30/mo. (Avg. 1hr./day)
C165: TennantTrue: | D165: Gold Contract | F165: Silver Contract
C166: Per Visit | F166: 425
C167: Monthly | D167: 129 | F167: 69
C168: Annually | F168: 816
C169: Pre-Pay Full Term | D169: 4444 | F169: 2397
C170: Hourly Labor Rate
C171: Site Visit
C173: * Verify customer current pricing prior to quote.
C174: **All rates and fees above reflect service for one (1) unit with the exception of Block of Time service.
C175: *Block of Time is available in 1 Year Term only and is priced as such no matter the term selection on this template.
C179: Quote Special Instructions:
C182: =Start_Here!E36 -> Terms and Conditions
C183: =Start_Here!E37 -> Ask your local sales rep for estimated lead times. Verify when placing order
C184: =Start_Here!E38 -> All orders subject to acceptance by Tennant Sales and Service Company, Minneapolis, Minnesota
C185: =Start_Here!E39 -> Prices subject to change without notice. Subject to any applicable taxes.
C186: =Start_Here!E40 -> Terms: Net 30 days. Payable in Canadian Funds
C187: =Start_Here!E41 -> Freight: Accessories, parts, supplies, detergents, and floor coatings orders delivered DDP
C188: =Start_Here!E42 -> shipping point Frt PPD. Machine orders delivered DDP shipping point Frt PPD and add.
C189: =Start_Here!E43 -> Returned Merchandise is subject to a restocking fee.
C190: =Start_Here!E45 -> Printed General Terms and Conditions are also available upon request.
C191: =Start_Here!E46 -> 0
E194: Quote Date : | G194: =Letter!$A$25 -> 2014-10-02
A195: Order Placement Information: To place your order, fill in PO# and customer signatures,
A196: call or fax to the numbers listed below. Customer Purchase Order is required.
A197: If information is missing, orders will be entered and held until all information is received.
C198: Customer Number | E198: Cust Grp 3
C199: =Start_Here!$C$25 -> 0 | E199: =Start_Here!$C$29 -> 0
C200: =Start_Here!$B$18 -> Who Owns the Machine? (Sold-To Info) (Please Verify)
A201: Company | C201: =Start_Here!$C$19 -> Company Name
A202: Address | C202: =Start_Here!$C$20 -> Address
C203: =Start_Here!$C$21 -> City, State Zip
A204: Name | C204: =Start_Here!$C$22 -> Contact Name
A205: Phone | C205: =Start_Here!$C$23 -> Contact Phone
C206: =Start_Here!$B$11 -> Where is the Machine Being Shipped? (Ship-To Info) (Please Verify)
A207: Company | C207: =Start_Here!$C$12 -> Company Name
A208: Address | C208: =Start_Here!$C$13 -> Address
C209: =Start_Here!$C$14 -> City, State Zip
A210: Name | C210: =Start_Here!$C$15 -> Contact Name
A211: Phone | C211: =Start_Here!$C$16 -> Contact Phone
C212: =Start_Here!$B$31 -> Shipping / Carrier Instructions: | E212: Order Special Instructions:
C213: =Start_Here!$C$32 -> 0
C215: Customer Purchase Order No.
C216: (please attach copy)
C219: Tax Exempt | E219: Yes
E220: No
C221: If Yes, attach a copy of your exemption certificate.
C223: Requested Delivery Date
C224: =Start_Here!$C$28 -> 0
C226: =Start_Here!$C$26 -> 0 | E226: =Start_Here!$C$27 -> 0
C227: Authorized Buyer (please print) | E227: Phone Number
C230: Authorized Buyer Signature
C232: =Start_Here!$C$41 -> Rep Name
C233: Tennant Representative
A235: Specialized Maintenance Equipment
A236: =Start_Here!$C$48 -> TENNANT · 10400 Clean Street · Eden Prairie, MN 55344 ·
A237: =Start_Here!$C$49 -> PHONE:800-553-8033 · FAX:763-513-2116

Sheet T581_T390_T290
A1: T581_T390_T290 | C1: =Start_Here!$C19 -> Company Name
A2: =SUM(G114) -> 0 | C2: =Start_Here!$C20 -> Address
C3: =Start_Here!$C21 -> City, State Zip
C4: =Start_Here!$C22 -> Contact Name
C5: =Start_Here!$C$41 -> Rep Name
C6: =Start_Here!$C$37 -> Tennant Sales and Service Company
C7: =Start_Here!$C$38 -> 10400 Clean Street
C8: =Start_Here!$C$39 -> Eden Prairie, MN 55344
C9: =Start_Here!$C$43 -> 800-553-8033 | E9: Quote Date : | G9: =Letter!$A$25 -> 2014-10-02
C11: =Help!C2 -> CAN Date Rev - 5/6/2025
C14: TENNANT COMPANY WARRANTY
C15: 3 YEARS OR 2000 HOURS - PARTS
C16: 2 YEARS - LABOR, 6 MONTHS TRAVEL
C17: 1 YEAR BATTERY CHARGER
C18: 1 YEAR BATTERY PRO-RATED
C19: 10 YEARS ON DURAMERTM ROTOMOLD TANKS - ALL MACHINES
E21: Quote Request Information
G22: Fax (quote only)
G23: Mail (quote,lit, specs)
G24: Fax + Mail
C27: Description | D27: Reference No. | E27: Canada Price | F27: Qty. | G27: Extended Price
D28: Reference Number | E28: Price | H28: =IFERROR(IFERROR(VLOOKUP(D28,Surcharge!A:B,2,FALSE)*F28, VLOOKUP(D28 & "",Surcharge!A:B,2,FALSE)*F28), "") ->  | L28: =SUM(F28) -> 0 | M28: Surcharge Qty
C29: Cleaning Type | F29: =SUM(F30) -> 0 | H29: =IFERROR(IFERROR(VLOOKUP(D29,Surcharge!A:B,2,FALSE)*F29, VLOOKUP(D29 & "",Surcharge!A:B,2,FALSE)*F29), "") ->  | L29: 0 | M29: Surcharge Qty
F30: =SUM(F31) -> 0 | H30: =IFERROR(IFERROR(VLOOKUP(D30,Surcharge!A:B,2,FALSE)*F30, VLOOKUP(D30 & "",Surcharge!A:B,2,FALSE)*F30), "") ->  | L30: 0 | M30: Surcharge Qty
C31: T581 - Ride-On Micro Scrubber - 150AH Wet Batteries | D31: 9022008 | E31: 17483 | G31: =F31*E31 -> 0 | H31: =IFERROR(IFERROR(VLOOKUP(D31,Surcharge!A:B,2,FALSE)*F31, VLOOKUP(D31 & "",Surcharge!A:B,2,FALSE)*F31), "") ->  | L31: =SUM(F31) -> 0 | M31: Surcharge Qty | P31: =VLOOKUP(D31,'MPF SAP Canada Pre-Configured'!$C:$E,3,FALSE) -> 16810
C32: 20in (50cm) single disk cleaning path, Linatex squeegee blades. Includes onboard charger, 2-12V batteries, pad driver, and 1 red pad. | F32: =SUM(F31) -> 0 | H32: =IFERROR(IFERROR(VLOOKUP(D32,Surcharge!A:B,2,FALSE)*F32, VLOOKUP(D32 & "",Surcharge!A:B,2,FALSE)*F32), "") ->  | L32: =SUM(F32) -> 0 | M32: Surcharge Qty
F33: =SUM(F34) -> 0 | H33: =IFERROR(IFERROR(VLOOKUP(D33,Surcharge!A:B,2,FALSE)*F33, VLOOKUP(D33 & "",Surcharge!A:B,2,FALSE)*F33), "") ->  | L33: =SUM(F33) -> 0 | M33: Surcharge Qty
C34: T581 - Ride-On Micro Scrubber - 140AH Sealed AGM Batteries | D34: 9022009 | E34: 19053 | G34: =F34*E34 -> 0 | H34: =IFERROR(IFERROR(VLOOKUP(D34,Surcharge!A:B,2,FALSE)*F34, VLOOKUP(D34 & "",Surcharge!A:B,2,FALSE)*F34), "") ->  | L34: 0 | M34: Surcharge Qty | P34: =VLOOKUP(D34,'MPF SAP Canada Pre-Configured'!$C:$E,3,FALSE) -> 18320
F35: =SUM(F42) -> 0
C36: T581 - Ride-On Micro-Scrubber - 90AH Li-Ion Battery | D36: 9300510 | E36: 20984 | G36: =F36*E36 -> 0
C37: 20in (50cm) single disk cleaning path, Linatex squeegee blades. Includes onboard charger, 1-24V battery, pad driver, and 1 red pad. | F37: =SUM(F36) -> 0
C39: T581 - Ride-On Micro-Scrubber - 180AH Li-Ion Batteries | D39: 9300511 | E39: 24064 | G39: =F39*E39 -> 0
C40: 20in (50cm) single disk cleaning path, Linatex squeegee blades. Includes onboard charger, 2-24V batteries, pad driver, and 1 red pad. | F40: =SUM(F39) -> 0
C42: T581 - Ride-On Micro Scrubber - NO Batteries | D42: 1255470 | E42: 16893 | G42: =F42*E42 -> 0 | P42: =VLOOKUP(D42,'MPF SAP Canada Pre-Configured'!$C:$E,3,FALSE) -> 16243
C44: Shipped on skid. | F44: =SUM(F31:F42) -> 0
C45: T581 - Self-Propel - Shipping Weight and Dimensions | D45: Skid w/Carton | F45: =SUM(F44) -> 0
C46: Weight | D46: 520 lb / 236 kg | F46: =SUM(F45) -> 0 | H46: =IFERROR(IFERROR(VLOOKUP(D46,Surcharge!A:B,2,FALSE)*F46, VLOOKUP(D46 & "",Surcharge!A:B,2,FALSE)*F46), "") ->  | L46: 0 | M46: Surcharge Qty
C47: Length | D47: 57 in / 145 cm | F47: 0 | H47: =IFERROR(IFERROR(VLOOKUP(D47,Surcharge!A:B,2,FALSE)*F47, VLOOKUP(D47 & "",Surcharge!A:B,2,FALSE)*F47), "") ->  | L47: 0 | M47: Surcharge Qty
C48: Width | D48: 32 in / 82cm | F48: 0 | H48: =IFERROR(IFERROR(VLOOKUP(D48,Surcharge!A:B,2,FALSE)*F48, VLOOKUP(D48 & "",Surcharge!A:B,2,FALSE)*F48), "") -> 
C49: Height | D49: 45 in / 114.5 cm | F49: 0 | H49: =IFERROR(IFERROR(VLOOKUP(D49,Surcharge!A:B,2,FALSE)*F49, VLOOKUP(D49 & "",Surcharge!A:B,2,FALSE)*F49), "") -> 
H50: =IFERROR(IFERROR(VLOOKUP(D50,Surcharge!A:B,2,FALSE)*F50, VLOOKUP(D50 & "",Surcharge!A:B,2,FALSE)*F50), "") -> 
H51: =IFERROR(IFERROR(VLOOKUP(D51,Surcharge!A:B,2,FALSE)*F51, VLOOKUP(D51 & "",Surcharge!A:B,2,FALSE)*F51), "") -> 
C52: T390 - Walk Behind Scrubber - Self-Propel - 150AH Wet Batteries | D52: 9022006 | E52: 15128 | G52: =F52*E52 -> 0 | H52: =IFERROR(IFERROR(VLOOKUP(D52,Surcharge!A:B,2,FALSE)*F52, VLOOKUP(D52 & "",Surcharge!A:B,2,FALSE)*F52), "") ->  | P52: =VLOOKUP(D52,'MPF SAP Canada Pre-Configured'!$C:$E,3,FALSE) -> 14408
C53: 28in (70cm), dual disk cleaning path, Linatex squeegee blades. Includes onboard charger, 2-12V batteries, pad driver, and 1 red pad. | F53: =SUM(F52) -> 0 | H53: =IFERROR(IFERROR(VLOOKUP(D53,Surcharge!A:B,2,FALSE)*F53, VLOOKUP(D53 & "",Surcharge!A:B,2,FALSE)*F53), "") -> 
F54: =SUM(F55) -> 0 | H54: =IFERROR(IFERROR(VLOOKUP(D54,Surcharge!A:B,2,FALSE)*F54, VLOOKUP(D54 & "",Surcharge!A:B,2,FALSE)*F54), "") -> 
C55: T390 - Walk Behind Scrubber - Self-Propel - 140AH Sealed AGM Batteries | D55: 9022007 | E55: 16715 | G55: =F55*E55 -> 0 | H55: =IFERROR(IFERROR(VLOOKUP(D55,Surcharge!A:B,2,FALSE)*F55, VLOOKUP(D55 & "",Surcharge!A:B,2,FALSE)*F55), "") ->  | P55: =VLOOKUP(D55,'MPF SAP Canada Pre-Configured'!$C:$E,3,FALSE) -> 15919
F56: =SUM(F57) -> 0
C57: T390 - Walk Behind Scrubber - Self-Propel - No Batteries | D57: 1255469 | E57: 14534 | G57: =F57*E57 -> 0 | P57: =VLOOKUP(D57,'MPF SAP Canada Pre-Configured'!$C:$E,3,FALSE) -> 13842
F58: =SUM(F55) -> 0 | H58: =IFERROR(IFERROR(VLOOKUP(D58,Surcharge!A:B,2,FALSE)*F58, VLOOKUP(D58 & "",Surcharge!A:B,2,FALSE)*F58), "") -> 
C59: Shipped on skid. | F59: =SUM(F52:F57) -> 0
C60: T390 - Self-Propel - Shipping Weight and Dimensions | D60: Skid w/Carton | F60: =SUM(F59) -> 0
C61: Weight | D61: 438 lb / 199 kg | F61: =SUM(F60) -> 0
C62: Length | D62: 50 in / 127 cm | F62: 0
C63: Width | D63: 33 in / 84cm | F63: 0
C64: Height | D64: 45 in / 114.5 cm | F64: 0
C67: T290 - Walk Behind Scrubber - Pad Assist - 130AH Wet Batteries | D67: 9022000 | E67: 8752 | G67: =F67*E67 -> 0 | P67: =VLOOKUP(D67,'MPF SAP Canada Pre-Configured'!$C:$E,3,FALSE) -> 8497
C68: 20in (50cm) single disk cleaning path, Linatex squeegee blades. Includes on-board charger, 2-12V batteries, pad driver, and 1 red pad. | F68: =SUM(F67) -> 0
C70: T290 - Walk Behind Scrubber - Pad Assist - 150AH Wet Batteries | D70: 9022001 | E70: 8937 | G70: =F70*E70 -> 0 | P70: =VLOOKUP(D70,'MPF SAP Canada Pre-Configured'!$C:$E,3,FALSE) -> 8676
F71: =SUM(F72) -> 0
C72: T290 - Walk Behind Scrubber - Pad Assist - 140AH Sealed AGM Batteries | D72: 9022002 | E72: 10494 | G72: =F72*E72 -> 0 | P72: =VLOOKUP(D72,'MPF SAP Canada Pre-Configured'!$C:$E,3,FALSE) -> 10188
F73: =SUM(F74) -> 0
C74: T290 - Walk Behind Scrubber - Pad Assist - NO Batteries | D74: 1255467 | E74: 8169 | G74: =F74*E74 -> 0 | P74: =VLOOKUP(D74,'MPF SAP Canada Pre-Configured'!$C:$E,3,FALSE) -> 7931
C76: T290 - Walk Behind Scrubber - Self-Propel - 130AH Wet Batteries | D76: 9022003 | E76: 10716 | G76: =F76*E76 -> 0 | P76: =VLOOKUP(D76,'MPF SAP Canada Pre-Configured'!$C:$E,3,FALSE) -> 10403
C77: 20in (50cm) single disk cleaning path, Linatex squeegee blades. Includes on-board charger, 2-12V batteries, pad driver, and 1 red pad. | F77: =SUM(F76) -> 0 | H77: =IFERROR(IFERROR(VLOOKUP(D77,Surcharge!A:B,2,FALSE)*F77, VLOOKUP(D77 & "",Surcharge!A:B,2,FALSE)*F77), "") -> 
F78: =SUM(F79) -> 0 | H78: =IFERROR(IFERROR(VLOOKUP(D78,Surcharge!A:B,2,FALSE)*F78, VLOOKUP(D78 & "",Surcharge!A:B,2,FALSE)*F78), "") -> 
C79: T290 - Walk Behind Scrubber - Self Propel - 150AH Wet Batteries | D79: 9022004 | E79: 10903 | G79: =F79*E79 -> 0 | H79: =IFERROR(IFERROR(VLOOKUP(D79,Surcharge!A:B,2,FALSE)*F79, VLOOKUP(D79 & "",Surcharge!A:B,2,FALSE)*F79), "") ->  | P79: =VLOOKUP(D79,'MPF SAP Canada Pre-Configured'!$C:$E,3,FALSE) -> 10585
F80: =SUM(F81) -> 0 | H80: =IFERROR(IFERROR(VLOOKUP(D80,Surcharge!A:B,2,FALSE)*F80, VLOOKUP(D80 & "",Surcharge!A:B,2,FALSE)*F80), "") -> 
C81: T290 - Walk Behind Scrubber - Self Propel - 140AH Sealed AGM Batteries | D81: 9022005 | E81: 12457 | G81: =F81*E81 -> 0 | H81: =IFERROR(IFERROR(VLOOKUP(D81,Surcharge!A:B,2,FALSE)*F81, VLOOKUP(D81 & "",Surcharge!A:B,2,FALSE)*F81), "") ->  | P81: =VLOOKUP(D81,'MPF SAP Canada Pre-Configured'!$C:$E,3,FALSE) -> 12094
F82: =SUM(F83) -> 0
C83: T290 - Walk Behind Scrubber - Self Propel - No Batteries | D83: 1255468 | E83: 10132 | G83: =F83*E83 -> 0 | P83: =VLOOKUP(D83,'MPF SAP Canada Pre-Configured'!$C:$E,3,FALSE) -> 9836
H84: =IFERROR(IFERROR(VLOOKUP(D84,Surcharge!A:B,2,FALSE)*F84, VLOOKUP(D84 & "",Surcharge!A:B,2,FALSE)*F84), "") -> 
C85: Shipped on skid. | F85: =SUM(F67:F74) -> 0
C86: T290 - Pad Assist - Shipping Weight and Dimensions | D86: Skid w/Carton | F86: =SUM(F85) -> 0
C87: Weight | D87: 390 lb / 177 kg | F87: =SUM(F86) -> 0
C88: Length | D88: 50 in / 127 cm | F88: 0
C89: Width | D89: 27 in / 69cm | F89: 0
C90: Height | D90: 45 in / 114.5 cm | F90: 0
C92: T290 - Self-Propel - Shipping Weight and Dimensions | F92: =SUM(F76:F83) -> 0
C93: Weight | D93: 401 lb / 182 kg | F93: =SUM(F92) -> 0
C94: Length | D94: 50 in / 127 cm | F94: =SUM(F93) -> 0
C95: Width | D95: 27 in / 69cm | F95: 0 | H95: =IFERROR(IFERROR(VLOOKUP(D95,Surcharge!A:B,2,FALSE)*F95, VLOOKUP(D95 & "",Surcharge!A:B,2,FALSE)*F95), "") -> 
C96: Height | D96: 45 in / 114.5 cm | F96: 0 | H96: =IFERROR(IFERROR(VLOOKUP(D96,Surcharge!A:B,2,FALSE)*F96, VLOOKUP(D96 & "",Surcharge!A:B,2,FALSE)*F96), "") -> 
E99: =ROUND(SUM(G28:G98), 0) -> 0 | F99: =SUM(E100) -> 0
D100: Machine Subtotal | E100: =ROUND(SUM(G28:G98), 0) -> 0 | F100: =F99 -> 0
B101: Discounts | F101: =SUM(F102) -> 0
F102: =SUM(F104:F107) -> 0
D103: Applicable Currency Adj % | F103: =IF(E103 <> "", 1, 0) -> 0 | G103: =IF(F103*(E103*0.01)*E99 < 0, F103*(E103*0.01)*E99, -(F103*(E103*0.01)*E99)) -> 0
D104: Discount % | F104: =IF(E104 <> "", 1, 0) -> 0 | G104: =IF(F104*(E104*0.01)*(E99+G103) < 0, F104*(E104*0.01)*(E99+G103), -(F104*(E104*0.01)*(E99+G103))) -> 0
D105: Discount $ | F105: =IF(E105 <> "", 1, 0) -> 0 | G105: =IF(F105*E105 < 0, F105*E105, -(F105*E105)) -> 0
D106: Discount $ | F106: =IF(E106 <> "", 1, 0) -> 0 | G106: =IF(F106*E106 < 0, F106*E106, -(F106*E106)) -> 0
D107: Discount $ | F107: =IF(E107 <> "", 1, 0) -> 0 | G107: =IF(F107*E107 < 0, F107*E107, -(F107*E107)) -> 0
D108: Discount Total | E108: =SUM(G103:G107) -> 0 | F108: =SUM(E108) -> 0
F109: =#REF! -> 
F110: =F109 -> 
C111: Prepaid and Add | D111: Freight | F111: =IF(E111 <> "", 1, 0) -> 0 | G111: =F111*E111 -> 0
C112: Subject to all applicable taxes | D112: Tax | F112: =IF(E112 <> "", 1, 0) -> 0 | G112: =F112*E112 -> 0
F113: =SUM(F114) -> 0
D114: MACHINE TOTAL* | F114: =SUM(G114) -> 0 | G114: =SUM(G28:G112) -> 0 | N114: This goes to "My Documents"
G115: =SUM(G114) -> 0
C120: First Western Equipment Finance - Leasing Calculation Option: | D120: Option 1 | F120: Option 2 | I120: =Financing!A38 -> Rates 2025 - Rev 2/4/2025
D121: Monthly Payment | E121: Cost Per Day | F121: Monthly Payment | G121: Cost Per Day | I121: =Financing!A39 -> “Blank Payment Amounts Indicate The Financing Option Or Purchase Options Selected Are Not
C122: Purchase Option: | D122: FWEF: $1 Buyout Lease | F122: FWEF: Municipal Lease | I122: =Financing!A40 -> Applicable Or The Machine Total Is Below The Minimum Amount For The Selected Vendor”
C123: 24 Months | D123: FALSE | E123: 0 | F123: FALSE | G123: 0 | I123: =Financing!A41 -> "Quoted monthly payments are estimates only and are based on a certain level of credit rating.
C124: 30 Months | D124: FALSE | E124: 0 | F124: FALSE | G124: 0 | I124: =Financing!A42 -> Actual monthly payments may be higher depending on your credit rating."
C125: 36 Months | D125: FALSE | E125: 0 | F125: FALSE | G125: 0 | I125: =Financing!A43 -> “Financing rates do not include Pre-Paid Service”
C126: 48 Months | D126: 0 | E126: 0 | F126: 0 | G126: 0
D128: Benefits of Equipment Financing:
D129: • Spreads out investment over time. | F129: • Keep current with latest technology.
D130: • Preserve capital. | F130: • Service and parts bundling available.
D131: • Low monthly payment. | F131: • Pay for labor savings as you go.
B132: TennantTrue | E132: 0 | F132: 0
C134: Is customer interested in service program? | D134: Yes | E134: *State/County selection required for TennantTrue service options
C136: If not, why?
C138: Term: | D138: 36 | G138: AB Brushes | H138: No
C139: Monthly machine usage (hrs): | D139: < 30/mo. (Avg. 1hr./day)
C141: TennantTrue: | D141: Gold Contract | F141: Silver Contract
C142: Per Visit | F142: 425
C143: Monthly | D143: 129 | F143: 69
C144: Annually | F144: 816
C145: Pre-Pay Full Term | D145: 4444 | F145: 2397
C146: Hourly Labor Rate
C147: Site Visit
C149: * Verify customer current pricing prior to quote.
C150: **All rates and fees above reflect service for one (1) unit with the exception of Block of Time service.
C151: *Block of Time is available in 1 Year Term only and is priced as such no matter the term selection on this template.
C155: Quote Special Instructions:
C158: =Start_Here!E36 -> Terms and Conditions
C159: =Start_Here!E37 -> Ask your local sales rep for estimated lead times. Verify when placing order
C160: =Start_Here!E38 -> All orders subject to acceptance by Tennant Sales and Service Company, Minneapolis, Minnesota
C161: =Start_Here!E39 -> Prices subject to change without notice. Subject to any applicable taxes.
C162: =Start_Here!E40 -> Terms: Net 30 days. Payable in Canadian Funds
C163: =Start_Here!E41 -> Freight: Accessories, parts, supplies, detergents, and floor coatings orders delivered DDP
C164: =Start_Here!E42 -> shipping point Frt PPD. Machine orders delivered DDP shipping point Frt PPD and add.
C165: =Start_Here!E43 -> Returned Merchandise is subject to a restocking fee.
C166: =Start_Here!E45 -> Printed General Terms and Conditions are also available upon request.
C167: =Start_Here!E46 -> 0
E170: Quote Date : | G170: =Letter!$A$25 -> 2014-10-02
A171: Order Placement Information: To place your order, fill in PO# and customer signatures,
A172: call or fax to the numbers listed below. Customer Purchase Order is required.
A173: If information is missing, orders will be entered and held until all information is received.
C174: Customer Number | E174: Cust Grp 3
C175: =Start_Here!$C$25 -> 0 | E175: =Start_Here!$C$29 -> 0
C176: =Start_Here!$B$18 -> Who Owns the Machine? (Sold-To Info) (Please Verify)
A177: Company | C177: =Start_Here!$C$19 -> Company Name
A178: Address | C178: =Start_Here!$C$20 -> Address
C179: =Start_Here!$C$21 -> City, State Zip
A180: Name | C180: =Start_Here!$C$22 -> Contact Name
A181: Phone | C181: =Start_Here!$C$23 -> Contact Phone
C182: =Start_Here!$B$11 -> Where is the Machine Being Shipped? (Ship-To Info) (Please Verify)
A183: Company | C183: =Start_Here!$C$12 -> Company Name
A184: Address | C184: =Start_Here!$C$13 -> Address
C185: =Start_Here!$C$14 -> City, State Zip
A186: Name | C186: =Start_Here!$C$15 -> Contact Name
A187: Phone | C187: =Start_Here!$C$16 -> Contact Phone
C188: =Start_Here!$B$31 -> Shipping / Carrier Instructions: | E188: Order Special Instructions:
C189: =Start_Here!$C$32 -> 0
C191: Customer Purchase Order No.
C192: (please attach copy)
C195: Tax Exempt | E195: Yes
E196: No
C197: If Yes, attach a copy of your exemption certificate.
C199: Requested Delivery Date
C200: =Start_Here!$C$28 -> 0
C202: =Start_Here!$C$26 -> 0 | E202: =Start_Here!$C$27 -> 0
C203: Authorized Buyer (please print) | E203: Phone Number
C206: Authorized Buyer Signature
C208: =Start_Here!$C$41 -> Rep Name
C209: Tennant Representative
A211: Specialized Maintenance Equipment
A212: =Start_Here!$C$48 -> TENNANT · 10400 Clean Street · Eden Prairie, MN 55344 ·
A213: =Start_Here!$C$49 -> PHONE:800-553-8033 · FAX:763-513-2116

Sheet MPF SAP Canada Pre-Configured (hidden)
A1: Master Price File Canada (Canadian MPF) - PreConfigured Machines
A3: Download Date: | C3: 2022-11-02
A4: Price Adj Effective Date: | C4: 2023-01-01
A5: Table name = | C5: MPF_Table_Canada_PreConfigured
A7: Product Hierarchy | B7: Description | C7: Material | D7: Material Description | E7: 2022 List
A8: 301003 | B8: CS5 | C8: 1251580 | D8: SCRUBBER [CS5 BATTERY NAM] | E8: 4224
A9: 301004135 | B9: CS16 | C9: LPTB03328 | D9: SCRUBBER [CS16 BATTERY NA] | E9: 5944
A10: 302404 | B10: S8 | C10: 9001401 | D10: SWEEPER, 28INCH, 12VDC, GEL, TJ | E10: 7569
A11: 302506 | B11: S9 (Battery Sweeper) | C11: 1069648 | D11: SWEEPER, 90CM, 12V [S9 NA, W/O B,W/ C] | E11: 6792
A12: 302508 | B12: S6 | C12: 1251268 | D12: SWEEPER [S6 NA EX W/ BATT, CORD] | E12: 4606
A13: 302509 | B13: Scout 6 | C13: 1251270 | D13: SWEEPER [SCOUT 6 W/ BATT, CORD] | E13: 4606
A14: 302510 | B14: S7 | C14: 1251272 | D14: SWEEPER [S7 NA W/ BATT, CORD] | E14: 9206
A15: 302511 | B15: Scout 7 | C15: 1251274 | D15: SWEEPER [SCOUT 7 W BATT, CORD] | E15: 9206
A16: 302601 | B16: SS10 | C16: 9003573 | D16: SWEEPER, NA, FI [S10] | E16: 17231
A17: 304053 | B17: S20 | C17: MS20-1781 | D17: MODEL S20 SWEEPER | E17: 52297
A18: 304053 | B18: S20 | C18: MS20-5902 | D18: MODEL S20 SWEEPER | E18: 45502
A19: 304215 | B19: S30 | C19: MS30-3567 | D19: MODEL S30 RIDER SWEEPER | E19: 29211
A20: 304215 | B20: S30 | C20: MS30-1766 | D20: MODEL S30 RIDER SWEEPER | E20: 44940
A21: 306200 | B21: T1 | C21: 9004191 | D21: SCRUBBER, 38CM, 11L, 120VAC [T1] | E21: 6663
A22: 306200 | B22: T1 | C22: 9004191-H | D22: SCRUBBER, 38CM, 11L, 120VAC [T1] | E22: 6663
A23: 306201 | B23: Speed Scrub 15" (3gal, Cord Elec Cyli | C23: 9004200-H | D23: SCRUBBER, 38CM, 11L, 120VAC [SS-15"] | E23: 6663
A24: 306201 | B24: Speed Scrub 15" (3gal, Cord Elec Cyli | C24: 9004200 | D24: SCRUBBER, 38CM, 11L, 120VAC [SS-15] | E24: 6663
A25: 306202 | B25: T1B | C25: 9008635 | D25: SCRUBBER, 38CM, 11L, 12VDC [T1B NA, AGM] | E25: 8611
A26: 306202 | B26: T1B | C26: 9016537 | D26: SCRUBBER, 38CM, 11L, 12VDC [T1B AGM IRIS | E26: 10176
A27: 306202 | B27: T1B | C27: 9008638 | D27: SCRUBBER, 38CM, 11L, 12VDC [T1B NA, Li] | E27: 11109
A28: 306203 | B28: SPEEDSCRUB BATT 15" | C28: 9008640 | D28: SCRUBBER, 2 GAL, Li BATT [NOB SS15] | E28: 11109
A29: 306203 | B29: SPEEDSCRUB BATT 15" | C29: 9008637 | D29: SCRUBBER, 38CM, 11L, 12VDC [SS-15", AGM] | E29: 8611
A30: 306300 | B30: T2 | C30: MV-T2-0001 | D30: SCRUBBER, 43CM, PUSH [T2, NA] | E30: 11537
A31: 306300 | B31: T2 | C31: MV-T2-0008 | D31: SCRUBBER, 43CM, PUSH [T2, NA GEL W/BRSH] | E31: 10916
A32: 306304 | B32: WB-20 20" Autoscrub | C32: 9002791 | D32: SCRUBBER, 20INCH, 24VDC[WB-20B CTX CMPT] | E32: 9715
A33: 306307 | B33: T300 | C33: MV-T300-0001 | D33: SCRUBBER, 430D, PUSH, MEM [T300D NA] | E33: 11848
A34: 306307 | B34: T300 | C34: MV-T300-0003 | D34: SCRUBBER, 500D, PUSH, MEM [T300D NA] | E34: 13316
A35: 306307 | B35: T300 | C35: MV-T300-0011 | D35: SCRUBBER, 500O, DR, MEM, ECNC[T300 O NA] | E35: 19549
A36: 306307 | B36: T300 | C36: MV-T300-0007 | D36: SCRUBBER, 500D, DR, PRO, ECNC [T300D NA] | E36: 19379
A37: 306307 | B37: T300 | C37: MV-T300-0010 | D37: SCRUBBER, 500O, DR, MEM [T300 O NA] | E37: 16644
A38: 306307 | B38: T300 | C38: MV-T300-0008 | D38: SCRUBBER, 600D, DR, MEM [T300D NA] | E38: 17738
A39: 306307 | B39: T300 | C39: MV-T300-0004 | D39: SCRUBBER, 500D, DR, MEM [T300D NA] | E39: 15594
A40: 306307 | B40: T300 | C40: MV-T300-0006 | D40: SCRUBBER, 500D, DR, PRO [T300D NA] | E40: 16474
A41: 306307 | B41: T300 | C41: MV-T300-0135 | D41: SCRUBBER, 500D, DR, ECNC[T300D, ARMKCB]Y | E41: 21894
A42: 306307 | B42: T300 | C42: MV-T300-0134 | D42: SCRUBBER,500D, DR, ECNC [T300D,ARMK]PW Y | E42: 21484
A43: 306307 | B43: T300 | C43: MV-T300-0009 | D43: SCRUBBER, 600D, DR, PRO, ECNC [T300 NA] | E43: 21524
A44: 306307 | B44: T300 | C44: MV-T300-0005 | D44: SCRUBBER, 500D, DR, MEM, ECNC [T300D NA] | E44: 18499
A45: 306308 | B45: T300e | C45: MV-T300E-0007 | D45: SCRUBBER, 600D, DR [T300e D NA] | E45: 13973
A46: 306308 | B46: T300e | C46: MV-T300E-0002 | D46: SCRUBBER, 430D, PUSH [T300e D ECNC NA] | E46: 12507
A47: 306308 | B47: T300e | C47: MV-T300E-0004 | D47: SCRUBBER, 500D, PUSH, IC,ECN[T300e D NA] | E47: 14321
A48: 306308 | B48: T300e | C48: MV-T300E-0010 | D48: SCRUBBER, 500O, DR, ECNC [T300e O NA] | E48: 17225
A49: 306308 | B49: T300e | C49: MV-T300E-0008 | D49: SCRUBBER, 600D, DR, IC, ECNC[T300e D NA] | E49: 17914
A50: 306308 | B50: T300e | C50: MV-T300E-0085 | D50: SCRUBBER, EX, 500D, PUSH, CNV, 130AH[CA] | E50: 11272
A51: 306308 | B51: T300e | C51: MV-T300E-0003 | D51: SCRUBBER, 500D, PUSH [T300e D NA] | E51: 10752
A52: 306308 | B52: T300e | C52: MV-T300E-0086 | D52: SCRUBBER, EX, 500D, PUSH, CNV, AGM [CA] | E52: 12992
A53: 306308 | B53: T300e | C53: MV-T300E-0006 | D53: SCRUBBER, 500D, DR, IC, ECNC[T300e D NA] | E53: 16895
A54: 306308 | B54: T300e | C54: MV-T300E-0027 | D54: SCRUBBER, 500O, DR, ECNC [T300e O WM] | E54: 19207
A55: 306308 | B55: T300e | C55: MV-T300E-0005 | D55: SCRUBBER, 500D,DR,IC,130AH [T300e D NA] | E55: 13989
A56: 306308 | B56: T300e | C56: MV-T300E-0009 | D56: SCRUBBER, 500O, DR [T300e O NA] | E56: 14320
A57: 306309 | B57: SS300 | C57: MV-SS300-0006 | D57: SCRUBBER, 500D, DR, IC,ECN,130AH[SS300D] | E57: 16886
A58: 306309 | B58: SS300 | C58: MV-SS300-0003 | D58: SCRUBBER, 500D, PUSH, 130AH [SS300D] | E58: 10752
A59: 306309 | B59: SS300 | C59: MV-SS300-0005 | D59: SCRUBBER, 500D, DR, IC, 130AH [SS300D] | E59: 13981
A60: 306309 | B60: SS300 | C60: MV-SS300-0009 | D60: SCRUBBER, 500O, DR, 150AH [SS300 O] | E60: 14324
A61: 306309 | B61: SS300 | C61: MV-SS300-0010 | D61: SCRUBBER, 500O, DR, ECNC, 150AH[SS300 O] | E61: 17230
A62: 306309 | B62: SS300 | C62: MV-SS300-0012 | D62: SCRUBBER, 430D, P, IC,ECNC,130AH[SS300D] | E62: 13122
A63: 306309 | B63: SS300 | C63: MV-SS300-0001 | D63: SCRUBBER, 430D, PUSH, 130AH [SS300D] | E63: 9609
A64: 306309 | B64: SS300 | C64: MV-SS300-0007 | D64: SCRUBBER, 600D, DR, 150AH [SS300D] | E64: 13978
A65: 306309 | B65: SS300 | C65: MV-SS300-0002 | D65: SCRUBBER, 430D, PUSH, ECNC,130AH[SS300D] | E65: 12514
A66: 306309 | B66: SS300 | C66: MV-SS300-0004 | D66: SCRUBBER, 500D, P, IC,ECNC,130AH[SS300D] | E66: 14299
A67: 306309 | B67: SS300 | C67: MV-SS300-0008 | D67: SCRUBBER, 600D, DR, IC,ECNC,150A[SS300D] | E67: 17924
A68: 306327 | B68: T290 | C68: 9022001 | D68: SCRUBBER [T290 50CM, PA, 150AH WET, NA] | E68: 8676
A69: 306327 | B69: T290 | C69: 9022004 | D69: SCRUBBER [T290 50CM, 150AH WET, NA] | E69: 10585
A70: 306327 | B70: T290 | C70: 1255468 | D70: SCRUBBER [T290 50CM, W/O BATT, NA] | E70: 9836
A71: 306327 | B71: T290 | C71: 9022003 | D71: SCRUBBER [T290 50CM, 130AH WET, NA] | E71: 10403
A72: 306327 | B72: T290 | C72: 1255467 | D72: SCRUBBER [T290 50CM, PA, W/O BATT, NA] | E72: 7931
A73: 306327 | B73: T290 | C73: 9022002 | D73: SCRUBBER [T290 50CM, PA, 140AH AGM, NA] | E73: 10188
A74: 306327 | B74: T290 | C74: 9022000 | D74: SCRUBBER [T290 50CM, PA, 130AH WET, NA] | E74: 8497
A75: 306327 | B75: T290 | C75: 9022005 | D75: SCRUBBER [T290 50CM, 140AH AGM, NA] | E75: 12094
A76: 306407 | B76: T500 | C76: MV-T500-0019 | D76: SCRUBBER,T500,650D,MEM,ECNC,225AH,OBC,CA | E76: 27165
A77: 306407 | B77: T500 | C77: MV-T500-0017 | D77: SCRUBBER,T500, 700O, MEM, 225AH, OBC, CA | E77: 26040
A78: 306407 | B78: T500 | C78: MV-T500-0026 | D78: SCRUBBER,T500, 700O, PPAN, 225AH, OBC,CA | E78: 31409
A79: 306407 | B79: T500 | C79: MV-T500-0023 | D79: SCRUBBER,T500,700C,MEM,ECNC,225AH,OBC,CA | E79: 30674
A80: 306407 | B80: T500 | C80: MV-T500-0025 | D80: SCRUBBER,T500, 800D, PPAN, 225AH, OBC,CA | E80: 31593
A81: 306407 | B81: T500 | C81: MV-T500-0020 | D81: SCRUBBER,T500,700D,MEM,ECNC,225AH,OBC,CA | E81: 28671
A82: 306407 | B82: T500 | C82: MV-T500-0021 | D82: SCRUBBER,T500,800D,MEM,ECNC,225AH,OBC,CA | E82: 30386
A83: 306407 | B83: T500 | C83: MV-T500-0014 | D83: SCRUBBER,T500, 650D, MEM, 225AH, OBC, CA | E83: 23188
A84: 306407 | B84: T500 | C84: MV-T500-0016 | D84: SCRUBBER,T500, 800D, MEM, 225AH, OBC, CA | E84: 26411
A85: 306407 | B85: T500 | C85: MV-T500-0022 | D85: SCRUBBER,T500,700O,MEM,ECNC,225AH,OBC,CA | E85: 30015
A86: 306407 | B86: T500 | C86: MV-T500-0018 | D86: SCRUBBER,T500, 700C, MEM, 225AH, OBC, CA | E86: 26699
A87: 306407 | B87: T500 | C87: MV-T500-0015 | D87: SCRUBBER,T500, 700D, MEM, 225AH, OBC, CA | E87: 25119
A88: 306407 | B88: T500 | C88: MV-T500-0024 | D88: SCRUBBER,T500, 700D, PPAN, 225AH, OBC,CA | E88: 30463
A89: 306408 | B89: T500e | C89: MV-T500E-0023 | D89: SCRUBBER,T500E,650D,ECNC,225AH,OBC,SF,CA | E89: 25570
A90: 306408 | B90: T500e | C90: MV-T500E-0017 | D90: SCRUBBER, T500E, 800D, 225AH, OBC, CA | E90: 22534
A91: 306408 | B91: T500e | C91: MV-T500E-0050 | D91: SCRUBBER, T500E,800D,CNV,225AH,OBC,PW,WM | E91: 25920
A92: 306408 | B92: T500e | C92: MV-T500E-0024 | D92: SCRUBBER,T500E,700D,ECNC,225AH,OBC,SF,CA | E92: 26260
A93: 306408 | B93: T500e | C93: MV-T500E-0021 | D93: SCRUBBER, T500E, 800D, 225AH, OBC, SF,CA | E93: 23818
A94: 306408 | B94: T500e | C94: MV-T500E-0025 | D94: SCRUBBER,T500E,800D,ECNC,225AH,OBC,SF,CA | E94: 27792
A95: 306408 | B95: T500e | C95: MV-T500E-0018 | D95: SCRUBBER, T500E, 700O, 225AH, OBC, CA | E95: 22343
A96: 306408 | B96: T500e | C96: MV-T500E-0015 | D96: SCRUBBER, T500E, 650D, 225AH, OBC, CA | E96: 20312
A97: 306408 | B97: T500e | C97: MV-T500E-0016 | D97: SCRUBBER, T500E, 700D, 225AH, OBC, CA | E97: 20955
A98: 306408 | B98: T500e | C98: MV-T500E-0020 | D98: SCRUBBER, T500E, 700D, 225AH, OBC, SF,CA | E98: 22659
A99: 306408 | B99: T500e | C99: MV-T500E-0026 | D99: SCRUBBER,T500E,700O,ECNC,225AH,OBC,SF,CA | E99: 27601
A100: 306408 | B100: T500e | C100: MV-T500E-0022 | D100: SCRUBBER, T500E, 700O, 225AH, OBC, SF,CA | E100: 23626
A101: 306408 | B101: T500e | C101: MV-T500E-0051 | D101: SCRUBBER,T500E, 700D,CNV,225AH,OBC,PW,WM | E101: 24753
A102: 306408 | B102: T500e | C102: MV-T500E-0019 | D102: SCRUBBER, T500E, 650D, 225AH, OBC, SF,CA | E102: 21595
A103: 306408 | B103: T500e | C103: MV-T500E-0049 | D103: SCRUBBER, T500E 800D, CNV, 225AH,OBC,WM | E103: 26348
A104: 306409 | B104: SS500 | C104: MV-SS500-0015 | D104: SCRUBBER, SS500, 800D, 225AH, OBC, CA | E104: 22534
A105: 306409 | B105: SS500 | C105: MV-SS500-0016 | D105: SCRUBBER, SS500, 700O, 225AH, OBC, CA | E105: 22343
A106: 306409 | B106: SS500 | C106: MV-SS500-0020 | D106: SCRUBBER, SS500, 700O, 225AH, OBC, SF,CA | E106: 23626
A107: 306409 | B107: SS500 | C107: MV-SS500-0024 | D107: SCRUBBER,SS500,700O,ECNC,225AH,OBC,SF,CA | E107: 27601
A108: 306409 | B108: SS500 | C108: MV-SS500-0021 | D108: SCRUBBER,SS500,650D,ECNC,225AH,OBC,SF,CA | E108: 25570
A109: 306409 | B109: SS500 | C109: MV-SS500-0019 | D109: SCRUBBER, SS500, 800D, 225AH, OBC, SF,CA | E109: 23818
A110: 306409 | B110: SS500 | C110: MV-SS500-0010 | D110: SCRUBBER,SS500,700D,ECNC,225AH,OBC,SF,PW | E110: 26631
A111: 306409 | B111: SS500 | C111: MV-SS500-0022 | D111: SCRUBBER,SS500,700D,ECNC,225AH,OBC,SF,CA | E111: 26786
A112: 306409 | B112: SS500 | C112: MV-SS500-0023 | D112: SCRUBBER,SS500,800D,ECNC,225AH,OBC,SF,CA | E112: 27792
A113: 306409 | B113: SS500 | C113: MV-SS500-0014 | D113: SCRUBBER, SS500, 700D, 225AH, OBC, CA | E113: 21376
A114: 306409 | B114: SS500 | C114: MV-SS500-0013 | D114: SCRUBBER, SS500, 650D, 225AH, OBC, CA | E114: 20309
A115: 306409 | B115: SS500 | C115: MV-SS500-0018 | D115: SCRUBBER SS500, 700D, 225AH, OBC, SF, CA | E115: 22659
A116: 306409 | B116: SS500 | C116: MV-SS500-0017 | D116: SCRUBBER, SS500, 650D, 225AH, OBC, SF,CA | E116: 21595
A117: 306413 | B117: T390 | C117: 9022007 | D117: SCRUBBER [T390, 70CM, 140AH AGM, NA] | E117: 15919
A118: 306413 | B118: T390 | C118: 9022006 | D118: SCRUBBER [T390, 70CM, 150AH WET, NA] | E118: 14408
A119: 306413 | B119: T390 | C119: 1255469 | D119: SCRUBBER [T390, 70CM, W/O BATT, NA] | E119: 13842
A120: 306505 | B120: T600e | C120: MV-T600E-0001 | D120: SCRUBBER, T600E, 700D, CNV, 360AH [CA] | E120: 26975
A121: 306505 | B121: T600e | C121: MV-T600E-0012 | D121: SCRUBBER,T600E,800D, CNV, 360AH [CA] | E121: 28123
A122: 307200 | B122: 2180SR | C122: 9017766 | D122: SCRUBBER [2180SR 50CM NA AND EXPORT] | E122: 14295
A123: 307202 | B123: T581 | C123: 9022009 | D123: SCRUBBER [T581, 50CM, 140AH AGM, NA] | E123: 18320
A124: 307202 | B124: T581 | C124: 1255470 | D124: SCRUBBER [T581, 50CM, W/O BATT, NA] | E124: 16243
A125: 307202 | B125: T581 | C125: 9022008 | D125: SCRUBBER [T581, 50CM, 150AH WET, NA] | E125: 16810
A126: 307500 | B126: T7 | C126: MV-T7-0049 | D126: SCRUBBER, T7, 650D, CNV, 220AH AGM [CA] | E126: 36542
A127: 307500 | B127: T7 | C127: MV-T7-0073 | D127: MV T7 SCRUBBER, 800 DISK [WM] | E127: 41069
A128: 307500 | B128: T7 | C128: MV-T7-0001 | D128: SCRUBBER, 650MM, DISK [T7 RIDER] | E128: 32400
A129: 307500 | B129: T7 | C129: MV-T7-0048 | D129: SCRUBBER, T7, 650D, ECNC, 240AH [CA] | E129: 38675
A130: 307500 | B130: T7 | C130: MV-T7-0047 | D130: SCRUBBER, T7, 650D, CNV, 240AH [CA] | E130: 34211
A131: 307500 | B131: T7 | C131: MV-T7-0050 | D131: SCRUBBER, T7, 650D, ECNC, 220AH AGM [CA] | E131: 41006
A132: 307500 | B132: T7 | C132: MV-T7-0045 | D132: SCRUBBER, 800MM, DISK, 360AH[T7 WALMART | E132: 37550
A133: 307500 | B133: T7 | C133: MV-T7-0078 | D133: SCRUBBER, 650MM, DISK, CNV [T7], [MX] | E133: 34859
A134: 307500 | B134: T7 | C134: MV-T7-0074 | D134: MV T7 SCRUBBER, 800 DISK [WM] PW | E134: 40608
A135: 307600 | B135: T12 | C135: MV-T12-0011 | D135: SCRUBBER MODEL T12, DISK, GRAINGER [US] | E135: 38684
A136: 307600 | B136: T12 | C136: MV-T12-0012 | D136: SCRUBBER MODEL T12, CYL, GRAINGER [US] | E136: 39735
A137: 309100 | B137: T350 | C137: MV-T350-0013 | D137: SCRUBBER,T350,500D,MEM,CNV,210AH,OBC[CA] | E137: 20289
A138: 309100 | B138: T350 | C138: MV-T350-0017 | D138: SCRUBBER,T350,600D,MEM,ECNC,240AH,OBC[CA | E138: 27354
A139: 309100 | B139: T350 | C139: MV-T350-0033 | D139: SCRUBBER,T350,500D,MEM,CNV,210AH,OBC[CA] | E139: 21516
A140: 309100 | B140: T350 | C140: MV-T350-0016 | D140: SCRUBBER,T350,600D,MEM,CNV,210AH,OBC[CA] | E140: 22548
A141: 309100 | B141: T350 | C141: MV-T350-0015 | D141: SCRUBBER, T350,500D,PPAN,ECNC,240AH [CA] | E141: 26447
A142: 309100 | B142: T350 | C142: MV-T350-0018 | D142: SCRUBBER, T350,600D,PPAN,ECNC,240AH [CA] | E142: 28705
A143: 309100 | B143: T350 | C143: MV-T350-0032 | D143: SCRUBBER,T350,600D,MEM,CNV,210AH,SF [CA] | E143: 23426
A144: 309100 | B144: T350 | C144: MV-T350-0014 | D144: SCRUBBER,T350,500D,MEM,ECNC,240AH,OBC[CA | E144: 25095
A145: 309200 | B145: SS350 | C145: MV-SS350-0011 | D145: SCRUBBER,SS350,600D,MEM,CNV,210AH,OBC[CA | E145: 22548
A146: 309200 | B146: SS350 | C146: MV-SS350-0012 | D146: SCRUBBER, SS350,600D,MEM,ECNC,240AH [CA] | E146: 27354
A147: 309200 | B147: SS350 | C147: MV-SS350-0010 | D147: SCRUBBER, SS350,500D,MEM,ECNC,240AH [CA] | E147: 25092
A148: 309200 | B148: SS350 | C148: MV-SS350-0009 | D148: SCRUBBER, SS350,500D,MEM,CNV,210AH [CA] | E148: 20286
A149: 311302 | B149: M20 | C149: MM20-2032 | D149: MODEL M20 SCRUBBER/SWEEPER | E149: 32582
A150: 311302 | B150: M20 | C150: MV-M20-0032 | D150: M20, LP, MEM, CNV [BRAZIL] | E150: 110504
A151: 311302 | B151: M20 | C151: MM20-3250 | D151: MODEL M20 SCRUBBER/SWEEPER | E151: 50558
A152: 311302 | B152: M20 | C152: MM20-3461 | D152: MODEL M20 SCRUBBER/SWEEPER | E152: 44812
A153: 321020 | B153: V-BP-6 | C153: 1217839 | D153: VACUUM, V-BP-6, 120V [TENNANT MEX] | E153: 859
A154: 321020 | B154: V-BP-6 | C154: 9013473 | D154: VACUUM, BACKPACK, W/BASE TOOLS [V-BP-6] | E154: 1058
A155: 321020 | B155: V-BP-6 | C155: 9013475 | D155: VACUUM, BACKPACK, W/PREM TOOLS [V-BP-6] | E155: 1248
A156: 321020 | B156: V-BP-6 | C156: 1060830 | D156: VACUUM, V-BP-6, 120V | E156: 950
A157: 321020 | B157: V-BP-6 | C157: 1215364 | D157: VACUUM, BACKPACK, 120V [TENNANT V-BP-6] | E157: 800
A158: 321020 | B158: V-BP-6 | C158: 9013474 | D158: VACUUM, BACKPACK, W/STD TOOLS [V-BP-6] | E158: 1092
A159: 321023 | B159: Aspen 6 | C159: 1215365 | D159: VACUUM, BACKPACK, 120V [NOBLES ASPEN 6] | E159: 830
A160: 321023 | B160: Aspen 6 | C160: 9013476 | D160: VACUUM, BACKPACK, W/BASE TOOLS [ASPEN 6] | E160: 1058
A161: 321023 | B161: Aspen 6 | C161: 9013478 | D161: VACUUM, BACKPACK, W/PREM TOOLS [ASPEN 6] | E161: 1248
A162: 321023 | B162: Aspen 6 | C162: 9013477 | D162: VACUUM, BACKPACK, W/STD TOOLS [ASPEN 6] | E162: 1092
A163: 321025 | B163: V-BP-6B | C163: 9017571 | D163: VACUUM, BACKPACK, W/PREM TOOLS[V-BP-6B] | E163: 3001
A164: 321025 | B164: V-BP-6B | C164: 1236569 | D164: VACUUM, BATTERY [TENNANT, V-BP-6B] | E164: 1550
A165: 321025 | B165: V-BP-6B | C165: 9017567 | D165: VACUUM, BACKPACK, W/BASIC TOOLS[V-BP-6B] | E165: 2722
A166: 321025 | B166: V-BP-6B | C166: 9017570 | D166: VACUUM, BACKPACK, W/STD TOOLS [V-BP-6B] | E166: 2815
A167: 321026 | B167: Aspen 6B | C167: 9017569 | D167: VACUUM, BACKPACK, W/STD TOOLS [ASPEN 6B] | E167: 2815
A168: 321026 | B168: Aspen 6B | C168: 9017572 | D168: VACUUM, BACKPACK, W/PREM TOOLS[ASPEN 6B] | E168: 3001
A169: 321026 | B169: Aspen 6B | C169: 9017568 | D169: VACUUM, BACKPACK, W/BASIC TOOLS[ASPEN6B] | E169: 2722
A170: 322075 | B170: V-CAN-10 | C170: 1244292 | D170: VACUUM, CANISTER, 120V [V-CAN-10, NA] | E170: 449
A171: 322076 | B171: V-CAN-12 | C171: 1252616 | D171: VACUUM, CANISTER, 120V [V-CAN-12,NA,STD] | E171: 621
A172: 322077 | B172: V-CAN-16 | C172: 1252618 | D172: VACUUM, CANISTER, 120V [V-CAN-16,NA,STD] | E172: 764
A173: 322078 | B173: Denali-10 | C173: 1244294 | D173: VACUUM, CANISTER, 120V [DENALI-10, NA] | E173: 449
A174: 322079 | B174: Denali-12 | C174: 1252617 | D174: VACUUM, CANISTER,120V [DENALI-12,NA,STD] | E174: 621
A175: 322080 | B175: Denali-16 | C175: 1252619 | D175: VACUUM, CANISTER,120V [DENALI-16,NA,STD] | E175: 764
A176: 323123 | B176: V-SMU-14 | C176: 1060829 | D176: VACUUM, V-SMU-14, 120V | E176: 866
A177: 323126 | B177: V-DMU-14 | C177: 1068027 | D177: VACUUM, V-DMU-14, 120V | E177: 1131
A178: 323129 | B178: V-WA-30 | C178: 1068029 | D178: VACUUM, 120VAC [V-WA-30] | E178: 5646
A179: 323132 | B179: V-LWU-13B | C179: 1236914 | D179: VACUUM, BATTERY [TENNANT, V-LWU-13B] | E179: 1328
A180: 323133 | B180: Independence | C180: 1236915 | D180: VACUUM, BATTERY [NOBLES,INDEPENDENCE] | E180: 1328
A181: 324075 | B181: V-WD-9 | C181: 1244345 | D181: VACUUM, WET/DRY, 120V [V-WD-9, NA] | E181: 804
A182: 324076 | B182: V-WD-24P | C182: 9019349 | D182: VACUUM, WET/DRY, 120V [V-WD-24P, W/SQGE] | E182: 3128
A183: 324076 | B183: V-WD-24P | C183: 1244346 | D183: VACUUM, WET/DRY, 120V [V-WD-24P, NA] | E183: 2519
A184: 324077 | B184: V-WD-24 | C184: 9019348 | D184: VACUUM, WET/DRY, 120V [V-WD-24, W/SQGE] | E184: 1882
A185: 324077 | B185: V-WD-24 | C185: 1245656 | D185: VACUUM, WET/DRY, 120V [V-WD-24, NA] | E185: 1273
A186: 326025 | B186: EX-CAN-10 | C186: 9007483 | D186: CANISTER, 10GAL [EX-CAN-10]PAC120VCSA-SI | E186: 3844
A187: 326026 | B187: EX-CAN-15-HPH | C187: 9007628 | D187: CANISTER, 15G [EX-CAN-15-HP]120V CSA-SI | E187: 4358
A188: 326036 | B188: EH5 | C188: 1072858 | D188: EXTRACTOR, 120V, 500PSI, HEAT [EH5] | E188: 10023
A189: 326036 | B189: EH5 | C189: 9011454 | D189: EXTRACTOR, FLOOR TOOL [TCO EH5 PAC] | E189: 11983
A190: 326038 | B190: EC2 | C190: 1072862 | D190: EXTRACTOR, 120V, 200PSI, HEAT [EC2] | E190: 5810
A191: 326038 | B191: EC2 | C191: 9011638 | D191: EXTRACTOR, FLOOR TOOL [TCO EC2 PAC] | E191: 7216
A192: 326038 | B192: EC2 | C192: 9012278 | D192: EXTRACTOR, FLOOR TOOL, TI [TCO EC2 PAC] | E192: 7767
A193: 327002 | B193: R3 ReadySpace (15" Cord Electric) | C193: 9004192 | D193: READYSPACE, 5 GAL, 120VAC, TCO [R3] | E193: 8181
A194: 327002 | B194: R3 ReadySpace (15" Cord Electric) | C194: 9004192-H | D194: READYSPACE, 5 GAL, 120VAC, TCO [R3] | E194: 8181
A195: 327003 | B195: 1610 w/ ReadySpace (Tennant) | C195: MV-1610-0001 | D195: READYSPACE, 21GAL TCO [1610] | E195: 26221
A196: 327003 | B196: 1610 w/ ReadySpace (Tennant) | C196: MV-1610-0002 | D196: READYSPACE, 21GAL TCO [1610 AGM BAT] | E196: 26964
A197: 327004 | B197: Strive w/ ReadySpace (Nobles) | C197: 9000504 | D197: READYSPACE, 21GAL [STRIVE] W/O BAT | E197: 23192
A198: 327004 | B198: Strive w/ ReadySpace (Nobles) | C198: MV-STRV-0001 | D198: READYSPACE, 21GAL NOB [STRIVE] | E198: 26221
A199: 327004 | B199: Strive w/ ReadySpace (Nobles) | C199: MV-STRV-0002 | D199: READYSPACE, 21GAL NOB [STRIVE AGM BAT] | E199: 26964
A200: 327007 | B200: Nobles ReadySpace (15" Cord Electric) | C200: 9004202-H | D200: READYSPACE, 5 GAL, NOB [STRIVE COMPACT] | E200: 8181
A201: 327007 | B201: Nobles ReadySpace (15" Cord Electric) | C201: 9004202 | D201: READYSPACE, 5 GAL, NOB [STRIVE COMPACT] | E201: 8181
A202: 328033 | B202: EX-SC-1020 | C202: 9007486 | D202: EXTRACTOR, 10GAL 20W[120V UL EX-SC-1020] | E202: 6659
... 22 more rows

Sheet T681
A1: T681 | C1: =Start_Here!$C19 -> Company Name
A2: =SUM(G84) -> 0 | C2: =Start_Here!$C20 -> Address
C3: =Start_Here!$C21 -> City, State Zip
C4: =Start_Here!$C22 -> Contact Name
C5: =Start_Here!$C$41 -> Rep Name
C6: =Start_Here!$C$37 -> Tennant Sales and Service Company
C7: =Start_Here!$C$38 -> 10400 Clean Street
C8: =Start_Here!$C$39 -> Eden Prairie, MN 55344
C9: =Start_Here!$C$43 -> 800-553-8033 | E9: Quote Date : | G9: =Letter!$A$25 -> 2014-10-02
C11: =Help!C2 -> CAN Date Rev - 5/6/2025
C13: TENNANT WARRANTY
C14: 3 YEARS OR 2000 HOURS - PARTS
C15: 1 YEAR - BATTERY CHARGERS
C16: 2 YEARS - LABOR
C17: 6 MONTHS - TRAVEL
C18: 10 YEARS ON DURAMERTM ROTOMOLD TANKS
E19: Quote Request Information
G20: Fax (quote only)
G21: Mail (quote,lit, specs)
G22: Fax + Mail
C25: Description | D25: Reference No. | E25: Canada Price | F25: Qty. | G25: Extended Price
E26: Price | H26: =IFERROR(IFERROR(VLOOKUP(D26,Surcharge!A:B,2,FALSE)*F26, VLOOKUP(D26 & "",Surcharge!A:B,2,FALSE)*F26), "") ->  | L26: =SUM(F26) -> 0 | M26: Surcharge Qty
C27: Cleaning Type | H27: =IFERROR(IFERROR(VLOOKUP(D27,Surcharge!A:B,2,FALSE)*F27, VLOOKUP(D27 & "",Surcharge!A:B,2,FALSE)*F27), "") ->  | L27: 0 | M27: Surcharge Qty
F28: =SUM(F29) -> 0 | H28: =IFERROR(IFERROR(VLOOKUP(D28,Surcharge!A:B,2,FALSE)*F28, VLOOKUP(D28 & "",Surcharge!A:B,2,FALSE)*F28), "") ->  | L28: 0 | M28: Surcharge Qty
C29: T681 - Small Ride-On Scrubber - 240AH Wet Batteries | D29: 9052040 | E29: 32778 | G29: =F29*E29 -> 0 | H29: =IFERROR(IFERROR(VLOOKUP(D29,Surcharge!A:B,2,FALSE)*F29, VLOOKUP(D29 & "",Surcharge!A:B,2,FALSE)*F29), "") ->  | L29: =SUM(F29) -> 0 | M29: Surcharge Qty | P29: =VLOOKUP(D29,'MPF SAP Canada Pre-Configured'!$C:$E,3,FALSE) -> 
C30: 32in (80cm) dual disk cleaning path, pad driver, Linatex squeegee blades. Includes onboard charger, 4-6V batteries | F30: =SUM(F29) -> 0 | H30: =IFERROR(IFERROR(VLOOKUP(D30,Surcharge!A:B,2,FALSE)*F30, VLOOKUP(D30 & "",Surcharge!A:B,2,FALSE)*F30), "") ->  | L30: =SUM(F30) -> 0 | M30: Surcharge Qty
F31: =SUM(F32) -> 0 | H31: =IFERROR(IFERROR(VLOOKUP(D31,Surcharge!A:B,2,FALSE)*F31, VLOOKUP(D31 & "",Surcharge!A:B,2,FALSE)*F31), "") ->  | L31: =SUM(F31) -> 0 | M31: Surcharge Qty
C32: T681 - Small Ride-On Scrubber - 240AH Wet Batteries | D32: 9052043 | E32: 32778 | G32: =F32*E32 -> 0 | H32: =IFERROR(IFERROR(VLOOKUP(D32,Surcharge!A:B,2,FALSE)*F32, VLOOKUP(D32 & "",Surcharge!A:B,2,FALSE)*F32), "") ->  | L32: 0 | M32: Surcharge Qty | P32: =VLOOKUP(D32,'MPF SAP Canada Pre-Configured'!$C:$E,3,FALSE) -> 
C33: 32in (80cm) dual disk cleaning path, brush driver, Linatex squeegee blades. Includes onboard charger, 4-6V batteries | F33: =SUM(F32) -> 0
P34: =VLOOKUP(D34,'MPF SAP Canada Pre-Configured'!$C:$E,3,FALSE) -> 
C35: T681 - Small Ride-On Scrubber - 210AH Sealed AGM Batteries | D35: 9052041 | E35: 34831 | G35: =F35*E35 -> 0
C36: 32in (80cm) dual disk cleaning path, pad driver, Linatex squeegee blades. Includes onboard charger, 4-6V batteries | F36: =SUM(F35) -> 0
F37: =SUM(F38) -> 0
C38: T681 - Small Ride-On Scrubber - 210AH Sealed AGM Batteries | D38: 9052044 | E38: 34831 | G38: =F38*E38 -> 0 | H38: =IFERROR(IFERROR(VLOOKUP(D38,Surcharge!A:B,2,FALSE)*#REF!, VLOOKUP(D38 & "",Surcharge!A:B,2,FALSE)*#REF!), "") ->  | L38: =SUM(#REF!) ->  | M38: Surcharge Qty
C39: 32in (80cm) dual disk cleaning path, brush driver, Linatex squeegee blades. Includes onboard charger, 4-6V batteries | F39: =SUM(F38) -> 0 | H39: =IFERROR(IFERROR(VLOOKUP(D39,Surcharge!A:B,2,FALSE)*#REF!, VLOOKUP(D39 & "",Surcharge!A:B,2,FALSE)*#REF!), "") ->  | L39: =SUM(#REF!) ->  | M39: Surcharge Qty
F40: =SUM(F41) -> 0
C41: T681 - Small Ride-On Scrubber - 90AH Li-Ion Battery | D41: 9023481 | E41: 36279 | G41: =F41*E41 -> 0
C42: 32in (80cm) dual disk cleaning path, pad driver, Linatex squeegee blades. Includes onboard charger, 1-24V battery | F42: =SUM(F41) -> 0
F43: =SUM(F44) -> 0
C44: T681 - Small Ride-On Scrubber - 90AH Li-Ion Battery | D44: 9023483 | E44: 36279 | G44: =F44*E44 -> 0
C45: 32in (80cm) dual disk cleaning path, brush driver, Linatex squeegee blades. Includes onboard charger, 1-24V battery | F45: =SUM(F44) -> 0
F46: =SUM(F47) -> 0
C47: T681 - Small Ride-On Scrubber - 180 AH Li-Ion Batteries | D47: 9023482 | E47: 39359 | G47: =F47*E47 -> 0
C48: 32in (80cm) dual disk cleaning path, pad driver, Linatex squeegee blades. Includes onboard charger, 2-24V batteries | F48: =SUM(F47) -> 0
F49: =SUM(F50) -> 0
C50: T681 - Small Ride-On Scrubber - 180 AH Li-Ion Batteries | D50: 9023484 | E50: 39359 | G50: =F50*E50 -> 0
C51: 32in (80cm) dual disk cleaning path, brush driver, Linatex squeegee blades. Includes onboard charger, 2-24V batteries | F51: =SUM(F50) -> 0
C53: T681 - Small Ride-On Scrubber - NO Batteries | D53: 9052042 | E53: 29621 | G53: =F53*E53 -> 0
C54: 32in (80cm) dual disk cleaning path, pad driver, Linatex squeegee blades. Includes onboard charger | F54: =SUM(F53) -> 0
C56: T681 - Small Ride-On Scrubber - NO Batteries | D56: 9052045 | E56: 29621 | G56: =F56*E56 -> 0 | P56: =VLOOKUP(D56,'MPF SAP Canada Pre-Configured'!$C:$E,3,FALSE) -> 
C57: 32in (80cm) dual disk cleaning path, brush driver, Linatex squeegee blades. Includes onboard charger | F57: =SUM(F56) -> 0
P59: =VLOOKUP(D59,'MPF SAP Canada Pre-Configured'!$C:$E,3,FALSE) -> 
C60: Shipping Weight and Dimensions | D60: Pallet w/ ramp | F60: =SUM(F29:F56) -> 0
C61: Weight (w/ heaviest batteries) | D61: 950 lb / 431 kg | F61: =SUM(F30:F57) -> 0 | P61: =VLOOKUP(D61,'MPF SAP Canada Pre-Configured'!$C:$E,3,FALSE) -> 
C62: Length | D62: 59.6 in / 151.5 cm | F62: =SUM(F31:F58) -> 0
C63: Width | D63: 48.8 in / 124 cm | F63: =SUM(F32:F59) -> 0
C64: Height | D64: 42.9 in / 109 cm | F64: =SUM(F33:F60) -> 0
E69: =ROUND(SUM(G26:G68), 0) -> 0 | F69: =SUM(E70) -> 0
D70: Machine Subtotal | E70: =ROUND(SUM(G26:G68), 0) -> 0 | F70: =F69 -> 0
B71: Discounts | F71: =SUM(F72) -> 0
F72: =SUM(F74:F77) -> 0
D73: Applicable Currency Adj % | F73: =IF(E73 <> "", 1, 0) -> 0 | G73: =IF(F73*(E73*0.01)*E69 < 0, F73*(E73*0.01)*E69, -(F73*(E73*0.01)*E69)) -> 0
D74: Discount % | F74: =IF(E74 <> "", 1, 0) -> 0 | G74: =IF(F74*(E74*0.01)*(E69+G73) < 0, F74*(E74*0.01)*(E69+G73), -(F74*(E74*0.01)*(E69+G73))) -> 0
D75: Discount $ | F75: =IF(E75 <> "", 1, 0) -> 0 | G75: =IF(F75*E75 < 0, F75*E75, -(F75*E75)) -> 0
D76: Discount $ | F76: =IF(E76 <> "", 1, 0) -> 0 | G76: =IF(F76*E76 < 0, F76*E76, -(F76*E76)) -> 0
D77: Discount $ | F77: =IF(E77 <> "", 1, 0) -> 0 | G77: =IF(F77*E77 < 0, F77*E77, -(F77*E77)) -> 0
D78: Discount Total | E78: =SUM(G73:G77) -> 0 | F78: =SUM(E78) -> 0
F79: =#REF! -> 
F80: =F79 -> 
C81: Prepaid and Add | D81: Freight | F81: =IF(E81 <> "", 1, 0) -> 0 | G81: =F81*E81 -> 0
C82: Subject to all applicable taxes | D82: Tax | F82: =IF(E82 <> "", 1, 0) -> 0 | G82: =F82*E82 -> 0
F83: =SUM(F84) -> 0
D84: MACHINE TOTAL* | F84: =SUM(G84) -> 0 | G84: =SUM(G26:G82) -> 0 | N84: This goes to "My Documents"
G85: =SUM(G84) -> 0
C90: First Western Equipment Finance - Leasing Calculation Option: | D90: Option 1 | F90: Option 2 | I90: =Financing!A38 -> Rates 2025 - Rev 2/4/2025
D91: Monthly Payment | E91: Cost Per Day | F91: Monthly Payment | G91: Cost Per Day | I91: =Financing!A39 -> “Blank Payment Amounts Indicate The Financing Option Or Purchase Options Selected Are Not
C92: Purchase Option: | D92: FWEF: $1 Buyout Lease | F92: FWEF: Municipal Lease | I92: =Financing!A40 -> Applicable Or The Machine Total Is Below The Minimum Amount For The Selected Vendor”
C93: 24 Months | D93: FALSE | E93: 0 | F93: FALSE | G93: 0 | I93: =Financing!A41 -> "Quoted monthly payments are estimates only and are based on a certain level of credit rating.
C94: 30 Months | D94: FALSE | E94: 0 | F94: FALSE | G94: 0 | I94: =Financing!A42 -> Actual monthly payments may be higher depending on your credit rating."
C95: 36 Months | D95: FALSE | E95: 0 | F95: FALSE | G95: 0 | I95: =Financing!A43 -> “Financing rates do not include Pre-Paid Service”
C96: 48 Months | D96: 0 | E96: 0 | F96: 0 | G96: 0
D98: Benefits of Equipment Financing:
D99: • Spreads out investment over time. | F99: • Keep current with latest technology.
D100: • Preserve capital. | F100: • Service and parts bundling available.
D101: • Low monthly payment. | F101: • Pay for labor savings as you go.
B102: TennantTrue | E102: 0 | F102: 0
C104: Is customer interested in service program? | D104: Yes | E104: *State/County selection required for TennantTrue service options
C106: If not, why?
C108: Term: | D108: 36 | G108: AB Brushes | H108: No
C109: Monthly machine usage (hrs): | D109: < 30/mo. (Avg. 1hr./day)
C111: TennantTrue: | D111: Gold Contract | F111: Silver Contract
C112: Per Visit | F112: 501
C113: Monthly | D113: 173 | F113: 88
C114: Annually | F114: 1035
C115: Pre-Pay Full Term | D115: 5964 | F115: 3042
C116: Hourly Labor Rate
C117: Site Visit
C119: * Verify customer current pricing prior to quote.
C120: **All rates and fees above reflect service for one (1) unit with the exception of Block of Time service.
C121: *Block of Time is available in 1 Year Term only and is priced as such no matter the term selection on this template.
C125: Quote Special Instructions:
C128: =Start_Here!E36 -> Terms and Conditions
C129: =Start_Here!E37 -> Ask your local sales rep for estimated lead times. Verify when placing order
C130: =Start_Here!E38 -> All orders subject to acceptance by Tennant Sales and Service Company, Minneapolis, Minnesota
C131: =Start_Here!E39 -> Prices subject to change without notice. Subject to any applicable taxes.
C132: =Start_Here!E40 -> Terms: Net 30 days. Payable in Canadian Funds
C133: =Start_Here!E41 -> Freight: Accessories, parts, supplies, detergents, and floor coatings orders delivered DDP
C134: =Start_Here!E42 -> shipping point Frt PPD. Machine orders delivered DDP shipping point Frt PPD and add.
C135: =Start_Here!E43 -> Returned Merchandise is subject to a restocking fee.
C136: =Start_Here!E45 -> Printed General Terms and Conditions are also available upon request.
C137: =Start_Here!E46 -> 0
E140: Quote Date : | G140: =Letter!$A$25 -> 2014-10-02
A141: Order Placement Information: To place your order, fill in PO# and customer signatures,
A142: call or fax to the numbers listed below. Customer Purchase Order is required.
A143: If information is missing, orders will be entered and held until all information is received.
C144: Customer Number | E144: Cust Grp 3
C145: =Start_Here!$C$25 -> 0 | E145: =Start_Here!$C$29 -> 0
C146: =Start_Here!$B$18 -> Who Owns the Machine? (Sold-To Info) (Please Verify)
A147: Company | C147: =Start_Here!$C$19 -> Company Name
A148: Address | C148: =Start_Here!$C$20 -> Address
C149: =Start_Here!$C$21 -> City, State Zip
A150: Name | C150: =Start_Here!$C$22 -> Contact Name
A151: Phone | C151: =Start_Here!$C$23 -> Contact Phone
C152: =Start_Here!$B$11 -> Where is the Machine Being Shipped? (Ship-To Info) (Please Verify)
A153: Company | C153: =Start_Here!$C$12 -> Company Name
A154: Address | C154: =Start_Here!$C$13 -> Address
C155: =Start_Here!$C$14 -> City, State Zip
A156: Name | C156: =Start_Here!$C$15 -> Contact Name
A157: Phone | C157: =Start_Here!$C$16 -> Contact Phone
C158: =Start_Here!$B$31 -> Shipping / Carrier Instructions: | E158: Order Special Instructions:
C159: =Start_Here!$C$32 -> 0
C161: Customer Purchase Order No.
C162: (please attach copy)
C165: Tax Exempt | E165: Yes
E166: No
C167: If Yes, attach a copy of your exemption certificate.
C169: Requested Delivery Date
C170: =Start_Here!$C$28 -> 0
C172: =Start_Here!$C$26 -> 0 | E172: =Start_Here!$C$27 -> 0
C173: Authorized Buyer (please print) | E173: Phone Number
C176: Authorized Buyer Signature
C178: =Start_Here!$C$41 -> Rep Name
C179: Tennant Representative
A181: Specialized Maintenance Equipment
A182: =Start_Here!$C$48 -> TENNANT · 10400 Clean Street · Eden Prairie, MN 55344 ·
A183: =Start_Here!$C$49 -> PHONE:800-553-8033 · FAX:763-513-2116

Sheet T981
A1: T981 | C1: =Start_Here!$C19 -> Company Name
A2: =SUM(G93) -> 0 | C2: =Start_Here!$C20 -> Address
C3: =Start_Here!$C21 -> City, State Zip
C4: =Start_Here!$C22 -> Contact Name
C5: =Start_Here!$C$41 -> Rep Name
C6: =Start_Here!$C$37 -> Tennant Sales and Service Company
C7: =Start_Here!$C$38 -> 10400 Clean Street
C8: =Start_Here!$C$39 -> Eden Prairie, MN 55344
C9: =Start_Here!$C$43 -> 800-553-8033 | E9: Quote Date : | G9: =Letter!$A$25 -> 2014-10-02
C11: =Help!C2 -> CAN Date Rev - 5/6/2025
C12: BUILT-IN “TENNANT VALUE” INCLUDES:
C14: Wet, 360 AH C/20 Battery Pack | E14: No Tool Squeegee and Brush Change
C15: 36VDC, 21A 85-265 VAC 45/65 Hz Charger | E15: In-Line Vacuum Fan Air Filter
C16: DC Propel Motor | E16: High Visibility Maintenance Touch Points
C17: Disk Scrubbing - 36 in (900 mm) path | E17: Cup Holder
C18: Cylindrical Scrubbing - 30 in (750 mm) path | E18: Multi-Language Operator Manual and Video
C19: Standard Sweeping Side Brushes (Cylindrical model only)
C20: Standard Cylindrical or Disk Scrubbing Brushes (Select One) | E20: T981 Controls:
C21: Non-Corrosive Solution and Recovery Tanks | E21: 3 Preset Scrub Operation Programs
C22: 33 gal (125 L) Solution Tank | E22: On Board Diagnostics
C23: 35.6 gal (135 L) Recovery Tank | E23: Spin on/spin off brush attachment (Disk model only)
C24: Parabolic Rear Squeegee Breakaway System
C25: Automatic Functions:
C26: Parking Brake
C27: Squeegee Lift
C30: TENNANT WARRANTY
C31: 3 YEARS OR 2000 HOURS - PARTS
C32: 2 YEARS - LABOR
C33: 6 MONTHS - TRAVEL
C34: 10 YEARS ON DURAMERTM ROTOMOLD TANKS
E40: Quote Request Information
G41: Fax (quote only)
G42: Mail (quote,lit, specs)
G43: Fax + Mail
E45: Primary Use
G46: Inside
G47: Outside
C49: Description | D49: Reference # | E49: Price Each | F49: Qty | G49: Extended Price
F50: *
B51: Base Configuration | E51: Price | F51: =SUM(F52,F56,F61) -> 0 | H51: =IFERROR(IFERROR(VLOOKUP(D51,Surcharge!A:B,2,FALSE)*F51, VLOOKUP(D51 & "",Surcharge!A:B,2,FALSE)*F51), "") -> 
C52: Cleaning Type | F52: =SUM(F53:F54) -> 0 | H52: =IFERROR(IFERROR(VLOOKUP(D52,Surcharge!A:B,2,FALSE)*F52, VLOOKUP(D52 & "",Surcharge!A:B,2,FALSE)*F52), "") -> 
C53: T981 Ride-On Scrubber 750 mm/30" - Cylindrical | D53: T981-750-C | E53: 35961 | G53: =F53*E53 -> 0 | H53: =IFERROR(IFERROR(VLOOKUP(D53,Surcharge!A:B,2,FALSE)*F53, VLOOKUP(D53 & "",Surcharge!A:B,2,FALSE)*F53), "") ->  | P53: M-T350VK_BASE_T350-500-D
C54: T981 Ride-On Scrubber 900 mm/36" - Disk | D54: T981-900-D | E54: 35889 | G54: =F54*E54 -> 0 | H54: =IFERROR(IFERROR(VLOOKUP(D54,Surcharge!A:B,2,FALSE)*F54, VLOOKUP(D54 & "",Surcharge!A:B,2,FALSE)*F54), "") ->  | P54: M-T350VK_BASE_T350-600-D
H55: =IFERROR(IFERROR(VLOOKUP(D55,Surcharge!A:B,2,FALSE)*F55, VLOOKUP(D55 & "",Surcharge!A:B,2,FALSE)*F55), "") -> 
C56: Battery Type (Note 1) | F56: =SUM(F57:F59) -> 0 | H56: =IFERROR(IFERROR(VLOOKUP(D56,Surcharge!A:B,2,FALSE)*F56, VLOOKUP(D56 & "",Surcharge!A:B,2,FALSE)*F56), "") -> 
C57: Wet 360AH C/20 (Kit of 6 batteries) | D57: 9022562 | E57: N/C | G57: =IF(F57=0," ","N/C") ->  | H57: =IFERROR(IFERROR(VLOOKUP(D57,Surcharge!A:B,2,FALSE)*F57, VLOOKUP(D57 & "",Surcharge!A:B,2,FALSE)*F57), "") ->  | P57: M-T350
C58: Sealed/MF AGM 350AH C/20 (Kit of 6 batteries) | D58: 9022563 | E58: 1492 | G58: =F58*E58 -> 0 | H58: =IFERROR(IFERROR(VLOOKUP(D58,Surcharge!A:B,2,FALSE)*F58, VLOOKUP(D58 & "",Surcharge!A:B,2,FALSE)*F58), "") ->  | P58: M-T350VK_TRMLVL_PPAN
C59: Less Battery, DEDUCT (Note 1) | E59: -982 | G59: =F59*E59 -> 0 | H59: =IFERROR(IFERROR(VLOOKUP(D59,Surcharge!A:B,2,FALSE)*F59, VLOOKUP(D59 & "",Surcharge!A:B,2,FALSE)*F59), "") -> 
F60: =SUM(F61:F64) -> 0 | H60: =IFERROR(IFERROR(VLOOKUP(D60,Surcharge!A:B,2,FALSE)*F60, VLOOKUP(D60 & "",Surcharge!A:B,2,FALSE)*F60), "") -> 
C61: Charger | F61: =SUM(F62:F64) -> 0 | H61: =IFERROR(IFERROR(VLOOKUP(D61,Surcharge!A:B,2,FALSE)*F61, VLOOKUP(D61 & "",Surcharge!A:B,2,FALSE)*F61), "") ->  | P61: M-T350VK_CLNTCH_ECH2ON
C62: 21A 85-265V AC 50/60Hz 1Ph - Off-Board | D62: 9022564 | E62: N/C | G62: =IF(F62=0," ","N/C") ->  | H62: =IFERROR(IFERROR(VLOOKUP(D62,Surcharge!A:B,2,FALSE)*F62, VLOOKUP(D62 & "",Surcharge!A:B,2,FALSE)*F62), "") -> 
C63: Without Charger (Note 1) | E63: -417 | G63: =F63*E63 -> 0 | H63: =IFERROR(IFERROR(VLOOKUP(D63,Surcharge!A:B,2,FALSE)*F63, VLOOKUP(D63 & "",Surcharge!A:B,2,FALSE)*F63), "") ->  | P63: M-T350VK_SVEEVMSWH
C64: Charger Power Cord | D64: 1017079 | E64: N/C | G64: =IF(F64=0," ","N/C") ->  | P64: M-T350VK_SVEEVMSWHLKT
B66: Brushes and Pads (Note 2) | F66: =SUM(F67:F71) -> 0 | H66: =IFERROR(IFERROR(VLOOKUP(D66,Surcharge!A:B,2,FALSE)*F66, VLOOKUP(D66 & "",Surcharge!A:B,2,FALSE)*F66), "") -> 
C67: 750mm/30" Cylindrical Scrubbing Brush | F67: =SUM(F68) -> 0 | H67: =IFERROR(IFERROR(VLOOKUP(D67,Surcharge!A:B,2,FALSE)*F67, VLOOKUP(D67 & "",Surcharge!A:B,2,FALSE)*F67), "") ->  | P67: M-T350VK_BTY_W210C20
C68: Polypropylene | E68: N/C | G68: =IF(F68=0," ","N/C") ->  | H68: =IFERROR(IFERROR(VLOOKUP(D68,Surcharge!A:B,2,FALSE)*F68, VLOOKUP(D68 & "",Surcharge!A:B,2,FALSE)*F68), "") ->  | P68: M-T350VK_BTY_W240C20
H69: =IFERROR(IFERROR(VLOOKUP(D69,Surcharge!A:B,2,FALSE)*F69, VLOOKUP(D69 & "",Surcharge!A:B,2,FALSE)*F69), "") ->  | P69: M-T350VK_BTY_A220C20
C70: 900mm/36" Disk Scrubbing Brush/Pads (2 Required) | F70: =SUM(F71) -> 0 | H70: =IFERROR(IFERROR(VLOOKUP(D70,Surcharge!A:B,2,FALSE)*F70, VLOOKUP(D70 & "",Surcharge!A:B,2,FALSE)*F70), "") ->  | P70: M-T350VK_BTY_WO
C71: Polypropylene | E71: N/C | G71: =IF(F71=0," ","N/C") ->  | H71: =IFERROR(IFERROR(VLOOKUP(D71,Surcharge!A:B,2,FALSE)*F71, VLOOKUP(D71 & "",Surcharge!A:B,2,FALSE)*F71), "") -> 
H72: =IFERROR(IFERROR(VLOOKUP(D72,Surcharge!A:B,2,FALSE)*F72, VLOOKUP(D72 & "",Surcharge!A:B,2,FALSE)*F72), "") ->  | P72: M-T350VK_BTYWTRSYS_SF
B73: Support | H73: =IFERROR(IFERROR(VLOOKUP(D73,Surcharge!A:B,2,FALSE)*F73, VLOOKUP(D73 & "",Surcharge!A:B,2,FALSE)*F73), "") ->  | P73: M-T350VK_BTYWTRSYS_ML
C74: Packaging (Note 3) | F74: =SUM(F75:F75) -> 0 | H74: =IFERROR(IFERROR(VLOOKUP(D74,Surcharge!A:B,2,FALSE)*F74, VLOOKUP(D74 & "",Surcharge!A:B,2,FALSE)*F74), "") -> 
C75: Skid w/Carton, Non-Stackable | D75: T981-SKD | E75: N/C | G75: =IF(F75=0," ","N/C") ->  | H75: =IFERROR(IFERROR(VLOOKUP(D75,Surcharge!A:B,2,FALSE)*F75, VLOOKUP(D75 & "",Surcharge!A:B,2,FALSE)*F75), "") ->  | P75: M-T350VK_CHG_25A100V5060H1
H76: =IFERROR(IFERROR(VLOOKUP(D76,Surcharge!A:B,2,FALSE)*F76, VLOOKUP(D76 & "",Surcharge!A:B,2,FALSE)*F76), "") -> 
E78: =ROUND(SUM(G51:G77), 0) -> 0 | F78: =SUM(E79) -> 0
D79: Machine Subtotal | E79: =ROUND(SUM(G51:G77), 0) -> 0 | F79: =F78 -> 0
B80: Discounts | F80: =SUM(F81) -> 0
F81: =SUM(F83:F86) -> 0
D82: Applicable Currency Adj % | F82: =IF(E82 <> "", 1, 0) -> 0 | G82: =IF(F82*(E82*0.01)*E78 < 0, F82*(E82*0.01)*E78, -(F82*(E82*0.01)*E78)) -> 0
D83: Discount % | F83: =IF(E83 <> "", 1, 0) -> 0 | G83: =IF(F83*(E83*0.01)*(E78+G82) < 0, F83*(E83*0.01)*(E78+G82), -(F83*(E83*0.01)*(E78+G82))) -> 0
D84: Discount $ | F84: =IF(E84 <> "", 1, 0) -> 0 | G84: =IF(F84*E84 < 0, F84*E84, -(F84*E84)) -> 0
D85: Discount $ | F85: =IF(E85 <> "", 1, 0) -> 0 | G85: =IF(F85*E85 < 0, F85*E85, -(F85*E85)) -> 0
D86: Discount $ | F86: =IF(E86 <> "", 1, 0) -> 0 | G86: =IF(F86*E86 < 0, F86*E86, -(F86*E86)) -> 0
D87: Discount Total | E87: =SUM(G82:G86) -> 0 | F87: =SUM(E87) -> 0
F88: =#REF! -> 
F89: =F88 -> 
C90: Prepaid and Add | D90: Freight | F90: =IF(E90 <> "", 1, 0) -> 0 | G90: =F90*E90 -> 0
C91: Subject to all applicable taxes | D91: Tax | F91: =IF(E91 <> "", 1, 0) -> 0 | G91: =F91*E91 -> 0
F92: =SUM(F93) -> 0
D93: MACHINE TOTAL* | F93: =SUM(G93) -> 0 | G93: =SUM(G51:G91) -> 0 | N93: This goes to "My Documents"
G94: =SUM(G93) -> 0
C99: First Western Equipment Finance - Leasing Calculation Option: | D99: Option 1 | F99: Option 2 | J99: =Financing!A38 -> Rates 2025 - Rev 2/4/2025
D100: Monthly Payment | E100: Cost Per Day | F100: Monthly Payment | G100: Cost Per Day | J100: =Financing!A39 -> “Blank Payment Amounts Indicate The Financing Option Or Purchase Options Selected Are Not
C101: Purchase Option: | D101: FWEF: $1 Buyout Lease | F101: FWEF: Municipal Lease | J101: =Financing!A40 -> Applicable Or The Machine Total Is Below The Minimum Amount For The Selected Vendor”
C102: 24 Months | D102: FALSE | E102: 0 | F102: FALSE | G102: 0 | J102: =Financing!A41 -> "Quoted monthly payments are estimates only and are based on a certain level of credit rating.
C103: 30 Months | D103: FALSE | E103: 0 | F103: FALSE | G103: 0 | J103: =Financing!A42 -> Actual monthly payments may be higher depending on your credit rating."
C104: 36 Months | D104: FALSE | E104: 0 | F104: FALSE | G104: 0 | J104: =Financing!A43 -> “Financing rates do not include Pre-Paid Service”
C105: 48 Months | D105: 0 | E105: 0 | F105: 0 | G105: 0 | I105: =Financing!A44 -> 0
D107: Benefits of Equipment Financing:
D108: • Spreads out investment over time. | F108: • Keep current with latest technology.
D109: • Preserve capital. | F109: • Service and parts bundling available.
D110: • Low monthly payment. | F110: • Pay for labor savings as you go.
B112: TennantTrue | E112: 0 | F112: 0
C114: Is customer interested in service program? | D114: Yes | E114: *State/County selection required for TennantTrue service options
C116: If not, why?
C118: Term: | D118: 36 | G118: AB Brushes | H118: No
C119: Monthly machine usage (hrs): | D119: < 30/mo. (Avg. 1hr./day)
C121: TennantTrue: | D121: Gold Contract | F121: Silver Contract
C122: Per Visit | F122: 501
C123: Monthly | D123: 189 | F123: 88
C124: Annually | F124: 1035
C125: Pre-Pay Full Term | D125: 6526 | F125: 3042
C126: Hourly Labor Rate
C127: Site Visit
C129: * Verify customer current pricing prior to quote.
C130: **All rates and fees above reflect service for one (1) unit with the exception of Block of Time service.
C131: *Block of Time is available in 1 Year Term only and is priced as such no matter the term selection on this template.
B135: Quote Special Instructions:
B138: =Start_Here!E36 -> Terms and Conditions
B139: =Start_Here!E37 -> Ask your local sales rep for estimated lead times. Verify when placing order
B140: =Start_Here!E38 -> All orders subject to acceptance by Tennant Sales and Service Company, Minneapolis, Minnesota
B141: =Start_Here!E39 -> Prices subject to change without notice. Subject to any applicable taxes.
B142: =Start_Here!E40 -> Terms: Net 30 days. Payable in Canadian Funds
B143: =Start_Here!E41 -> Freight: Accessories, parts, supplies, detergents, and floor coatings orders delivered DDP
B144: =Start_Here!E42 -> shipping point Frt PPD. Machine orders delivered DDP shipping point Frt PPD and add.
B145: =Start_Here!E43 -> Returned Merchandise is subject to a restocking fee.
B146: =Start_Here!E45 -> Printed General Terms and Conditions are also available upon request.
B147: =Start_Here!E46 -> 0
E150: Quote Date : | G150: =Letter!$A$25 -> 2014-10-02
A151: Order Placement Information: To place your order, fill in PO# and customer signatures,
A152: call or fax to the numbers listed below. Customer Purchase Order is required.
A153: If information is missing, orders will be entered and held until all information is received.
C154: Customer Number | E154: Cust Grp 3
C155: =Start_Here!$C$25 -> 0 | E155: =Start_Here!$C$29 -> 0
C156: =Start_Here!$B$18 -> Who Owns the Machine? (Sold-To Info) (Please Verify)
A157: Company | C157: =Start_Here!$C$19 -> Company Name
A158: Address | C158: =Start_Here!$C$20 -> Address
C159: =Start_Here!$C$21 -> City, State Zip
A160: Name | C160: =Start_Here!$C$22 -> Contact Name
A161: Phone | C161: =Start_Here!$C$23 -> Contact Phone
C162: =Start_Here!$B$11 -> Where is the Machine Being Shipped? (Ship-To Info) (Please Verify)
A163: Company | C163: =Start_Here!$C$12 -> Company Name
A164: Address | C164: =Start_Here!$C$13 -> Address
C165: =Start_Here!$C$14 -> City, State Zip
A166: Name | C166: =Start_Here!$C$15 -> Contact Name
A167: Phone | C167: =Start_Here!$C$16 -> Contact Phone
C168: =Start_Here!$B$31 -> Shipping / Carrier Instructions: | E168: Order Special Instructions:
C169: =Start_Here!$C$32 -> 0
C171: Customer Purchase Order No.
C172: (please attach copy)
C175: Tax Exempt | E175: Yes
E176: No
C177: If Yes, attach a copy of your exemption certificate.
C179: Requested Delivery Date
C180: =Start_Here!$C$28 -> 0
C182: =Start_Here!$C$26 -> 0 | E182: =Start_Here!$C$27 -> 0
C183: Authorized Buyer (please print) | E183: Phone Number
C186: Authorized Buyer Signature
C188: =Start_Here!$C$41 -> Rep Name
C189: Tennant Representative
A191: Specialized Maintenance Equipment
A192: =Start_Here!$C$48 -> TENNANT · 10400 Clean Street · Eden Prairie, MN 55344 ·
A193: =Start_Here!$C$49 -> PHONE:800-553-8033 · FAX:763-513-2116
B195: SPECIAL INFORMATION
B197: Notes
B198: 1 | C198: Customer MUST order Skid w/Carton, Non-Stackable if WITHOUT BATTERY is selected.
C199: Continental USA orders ONLY.
B201: 2 | C201: A Polypropylene Brush comes standard with a T981.
B203: 3 | C203: Customer MUST order Skid w/Carton, Non-Stackable if WITHOUT BATTERY is selected.
C204: Skid w/Carton, Non-Stackable is mandatory when shipping to AK and HI.
B206: 4 | C206: Shipping Weights and Dimensions | D206: Pad Wrap | E206: Skid w/Carton
C208: Weight - 750 mm / 30" Cylindrical | E208: 836 lbs / 379 Kg
C209: Weight - 900 mm / 36" Disk | E209: 748 lbs / 339 Kg
C210: Length | E210: 79 in / 2,000 mm
C211: Width | E211: 51 in / 1,280 mm
C212: Height | E212: 66 in / 1,670 mm

Sheet T2_Std_Config
A1: T2_Std_Config | C1: =Start_Here!$C19 -> Company Name
A2: =SUM(G78) -> 0 | C2: =Start_Here!$C20 -> Address
C3: =Start_Here!$C21 -> City, State Zip
C4: =Start_Here!$C22 -> Contact Name
C5: =Start_Here!$C$41 -> Rep Name
C6: =Start_Here!$C$37 -> Tennant Sales and Service Company
C7: =Start_Here!$C$38 -> 10400 Clean Street
C8: =Start_Here!$C$39 -> Eden Prairie, MN 55344
C9: =Start_Here!$C$43 -> 800-553-8033 | E9: Quote Date : | G9: =Letter!$A$25 -> 2014-10-02
C11: =Help!C2 -> CAN Date Rev - 5/6/2025
C12: BUILT-IN “TENNANT VALUE” INCLUDES:
C14: 26 l/6.9 gal Solution Tank & 36 l/9.5 gal Recovery Tank | E14: Standard (2) 12V 105 AH Batteries
C15: Rugged DuramerTM Tank Construction | E15: Battery Tray
C16: Hygienic Recovery Tank | E16: On-board Charger
C17: 10 l/2.6 gal Demisting Chamber to Protect Vac Fan | E17: Recovery Tank Debris Tray
C18: Adjustable Solution Flow | E18: Unsurpassed Ergonomic Design
C19: Extremely Low Noise Level (≤68 dBa) | E19: Adjustable Console Height
C20: Pad Assist - less than 2 kg/4.5 lbs of push force requried | E20: Trigger Design
C21: .75 kW/1 HP brush motor, 230 RPM | E21: Front Bucket Fill Port
C22: Cast Aluminum Scrub Deck | E22: On-board Pad Driver Hang
C23: Cast Aluminum Squeegee Frame | E23: Gray Solid Urethane Tires
C24: Breakaway Squeegee Design | E24: Automotive Triple-Sealed Electrical Connectors
C25: Factory Set Squeegee Assembly for Maximium Recovery | E25: 10cm /4" Edge & Reach Under Cleaning
C26: 100% Recovery in 180º Point Turns | E26: Key Switch for Safety
C27: Urethane Squeegee Blades | E27: No Tool Brush / Squegee Change
C28: Squegee Hang | E28: Includes Pad Driver
C30: TENNANT COMPANY WARRANTY
C31: 3 YEARS OR 2500 HOURS ON ALL COMPONENTS, 3 YEARS LABOR
C32: 90 DAYS TRAVEL, 10 YEARS ON DURAMERTM TANKS
E36: Quote Request Information
G37: Fax (quote only)
G38: Mail (quote,lit, specs)
G39: Fax + Mail
E41: Primary Use
G42: Inside
G43: Outside
C46: Description | D46: Reference No. | E46: Canada Price | F46: Qty. | G46: Extended Price
B47: Standard Configuration Machines | F47: =SUM(F48:F50) -> 0
C48: T2 Walk-Behind - Disk Scrubber, 430mm / 17", 105AH C/20 Battery, Conventional Cleaning, 9A 100-240V AC 50/60Hz 1Ph On-Board Charger, Pad Assist Drive Type (Pad Driver will default unless otherwise specified) | D48: T2-1001D | E48: 12345 | G48: =F48*E48 -> 0 | H48: =IFERROR(IFERROR(VLOOKUP(D48,Surcharge!A:B,2,FALSE)*F48, VLOOKUP(D48 & "",Surcharge!A:B,2,FALSE)*F48), "") ->  | L48: =SUM(F48) -> 0 | M48: Surcharge Qty
C50: T2 Walk-Behind - Disk Scrubber, 430mm / 17", 102AH C/20 Gel Battery, Conventional Cleaning, 9A 100-240V AC 50/60Hz 1Ph On-Board Charger, Pad Assist Drive Type (Pad Driver will default unless otherwise specified) | D50: T2-1002D | E50: 12867 | G50: =F50*E50 -> 0 | H50: =IFERROR(IFERROR(VLOOKUP(D50,Surcharge!A:B,2,FALSE)*F50, VLOOKUP(D50 & "",Surcharge!A:B,2,FALSE)*F50), "") ->  | L50: 0 | M50: Surcharge Qty
B52: OPTIONAL | C52: Brushes - in place of Pad Driver (Note 1) | F52: =SUM(F53:F54) -> 0
C53: 430mm/17" Polypropylene Brush | D53: 1016765 | E53: 346 | G53: =F53*E53 -> 0 | H53: =IFERROR(IFERROR(VLOOKUP(D53,Surcharge!A:B,2,FALSE)*F53, VLOOKUP(D53 & "",Surcharge!A:B,2,FALSE)*F53), "") -> 
C54: 430mm/17" Nylon Brush | D54: 1016764 | E54: 425 | G54: 0 | H54: =IFERROR(IFERROR(VLOOKUP(D54,Surcharge!A:B,2,FALSE)*F54, VLOOKUP(D54 & "",Surcharge!A:B,2,FALSE)*F54), "") -> 
B56: OPTIONAL | C56: Manuals | F56: =SUM(F57) -> 0
C57: Parts Manual | D57: 9008845 | E57: 81 | G57: =F57*E57 -> 0 | H57: =IFERROR(IFERROR(VLOOKUP(D57,Surcharge!A:B,2,FALSE)*F57, VLOOKUP(D57 & "",Surcharge!A:B,2,FALSE)*F57), "") -> 
B59: REQUIRED | C59: Packaging (Note 2) | F59: =SUM(F60) -> 0
C60: Skid w/Carton, Stackable | D60: 9011134 | E60: N/C | G60: =IF(F60=0," ","N/C") ->  | H60: =IFERROR(IFERROR(VLOOKUP(D60,Surcharge!A:B,2,FALSE)*F60, VLOOKUP(D60 & "",Surcharge!A:B,2,FALSE)*F60), "") -> 
E63: =ROUND(SUM(G48:G62), 0) -> 0 | F63: =SUM(E64) -> 0
D64: Machine Subtotal | E64: =ROUND(SUM(G48:G62), 0) -> 0 | F64: =F63 -> 0
B65: Discounts | F65: =SUM(F66) -> 0
F66: =SUM(F68:F71) -> 0
D67: Applicable Currency Adj % | F67: =IF(E67 <> "", 1, 0) -> 0 | G67: =IF(F67*(E67*0.01)*E63 < 0, F67*(E67*0.01)*E63, -(F67*(E67*0.01)*E63)) -> 0
D68: Discount % | F68: =IF(E68 <> "", 1, 0) -> 0 | G68: =IF(F68*(E68*0.01)*(E63+G67) < 0, F68*(E68*0.01)*(E63+G67), -(F68*(E68*0.01)*(E63+G67))) -> 0
D69: Discount $ | F69: =IF(E69 <> "", 1, 0) -> 0 | G69: =IF(F69*E69 < 0, F69*E69, -(F69*E69)) -> 0
D70: Discount $ | F70: =IF(E70 <> "", 1, 0) -> 0 | G70: =IF(F70*E70 < 0, F70*E70, -(F70*E70)) -> 0
D71: Discount $ | F71: =IF(E71 <> "", 1, 0) -> 0 | G71: =IF(F71*E71 < 0, F71*E71, -(F71*E71)) -> 0
D72: Discount Total | E72: =SUM(G67:G71) -> 0 | F72: =SUM(E72) -> 0
F73: =#REF! -> 
F74: =F73 -> 
C75: Prepaid and Add | D75: Freight | F75: =IF(E75 <> "", 1, 0) -> 0 | G75: =F75*E75 -> 0
C76: Subject to all applicable taxes | D76: Tax | F76: =IF(E76 <> "", 1, 0) -> 0 | G76: =F76*E76 -> 0
F77: =SUM(F78) -> 0
D78: MACHINE TOTAL* | F78: =SUM(G78) -> 0 | G78: =SUM(G48:G76) -> 0 | N78: This goes to "My Documents"
G79: =SUM(G78) -> 0
C84: First Western Equipment Finance - Leasing Calculation Option: | D84: Option 1 | F84: Option 2 | J84: =Financing!A38 -> Rates 2025 - Rev 2/4/2025
D85: Monthly Payment | E85: Cost Per Day | F85: Monthly Payment | G85: Cost Per Day | J85: =Financing!A39 -> “Blank Payment Amounts Indicate The Financing Option Or Purchase Options Selected Are Not
C86: Purchase Option: | D86: FWEF: $1 Buyout Lease | F86: FWEF: Municipal Lease | J86: =Financing!A40 -> Applicable Or The Machine Total Is Below The Minimum Amount For The Selected Vendor”
C87: 24 Months | D87: FALSE | E87: 0 | F87: FALSE | G87: 0 | J87: =Financing!A41 -> "Quoted monthly payments are estimates only and are based on a certain level of credit rating.
C88: 30 Months | D88: FALSE | E88: 0 | F88: FALSE | G88: 0 | J88: =Financing!A42 -> Actual monthly payments may be higher depending on your credit rating."
C89: 36 Months | D89: FALSE | E89: 0 | F89: FALSE | G89: 0 | J89: =Financing!A43 -> “Financing rates do not include Pre-Paid Service”
C90: 48 Months | D90: 0 | E90: 0 | F90: 0 | G90: 0 | I90: =Financing!A44 -> 0
D92: Benefits of Equipment Financing:
D93: • Spreads out investment over time. | F93: • Keep current with latest technology.
D94: • Preserve capital. | F94: • Service and parts bundling available.
D95: • Low monthly payment. | F95: • Pay for labor savings as you go.
B97: TennantTrue | E97: 0 | F97: 0
C99: Is customer interested in service program? | D99: Yes | E99: *State/County selection required for TennantTrue service options
C101: If not, why?
C103: Term: | D103: 36 | G103: AB Brushes | H103: No
C104: Monthly machine usage (hrs): | D104: < 30/mo. (Avg. 1hr./day)
C106: TennantTrue: | D106: Gold Contract | F106: Silver Contract
C107: Per Visit | F107: 425
C108: Monthly | D108: 120 | F108: 69
C109: Annually | F109: 816
C110: Pre-Pay Full Term | D110: 4162 | F110: 2397
C111: Hourly Labor Rate
C112: Site Visit
C114: * Verify customer current pricing prior to quote.
C115: **All rates and fees above reflect service for one (1) unit with the exception of Block of Time service.
C116: *Block of Time is available in 1 Year Term only and is priced as such no matter the term selection on this template.
C120: Quote Special Instructions:
C123: =Start_Here!E36 -> Terms and Conditions
C124: =Start_Here!E37 -> Ask your local sales rep for estimated lead times. Verify when placing order
C125: =Start_Here!E38 -> All orders subject to acceptance by Tennant Sales and Service Company, Minneapolis, Minnesota
C126: =Start_Here!E39 -> Prices subject to change without notice. Subject to any applicable taxes.
C127: =Start_Here!E40 -> Terms: Net 30 days. Payable in Canadian Funds
C128: =Start_Here!E41 -> Freight: Accessories, parts, supplies, detergents, and floor coatings orders delivered DDP
C129: =Start_Here!E42 -> shipping point Frt PPD. Machine orders delivered DDP shipping point Frt PPD and add.
C130: =Start_Here!E43 -> Returned Merchandise is subject to a restocking fee.
C131: =Start_Here!E45 -> Printed General Terms and Conditions are also available upon request.
C132: =Start_Here!E46 -> 0
E135: Quote Date : | G135: =Letter!$A$25 -> 2014-10-02
A136: Order Placement Information: To place your order, fill in PO# and customer signatures,
A137: call or fax to the numbers listed below. Customer Purchase Order is required.
A138: If information is missing, orders will be entered and held until all information is received.
C139: Customer Number | E139: Cust Grp 3
C140: =Start_Here!$C$25 -> 0 | E140: =Start_Here!$C$29 -> 0
C141: =Start_Here!$B$18 -> Who Owns the Machine? (Sold-To Info) (Please Verify)
A142: Company | C142: =Start_Here!$C$19 -> Company Name
A143: Address | C143: =Start_Here!$C$20 -> Address
C144: =Start_Here!$C$21 -> City, State Zip
A145: Name | C145: =Start_Here!$C$22 -> Contact Name
A146: Phone | C146: =Start_Here!$C$23 -> Contact Phone
C147: =Start_Here!$B$11 -> Where is the Machine Being Shipped? (Ship-To Info) (Please Verify)
A148: Company | C148: =Start_Here!$C$12 -> Company Name
A149: Address | C149: =Start_Here!$C$13 -> Address
C150: =Start_Here!$C$14 -> City, State Zip
A151: Name | C151: =Start_Here!$C$15 -> Contact Name
A152: Phone | C152: =Start_Here!$C$16 -> Contact Phone
C153: =Start_Here!$B$31 -> Shipping / Carrier Instructions: | E153: Order Special Instructions:
C154: =Start_Here!$C$32 -> 0
C156: Customer Purchase Order No.
C157: (please attach copy)
C160: Tax Exempt | E160: Yes
E161: No
C162: If Yes, attach a copy of your exemption certificate.
C164: Requested Delivery Date
C165: =Start_Here!$C$28 -> 0
C167: =Start_Here!$C$26 -> 0 | E167: =Start_Here!$C$27 -> 0
C168: Authorized Buyer (please print) | E168: Phone Number
C171: Authorized Buyer Signature
C173: =Start_Here!$C$41 -> Rep Name
C174: Tennant Representative
A176: Specialized Maintenance Equipment
A177: =Start_Here!$C$48 -> TENNANT · 10400 Clean Street · Eden Prairie, MN 55344 ·
A178: =Start_Here!$C$49 -> PHONE:800-553-8033 · FAX:763-513-2116
B181: Notes
B182: 1 | C182: One set of pad drivers come standard. A different brush may be chosen as an option
B183: 2 | C183: Skid with carton packaging must be chosen as an option
B185: 3 | C185: Machine Weights and dimensions | D185: Skid w/Carton
C187: Weight (w/105AH battery) | D187: 331 lbs / 150 Kg
C188: Length | D188: 47" / 1200mm
C189: Width | D189: 30" / 750mm
C190: Height | D190: 45" / 1150mm

Sheet T300_Series_Std_Config
A1: T300_Series_Std_Config | C1: =Start_Here!$C19 -> Company Name
A2: =SUM(G102) -> 0 | C2: =Start_Here!$C20 -> Address
C3: =Start_Here!$C21 -> City, State Zip
C4: =Start_Here!$C22 -> Contact Name
C5: =Start_Here!$C$41 -> Rep Name
C6: =Start_Here!$C$37 -> Tennant Sales and Service Company
C7: =Start_Here!$C$38 -> 10400 Clean Street
C8: =Start_Here!$C$39 -> Eden Prairie, MN 55344
C9: =Start_Here!$C$43 -> 800-553-8033 | E9: Quote Date : | G9: =Letter!$A$25 -> 2014-10-02
C11: =Help!C2 -> CAN Date Rev - 5/6/2025
C12: BUILT-IN “TENNANT VALUE” INCLUDES:
C14: 42L/11 gal Solution Tank & 53 L/14 gal Recovery Tank | E14: Emergency Stop (standard on all drive units)
C15: Rugged DuramerTM Rotomold Tank Construction | E15: Free Floating Head Skirt (disk machines)
C16: Insta-ClickTM Pad Driver and Brush Attachment (Disk machines)
C17: HygienicTM Recovery Tank | E17: Front Water Fill Port w/ Hose Hook
C18: Multiple Setting Down Pressure | E18: Integrated Heat Sync for Electronics Protection
C19: Adjustable Solution Flow | E19: Sealed Electrical Connectors
C20: Variable Speed Control Bail | E20: Anti-Static Straps
C21: MembraneTM Control Panel | E21: 0.75 kW/1 HP brush motor, 230 RPM (disk)
C22: Pro-MembraneTM Control Panel with Multiple Zone Settings™ Capability | E22: 0.45 kW/0.6 HP brush motor, 2200 RPM (orbital)
C23: Pro-PanelTM Controls with Full Color LCD Touch Screen (Option) | E23: Recovery Tank Debris Tray with Deflector
C24: Supervisor QA ControlsTM settings (Lock Out Features) | E24: Unsurpassed Ergonomic Design
C25: On Board Diagnostics | E25: Gray Non-Marking Tires
C26: Extremely Low Noise Level (≤65 dBa) | E26: 10cm /4" Edge & Reach Under Cleaning
C27: Quiet-Mode™ Standard | E27: Key Switch for Safety
C28: Wet 130AH and Wet 150AH Battery options available. | E28: Hour Meter
C29: Quick Release Battery Harness | E29: Operators manual
C30: Drain hose with pinch-cuff to control water flow | E30: Jacking Points/Shipping Tie Downs
C31: On-board Charger with 3m/15 ft power cord | E31: Yellow Maintenance Touch Points
C32: Closed Machine Venting for Battery Charging | E32: Integrated Accessory Rails w/Squeegee & Bag Hang
C33: Cast Aluminum Squeegee Frame | E33: Composite Scrub Deck (Single Disk)
C34: Breakaway Squeegee Design w/ Integrated P-Trap | E34: Cast Aluminum Scrub Deck (Dual Disk)
C35: Factory Set Squeegee Assembly for Maximum Recovery | E35: 11 Gauge Steel Scrub Deck (Orbital Only)
C36: Linatex Squeegee Blades with Tool-less Replacement
C40: TENNANT COMPANY WARRANTY
C41: 3 YEARS OR 2000 HOURS - PARTS
C42: 1 YEAR - BATTERY CHARGERS
C43: 2 YEARS - LABOR
C44: 6 MONTHS - TRAVEL
C45: 10 YEARS ON DURAMERTM ROTOMOLD TANKS
E47: Quote Request Information
G48: Fax (quote only)
G49: Mail (quote,lit, specs)
G50: Fax + Mail
E52: Primary Use
G53: Inside
G54: Outside
C56: Description | D56: Reference # | E56: Price Each | F56: Qty | G56: Extended Price
B57: Standard Configurations Machines | E57: CANADA | F57: =SUM(F59:F65) -> 0
F58: =SUM(F59:F65) -> 0
C59: T300e Walk-Behind - Disk Scrubber, 500mm / 20", Conventional 3-Lug Cleaning Tool Attachment, 130AH C/20 Battery, Conventional Cleaning, 13A 85-265V AC 50/60Hz 1Ph On-Board Charger, Pad Assist Drive Type, Single Down Pressure (Pad Driver will default unless otherwise specified) | D59: T300E-1001D | E59: 11508 | G59: =F59*E59 -> 0 | H59: =IFERROR(IFERROR(VLOOKUP(D59,Surcharge!A:B,2,FALSE)*F59, VLOOKUP(D59 & "",Surcharge!A:B,2,FALSE)*F59), "") ->  | L59: =SUM(F59) -> 0 | M59: Surcharge Qty
C60: T300e Walk-Behind - Disk Scrubber, 500mm / 20", Insta-Click Cleaning Tool Attachment, 130AH C/20 Battery, Conventional Cleaning, 13A 85-265V AC 50/60Hz 1Ph On-Board Charger, Self-Propel Drive Type, Multiple Down Pressure (Pad Driver will default unless otherwise specified) | D60: T300E-2001D | E60: 14976 | G60: =F60*E60 -> 0 | H60: =IFERROR(IFERROR(VLOOKUP(D60,Surcharge!A:B,2,FALSE)*F60, VLOOKUP(D60 & "",Surcharge!A:B,2,FALSE)*F60), "") ->  | L60: =SUM(F60) -> 0 | M60: Surcharge Qty
C61: T300e Walk-Behind - Disk Scrubber, 500mm / 20", Insta-Click Cleaning Tool Attachment, 130AH C/20 Battery, ec-H20 NanoClean, 13A 85-265V AC 50/60Hz 1Ph On-Board Charger, Self-Propel Drive Type, Multiple Down Pressure (Pad Driver will default unless otherwise specified) | D61: T300E-2002D | E61: 18087 | G61: =F61*E61 -> 0 | H61: =IFERROR(IFERROR(VLOOKUP(D61,Surcharge!A:B,2,FALSE)*F61, VLOOKUP(D61 & "",Surcharge!A:B,2,FALSE)*F61), "") ->  | L61: =SUM(F61) -> 0 | M61: Surcharge Qty
C63: T300 Walk-Behind - Disk Scrubber, 500mm / 20", Membrane Control Panel, Insta-Click Cleaning Tool Attachment, 150AH C/20 Battery, Conventional Cleaning, 13A 85-265V AC 50/60Hz 1Ph On-Board Charger, Self-Propel Drive Type, Mechanical Down Pressure, Quiet Mode (Pad Driver will default unless otherwise specified) | D63: T300-3001D | E63: 16278 | G63: =F63*E63 -> 0 | H63: =IFERROR(IFERROR(VLOOKUP(D63,Surcharge!A:B,2,FALSE)*F63, VLOOKUP(D63 & "",Surcharge!A:B,2,FALSE)*F63), "") ->  | L63: =SUM(F63) -> 0 | M63: Surcharge Qty
C64: T300 Walk-Behind - Disk Scrubber, 500mm / 20", Pro Membrane Control Panel, Insta-Click Cleaning Tool Attachment, 150AH C/20 Battery, Conventional Cleaning, 13A 85-265V AC 50/60Hz 1Ph On-Board Charger, Self-Propel Drive Type, Automated Down Pressure, Quiet Mode (Pad Driver will default unless otherwise specified) | D64: T300-3002D | E64: 16692 | G64: 0 | H64: =IFERROR(IFERROR(VLOOKUP(D64,Surcharge!A:B,2,FALSE)*F64, VLOOKUP(D64 & "",Surcharge!A:B,2,FALSE)*F64), "") ->  | L64: =SUM(F64) -> 0 | M64: Surcharge Qty
C65: T300 Walk-Behind - Disk Scrubber, 500mm / 20", Pro Membrane Control Panel, Insta-Click Cleaning Tool Attachment, 150AH C/20 Battery, Manual Battery Watering System, ec-H20 NanoClean, 13A 85-265V AC 50/60Hz 1Ph On-Board Charger, Self-Propel Drive Type, Automated Down Pressure, Quiet Mode (Pad Driver will default unless otherwise specified) | D65: T300-3003D | E65: 20616 | G65: 0 | H65: =IFERROR(IFERROR(VLOOKUP(D65,Surcharge!A:B,2,FALSE)*F65, VLOOKUP(D65 & "",Surcharge!A:B,2,FALSE)*F65), "") ->  | L65: 0 | M65: Surcharge Qty
B67: OPTIONAL | C67: Brushes - in place of Pad Driver (Note 1) | F67: =SUM(F68:F71) -> 0
C68: 3-lug head, 500mm/20" Polypropylene Brush | D68: 1016811 | E68: N/C | G68: =IF(F68=0," ","N/C") ->  | H68: =IFERROR(IFERROR(VLOOKUP(D68,Surcharge!A:B,2,FALSE)*F68, VLOOKUP(D68 & "",Surcharge!A:B,2,FALSE)*F68), "") -> 
C69: 3-lug head, 500mm/20" Nylon Brush | D69: 1016810 | E69: N/C | H69: =IFERROR(IFERROR(VLOOKUP(D69,Surcharge!A:B,2,FALSE)*F69, VLOOKUP(D69 & "",Surcharge!A:B,2,FALSE)*F69), "") -> 
C70: Instaclick head, 500mm/20" Polypropylene Brush | D70: 1213032 | E70: N/C | H70: =IFERROR(IFERROR(VLOOKUP(D70,Surcharge!A:B,2,FALSE)*F70, VLOOKUP(D70 & "",Surcharge!A:B,2,FALSE)*F70), "") -> 
C71: Instaclick head, 500mm/20" Nylon Brush | D71: 1210386 | E71: N/C | H71: =IFERROR(IFERROR(VLOOKUP(D71,Surcharge!A:B,2,FALSE)*F71, VLOOKUP(D71 & "",Surcharge!A:B,2,FALSE)*F71), "") -> 
B73: OPTIONAL | C73: Manuals (Note 2) | F73: =SUM(F74:F80) -> 0
C74: T300e Operator Manual (Spanish) - in place of English manual | D74: 9014507 | E74: N/C | G74: =IF(F74=0," ","N/C") ->  | H74: =IFERROR(IFERROR(VLOOKUP(D74,Surcharge!A:B,2,FALSE)*F74, VLOOKUP(D74 & "",Surcharge!A:B,2,FALSE)*F74), "") -> 
C75: T300e Operator Manual (French) - in place of English manual | D75: 9014508 | E75: N/C | G75: =IF(F75=0," ","N/C") ->  | H75: =IFERROR(IFERROR(VLOOKUP(D75,Surcharge!A:B,2,FALSE)*F75, VLOOKUP(D75 & "",Surcharge!A:B,2,FALSE)*F75), "") -> 
C76: T300 Operator Manual (Spanish) - in place of English manual | D76: 9014502 | E76: N/C | G76: =IF(F76=0," ","N/C") ->  | H76: =IFERROR(IFERROR(VLOOKUP(D76,Surcharge!A:B,2,FALSE)*F76, VLOOKUP(D76 & "",Surcharge!A:B,2,FALSE)*F76), "") -> 
C77: T300 Operator Manual (French) - in place of English manual | D77: 9014503 | E77: N/C | H77: =IFERROR(IFERROR(VLOOKUP(D77,Surcharge!A:B,2,FALSE)*F77, VLOOKUP(D77 & "",Surcharge!A:B,2,FALSE)*F77), "") -> 
C78: Additional Operator Manual | D78: See Above | E78: 191 | G78: =F78*E78 -> 0
C79: T300e/T300 Parts Manual | D79: 9014500 | E79: 78 | G79: =F79*E79 -> 0 | H79: =IFERROR(IFERROR(VLOOKUP(D79,Surcharge!A:B,2,FALSE)*F79, VLOOKUP(D79 & "",Surcharge!A:B,2,FALSE)*F79), "") -> 
C80: T300e/T300 Service Manual | D80: 9014510 | E80: 191 | G80: =F80*E80 -> 0 | H80: =IFERROR(IFERROR(VLOOKUP(D80,Surcharge!A:B,2,FALSE)*F80, VLOOKUP(D80 & "",Surcharge!A:B,2,FALSE)*F80), "") -> 
B82: REQUIRED | C82: Packaging (Note 3) | F82: =SUM(F83) -> 0
C83: Skid w/Carton, Stackable | D83: 9013859 | E83: N/C | G83: =IF(F83=0," ","N/C") ->  | H83: =IFERROR(IFERROR(VLOOKUP(D83,Surcharge!A:B,2,FALSE)*F83, VLOOKUP(D83 & "",Surcharge!A:B,2,FALSE)*F83), "") -> 
E87: =ROUND(SUM(G59:G86), 0) -> 0 | F87: =SUM(E88) -> 0
D88: Machine Subtotal | E88: =ROUND(SUM(G59:G86), 0) -> 0 | F88: =F87 -> 0
B89: Discounts | F89: =SUM(F90) -> 0
F90: =SUM(F92:F95) -> 0
D91: Applicable Currency Adj % | F91: =IF(E91 <> "", 1, 0) -> 0 | G91: =IF(F91*(E91*0.01)*E87 < 0, F91*(E91*0.01)*E87, -(F91*(E91*0.01)*E87)) -> 0
D92: Discount % | F92: =IF(E92 <> "", 1, 0) -> 0 | G92: =IF(F92*(E92*0.01)*(E87+G91) < 0, F92*(E92*0.01)*(E87+G91), -(F92*(E92*0.01)*(E87+G91))) -> 0
D93: Discount $ | F93: =IF(E93 <> "", 1, 0) -> 0 | G93: =IF(F93*E93 < 0, F93*E93, -(F93*E93)) -> 0
D94: Discount $ | F94: =IF(E94 <> "", 1, 0) -> 0 | G94: =IF(F94*E94 < 0, F94*E94, -(F94*E94)) -> 0
D95: Discount $ | F95: =IF(E95 <> "", 1, 0) -> 0 | G95: =IF(F95*E95 < 0, F95*E95, -(F95*E95)) -> 0
D96: Discount Total | E96: =SUM(G91:G95) -> 0 | F96: =SUM(E96) -> 0
F97: =#REF! -> 
F98: =F97 -> 
C99: Prepaid and Add | D99: Freight | F99: =IF(E99 <> "", 1, 0) -> 0 | G99: =F99*E99 -> 0
C100: Subject to all applicable taxes | D100: Tax | F100: =IF(E100 <> "", 1, 0) -> 0 | G100: =F100*E100 -> 0
F101: =SUM(F102) -> 0
D102: MACHINE TOTAL* | F102: =SUM(G102) -> 0 | G102: =SUM(G59:G100) -> 0 | N102: This goes to "My Documents"
G103: =SUM(G102) -> 0
C108: First Western Equipment Finance - Leasing Calculation Option: | D108: Option 1 | F108: Option 2 | J108: =Financing!A38 -> Rates 2025 - Rev 2/4/2025
D109: Monthly Payment | E109: Cost Per Day | F109: Monthly Payment | G109: Cost Per Day | J109: =Financing!A39 -> “Blank Payment Amounts Indicate The Financing Option Or Purchase Options Selected Are Not
C110: Purchase Option: | D110: FWEF: $1 Buyout Lease | F110: FWEF: Municipal Lease | J110: =Financing!A40 -> Applicable Or The Machine Total Is Below The Minimum Amount For The Selected Vendor”
C111: 24 Months | D111: FALSE | E111: 0 | F111: FALSE | G111: 0 | J111: =Financing!A41 -> "Quoted monthly payments are estimates only and are based on a certain level of credit rating.
C112: 30 Months | D112: FALSE | E112: 0 | F112: FALSE | G112: 0 | J112: =Financing!A42 -> Actual monthly payments may be higher depending on your credit rating."
C113: 36 Months | D113: FALSE | E113: 0 | F113: FALSE | G113: 0 | J113: =Financing!A43 -> “Financing rates do not include Pre-Paid Service”
C114: 48 Months | D114: 0 | E114: 0 | F114: 0 | G114: 0
D116: Benefits of Equipment Financing:
D117: • Spreads out investment over time. | F117: • Keep current with latest technology.
D118: • Preserve capital. | F118: • Service and parts bundling available.
D119: • Low monthly payment. | F119: • Pay for labor savings as you go.
B121: TennantTrue | E121: 0 | F121: 0
C123: Is customer interested in service program? | D123: Yes | E123: *State/County selection required for TennantTrue service options
C125: If not, why?
C127: Term: | D127: 36 | G127: AB Brushes | H127: No
C128: Monthly machine usage (hrs): | D128: < 30/mo. (Avg. 1hr./day)
C130: TennantTrue: | D130: Gold Contract | F130: Silver Contract
C131: Per Visit | F131: 425
C132: Monthly | D132: 120 | F132: 69
C133: Annually | F133: 816
C134: Pre-Pay Full Term | D134: 4162 | F134: 2397
C135: Hourly Labor Rate
C136: Site Visit
C138: * Verify customer current pricing prior to quote.
C139: **All rates and fees above reflect service for one (1) unit with the exception of Block of Time service.
C140: *Block of Time is available in 1 Year Term only and is priced as such no matter the term selection on this template.
B144: Quote Special Instructions:
B147: =Start_Here!E36 -> Terms and Conditions
B148: =Start_Here!E37 -> Ask your local sales rep for estimated lead times. Verify when placing order
B149: =Start_Here!E38 -> All orders subject to acceptance by Tennant Sales and Service Company, Minneapolis, Minnesota
B150: =Start_Here!E39 -> Prices subject to change without notice. Subject to any applicable taxes.
B151: =Start_Here!E40 -> Terms: Net 30 days. Payable in Canadian Funds
B152: =Start_Here!E41 -> Freight: Accessories, parts, supplies, detergents, and floor coatings orders delivered DDP
B153: =Start_Here!E42 -> shipping point Frt PPD. Machine orders delivered DDP shipping point Frt PPD and add.
B154: =Start_Here!E43 -> Returned Merchandise is subject to a restocking fee.
B155: =Start_Here!E45 -> Printed General Terms and Conditions are also available upon request.
B156: =Start_Here!E46 -> 0
E159: Quote Date : | G159: =Letter!$A$25 -> 2014-10-02
A160: Order Placement Information: To place your order, fill in PO# and customer signatures,
A161: call or fax to the numbers listed below. Customer Purchase Order is required.
A162: If information is missing, orders will be entered and held until all information is received.
C163: Customer Number | E163: Cust Grp 3
C164: =Start_Here!$C$25 -> 0 | E164: =Start_Here!$C$29 -> 0
C165: =Start_Here!$B$18 -> Who Owns the Machine? (Sold-To Info) (Please Verify)
A166: Company | C166: =Start_Here!$C$19 -> Company Name
A167: Address | C167: =Start_Here!$C$20 -> Address
C168: =Start_Here!$C$21 -> City, State Zip
A169: Name | C169: =Start_Here!$C$22 -> Contact Name
A170: Phone | C170: =Start_Here!$C$23 -> Contact Phone
C171: =Start_Here!$B$11 -> Where is the Machine Being Shipped? (Ship-To Info) (Please Verify)
A172: Company | C172: =Start_Here!$C$12 -> Company Name
A173: Address | C173: =Start_Here!$C$13 -> Address
C174: =Start_Here!$C$14 -> City, State Zip
A175: Name | C175: =Start_Here!$C$15 -> Contact Name
A176: Phone | C176: =Start_Here!$C$16 -> Contact Phone
C177: =Start_Here!$B$31 -> Shipping / Carrier Instructions: | E177: Order Special Instructions:
C178: =Start_Here!$C$32 -> 0
C180: Customer Purchase Order No.
C181: (please attach copy)
C184: Tax Exempt | E184: Yes
E185: No
C186: If Yes, attach a copy of your exemption certificate.
C188: Requested Delivery Date
C189: =Start_Here!$C$28 -> 0
C191: =Start_Here!$C$26 -> 0 | E191: =Start_Here!$C$27 -> 0
C192: Authorized Buyer (please print) | E192: Phone Number
C195: Authorized Buyer Signature
C197: =Start_Here!$C$41 -> Rep Name
C198: Tennant Representative
A200: Specialized Maintenance Equipment
A201: =Start_Here!$C$48 -> TENNANT · 10400 Clean Street · Eden Prairie, MN 55344 ·
A202: =Start_Here!$C$49 -> PHONE:800-553-8033 · FAX:763-513-2116
B204: Notes
B205: 1 | C205: One set of pad drivers come standard. A different brush may be chosen as an option
B206: 2 | C206: One English manual comes standard. A manual in a different language may be chosen as an option.
B207: 3 | C207: Skid with carton packaging must be chosen as an option
B209: 11 | C209: Shipping Weights and Dimensions | E209: Skid w/Carton
C210: 430 mm/17" Single Model
C211: Weight (w/105AH Battery Pad Drive) | E211: 500 lbs / 227 Kg
C212: Weight (w/130AH Battery Self Propel Drive)
C213: Length | E213: 59" / 1500 mm
C214: Width | E214: 31" / 787 mm
C215: Height | E215: 44" / 1118 mm
C217: 500 mm /20" Single Disk Model
C218: Weight (w/130AH Battery Pad Drive) | E218: 500 lbs / 227 Kg
C219: Weight (w/150AH Battery Self Propel)
C220: Length | E220: 59" / 1500 mm
C221: Width | E221: 31" / 787 mm
C222: Height | E222: 44" / 1118 mm
C224: 600 mm/24" Dual Disk Model
C225: Weight (w/150AH Battery) | E225: 538 lbs / 244 Kg
C226: Length | E226: 59" / 1500 mm
C227: Width | E227: 31" / 787 mm
C228: Height | E228: 44" / 1118 mm

Sheet T350_Std_Config
A1: T350_Std_Config | C1: =Start_Here!$C19 -> Company Name
A2: =SUM(G90) -> 0 | C2: =Start_Here!$C20 -> Address
C3: =Start_Here!$C21 -> City, State Zip
C4: =Start_Here!$C22 -> Contact Name
C5: =Start_Here!$C$41 -> Rep Name
C6: =Start_Here!$C$37 -> Tennant Sales and Service Company
C7: =Start_Here!$C$38 -> 10400 Clean Street
C8: =Start_Here!$C$39 -> Eden Prairie, MN 55344
C9: =Start_Here!$C$43 -> 800-553-8033 | E9: Quote Date : | G9: =Letter!$A$25 -> 2014-10-02
C11: =Help!C2 -> CAN Date Rev - 5/6/2025
C12: BUILT-IN “TENNANT VALUE” INCLUDES:
C14: 53L/14.1 gal Solution Tank & 70 L/18.4 gal Recovery Tank | E14: Quick Release Squeegee Attachment/Removal
C15: Rugged Duramer™ Rotomold Tank Construction | E15: Linatex Squeegee Blades With Tool-less Replacement
C16: Insta-Click™ | E16: Emergency Stop
C17: Hygienic™ Recovery Tank | E17: Free Floating Head Skirt
C18: Multiple Setting Down Pressure | E18: Fill Port w/ Hose Hook
C19: Adjustable Solution Flow | E19: Integrated Heat Sync For Electronics Protection
C20: Variable Speed Control Knob | E20: Sealed Electrical Connectors
C21: Pro-Membrane™ Control Panel With Multiple Zone Settings™ | E21: Anti-Static Straps
C22: LCD Pro-Panel™ Full Color Touch Screen (Option) | E22: 24 VDC, 0.87 HP / 0.65 kW brush motor
C23: Supervisor QA Controls™ Settings (Lock Out Features) | E23: 215 RPM (500 mm/20") and 275 RPM (600 mm/24")
C24: On Board Diagnostics | E24: Recovery Tank Debris Tray
C25: Extremely Low Noise Level (as low as 63.7 dBa) | E25: Unsurpassed Ergonomic Design
C26: Quiet-Mode™ Sound Reduction (Optional) ( as low as 59.7 dBa) | E26: Non-Marking Wheels
C27: Wet 210AH, Wet 240AH, and Sealed 220AH AGM Available. | E27: 2.5 cm /1" Edge & Reach Under Cleaning
C28: Quick Release Battery Harness | E28: Key Switch for Safety
C29: Drain hose with pinch cuff to control water flow | E29: Hour Meter
C30: On-board Charger With 3m/15 ft Power Cord | E30: Operators manual
C31: Closed Machine Venting For Battery Charging | E31: Jacking Points/Shipping Tie Downs
C32: Breakaway Squeegee Design | E32: Yellow Maintenance Touch Points
C33: Factory Set Squeegee Assembly For Maximum Recovery | E33: Integrated Accessory Rail
C34: Cast Aluminum Squeegee Frame | E34: Composite Scrub Deck (Single Disk)
E35: Cast Aluminum Scrub Deck (Dual Disk)
C38: TENNANT COMPANY WARRANTY
C39: 3 YEARS OR 2500 HOURS ON ALL COMPONENTS, 3 YEARS LABOR
C40: 90 DAYS TRAVEL, 10 YEARS ON DURAMERTM TANKS
E42: Quote Request Information
G43: Fax (quote only)
G44: Mail (quote,lit, specs)
G45: Fax + Mail
E47: Primary Use
G48: Inside
G49: Outside
C51: Description | D51: Reference # | E51: Price Each | F51: Qty | G51: Extended Price
B52: Standard Configuration Machines: | F52: =SUM(F53:F56) -> 0
C53: T350 Rider - Disk Scrubber, 500mm / 20", 210AH C/20 Battery, Conventional Cleaning, 25A 100-240V AC 50/60Hz 1Ph On-Board Charger (Pad Driver will default unless otherwise specified) | D53: T350-1001D | E53: 21712 | G53: =F53*E53 -> 0 | H53: =IFERROR(IFERROR(VLOOKUP(D53,Surcharge!A:B,2,FALSE)*F53, VLOOKUP(D53 & "",Surcharge!A:B,2,FALSE)*F53), "") -> 
C54: T350 Rider - Disk Scrubber, 600mm / 24", 210AH C/20 Battery, Conventional Cleaning, 25A 100-240V AC 50/60Hz 1Ph On-Board Charger (Pad Driver will default unless otherwise specified) | D54: T350-1002D | E54: 24129 | G54: 0 | H54: =IFERROR(IFERROR(VLOOKUP(D54,Surcharge!A:B,2,FALSE)*F54, VLOOKUP(D54 & "",Surcharge!A:B,2,FALSE)*F54), "") -> 
C55: T350 Rider - Disk Scrubber, 500mm / 20", 240AH C/20 Battery, Smart-Fill Battery Watering, ec-H20 NanoClean, 25A 100-240V AC 50/60Hz 1Ph On-Board Charger, Quiet Mode (Pad Driver will default unless otherwise specified) | D55: T350-2001D | E55: 27138 | G55: 0 | H55: =IFERROR(IFERROR(VLOOKUP(D55,Surcharge!A:B,2,FALSE)*F55, VLOOKUP(D55 & "",Surcharge!A:B,2,FALSE)*F55), "") -> 
C56: T350 Rider - Disk Scrubber, 600mm / 24", 240AH C/20 Battery, Smart-Fill Battery Watering, ec-H20 NanoClean, 25A 100-240V AC 50/60Hz 1Ph On-Board Charger, Quiet Mode (Pad Driver will default unless otherwise specified) | D56: T350-2002D | E56: 29555 | G56: 0 | H56: =IFERROR(IFERROR(VLOOKUP(D56,Surcharge!A:B,2,FALSE)*F56, VLOOKUP(D56 & "",Surcharge!A:B,2,FALSE)*F56), "") -> 
B58: OPTIONAL | C58: Brushes - in place of Pad Driver (Note 1) | F58: =SUM(F59:F62) -> 0
C59: 500mm/20" Polypropylene Brush | D59: 1213032 | E59: N/C | G59: =IF(F59=0," ","N/C") ->  | H59: =IFERROR(IFERROR(VLOOKUP(D59,Surcharge!A:B,2,FALSE)*F59, VLOOKUP(D59 & "",Surcharge!A:B,2,FALSE)*F59), "") -> 
C60: 500mm/20" Nylon Brush | D60: 1210386 | E60: N/C | H60: =IFERROR(IFERROR(VLOOKUP(D60,Surcharge!A:B,2,FALSE)*F60, VLOOKUP(D60 & "",Surcharge!A:B,2,FALSE)*F60), "") -> 
C61: 600mm/24" Polypropylene Brush (2 Required) | D61: 1213040 | E61: N/C | H61: =IFERROR(IFERROR(VLOOKUP(D61,Surcharge!A:B,2,FALSE)*F61, VLOOKUP(D61 & "",Surcharge!A:B,2,FALSE)*F61), "") -> 
C62: 600mm/24" Nylon Brush (2 Required) | D62: 1210136 | E62: N/C | H62: =IFERROR(IFERROR(VLOOKUP(D62,Surcharge!A:B,2,FALSE)*F62, VLOOKUP(D62 & "",Surcharge!A:B,2,FALSE)*F62), "") -> 
B64: OPTIONAL | C64: Manuals (Note 2) | F64: =SUM(F65:F68) -> 0
C65: Operator Manual (Spanish) - in place of English manual | D65: 9016418 | E65: N/C | G65: =IF(F65=0," ","N/C") ->  | H65: =IFERROR(IFERROR(VLOOKUP(D65,Surcharge!A:B,2,FALSE)*F65, VLOOKUP(D65 & "",Surcharge!A:B,2,FALSE)*F65), "") -> 
C66: Operator Manual (French) - in place of English manual | D66: 9016419 | E66: N/C | H66: =IFERROR(IFERROR(VLOOKUP(D66,Surcharge!A:B,2,FALSE)*F66, VLOOKUP(D66 & "",Surcharge!A:B,2,FALSE)*F66), "") -> 
C67: Parts Manual | D67: 9016416 | E67: 84 | G67: =F67*E67 -> 0 | H67: =IFERROR(IFERROR(VLOOKUP(D67,Surcharge!A:B,2,FALSE)*F67, VLOOKUP(D67 & "",Surcharge!A:B,2,FALSE)*F67), "") -> 
C68: Service Manual | D68: 9016422 | E68: 204 | G68: =F68*E68 -> 0 | H68: =IFERROR(IFERROR(VLOOKUP(D68,Surcharge!A:B,2,FALSE)*F68, VLOOKUP(D68 & "",Surcharge!A:B,2,FALSE)*F68), "") -> 
B70: REQUIRED | C70: Packaging (Note 3) | F70: =SUM(F71) -> 0
C71: Skid w/Carton, Stackable | D71: 9040253 | E71: N/C | G71: =IF(F71=0," ","N/C") ->  | H71: =IFERROR(IFERROR(VLOOKUP(D71,Surcharge!A:B,2,FALSE)*F71, VLOOKUP(D71 & "",Surcharge!A:B,2,FALSE)*F71), "") -> 
E75: =ROUND(SUM(G53:G74), 0) -> 0 | F75: =SUM(E76) -> 0
D76: Machine Subtotal | E76: =ROUND(SUM(G53:G74), 0) -> 0 | F76: =F75 -> 0
B77: Discounts | F77: =SUM(F78) -> 0
F78: =SUM(F80:F83) -> 0
D79: Applicable Currency Adj % | F79: =IF(E79 <> "", 1, 0) -> 0 | G79: =IF(F79*(E79*0.01)*E75 < 0, F79*(E79*0.01)*E75, -(F79*(E79*0.01)*E75)) -> 0
D80: Discount % | F80: =IF(E80 <> "", 1, 0) -> 0 | G80: =IF(F80*(E80*0.01)*(E75+G79) < 0, F80*(E80*0.01)*(E75+G79), -(F80*(E80*0.01)*(E75+G79))) -> 0
D81: Discount $ | F81: =IF(E81 <> "", 1, 0) -> 0 | G81: =IF(F81*E81 < 0, F81*E81, -(F81*E81)) -> 0
D82: Discount $ | F82: =IF(E82 <> "", 1, 0) -> 0 | G82: =IF(F82*E82 < 0, F82*E82, -(F82*E82)) -> 0
D83: Discount $ | F83: =IF(E83 <> "", 1, 0) -> 0 | G83: =IF(F83*E83 < 0, F83*E83, -(F83*E83)) -> 0
D84: Discount Total | E84: =SUM(G79:G83) -> 0 | F84: =SUM(E84) -> 0
F85: =#REF! -> 
F86: =F85 -> 
C87: Prepaid and Add | D87: Freight | F87: =IF(E87 <> "", 1, 0) -> 0 | G87: =F87*E87 -> 0
C88: Subject to all applicable taxes | D88: Tax | F88: =IF(E88 <> "", 1, 0) -> 0 | G88: =F88*E88 -> 0
F89: =SUM(F90) -> 0
D90: MACHINE TOTAL* | F90: =SUM(G90) -> 0 | G90: =SUM(G53:G88) -> 0 | N90: This goes to "My Documents"
G91: =SUM(G90) -> 0
C96: First Western Equipment Finance - Leasing Calculation Option: | D96: Option 1 | F96: Option 2 | J96: =Financing!A38 -> Rates 2025 - Rev 2/4/2025
D97: Monthly Payment | E97: Cost Per Day | F97: Monthly Payment | G97: Cost Per Day | J97: =Financing!A39 -> “Blank Payment Amounts Indicate The Financing Option Or Purchase Options Selected Are Not
C98: Purchase Option: | D98: FWEF: $1 Buyout Lease | F98: FWEF: Municipal Lease | J98: =Financing!A40 -> Applicable Or The Machine Total Is Below The Minimum Amount For The Selected Vendor”
C99: 24 Months | D99: FALSE | E99: 0 | F99: FALSE | G99: 0 | J99: =Financing!A41 -> "Quoted monthly payments are estimates only and are based on a certain level of credit rating.
C100: 30 Months | D100: FALSE | E100: 0 | F100: FALSE | G100: 0 | J100: =Financing!A42 -> Actual monthly payments may be higher depending on your credit rating."
C101: 36 Months | D101: FALSE | E101: 0 | F101: FALSE | G101: 0 | J101: =Financing!A43 -> “Financing rates do not include Pre-Paid Service”
C102: 48 Months | D102: 0 | E102: 0 | F102: 0 | G102: 0 | I102: =Financing!A44 -> 0
D104: Benefits of Equipment Financing:
D105: • Spreads out investment over time. | F105: • Keep current with latest technology.
D106: • Preserve capital. | F106: • Service and parts bundling available.
D107: • Low monthly payment. | F107: • Pay for labor savings as you go.
B109: TennantTrue | E109: 0 | F109: 0
C111: Is customer interested in service program? | D111: Yes | E111: *State/County selection required for TennantTrue service options
C113: If not, why?
C115: Term: | D115: 36 | G115: AB Brushes | H115: No
C116: Monthly machine usage (hrs): | D116: < 30/mo. (Avg. 1hr./day)
C118: TennantTrue: | D118: Gold Contract | F118: Silver Contract
C119: Per Visit | F119: 425
C120: Monthly | D120: 129 | F120: 69
C121: Annually | F121: 816
C122: Pre-Pay Full Term | D122: 4444 | F122: 2397
C123: Hourly Labor Rate
C124: Site Visit
C126: * Verify customer current pricing prior to quote.
C127: **All rates and fees above reflect service for one (1) unit with the exception of Block of Time service.
C128: *Block of Time is available in 1 Year Term only and is priced as such no matter the term selection on this template.
B132: Quote Special Instructions:
B135: =Start_Here!E36 -> Terms and Conditions
B136: =Start_Here!E37 -> Ask your local sales rep for estimated lead times. Verify when placing order
B137: =Start_Here!E38 -> All orders subject to acceptance by Tennant Sales and Service Company, Minneapolis, Minnesota
B138: =Start_Here!E39 -> Prices subject to change without notice. Subject to any applicable taxes.
B139: =Start_Here!E40 -> Terms: Net 30 days. Payable in Canadian Funds
B140: =Start_Here!E41 -> Freight: Accessories, parts, supplies, detergents, and floor coatings orders delivered DDP
B141: =Start_Here!E42 -> shipping point Frt PPD. Machine orders delivered DDP shipping point Frt PPD and add.
B142: =Start_Here!E43 -> Returned Merchandise is subject to a restocking fee.
B143: =Start_Here!E45 -> Printed General Terms and Conditions are also available upon request.
B144: =Start_Here!E46 -> 0
E147: Quote Date : | G147: =Letter!$A$25 -> 2014-10-02
A148: Order Placement Information: To place your order, fill in PO# and customer signatures,
A149: call or fax to the numbers listed below. Customer Purchase Order is required.
A150: If information is missing, orders will be entered and held until all information is received.
C151: Customer Number | E151: Cust Grp 3
C152: =Start_Here!$C$25 -> 0 | E152: =Start_Here!$C$29 -> 0
C153: =Start_Here!$B$18 -> Who Owns the Machine? (Sold-To Info) (Please Verify)
A154: Company | C154: =Start_Here!$C$19 -> Company Name
A155: Address | C155: =Start_Here!$C$20 -> Address
C156: =Start_Here!$C$21 -> City, State Zip
A157: Name | C157: =Start_Here!$C$22 -> Contact Name
A158: Phone | C158: =Start_Here!$C$23 -> Contact Phone
C159: =Start_Here!$B$11 -> Where is the Machine Being Shipped? (Ship-To Info) (Please Verify)
A160: Company | C160: =Start_Here!$C$12 -> Company Name
A161: Address | C161: =Start_Here!$C$13 -> Address
C162: =Start_Here!$C$14 -> City, State Zip
A163: Name | C163: =Start_Here!$C$15 -> Contact Name
A164: Phone | C164: =Start_Here!$C$16 -> Contact Phone
C165: =Start_Here!$B$31 -> Shipping / Carrier Instructions: | E165: Order Special Instructions:
C166: =Start_Here!$C$32 -> 0
C168: Customer Purchase Order No.
C169: (please attach copy)
C172: Tax Exempt | E172: Yes
E173: No
C174: If Yes, attach a copy of your exemption certificate.
C176: Requested Delivery Date
C177: =Start_Here!$C$28 -> 0
C179: =Start_Here!$C$26 -> 0 | E179: =Start_Here!$C$27 -> 0
C180: Authorized Buyer (please print) | E180: Phone Number
C183: Authorized Buyer Signature
C185: =Start_Here!$C$41 -> Rep Name
C186: Tennant Representative
A188: Specialized Maintenance Equipment
A189: =Start_Here!$C$48 -> TENNANT · 10400 Clean Street · Eden Prairie, MN 55344 ·
A190: =Start_Here!$C$49 -> PHONE:800-553-8033 · FAX:763-513-2116
B194: Notes
B195: 1 | C195: One set of pad drivers come standard. A different brush may be chosen as an option
B196: 2 | C196: One English manual comes standard. A manual in a different language may be chosen as an option.
B197: 3 | C197: Skid with carton packaging must be chosen as an option

Sheet T500_Series_Std_Config
A1: T500_Series_Std_Config | C1: =Start_Here!$C19 -> Company Name
A2: =SUM(G104) -> 0 | C2: =Start_Here!$C20 -> Address
C3: =Start_Here!$C21 -> City, State Zip
C4: =Start_Here!$C22 -> Contact Name
C5: =Start_Here!$C$41 -> Rep Name
C6: =Start_Here!$C$37 -> Tennant Sales and Service Company
C7: =Start_Here!$C$38 -> 10400 Clean Street
C8: =Start_Here!$C$39 -> Eden Prairie, MN 55344
C9: =Start_Here!$C$43 -> 800-553-8033 | E9: Quote Date : | G9: =Letter!$A$25 -> 2014-10-02
C11: =Help!C2 -> CAN Date Rev - 5/6/2025
C12: BUILT-IN "TENNANT VALUE" INCLUDES:
B14: Tanks: 85 L/22.5 gal Solution & 102 L/27 gal Recovery | D14: Yellow maintenance touch points
B15: 1-STEP™ Button Memory Controls | D15: Emergency Stop Kit
B16: Extremely Low Noise Levels Standard (≤68.5 dBA) | D16: Key Switch for Safety
B17: On Board Diagnostics | D17: Standard (4) 6 V 225AH Battery Pack (Optional AGM Batteries)
B18: Cast Aluminum Squeegee Frame & Scrub Decks (D/C) | D18: Drain hose with pinch cuff to control water flow
B19: 11 Gauge Steel Scrub Deck (Orbital Only) | D19: On-board Charger with power cord
B20: 2 selectable down pressures | D20: Closed Machine Venting for Battery Charging
B21: 4 Selectable water flow settings | D21: 100% Water recovery in 180º turns w/ standard squeegee
B22: Front Water Fill Port | D22: Insta-Fit™ No-Tool Pad Driver and Brush Attachment (Disk machines)
B23: Automatic: Water On / Off | D23: No-Tool Squeegee Change
C24: Brush On / Off | D24: Breakaway Squeegee Design w/ Integrated P-Trap
C25: Brush Shutoff at 80% Discharge | D25: Factory Set Squeegee Assembly for Maximum Recovery
B26: Integrated Accessory Rails with Bag Hang hooks | D26: Linard Front/Linatex Rear Squeegee Blades with Tool-less Replacement
B27: Excellent Ergonomic Controls Design | D27: Includes Standard Pad Drivers or Scrubbing Brushes (Select One)
B28: Optional ec-H2O NanoClean™ Equipped Models Include: | D28: Free Floating Head Skirt (disk machines)
B29: Electrically Converted Water Technology System | D29: Hour Meter
B30: Two Scrubbing Modes: ec-H2O NanoCleanTM & Conventional Scrub | D30: Operators manual
B31: Rugged Duramer™ Tank Construction | D31: Jacking Points/Shipping Tie Downs
B32: Gray Non-Marking Tires | D32: Sealed Electrical Connectors in key areas
B34: TENNANT COMPANY WARRANTY
B35: 3 YEARS OR 2000 HOURS - PARTS
B36: 1 YEAR - BATTERY CHARGERS
B37: 3 YEARS OR 2000 HOURS ORBITAL SCRUB HEAD ISOLATORS
B38: 2 YEARS - LABOR, 6 MONTHS - TRAVEL
B39: 10 YEARS ON DURAMERTM ROTOMOLD TANKS
E42: Quote Request Information
G43: Fax (quote only)
G44: Mail (quote,lit, specs)
G45: Fax + Mail
E47: Primary Use
G48: Inside
G49: Outside
C51: Description | D51: Reference # | E51: Price Each | F51: Qty | G51: Extended Price
B52: Standard Configuration Machines | F52: =SUM(F53:F62) -> 0
C53: T500e Walk-Behind - Disk Scrubber, 650mm / 26", 225AH C/20 Battery, Conventional Cleaning, 25A 100-240V AC 50/60Hz 1Ph On-Board Charger (Pad Driver will default unless otherwise specified) | D53: T500E-1001D | E53: 21734 | G53: =F53*E53 -> 0 | H53: =IFERROR(IFERROR(VLOOKUP(D53,Surcharge!A:B,2,FALSE)*F53, VLOOKUP(D53 & "",Surcharge!A:B,2,FALSE)*F53), "") -> 
C54: T500e Walk-Behind - Disk Scrubber, 700mm / 28", 225AH C/20 Battery, Conventional Cleaning, 25A 100-240V AC 50/60Hz 1Ph On-Board Charger (Pad Driver and Pad Wrap Packaging will default unless otherwise specified) | D54: T500E-1002D | E54: 22873 | G54: =F54*E54 -> 0 | H54: =IFERROR(IFERROR(VLOOKUP(D54,Surcharge!A:B,2,FALSE)*F54, VLOOKUP(D54 & "",Surcharge!A:B,2,FALSE)*F54), "") -> 
C55: T500e Walk-Behind - Disk Scrubber, 800mm / 32", 225AH C/20 Battery, Conventional Cleaning, 25A 100-240V AC 50/60Hz 1Ph On-Board Charger (Pad Driver will default unless otherwise specified) | D55: T500E-1003D | E55: 24112 | G55: =F55*E55 -> 0 | H55: =IFERROR(IFERROR(VLOOKUP(D55,Surcharge!A:B,2,FALSE)*F55, VLOOKUP(D55 & "",Surcharge!A:B,2,FALSE)*F55), "") -> 
C57: T500 Walk-Behind - Disk Scrubber, 650mm / 26", Pro Membrane Control Panel, 225AH C/20 Battery, Smart-Fill Battery Watering System, Conventional Cleaning, 25A 100-240V AC 50/60Hz 1Ph On-Board Charger (Pad Driver will default unless otherwise specified) | D57: T500-2001D | E57: 24814 | G57: =F57*E57 -> 0 | H57: =IFERROR(IFERROR(VLOOKUP(D57,Surcharge!A:B,2,FALSE)*F57, VLOOKUP(D57 & "",Surcharge!A:B,2,FALSE)*F57), "") -> 
C58: T500 Walk-Behind - Disk Scrubber, 700mm / 28", Pro Membrane Control Panel, 225AH C/20 Battery, Smart-Fill Battery Watering System, Conventional Cleaning, 25A 100-240V AC 50/60Hz 1Ph On-Board Charger (Pad Driver will default unless otherwise specified) | D58: T500-2002D | E58: 26878 | G58: 0 | H58: =IFERROR(IFERROR(VLOOKUP(D58,Surcharge!A:B,2,FALSE)*F58, VLOOKUP(D58 & "",Surcharge!A:B,2,FALSE)*F58), "") -> 
C59: T500 Walk-Behind - Disk Scrubber, 800mm / 32", Pro Membrane Control Panel, 225AH C/20 Battery, Smart-Fill Battery Watering System, Conventional Cleaning, 25A 100-240V AC 50/60Hz 1Ph On-Board Charger (Pad Driver will default unless otherwise specified) | D59: T500-2003D | E59: 28260 | G59: 0 | H59: =IFERROR(IFERROR(VLOOKUP(D59,Surcharge!A:B,2,FALSE)*F59, VLOOKUP(D59 & "",Surcharge!A:B,2,FALSE)*F59), "") -> 
C60: T500 Walk-Behind - Disk Scrubber, 650mm / 26", Pro Membrane Control Panel, 225AH C/20 Battery, Smart-Fill Battery Watering System, ec-H20 cleaning, 25A 100-240V AC 50/60Hz 1Ph On-Board Charger (Pad Driver will default unless otherwise specified) | D60: T500-3001D | E60: 29069 | G60: 0 | H60: =IFERROR(IFERROR(VLOOKUP(D60,Surcharge!A:B,2,FALSE)*F60, VLOOKUP(D60 & "",Surcharge!A:B,2,FALSE)*F60), "") -> 
C61: T500 Walk-Behind - Disk Scrubber, 700mm / 28", Pro Membrane Control Panel, 225AH C/20 Battery, Smart-Fill Battery Watering System, ec-H20 cleaning, 25A 100-240V AC 50/60Hz 1Ph On-Board Charger (Pad Driver will default unless otherwise specified) | D61: T500-3002D | E61: 31133 | G61: 0 | H61: =IFERROR(IFERROR(VLOOKUP(D61,Surcharge!A:B,2,FALSE)*F61, VLOOKUP(D61 & "",Surcharge!A:B,2,FALSE)*F61), "") -> 
C62: T500 Walk-Behind - Disk Scrubber, 800mm / 32", Pro Membrane Control Panel, 225AH C/20 Battery, Smart-Fill Battery Watering System, ec-H20 cleaning, 25A 100-240V AC 50/60Hz 1Ph On-Board Charger (Pad Driver will default unless otherwise specified) | D62: T500-3003D | E62: 32515 | G62: 0 | H62: =IFERROR(IFERROR(VLOOKUP(D62,Surcharge!A:B,2,FALSE)*F62, VLOOKUP(D62 & "",Surcharge!A:B,2,FALSE)*F62), "") -> 
B64: OPTIONAL | C64: Brushes - in place of Pad Driver (2 Required) (Note 1) | F64: =SUM(F65:F70) -> 0
C65: 650mm / 26" Disk Polypropylene Brush | D65: 1223989 | E65: N/C | G65: =IF(F65=0," ","N/C") ->  | H65: =IFERROR(IFERROR(VLOOKUP(D65,Surcharge!A:B,2,FALSE)*F65, VLOOKUP(D65 & "",Surcharge!A:B,2,FALSE)*F65), "") -> 
C66: 650mm / 26" Disk Nylon Brush | D66: 1223991 | E66: N/C | H66: =IFERROR(IFERROR(VLOOKUP(D66,Surcharge!A:B,2,FALSE)*F66, VLOOKUP(D66 & "",Surcharge!A:B,2,FALSE)*F66), "") -> 
C67: 700mm / 28" Disk Polypropylene Brush | D67: 1220218 | E67: N/C | H67: =IFERROR(IFERROR(VLOOKUP(D67,Surcharge!A:B,2,FALSE)*F67, VLOOKUP(D67 & "",Surcharge!A:B,2,FALSE)*F67), "") -> 
C68: 700mm / 28" Disk Nylon Brush | D68: 1221541 | E68: N/C | H68: =IFERROR(IFERROR(VLOOKUP(D68,Surcharge!A:B,2,FALSE)*F68, VLOOKUP(D68 & "",Surcharge!A:B,2,FALSE)*F68), "") -> 
C69: 800mm / 32" Disk Polypropylene Brush | D69: 1220216 | E69: N/C | H69: =IFERROR(IFERROR(VLOOKUP(D69,Surcharge!A:B,2,FALSE)*F69, VLOOKUP(D69 & "",Surcharge!A:B,2,FALSE)*F69), "") -> 
C70: 800mm / 32" Disk Nylon Brush | D70: 1220215 | E70: N/C | H70: =IFERROR(IFERROR(VLOOKUP(D70,Surcharge!A:B,2,FALSE)*F70, VLOOKUP(D70 & "",Surcharge!A:B,2,FALSE)*F70), "") -> 
B72: OPTIONAL | C72: Manuals (Note 2) | F72: =SUM(F73:F82) -> 0
C73: T500e Operator Manual (Spanish) - in place of English manual | D73: 9015507 | E73: N/C | G73: =IF(F73=0," ","N/C") ->  | H73: =IFERROR(IFERROR(VLOOKUP(D73,Surcharge!A:B,2,FALSE)*F73, VLOOKUP(D73 & "",Surcharge!A:B,2,FALSE)*F73), "") -> 
C74: T500e Operator Manual (French) - in place of English manual | D74: 9015508 | E74: N/C | G74: =IF(F74=0," ","N/C") ->  | H74: =IFERROR(IFERROR(VLOOKUP(D74,Surcharge!A:B,2,FALSE)*F74, VLOOKUP(D74 & "",Surcharge!A:B,2,FALSE)*F74), "") -> 
C75: Addional Operator Manual | D75: See Above | E75: 188 | G75: =F75*E75 -> 0
C76: T500e Parts Manual | D76: 9015505 | E76: 76 | G76: =F76*E76 -> 0 | H76: =IFERROR(IFERROR(VLOOKUP(D76,Surcharge!A:B,2,FALSE)*F76, VLOOKUP(D76 & "",Surcharge!A:B,2,FALSE)*F76), "") -> 
C77: T500e Service Manual | D77: 9015511 | E77: 188 | G77: =F77*E77 -> 0 | H77: =IFERROR(IFERROR(VLOOKUP(D77,Surcharge!A:B,2,FALSE)*F77, VLOOKUP(D77 & "",Surcharge!A:B,2,FALSE)*F77), "") -> 
C78: T500 Operator Manual (Spanish) - in place of English manual | D78: 9015500 | E78: N/C | G78: =IF(F78=0," ","N/C") ->  | H78: =IFERROR(IFERROR(VLOOKUP(D78,Surcharge!A:B,2,FALSE)*F78, VLOOKUP(D78 & "",Surcharge!A:B,2,FALSE)*F78), "") -> 
C79: T500 Operator Manual (French) - in place of English manual | D79: 9015501 | E79: N/C | H79: =IFERROR(IFERROR(VLOOKUP(D79,Surcharge!A:B,2,FALSE)*F79, VLOOKUP(D79 & "",Surcharge!A:B,2,FALSE)*F79), "") -> 
C80: Addional Operator Manual | D80: See Above | E80: 188 | G80: =F80*E80 -> 0
C81: T500 Parts Manual | D81: 9015222 | E81: 76 | G81: =F81*E81 -> 0 | H81: =IFERROR(IFERROR(VLOOKUP(D81,Surcharge!A:B,2,FALSE)*F81, VLOOKUP(D81 & "",Surcharge!A:B,2,FALSE)*F81), "") -> 
C82: T500 Service Manual | D82: 9015504 | E82: 188 | G82: 0 | H82: =IFERROR(IFERROR(VLOOKUP(D82,Surcharge!A:B,2,FALSE)*F82, VLOOKUP(D82 & "",Surcharge!A:B,2,FALSE)*F82), "") -> 
B84: REQUIRED | C84: Packaging (Note 3) | F84: =SUM(F85) -> 0
C85: Skid w/Carton, Stackable | D85: 9015450 | E85: N/C | G85: =IF(F85=0," ","N/C") ->  | H85: =IFERROR(IFERROR(VLOOKUP(D85,Surcharge!A:B,2,FALSE)*F85, VLOOKUP(D85 & "",Surcharge!A:B,2,FALSE)*F85), "") -> 
E89: =ROUND(SUM(G53:G88), 0) -> 0 | F89: =SUM(E90) -> 0
D90: Machine Subtotal | E90: =ROUND(SUM(G53:G88), 0) -> 0 | F90: =F89 -> 0
B91: Discounts | F91: =SUM(F92) -> 0
F92: =SUM(F94:F97) -> 0
D93: Applicable Currency Adj % | F93: =IF(E93 <> "", 1, 0) -> 0 | G93: =IF(F93*(E93*0.01)*E89 < 0, F93*(E93*0.01)*E89, -(F93*(E93*0.01)*E89)) -> 0
D94: Discount % | F94: =IF(E94 <> "", 1, 0) -> 0 | G94: =IF(F94*(E94*0.01)*(E89+G93) < 0, F94*(E94*0.01)*(E89+G93), -(F94*(E94*0.01)*(E89+G93))) -> 0
D95: Discount $ | F95: =IF(E95 <> "", 1, 0) -> 0 | G95: =IF(F95*E95 < 0, F95*E95, -(F95*E95)) -> 0
D96: Discount $ | F96: =IF(E96 <> "", 1, 0) -> 0 | G96: =IF(F96*E96 < 0, F96*E96, -(F96*E96)) -> 0
D97: Discount $ | F97: =IF(E97 <> "", 1, 0) -> 0 | G97: =IF(F97*E97 < 0, F97*E97, -(F97*E97)) -> 0
D98: Discount Total | E98: =SUM(G93:G97) -> 0 | F98: =SUM(E98) -> 0
F99: =#REF! -> 
F100: =F99 -> 
C101: Prepaid and Add | D101: Freight | F101: =IF(E101 <> "", 1, 0) -> 0 | G101: =F101*E101 -> 0
C102: Subject to all applicable taxes | D102: Tax | F102: =IF(E102 <> "", 1, 0) -> 0 | G102: =F102*E102 -> 0
F103: =SUM(F104) -> 0
D104: MACHINE TOTAL* | F104: =SUM(G104) -> 0 | G104: =SUM(G53:G102) -> 0 | N104: This goes to "My Documents"
G105: =SUM(G104) -> 0
C110: First Western Equipment Finance - Leasing Calculation Option: | D110: Option 1 | F110: Option 2 | J110: =Financing!A38 -> Rates 2025 - Rev 2/4/2025
D111: Monthly Payment | E111: Cost Per Day | F111: Monthly Payment | G111: Cost Per Day | J111: =Financing!A39 -> “Blank Payment Amounts Indicate The Financing Option Or Purchase Options Selected Are Not
C112: Purchase Option: | D112: FWEF: $1 Buyout Lease | F112: FWEF: Municipal Lease | J112: =Financing!A40 -> Applicable Or The Machine Total Is Below The Minimum Amount For The Selected Vendor”
C113: 24 Months | D113: FALSE | E113: 0 | F113: FALSE | G113: 0 | J113: =Financing!A41 -> "Quoted monthly payments are estimates only and are based on a certain level of credit rating.
C114: 30 Months | D114: FALSE | E114: 0 | F114: FALSE | G114: 0 | J114: =Financing!A42 -> Actual monthly payments may be higher depending on your credit rating."
C115: 36 Months | D115: FALSE | E115: 0 | F115: FALSE | G115: 0 | J115: =Financing!A43 -> “Financing rates do not include Pre-Paid Service”
C116: 48 Months | D116: 0 | E116: 0 | F116: 0 | G116: 0 | I116: =Financing!A44 -> 0
D118: Benefits of Equipment Financing:
D119: • Spreads out investment over time. | F119: • Keep current with latest technology.
D120: • Preserve capital. | F120: • Service and parts bundling available.
D121: • Low monthly payment. | F121: • Pay for labor savings as you go.
B123: TennantTrue | E123: 0 | F123: 0
C125: Is customer interested in service program? | D125: Yes | E125: *State/County selection required for TennantTrue service options
C127: If not, why?
C129: Term: | D129: 36 | G129: AB Brushes | H129: No
C130: Monthly machine usage (hrs): | D130: < 30/mo. (Avg. 1hr./day)
C132: TennantTrue: | D132: Gold Contract | F132: Silver Contract
C133: Per Visit | F133: 425
C134: Monthly | D134: 129 | F134: 69
C135: Annually | F135: 816
C136: Pre-Pay Full Term | D136: 4444 | F136: 2397
C137: Hourly Labor Rate
C138: Site Visit
C140: * Verify customer current pricing prior to quote.
C141: **All rates and fees above reflect service for one (1) unit with the exception of Block of Time service.
C142: *Block of Time is available in 1 Year Term only and is priced as such no matter the term selection on this template.
B146: Quote Special Instructions:
B149: =Start_Here!E36 -> Terms and Conditions
B150: =Start_Here!E37 -> Ask your local sales rep for estimated lead times. Verify when placing order
B151: =Start_Here!E38 -> All orders subject to acceptance by Tennant Sales and Service Company, Minneapolis, Minnesota
B152: =Start_Here!E39 -> Prices subject to change without notice. Subject to any applicable taxes.
B153: =Start_Here!E40 -> Terms: Net 30 days. Payable in Canadian Funds
B154: =Start_Here!E41 -> Freight: Accessories, parts, supplies, detergents, and floor coatings orders delivered DDP
B155: =Start_Here!E42 -> shipping point Frt PPD. Machine orders delivered DDP shipping point Frt PPD and add.
B156: =Start_Here!E43 -> Returned Merchandise is subject to a restocking fee.
B157: =Start_Here!E45 -> Printed General Terms and Conditions are also available upon request.
B158: =Start_Here!E46 -> 0
E161: Quote Date : | G161: =Letter!$A$25 -> 2014-10-02
A162: Order Placement Information: To place your order, fill in PO# and customer signatures,
A163: call or fax to the numbers listed below. Customer Purchase Order is required.
A164: If information is missing, orders will be entered and held until all information is received.
C165: Customer Number | E165: Cust Grp 3
C166: =Start_Here!$C$25 -> 0 | E166: =Start_Here!$C$29 -> 0
C167: =Start_Here!$B$18 -> Who Owns the Machine? (Sold-To Info) (Please Verify)
A168: Company | C168: =Start_Here!$C$19 -> Company Name
A169: Address | C169: =Start_Here!$C$20 -> Address
C170: =Start_Here!$C$21 -> City, State Zip
A171: Name | C171: =Start_Here!$C$22 -> Contact Name
A172: Phone | C172: =Start_Here!$C$23 -> Contact Phone
C173: =Start_Here!$B$11 -> Where is the Machine Being Shipped? (Ship-To Info) (Please Verify)
A174: Company | C174: =Start_Here!$C$12 -> Company Name
A175: Address | C175: =Start_Here!$C$13 -> Address
C176: =Start_Here!$C$14 -> City, State Zip
A177: Name | C177: =Start_Here!$C$15 -> Contact Name
A178: Phone | C178: =Start_Here!$C$16 -> Contact Phone
C179: =Start_Here!$B$31 -> Shipping / Carrier Instructions: | E179: Order Special Instructions:
C180: =Start_Here!$C$32 -> 0
C182: Customer Purchase Order No.
C183: (please attach copy)
C186: Tax Exempt | E186: Yes
E187: No
C188: If Yes, attach a copy of your exemption certificate.
C190: Requested Delivery Date
C191: =Start_Here!$C$28 -> 0
C193: =Start_Here!$C$26 -> 0 | E193: =Start_Here!$C$27 -> 0
C194: Authorized Buyer (please print) | E194: Phone Number
C197: Authorized Buyer Signature
C199: =Start_Here!$C$41 -> Rep Name
C200: Tennant Representative
A202: Specialized Maintenance Equipment
A203: =Start_Here!$C$48 -> TENNANT · 10400 Clean Street · Eden Prairie, MN 55344 ·
A204: =Start_Here!$C$49 -> PHONE:800-553-8033 · FAX:763-513-2116
B206: Notes:
B207: 1 | C207: One set of pad drivers come standard. A different brush may be chosen as an option
B208: 2 | C208: One English manual comes standard. A manual in a different language may be chosen as an option.
B209: 3 | C209: Skid with carton packaging must be chosen as an option
B211: 10 | C211: Shipping Weights and Dimensions | E211: Skid w/Carton
C213: 26" / 650mm Disk
C214: Weight | E214: 635 lbs / 289 Kg
C215: Length | E215: 73" / 1,855mm
C216: Width | E216: 43" / 1,093mm
C217: Height | E217: 52" / 1,321mm
C219: 28" / 700mm Disk
C220: Weight | E220: 645 lbs / 293 Kg
C221: Length | E221: 73" / 1,855mm
C222: Width | E222: 43" / 1,093mm
C223: Height | E223: 52" / 1,321mm
C225: 32" / 800mm Disk
C226: Weight | E226: 770 lbs / 350 Kg
C227: Length | E227: 73" / 1,855mm
C228: Width | E228: 43" / 1,093mm
C229: Height | E229: 52" / 1,321mm
C231: 28" / 700m Cylindrical
C232: Weight | E232: 685 lbs / 311 Kg
C233: Length | E233: 73" / 1,855mm
C234: Width | E234: 43" / 1,093mm
C235: Height | E235: 52" / 1,321mm
C237: 28" / 700mm Orbital
C238: Weight | E238: 685 lbs / 311 Kg
C239: Length | E239: 73" / 1,855mm
C240: Width | E240: 43" / 1,093mm
C241: Height | E241: 52" / 1,321mm

Sheet T600_Series_Std_Config
A1: T600_Series_Std_Config | C1: =Start_Here!$C19 -> Company Name
A2: =SUM(G108) -> 0 | C2: =Start_Here!$C20 -> Address
C3: =Start_Here!$C21 -> City, State Zip
C4: =Start_Here!$C22 -> Contact Name
C5: =Start_Here!$C$41 -> Rep Name
C6: =Start_Here!$C$37 -> Tennant Sales and Service Company
C7: =Start_Here!$C$38 -> 10400 Clean Street
C8: =Start_Here!$C$39 -> Eden Prairie, MN 55344
C9: =Start_Here!$C$43 -> 800-553-8033 | E9: Quote Date : | G9: =Letter!$A$25 -> 2014-10-02
C11: =Help!C2 -> CAN Date Rev - 5/6/2025
C12: BUILT-IN "TENNANT VALUE" INCLUDES:
B14: 121L/32 gal Solution Tank & 37 L/140 gal Recovery Tank | D14: Cast Aluminum Squeegee & Scrub Deck (Disk, Cylindrical)
B15: Rugged Duramer™ Rotomold Tank Construction | D15: 11 Gauge Steel Scrub Deck (Orbital Only)
B16: Fully Sprayable Hygienic® Recovery Tank | D16: Automatic: Water On / Off
B17: Three Down Pressure Settings- up to 200 lbs/90 kg | D17: Brush On / Off
D18: Brush Shutoff at 80% Discharge
B19: Adjustable Solution Flow | D19: Linatex/Linard Squeegee Blades with Tool-less Replacement
B20: Variable Speed Control Knob | D20: Emergency Stop
B21: Pro-Membrane™ Control Panel w/ 3 Zone Settings™ (Standard) | D21: Free Floating Head Skirt (disk machines)
B22: LCD Pro-Panel™ Touch Screen Control Panel (Option) | D22: Fill Port w/ Hose Fins
B23: On-Demand Tutorial Videos & 4 Customizable Zone Settings | D23: Integrated Heat Sink for Electronics Protection
B24: Supervisor QA ControlsTM settings (Lock Out Features) | D24: Sealed Electrical Connectors
B25: On Board Diagnostics | D25: Anti-Static Strap
B26: Standard Low Noise Level (≤70 dBa) | D26: 1 HP brush motor/ 0.75 kW (disk)
B27: Quiet-Mode™ Sound Reduction all models (≤62.5dBa) | D27: 300 RPM (disk) and 760 RPM (cylindrical)
B28: Standard (6) 6v. 240AH battery pack | D28: 2200 RPM orbital scrub head
B29: (Optional 360AH batteries available) | D29: Recovery Tank Debris Tray
B30: (Optional Thin Plate Pure Lead Batteries available) | D30: Excellent Ergonomic Controls Design
B31: Smart-Fill™ Automatic Battery Watering (Option) | D31: Non-Marking Polyurethane Tires
B32: Auto Fill (Solution Tank) | D32: Includes Standard Pad Drivers or Scrubbing Brushes (Select One)
B33: Quick Release Battery Harness | D33: Key Switch for Safety
B34: Standard Controlled Battery Compartment Drain | D34: Hour Meter
B35: On-board Charger with 3m/15 ft power cord | D35: Jacking Points/Shipping Tie Downs
B36: Closed Machine Venting for Battery Charging | D36: Yellow Maintenance Touch Points
B37: Breakaway Squeegee Design | D37: Auto Fill for Solution Tank
B38: Factory Set Squeegee Assembly for Maximum Recovery | D38: Integrated Accessory Rails
B39: Cast Aluminum Squeegee Frame | D39: Drain hose with pinch cuff to control water flow
B41: Optional ec-H2O NanoClean™ Equipped Models Include:
B42: Electrically Converted Water Technology System
B43: Two Scrubbing Modes: ec-H2O NanoCleanTM & Conventional Scrub
B45: TENNANT COMPANY WARRANTY
B46: 3 YEARS OR 2000 HOURS - PARTS
C47: ORBITAL ISOLATORS 3 YEARS/2000 HOURS
B48: 1 YEAR - BATTERY CHARGERS
B49: 2 YEARS - LABOR
B50: 6 MONTHS - TRAVEL
B51: 10 YEARS ON DURAMERTM ROTOMOLD TANKS
E54: Quote Request Information
G55: Fax (quote only)
G56: Mail (quote,lit, specs)
G57: Fax + Mail
E59: Primary Use
G60: Inside
G61: Outside
C63: Description | D63: Reference # | E63: Canada Price | F63: Qty. | G63: Extended Price
B64: Standard Configuration Machines | F64: =SUM(F65:F72) -> 0
C65: T600e Walk-Behind - Disk Scrubber, 800mm / 32", 240AH C/20 Battery, Conventional Cleaning, 25A 100-240V AC 50/60Hz 1Ph On-Board Charger, Standard Down Pressure, UL Type E, Black Pneumatic Tires (Pad Driver will default unless otherwise specified) | D65: T600E-1001D | E65: 29003 | G65: =F65*E65 -> 0 | H65: =IFERROR(IFERROR(VLOOKUP(D65,Surcharge!A:B,2,FALSE)*F65, VLOOKUP(D65 & "",Surcharge!A:B,2,FALSE)*F65), "") -> 
C66: T600e Walk-Behind - Disk Scrubber, 800mm / 32", 360AH C/20 Battery, Conventional Cleaning, 25A 100-240V AC 50/60Hz 1Ph On-Board Charger, Standard Down Pressure, UL Type E, Black Pneumatic Tires (Pad Driver will default unless otherwise specified) | D66: T600E-1002D | E66: 30094 | G66: =F66*E66 -> 0 | H66: =IFERROR(IFERROR(VLOOKUP(D66,Surcharge!A:B,2,FALSE)*F66, VLOOKUP(D66 & "",Surcharge!A:B,2,FALSE)*F66), "") -> 
C68: T600 Walk-Behind - Disk Scrubber, 800mm / 32", Pro Membrane Control Panel, 240AH C/20 Battery, Smart-Fill Battery Watering System, Conventional Cleaning, 25A 100-240V 50/60Hz 1Ph On-Board Charger, Standard Down Pressure, Auto Fill, Black Pneumatic Tires (Pad Driver will default unless otherwise specified) | D68: T600-2001D | E68: 34677 | G68: =F68*E68 -> 0 | H68: =IFERROR(IFERROR(VLOOKUP(D68,Surcharge!A:B,2,FALSE)*F68, VLOOKUP(D68 & "",Surcharge!A:B,2,FALSE)*F68), "") -> 
C69: T600 Walk-Behind - Disk Scrubber, 900mm / 36", Pro Membrane Control Panel, 240AH C/20 Battery, Smart-Fill Battery Watering System, Conventional Cleaning, 25A 100-240V 50/60Hz 1Ph On-Board Charger, Auto Fill, Black Pneumatic Tires (Pad Driver will default unless otherwise specified) | D69: T600-2002D | E69: 39241 | G69: 0 | H69: =IFERROR(IFERROR(VLOOKUP(D69,Surcharge!A:B,2,FALSE)*F69, VLOOKUP(D69 & "",Surcharge!A:B,2,FALSE)*F69), "") -> 
C71: T600 Walk-Behind - Disk Scrubber, 800mm / 32", Pro Membrane Control Panel, 360AH C/20 Battery, Smart-Fill Battery Watering System, ec-H20 NanoClean, 25A 100-240V 50/60Hz 1Ph On-Board Charger, Auto Fill, Black Pneumatic Tires (Pad Driver will default unless otherwise specified) | D71: T600-3001D | E71: 40023 | G71: 0 | H71: =IFERROR(IFERROR(VLOOKUP(D71,Surcharge!A:B,2,FALSE)*F71, VLOOKUP(D71 & "",Surcharge!A:B,2,FALSE)*F71), "") -> 
C72: T600 Walk-Behind - Disk Scrubber, 900mm / 36", Pro Membrane Control Panel, 360AH C/20 Battery, Smart-Fill Battery Watering System, ec-H20 NanoClean, 25A 100-240V 50/60Hz 1Ph On-Board Charger, Auto Fill, Black Pneumatic Tires (Pad Driver will default unless otherwise specified) | D72: T600-3002D | E72: 44587 | G72: 0 | H72: =IFERROR(IFERROR(VLOOKUP(D72,Surcharge!A:B,2,FALSE)*F72, VLOOKUP(D72 & "",Surcharge!A:B,2,FALSE)*F72), "") -> 
B74: OPTIONAL | C74: Brushes - in place of Pad Driver (2 Required) (Note 1) | F74: =SUM(F75:F78) -> 0
C75: 800mm / 32" Disk Nylon Brush | D75: 1234523 | E75: N/C | G75: =IF(F75=0," ","N/C") ->  | H75: =IFERROR(IFERROR(VLOOKUP(D75,Surcharge!A:B,2,FALSE)*F75, VLOOKUP(D75 & "",Surcharge!A:B,2,FALSE)*F75), "") -> 
C76: 800mm / 32" Disk Polypropylene Brush | D76: 1234524 | E76: N/C | H76: =IFERROR(IFERROR(VLOOKUP(D76,Surcharge!A:B,2,FALSE)*F76, VLOOKUP(D76 & "",Surcharge!A:B,2,FALSE)*F76), "") -> 
C77: 900mm / 36" Disk Nylon Brush | D77: 1230858 | E77: N/C | H77: =IFERROR(IFERROR(VLOOKUP(D77,Surcharge!A:B,2,FALSE)*F77, VLOOKUP(D77 & "",Surcharge!A:B,2,FALSE)*F77), "") -> 
C78: 900mm / 36" Disk Polypropylene Brush | D78: 1230859 | E78: N/C | H78: =IFERROR(IFERROR(VLOOKUP(D78,Surcharge!A:B,2,FALSE)*F78, VLOOKUP(D78 & "",Surcharge!A:B,2,FALSE)*F78), "") -> 
B80: OPTIONAL | C80: Manuals (Note 2) | F80: =SUM(F81:F85) -> 0
C81: T600e/T600 Operator Manual (Spanish) - in place of English manual | D81: 9016601 | E81: N/C | G81: =IF(F81=0," ","N/C") ->  | H81: =IFERROR(IFERROR(VLOOKUP(D81,Surcharge!A:B,2,FALSE)*F81, VLOOKUP(D81 & "",Surcharge!A:B,2,FALSE)*F81), "") -> 
C82: T600e/T600 Operator Manual (French) - in place of English manual | D82: 9016602 | E82: N/C | H82: =IFERROR(IFERROR(VLOOKUP(D82,Surcharge!A:B,2,FALSE)*F82, VLOOKUP(D82 & "",Surcharge!A:B,2,FALSE)*F82), "") -> 
C83: Addional Operator Manual | D83: See Above | E83: 188 | G83: =F83*E83 -> 0
C84: T600e/T600 Parts Manual | D84: 9016599 | E84: 76 | G84: =F84*E84 -> 0 | H84: =IFERROR(IFERROR(VLOOKUP(D84,Surcharge!A:B,2,FALSE)*F84, VLOOKUP(D84 & "",Surcharge!A:B,2,FALSE)*F84), "") -> 
C85: T600e/T600 Service Manual | D85: 9016605 | E85: 188 | G85: 0 | H85: =IFERROR(IFERROR(VLOOKUP(D85,Surcharge!A:B,2,FALSE)*F85, VLOOKUP(D85 & "",Surcharge!A:B,2,FALSE)*F85), "") -> 
B87: REQUIRED | C87: Packaging (Note 3) | F87: =SUM(F88) -> 0
C88: Skid w/Carton, Stackable | D88: 9001553 | E88: N/C | G88: =IF(F88=0," ","N/C") ->  | H88: =IFERROR(IFERROR(VLOOKUP(D88,Surcharge!A:B,2,FALSE)*F88, VLOOKUP(D88 & "",Surcharge!A:B,2,FALSE)*F88), "") -> 
E93: =ROUND(SUM(G65:G92), 0) -> 0 | F93: =SUM(E94) -> 0
D94: Machine Subtotal | E94: =ROUND(SUM(G65:G92), 0) -> 0 | F94: =F93 -> 0
B95: Discounts | F95: =SUM(F96) -> 0
F96: =SUM(F98:F101) -> 0
D97: Applicable Currency Adj % | F97: =IF(E97 <> "", 1, 0) -> 0 | G97: =IF(F97*(E97*0.01)*E93 < 0, F97*(E97*0.01)*E93, -(F97*(E97*0.01)*E93)) -> 0
D98: Discount % | F98: =IF(E98 <> "", 1, 0) -> 0 | G98: =IF(F98*(E98*0.01)*(E93+G97) < 0, F98*(E98*0.01)*(E93+G97), -(F98*(E98*0.01)*(E93+G97))) -> 0
D99: Discount $ | F99: =IF(E99 <> "", 1, 0) -> 0 | G99: =IF(F99*E99 < 0, F99*E99, -(F99*E99)) -> 0
D100: Discount $ | F100: =IF(E100 <> "", 1, 0) -> 0 | G100: =IF(F100*E100 < 0, F100*E100, -(F100*E100)) -> 0
D101: Discount $ | F101: =IF(E101 <> "", 1, 0) -> 0 | G101: =IF(F101*E101 < 0, F101*E101, -(F101*E101)) -> 0
D102: Discount Total | E102: =SUM(G97:G101) -> 0 | F102: =SUM(E102) -> 0
F103: =#REF! -> 
F104: =F103 -> 
C105: Prepaid and Add | D105: Freight | F105: =IF(E105 <> "", 1, 0) -> 0 | G105: =F105*E105 -> 0
C106: Subject to all applicable taxes | D106: Tax | F106: =IF(E106 <> "", 1, 0) -> 0 | G106: =F106*E106 -> 0
F107: =SUM(F108) -> 0
D108: MACHINE TOTAL* | F108: =SUM(G108) -> 0 | G108: =SUM(G65:G106) -> 0 | K108: This goes to "My Documents"
G109: =SUM(G108) -> 0
C114: First Western Equipment Finance - Leasing Calculation Option: | D114: Option 1 | F114: Option 2 | J114: =Financing!A38 -> Rates 2025 - Rev 2/4/2025
D115: Monthly Payment | E115: Cost Per Day | F115: Monthly Payment | G115: Cost Per Day | J115: =Financing!A39 -> “Blank Payment Amounts Indicate The Financing Option Or Purchase Options Selected Are Not
C116: Purchase Option: | D116: FWEF: $1 Buyout Lease | F116: FWEF: Municipal Lease | J116: =Financing!A40 -> Applicable Or The Machine Total Is Below The Minimum Amount For The Selected Vendor”
C117: 24 Months | D117: FALSE | E117: 0 | F117: FALSE | G117: 0 | J117: =Financing!A41 -> "Quoted monthly payments are estimates only and are based on a certain level of credit rating.
C118: 30 Months | D118: FALSE | E118: 0 | F118: FALSE | G118: 0 | J118: =Financing!A42 -> Actual monthly payments may be higher depending on your credit rating."
C119: 36 Months | D119: FALSE | E119: 0 | F119: FALSE | G119: 0 | J119: =Financing!A43 -> “Financing rates do not include Pre-Paid Service”
C120: 48 Months | D120: 0 | E120: 0 | F120: 0 | G120: 0 | I120: =Financing!A44 -> 0
D122: Benefits of Equipment Financing:
D123: • Spreads out investment over time. | F123: • Keep current with latest technology.
D124: • Preserve capital. | F124: • Service and parts bundling available.
D125: • Low monthly payment. | F125: • Pay for labor savings as you go.
B127: TennantTrue | E127: 0 | F127: 0
C129: Is customer interested in service program? | D129: Yes | E129: *State/County selection required for TennantTrue service options
C131: If not, why?
C133: Term: | D133: 36 | G133: AB Brushes | H133: No
C134: Monthly machine usage (hrs): | D134: < 30/mo. (Avg. 1hr./day)
C136: TennantTrue: | D136: Gold Contract | F136: Silver Contract
C137: Per Visit | F137: 481
C138: Monthly | D138: 141 | F138: 83
C139: Annually | F139: 972
C140: Pre-Pay Full Term | D140: 4884 | F140: 2858
C141: Hourly Labor Rate
C142: Site Visit
C144: * Verify customer current pricing prior to quote.
C145: **All rates and fees above reflect service for one (1) unit with the exception of Block of Time service.
C146: *Block of Time is available in 1 Year Term only and is priced as such no matter the term selection on this template.
C150: Quote Special Instructions:
C153: =Start_Here!E36 -> Terms and Conditions
C154: =Start_Here!E37 -> Ask your local sales rep for estimated lead times. Verify when placing order
C155: =Start_Here!E38 -> All orders subject to acceptance by Tennant Sales and Service Company, Minneapolis, Minnesota
C156: =Start_Here!E39 -> Prices subject to change without notice. Subject to any applicable taxes.
C157: =Start_Here!E40 -> Terms: Net 30 days. Payable in Canadian Funds
C158: =Start_Here!E41 -> Freight: Accessories, parts, supplies, detergents, and floor coatings orders delivered DDP
C159: =Start_Here!E42 -> shipping point Frt PPD. Machine orders delivered DDP shipping point Frt PPD and add.
C160: =Start_Here!E43 -> Returned Merchandise is subject to a restocking fee.
C161: =Start_Here!E45 -> Printed General Terms and Conditions are also available upon request.
C162: =Start_Here!E46 -> 0
E165: Quote Date : | G165: =Letter!$A$25 -> 2014-10-02
A166: Order Placement Information: To place your order, fill in PO# and customer signatures,
A167: call or fax to the numbers listed below. Customer Purchase Order is required.
A168: If information is missing, orders will be entered and held until all information is received.
C169: Customer Number | E169: Cust Grp 3
C170: =Start_Here!$C$25 -> 0 | E170: =Start_Here!$C$29 -> 0
C171: =Start_Here!$B$18 -> Who Owns the Machine? (Sold-To Info) (Please Verify)
A172: Company | C172: =Start_Here!$C$19 -> Company Name
A173: Address | C173: =Start_Here!$C$20 -> Address
C174: =Start_Here!$C$21 -> City, State Zip
A175: Name | C175: =Start_Here!$C$22 -> Contact Name
A176: Phone | C176: =Start_Here!$C$23 -> Contact Phone
C177: =Start_Here!$B$11 -> Where is the Machine Being Shipped? (Ship-To Info) (Please Verify)
A178: Company | C178: =Start_Here!$C$12 -> Company Name
A179: Address | C179: =Start_Here!$C$13 -> Address
C180: =Start_Here!$C$14 -> City, State Zip
A181: Name | C181: =Start_Here!$C$15 -> Contact Name
A182: Phone | C182: =Start_Here!$C$16 -> Contact Phone
C183: =Start_Here!$B$31 -> Shipping / Carrier Instructions: | E183: Order Special Instructions:
C184: =Start_Here!$C$32 -> 0
C186: Customer Purchase Order No.
C187: (please attach copy)
C190: Tax Exempt | E190: Yes
E191: No
C192: If Yes, attach a copy of your exemption certificate.
C194: Requested Delivery Date
C195: =Start_Here!$C$28 -> 0
C197: =Start_Here!$C$26 -> 0 | E197: =Start_Here!$C$27 -> 0
C198: Authorized Buyer (please print) | E198: Phone Number
C201: Authorized Buyer Signature
C203: =Start_Here!$C$41 -> Rep Name
C204: Tennant Representative
A206: Specialized Maintenance Equipment
A207: =Start_Here!$C$48 -> TENNANT · 10400 Clean Street · Eden Prairie, MN 55344 ·
A208: =Start_Here!$C$49 -> PHONE:800-553-8033 · FAX:763-513-2116
B210: Notes:
B211: 1 | C211: One set of pad drivers come standard. A different brush may be chosen as an option
B212: 2 | C212: One English manual comes standard. A manual in a different language may be chosen as an option.
B213: 3 | C213: Skid with carton packaging must be chosen as an option
B215: 15 | C215: Shipping Weights and Dimensions | E215: Skid w/Carton
C217: 700 mm / 28" Disk
C218: Weight | E218: 733 lbs / 333 Kg
C219: Length | E219: 75" / 1905 mm
C220: Width | E220: 45" / 1143 mm
C221: Height | E221: 52" / 1321 mm
C223: 800 mm / 32" Disk
C224: Weight | E224: 736 lbs / 334 Kg
C225: Length | E225: 75" / 1905 mm
C226: Width | E226: 45" / 1143 mm
C227: Height | E227: 52" / 1321 mm
C229: 900 mm / 36" Disk
C230: Weight | E230: 740 lbs / 336 Kg
C231: Length | E231: 75" / 1905 mm
C232: Width | E232: 45" / 1143 mm
C233: Height | E233: 52" / 1321 mm
C235: 700 mm / 28" Cylindrical
C236: Weight | E236: 749 lbs / 340 Kg
C237: Length | E237: 75" / 1905 mm
C238: Width | E238: 45" / 1143 mm
C239: Height | E239: 52" / 1321 mm
C241: 800 mm / 32" Cylindrical
C242: Weight | E242: 752 lbs / 341 Kg
C243: Length | E243: 75" / 1905 mm
C244: Width | E244: 45" / 1143 mm
C245: Height | E245: 52" / 1321 mm
C247: 700 mm / 28" Orbital
C248: Weight | E248: 759 lbs / 345 Kg
C249: Length | E249: 75" / 1905 mm
C250: Width | E250: 45" / 1143 mm
C251: Height | E251: 52" / 1321 mm
B255: 16 | C255: CURRENT DETERGENT PRODUCT | G255: NEW DETERGENT PRODUCT
... 13 more rows

Sheet T7_Std_Config
A1: T7_Std_Config | C1: =Start_Here!$C19 -> Company Name
A2: =SUM(G89) -> 0 | C2: =Start_Here!$C20 -> Address
C3: =Start_Here!$C21 -> City, State Zip
C4: =Start_Here!$C22 -> Contact Name
C5: =Start_Here!$C$41 -> Rep Name
C6: =Start_Here!$C$37 -> Tennant Sales and Service Company
C7: =Start_Here!$C$38 -> 10400 Clean Street
C8: =Start_Here!$C$39 -> Eden Prairie, MN 55344
C9: =Start_Here!$C$43 -> 800-553-8033 | E9: Quote Date : | G9: =Letter!$A$25 -> 2014-10-02
C11: =Help!C2 -> CAN Date Rev - 5/6/2025
C12: BUILT-IN “TENNANT VALUE” INCLUDES:
C13: Fully Cleanable HygenicTM Tanks | E13: Unsurpassed Ergonomic Design
C14: Extremely Low 67 dBa Noise Levels | E14: Standard 240 AH Battery Pack (Optional 360 AH)
C15: Unmatched Solution Recovery | E15: Charger
C16: One-Button Scrubbing Operation | E16: Edge & Reach Under Cleaning
C17: Economy Mode (extends run time up to 4.5 hours) | E17: No Tool Brush / Squeegee Change
C18: On Board Diagnostics | E18: Standard Scrubbing Brushes & Pad Drivers (Select One Type)
C19: Touch Panel Controls | E19: Vacuum Fan In-Line Air Filter Cartridge
C20: Automatic: | E20: Brush Shutoff When Idle
C21: Squeegee Lift | E21: Brush Shutoff at 80% Discharge
C22: Water Shutoff | E22: Audio Back Up Alarm
C24: ec-H2O NanoCleanTM Equipped Models Include:
C25: Electrically Converted Water Technology System
C26: Two Scrubbing Modes: ec-H2O NanoCleanTM & Conventional Scrubbing
C30: TENNANT COMPANY WARRANTY
C31: 3 YEARS OR 1500 HOURS ON ALL COMPONENTS, 3 YEARS LABOR
C32: 90 DAYS TRAVEL, 10 YEARS ON DURAMERTM TANKS
E36: Quote Request Information
G37: Fax (quote only)
G38: Mail (quote,lit, specs)
G39: Fax + Mail
E41: Primary Use
G42: Inside
G43: Outside
C45: Description | D45: Reference # | E45: Price Each | F45: Qty | G45: Extended Price
B46: Standard Configuration Machines | F46: =SUM(F47:F52) -> 0
C47: T7 Rider - Disk Scrubber, 650mm / 26", 240AH C/20 Battery, Conventional Cleaning, 25A 115V AC 60Hz 1Ph On-Board Charger (Pad Driver will default unless otherwise specified) | D47: T7-1001D | E47: 37617 | G47: =F47*E47 -> 0 | H47: =IFERROR(IFERROR(VLOOKUP(D47,Surcharge!A:B,2,FALSE)*F47, VLOOKUP(D47 & "",Surcharge!A:B,2,FALSE)*F47), "") -> 
C48: T7 Rider - Disk Scrubber, 800mm / 32", 240AH C/20 Battery, Conventional Cleaning, 25A 115V AC 60Hz 1Ph On-Board Charger (Pad Driver will default unless otherwise specified) | D48: T7-1002D | E48: 40328 | G48: 0 | H48: =IFERROR(IFERROR(VLOOKUP(D48,Surcharge!A:B,2,FALSE)*F48, VLOOKUP(D48 & "",Surcharge!A:B,2,FALSE)*F48), "") -> 
C49: T7 Rider - Disk Scrubber, 650mm / 26", 240AH C/20 Battery, ec-H20 NanoClean, 25A 115V AC 60Hz 1Ph On-Board Charger (Pad Driver will default unless otherwise specified) | D49: T7-2001D | E49: 42395 | G49: 0 | H49: =IFERROR(IFERROR(VLOOKUP(D49,Surcharge!A:B,2,FALSE)*F49, VLOOKUP(D49 & "",Surcharge!A:B,2,FALSE)*F49), "") -> 
C50: T7 Rider - Disk Scrubber, 800mm / 32", 240AH C/20 Battery, ec-H20 NanoClean, 25A 115V AC 60Hz 1Ph On-Board Charger (Pad Driver will default unless otherwise specified) | D50: T7-2002D | E50: 45106 | G50: 0 | H50: =IFERROR(IFERROR(VLOOKUP(D50,Surcharge!A:B,2,FALSE)*F50, VLOOKUP(D50 & "",Surcharge!A:B,2,FALSE)*F50), "") -> 
C51: T7 Rider - Disk Scrubber, 650mm / 26", 360AH C/20 Battery, Manual Battery Watering System, ec-H20 NanoClean, 25A 115V AC 60Hz 1Ph On-Board Charger (Pad Driver will default unless otherwise specified) | D51: T7-3001D | E51: 44259 | G51: 0 | H51: =IFERROR(IFERROR(VLOOKUP(D51,Surcharge!A:B,2,FALSE)*F51, VLOOKUP(D51 & "",Surcharge!A:B,2,FALSE)*F51), "") -> 
C52: T7 Rider - Disk Scrubber, 800mm / 32", 360AH C/20 Battery, Manual Battery Watering System, ec-H20 NanoClean, 25A 115V AC 60Hz 1Ph On-Board Charger (Pad Driver will default unless otherwise specified) | D52: T7-3002D | E52: 46970 | G52: 0 | H52: =IFERROR(IFERROR(VLOOKUP(D52,Surcharge!A:B,2,FALSE)*F52, VLOOKUP(D52 & "",Surcharge!A:B,2,FALSE)*F52), "") -> 
B55: OPTIONAL | C55: Brushes - in place of Pad Driver (2 Required) (Note 1) | F55: =SUM(F56:F59) -> 0
C56: 650mm / 26" Disk Nylon Brush | D56: 1220226 | E56: N/C | G56: =IF(F56=0," ","N/C") ->  | H56: =IFERROR(IFERROR(VLOOKUP(D56,Surcharge!A:B,2,FALSE)*F56, VLOOKUP(D56 & "",Surcharge!A:B,2,FALSE)*F56), "") -> 
C57: 650mm / 26" Disk Polypropylene Brush | D57: 1220223 | E57: N/C | H57: =IFERROR(IFERROR(VLOOKUP(D57,Surcharge!A:B,2,FALSE)*F57, VLOOKUP(D57 & "",Surcharge!A:B,2,FALSE)*F57), "") -> 
C58: 800mm / 32" Disk Nylon Brush | D58: 1220225 | E58: N/C | H58: =IFERROR(IFERROR(VLOOKUP(D58,Surcharge!A:B,2,FALSE)*F58, VLOOKUP(D58 & "",Surcharge!A:B,2,FALSE)*F58), "") -> 
C59: 800mm / 32" Disk Polypropylene Brush | D59: 1220224 | E59: N/C | H59: =IFERROR(IFERROR(VLOOKUP(D59,Surcharge!A:B,2,FALSE)*F59, VLOOKUP(D59 & "",Surcharge!A:B,2,FALSE)*F59), "") -> 
B61: OPTIONAL | C61: Manuals (Note 2) | F61: =SUM(F62:F66) -> 0
C62: T7 Operator Manual (Spanish) - in place of English manual | D62: 331042 | E62: N/C | G62: =IF(F62=0," ","N/C") ->  | H62: =IFERROR(IFERROR(VLOOKUP(D62,Surcharge!A:B,2,FALSE)*F62, VLOOKUP(D62 & "",Surcharge!A:B,2,FALSE)*F62), "") -> 
C63: T7 Operator Manual (French) - in place of English manual | D63: 331043 | E63: N/C | H63: =IFERROR(IFERROR(VLOOKUP(D63,Surcharge!A:B,2,FALSE)*F63, VLOOKUP(D63 & "",Surcharge!A:B,2,FALSE)*F63), "") -> 
C64: Additional Operator Manual | D64: see above | E64: 200 | G64: =F64*E64 -> 0
C65: T7 Parts Manual | D65: 9013606 | E65: 81 | G65: 0 | H65: =IFERROR(IFERROR(VLOOKUP(D65,Surcharge!A:B,2,FALSE)*F65, VLOOKUP(D65 & "",Surcharge!A:B,2,FALSE)*F65), "") -> 
C66: T7 Service Manual | D66: 331045 | E66: 200 | G66: 0 | H66: =IFERROR(IFERROR(VLOOKUP(D66,Surcharge!A:B,2,FALSE)*F66, VLOOKUP(D66 & "",Surcharge!A:B,2,FALSE)*F66), "") -> 
B68: REQUIRED | C68: Packaging (Note 3) | F68: =SUM(F69) -> 0
C69: Skid w/Carton, Stackable | D69: 9000550 | E69: N/C | G69: =IF(F69=0," ","N/C") ->  | H69: =IFERROR(IFERROR(VLOOKUP(D69,Surcharge!A:B,2,FALSE)*F69, VLOOKUP(D69 & "",Surcharge!A:B,2,FALSE)*F69), "") -> 
E74: =ROUND(SUM(G47:G73), 0) -> 0 | F74: =SUM(E75) -> 0
D75: Machine Subtotal | E75: =ROUND(SUM(G47:G73), 0) -> 0 | F75: =F74 -> 0
B76: Discounts | F76: =SUM(F77) -> 0
F77: =SUM(F79:F82) -> 0
D78: Applicable Currency Adj % | F78: =IF(E78 <> "", 1, 0) -> 0 | G78: =IF(F78*(E78*0.01)*E74 < 0, F78*(E78*0.01)*E74, -(F78*(E78*0.01)*E74)) -> 0
D79: Discount % | F79: =IF(E79 <> "", 1, 0) -> 0 | G79: =IF(F79*(E79*0.01)*(E74+G78) < 0, F79*(E79*0.01)*(E74+G78), -(F79*(E79*0.01)*(E74+G78))) -> 0
D80: Discount $ | F80: =IF(E80 <> "", 1, 0) -> 0 | G80: =IF(F80*E80 < 0, F80*E80, -(F80*E80)) -> 0
D81: Discount $ | F81: =IF(E81 <> "", 1, 0) -> 0 | G81: =IF(F81*E81 < 0, F81*E81, -(F81*E81)) -> 0
D82: Discount $ | F82: =IF(E82 <> "", 1, 0) -> 0 | G82: =IF(F82*E82 < 0, F82*E82, -(F82*E82)) -> 0
D83: Discount Total | E83: =SUM(G78:G82) -> 0 | F83: =SUM(E83) -> 0
F84: =#REF! -> 
F85: =F84 -> 
C86: Prepaid and Add | D86: Freight | F86: =IF(E86 <> "", 1, 0) -> 0 | G86: =F86*E86 -> 0
C87: Subject to all applicable taxes | D87: Tax | F87: =IF(E87 <> "", 1, 0) -> 0 | G87: =F87*E87 -> 0
F88: =SUM(F89) -> 0
D89: MACHINE TOTAL* | F89: =SUM(G89) -> 0 | G89: =SUM(G47:G87) -> 0 | N89: This goes to "My Documents"
G90: =SUM(G89) -> 0
C95: First Western Equipment Finance - Leasing Calculation Option: | D95: Option 1 | F95: Option 2 | J95: =Financing!A38 -> Rates 2025 - Rev 2/4/2025
D96: Monthly Payment | E96: Cost Per Day | F96: Monthly Payment | G96: Cost Per Day | J96: =Financing!A39 -> “Blank Payment Amounts Indicate The Financing Option Or Purchase Options Selected Are Not
C97: Purchase Option: | D97: FWEF: $1 Buyout Lease | F97: FWEF: Municipal Lease | J97: =Financing!A40 -> Applicable Or The Machine Total Is Below The Minimum Amount For The Selected Vendor”
C98: 24 Months | D98: FALSE | E98: 0 | F98: FALSE | G98: 0 | J98: =Financing!A41 -> "Quoted monthly payments are estimates only and are based on a certain level of credit rating.
C99: 30 Months | D99: FALSE | E99: 0 | F99: FALSE | G99: 0 | J99: =Financing!A42 -> Actual monthly payments may be higher depending on your credit rating."
C100: 36 Months | D100: FALSE | E100: 0 | F100: FALSE | G100: 0 | J100: =Financing!A43 -> “Financing rates do not include Pre-Paid Service”
C101: 48 Months | D101: 0 | E101: 0 | F101: 0 | G101: 0 | I101: =Financing!A44 -> 0
D103: Benefits of Equipment Financing:
D104: • Spreads out investment over time. | F104: • Keep current with latest technology.
D105: • Preserve capital. | F105: • Service and parts bundling available.
D106: • Low monthly payment. | F106: • Pay for labor savings as you go.
B108: TennantTrue | E108: 0 | F108: 0
C110: Is customer interested in service program? | D110: Yes | E110: *State/County selection required for TennantTrue service options
C112: If not, why?
C114: Term: | D114: 36 | G114: AB Brushes | H114: No
C115: Monthly machine usage (hrs): | D115: < 30/mo. (Avg. 1hr./day)
C117: TennantTrue: | D117: Gold Contract | F117: Silver Contract
C118: Per Visit | F118: 501
C119: Monthly | D119: 173 | F119: 88
C120: Annually | F120: 1035
C121: Pre-Pay Full Term | D121: 5964 | F121: 3042
C122: Hourly Labor Rate
C123: Site Visit
C125: * Verify customer current pricing prior to quote.
C126: **All rates and fees above reflect service for one (1) unit with the exception of Block of Time service.
C127: *Block of Time is available in 1 Year Term only and is priced as such no matter the term selection on this template.
B131: Quote Special Instructions:
B134: =Start_Here!E36 -> Terms and Conditions
B135: =Start_Here!E37 -> Ask your local sales rep for estimated lead times. Verify when placing order
B136: =Start_Here!E38 -> All orders subject to acceptance by Tennant Sales and Service Company, Minneapolis, Minnesota
B137: =Start_Here!E39 -> Prices subject to change without notice. Subject to any applicable taxes.
B138: =Start_Here!E40 -> Terms: Net 30 days. Payable in Canadian Funds
B139: =Start_Here!E41 -> Freight: Accessories, parts, supplies, detergents, and floor coatings orders delivered DDP
B140: =Start_Here!E42 -> shipping point Frt PPD. Machine orders delivered DDP shipping point Frt PPD and add.
B141: =Start_Here!E43 -> Returned Merchandise is subject to a restocking fee.
B142: =Start_Here!E45 -> Printed General Terms and Conditions are also available upon request.
B143: =Start_Here!E46 -> 0
E147: Quote Date : | G147: =Letter!$A$25 -> 2014-10-02
A148: Order Placement Information: To place your order, fill in PO# and customer signatures,
A149: call or fax to the numbers listed below. Customer Purchase Order is required.
A150: If information is missing, orders will be entered and held until all information is received.
C151: Customer Number | E151: Cust Grp 3
C152: =Start_Here!$C$25 -> 0 | E152: =Start_Here!$C$29 -> 0
C153: =Start_Here!$B$18 -> Who Owns the Machine? (Sold-To Info) (Please Verify)
A154: Company | C154: =Start_Here!$C$19 -> Company Name
A155: Address | C155: =Start_Here!$C$20 -> Address
C156: =Start_Here!$C$21 -> City, State Zip
A157: Name | C157: =Start_Here!$C$22 -> Contact Name
A158: Phone | C158: =Start_Here!$C$23 -> Contact Phone
C159: =Start_Here!$B$11 -> Where is the Machine Being Shipped? (Ship-To Info) (Please Verify)
A160: Company | C160: =Start_Here!$C$12 -> Company Name
A161: Address | C161: =Start_Here!$C$13 -> Address
C162: =Start_Here!$C$14 -> City, State Zip
A163: Name | C163: =Start_Here!$C$15 -> Contact Name
A164: Phone | C164: =Start_Here!$C$16 -> Contact Phone
C165: =Start_Here!$B$31 -> Shipping / Carrier Instructions: | E165: Order Special Instructions:
C166: =Start_Here!$C$32 -> 0
C168: Customer Purchase Order No.
C169: (please attach copy)
C172: Tax Exempt | E172: Yes
E173: No
C174: If Yes, attach a copy of your exemption certificate.
C176: Requested Delivery Date
C177: =Start_Here!$C$28 -> 0
C179: =Start_Here!$C$26 -> 0 | E179: =Start_Here!$C$27 -> 0
C180: Authorized Buyer (please print) | E180: Phone Number
C183: Authorized Buyer Signature
C185: =Start_Here!$C$41 -> Rep Name
C186: Tennant Representative
A188: Specialized Maintenance Equipment
A189: =Start_Here!$C$48 -> TENNANT · 10400 Clean Street · Eden Prairie, MN 55344 ·
A190: =Start_Here!$C$49 -> PHONE:800-553-8033 · FAX:763-513-2116
B192: Notes:
B193: 1 | C193: One set of pad drivers come standard. A different brush may be chosen as an option
B194: 2 | C194: One English manual comes standard. A manual in a different language may be chosen as an option.
B195: 3 | C195: Skid with carton packaging must be chosen as an option
B197: 4 | C197: Shipping Weights and Dimensions | E197: Skid w/Carton
C199: Weight (with 235AH batteries) | E199: 1000 lbs / 454 kg
C200: Length | E200: 62" / 1,574mm
C201: Width | E201: 33" / 838mm
C202: Height | E202: 48" / 1,219mm

Sheet T12_Standard_Config
A1: T12_Standard_Config | C1: =Start_Here!$C19 -> Company Name
A2: =SUM(G113) -> 0 | C2: =Start_Here!$C20 -> Address
C3: =Start_Here!$C21 -> City, State Zip
C4: =Start_Here!$C22 -> Contact Name
C5: =Start_Here!$C$41 -> Rep Name
C6: =Start_Here!$C$37 -> Tennant Sales and Service Company
C7: =Start_Here!$C$38 -> 10400 Clean Street
C8: =Start_Here!$C$39 -> Eden Prairie, MN 55344
C9: =Start_Here!$C$43 -> 800-553-8033 | E9: Quote Date : | G9: =Letter!$A$25 -> 2014-10-02
C11: =Help!C2 -> CAN Date Rev - 5/6/2025
B13: BUILT-IN “TENNANT VALUE” INCLUDES:
B15: Wet, 240 AH C/20 Battery Pack | D15: No Tool Squeegee and Brush Change
B16: 20 Amp, 115 Volt 60 Hz Charger | D16: In-Line Vacuum Fan Air Filter
B17: Two Speed Electronic Transmission with AC Propel Motor | D17: High Visibility Maintenance Touch Points
B18: Disk or Cylindrcial Scrubbing - 32 in (800 mm) path | D18: Underwriters Laboratory (UL®) "E" Certification
B19: Standard Cylindrical or Disk Scrubbing Brushes (Select One) | D19: Cup Holder
B20: Non-Corrosive Duramer™ Solution and Recovery Tanks | D20: Operator Manual and Video
C21: 35 gal (132 L) Solution Tank | D21: Front and Rear Non-Marking Tires
C22: 44 gal (166 L) Recovery Tank
C23: 9 gal (34 L) Demisting Chamber | D23: T12 Controls:
B24: Parabolic Rear Squeegee w/SmartRelease™ Breakaway System | D24: 1-Step™ One-Button Scrub Operation
B25: Automatic Functions: | D25: 3 Down-Pressure Settings
C26: Parking Brake | D26: On Board Diagnostics
C27: Squeegee Lift | D27: Water Shutoff Switch
C28: Water Shutoff | D28: T12 XP Only Controls and Features:
C29: Brush Shutoff When Idle | D29: T12 Controls, plus
C30: Brush Shutoff at 80% Battery Discharge | D30: Steering Wheel Mounted, Touch-N-GO Control Module (XP Only)
D31: AV Back-up Alarm w/Strobe Light
D32: Water Shutoff Thumb Switch on Control Module
D33: Head and Tail Lights
D34: Deluxe Seat with Arm Rests
B36: TENNANT COMPANY WARRANTY
B37: 36 MONTHS OR 2000 HOURS - PARTS
B38: 24 MONTHS - LABOR
B39: 6 MONTHS - TRAVEL
B40: 10 YEARS ON DURAMERTM TANKS
B41: CUSTOM options may add 1 week or more to standard lead times.
E47: Quote Request Information
G48: Fax (quote only)
G49: Mail (quote,lit, specs)
G50: Fax + Mail
E52: Primary Use
G53: Inside
G54: Outside
C56: Description | D56: Reference # | E56: Price Each | F56: Qty | G56: Extended Price
B57: Standard Configurations (Note 1) | E57: CANADA | F57: =SUM(F59:F69) -> 0
C59: T12 Rider - Disk Scrubber, Conventional Cleaning, Linatex Squeegee, Wet 360AH C/20 (Kit of 6 batteries), Manual Battery Watering Kit , On-Board 20A 85-130V AC 50/60Hz 1Ph Charger, UL® Type E | D59: T12-1000D | E59: 46381 | G59: =F59*E59 -> 0
C60: Choice of Fire Extinguisher, Brushes, Operator Manual and Shipment Packaging available. | F60: =SUM(F59) -> 0
C62: T12 Rider - Cylindrical Scrubber, Conventional Cleaning, Linatex Squeegee, Wet 360AH C/20 (Kit of 6 batteries), Manual Battery Watering Kit, Off-Board 21A 85-265V 50/60Hz 1Ph Charger, UL® Type E, Heavy Duty Squeegee Protection, Safety Light Package, Vacuum Wand, Spray Nozzle with Hose | E62: 50788 | G62: =F62*E62 -> 0
C63: Choice of Fire Extinguisher, Brushes, Operator Manual and Shipment Packaging available. | F63: =SUM(F62) -> 0
C65: T12 Rider - Cylindrical Scrubber, ec-H2O™, Linatex Squeegee, Wet 360AH C/20 (Kit of 6 batteries), Manual Battery Watering Kit, Off-Board 21A 85-265V AC 50/60 Hz 1Ph, Scrubbing Side Brush, Heavy Duty Squeegee Protection, Deluxe Seat w/Armrest, Headlights, AV BU Alarm w/Strobe Light on Tank | D65: T12-2000C | E65: 62402 | G65: =F65*E65 -> 0
C66: Choice of Fire Extinguisher, Brushes, Operator Manual and Shipment Packaging available. | F66: =SUM(F65) -> 0
C68: T12 XP Rider - Cylindrical Scrubber,ec-H2O™, Linatex Squeegee, Wet 360AH C/20 (Kit of 6 batteries), Manual Battery Watering Kit, On-Board 20A 85-130V 50/60Hz 1Ph Charger, UL® Type E, Productivity Package, Safety Light Package, Heavy Duty Squeegee Protection, Deluxe Seat | D68: T12-3000C | E68: 66378 | G68: =F68*E68 -> 0
C69: Choice of Fire Extinguisher, Brushes, Operator Manual and Shipment Packaging available. | F69: =SUM(F68) -> 0
B71: Machine Protection & Safety | F71: =SUM(F72) -> 0
C72: Fire Extinguisher | D72: 9009878 | E72: 513 | G72: =F72*E72 -> 0
B74: Brushes and Pads | D74: Reference # | F74: =SUM(F75,F79,F83) -> 0 | H74: =IFERROR(IFERROR(VLOOKUP(D74,Surcharge!A:B,2,FALSE)*F74, VLOOKUP(D74 & "",Surcharge!A:B,2,FALSE)*F74), "") -> 
C75: Disk Scrubbing Brushes/Pads (2 Required) | F75: =SUM(F76:F78) -> 0 | H75: =IFERROR(IFERROR(VLOOKUP(D75,Surcharge!A:B,2,FALSE)*F75, VLOOKUP(D75 & "",Surcharge!A:B,2,FALSE)*F75), "") -> 
C76: Polypropylene Brush | D76: 1220241 | E76: N/C | G76: =IF(F76=0," ","N/C") ->  | H76: =IFERROR(IFERROR(VLOOKUP(D76,Surcharge!A:B,2,FALSE)*F76, VLOOKUP(D76 & "",Surcharge!A:B,2,FALSE)*F76), "") -> 
C77: Super Abrasive Brush | D77: 1221543 | E77: 295 | G77: =F77*E77 -> 0 | H77: =IFERROR(IFERROR(VLOOKUP(D77,Surcharge!A:B,2,FALSE)*F77, VLOOKUP(D77 & "",Surcharge!A:B,2,FALSE)*F77), "") -> 
H78: =IFERROR(IFERROR(VLOOKUP(D78,Surcharge!A:B,2,FALSE)*F78, VLOOKUP(D78 & "",Surcharge!A:B,2,FALSE)*F78), "") -> 
C79: Cylindrical Scrubbing Brushes (2 Required) | F79: =SUM(F80:F81) -> 0 | H79: =IFERROR(IFERROR(VLOOKUP(D79,Surcharge!A:B,2,FALSE)*F79, VLOOKUP(D79 & "",Surcharge!A:B,2,FALSE)*F79), "") -> 
C80: Polypropylene Brush | D80: 1201572 | E80: N/C | G80: =IF(F80=0," ","N/C") ->  | H80: =IFERROR(IFERROR(VLOOKUP(D80,Surcharge!A:B,2,FALSE)*F80, VLOOKUP(D80 & "",Surcharge!A:B,2,FALSE)*F80), "") -> 
C81: Super Abrasive Brush | D81: 1201928 | E81: 295 | G81: =F81*E81 -> 0 | H81: =IFERROR(IFERROR(VLOOKUP(D81,Surcharge!A:B,2,FALSE)*F81, VLOOKUP(D81 & "",Surcharge!A:B,2,FALSE)*F81), "") -> 
H82: =IFERROR(IFERROR(VLOOKUP(D82,Surcharge!A:B,2,FALSE)*F82, VLOOKUP(D82 & "",Surcharge!A:B,2,FALSE)*F82), "") -> 
C83: Disk Scrubbing Brush/Pad and Sweeping Brush for Side Brush Option (1 Required) | F83: =SUM(F84:F87) -> 0 | H83: =IFERROR(IFERROR(VLOOKUP(D83,Surcharge!A:B,2,FALSE)*F83, VLOOKUP(D83 & "",Surcharge!A:B,2,FALSE)*F83), "") -> 
C84: Polypropylene Brush | D84: 1220240 | E84: N/C | G84: =IF(F84=0," ","N/C") ->  | H84: =IFERROR(IFERROR(VLOOKUP(D84,Surcharge!A:B,2,FALSE)*F84, VLOOKUP(D84 & "",Surcharge!A:B,2,FALSE)*F84), "") -> 
C85: Heavy Duty Polypropylene | D85: 1220231 | E85: N/C | G85: =IF(F85=0," ","N/C") ->  | H85: =IFERROR(IFERROR(VLOOKUP(D85,Surcharge!A:B,2,FALSE)*F85, VLOOKUP(D85 & "",Surcharge!A:B,2,FALSE)*F85), "") -> 
C86: Super Abrasive Brush | D86: 1220232 | E86: 295 | G86: =F86*E86 -> 0 | H86: =IFERROR(IFERROR(VLOOKUP(D86,Surcharge!A:B,2,FALSE)*F86, VLOOKUP(D86 & "",Surcharge!A:B,2,FALSE)*F86), "") -> 
H87: =IFERROR(IFERROR(VLOOKUP(D87,Surcharge!A:B,2,FALSE)*F87, VLOOKUP(D87 & "",Surcharge!A:B,2,FALSE)*F87), "") -> 
B88: Support (Note 11) | F88: =SUM(F89:F95) -> 0 | H88: =IFERROR(IFERROR(VLOOKUP(D88,Surcharge!A:B,2,FALSE)*F88, VLOOKUP(D88 & "",Surcharge!A:B,2,FALSE)*F88), "") -> 
C89: Operator Manual (English) | D89: 9009910 | E89: N/C | G89: =IF(F89=0," ","N/C") ->  | H89: =IFERROR(IFERROR(VLOOKUP(D89,Surcharge!A:B,2,FALSE)*F89, VLOOKUP(D89 & "",Surcharge!A:B,2,FALSE)*F89), "") -> 
C90: Operator Manual (Spanish) | D90: 9009911 | E90: N/C | G90: =IF(F90=0," ","N/C") ->  | H90: =IFERROR(IFERROR(VLOOKUP(D90,Surcharge!A:B,2,FALSE)*F90, VLOOKUP(D90 & "",Surcharge!A:B,2,FALSE)*F90), "") -> 
C91: Operator Manual (French) (Note 12) | D91: 9009912 | E91: N/C | G91: =IF(F91=0," ","N/C") ->  | H91: =IFERROR(IFERROR(VLOOKUP(D91,Surcharge!A:B,2,FALSE)*F91, VLOOKUP(D91 & "",Surcharge!A:B,2,FALSE)*F91), "") -> 
C92: Additional Operator Manual | D92: Select from Above | E92: 111 | G92: =F92*E92 -> 0
H93: =IFERROR(IFERROR(VLOOKUP(D93,Surcharge!A:B,2,FALSE)*F93, VLOOKUP(D93 & "",Surcharge!A:B,2,FALSE)*F93), "") -> 
C94: Packaging (Note 13) | F94: =SUM(F95) -> 0 | H94: =IFERROR(IFERROR(VLOOKUP(D94,Surcharge!A:B,2,FALSE)*F94, VLOOKUP(D94 & "",Surcharge!A:B,2,FALSE)*F94), "") -> 
C95: Skid w/Carton, Non-Stackable | D95: 9009900 | E95: N/C | G95: =IF(F95=0," ","N/C") ->  | H95: =IFERROR(IFERROR(VLOOKUP(D95,Surcharge!A:B,2,FALSE)*F95, VLOOKUP(D95 & "",Surcharge!A:B,2,FALSE)*F95), "") -> 
H96: =IFERROR(IFERROR(VLOOKUP(D96,Surcharge!A:B,2,FALSE)*F96, VLOOKUP(D96 & "",Surcharge!A:B,2,FALSE)*F96), "") -> 
E98: =ROUND(SUM(G59:G97), 0) -> 0 | F98: =SUM(E99) -> 0
D99: Machine Subtotal | E99: =ROUND(SUM(G59:G97), 0) -> 0 | F99: =F98 -> 0
B100: Discounts | F100: =SUM(F101) -> 0
F101: =SUM(F103:F106) -> 0
D102: Applicable Currency Adj % | F102: =IF(E102 <> "", 1, 0) -> 0 | G102: =IF(F102*(E102*0.01)*E98 < 0, F102*(E102*0.01)*E98, -(F102*(E102*0.01)*E98)) -> 0
D103: Discount % | F103: =IF(E103 <> "", 1, 0) -> 0 | G103: =IF(F103*(E103*0.01)*(E98+G102) < 0, F103*(E103*0.01)*(E98+G102), -(F103*(E103*0.01)*(E98+G102))) -> 0
D104: Discount $ | F104: =IF(E104 <> "", 1, 0) -> 0 | G104: =IF(F104*E104 < 0, F104*E104, -(F104*E104)) -> 0
D105: Discount $ | F105: =IF(E105 <> "", 1, 0) -> 0 | G105: =IF(F105*E105 < 0, F105*E105, -(F105*E105)) -> 0
D106: Discount $ | F106: =IF(E106 <> "", 1, 0) -> 0 | G106: =IF(F106*E106 < 0, F106*E106, -(F106*E106)) -> 0
D107: Discount Total | E107: =SUM(G102:G106) -> 0 | F107: =SUM(E107) -> 0
F108: =#REF! -> 
F109: =F108 -> 
C110: Prepaid and Add | D110: Freight | F110: =IF(E110 <> "", 1, 0) -> 0 | G110: =F110*E110 -> 0
C111: Subject to all applicable taxes | D111: Tax | F111: =IF(E111 <> "", 1, 0) -> 0 | G111: =F111*E111 -> 0
F112: =SUM(F113) -> 0
D113: MACHINE TOTAL* | F113: =SUM(G113) -> 0 | G113: =SUM(G59:G111) -> 0 | N113: This goes to "My Documents"
G114: =SUM(G113) -> 0
C119: First Western Equipment Finance - Leasing Calculation Option: | D119: Option 1 | F119: Option 2 | J119: =Financing!A38 -> Rates 2025 - Rev 2/4/2025
D120: Monthly Payment | E120: Cost Per Day | F120: Monthly Payment | G120: Cost Per Day | J120: =Financing!A39 -> “Blank Payment Amounts Indicate The Financing Option Or Purchase Options Selected Are Not
C121: Purchase Option: | D121: FWEF: $1 Buyout Lease | F121: FWEF: Municipal Lease | J121: =Financing!A40 -> Applicable Or The Machine Total Is Below The Minimum Amount For The Selected Vendor”
C122: 24 Months | D122: FALSE | E122: 0 | F122: FALSE | G122: 0 | J122: =Financing!A41 -> "Quoted monthly payments are estimates only and are based on a certain level of credit rating.
C123: 30 Months | D123: FALSE | E123: 0 | F123: FALSE | G123: 0 | J123: =Financing!A42 -> Actual monthly payments may be higher depending on your credit rating."
C124: 36 Months | D124: FALSE | E124: 0 | F124: FALSE | G124: 0 | J124: =Financing!A43 -> “Financing rates do not include Pre-Paid Service”
C125: 48 Months | D125: 0 | E125: 0 | F125: 0 | G125: 0 | I125: =Financing!A44 -> 0
D127: Benefits of Equipment Financing:
D128: • Spreads out investment over time. | F128: • Keep current with latest technology.
D129: • Preserve capital. | F129: • Service and parts bundling available.
D130: • Low monthly payment. | F130: • Pay for labor savings as you go.
B132: TennantTrue | E132: 0 | F132: 0
C134: Is customer interested in service program? | D134: Yes | E134: *State/County selection required for TennantTrue service options
C136: If not, why?
C138: Term: | D138: 36 | G138: AB Brushes | H138: No
C139: Monthly machine usage (hrs): | D139: < 30/mo. (Avg. 1hr./day)
C141: TennantTrue: | D141: Gold Contract | F141: Silver Contract
C142: Per Visit | F142: 501
C143: Monthly | D143: 189 | F143: 88
C144: Annually | F144: 1035
C145: Pre-Pay Full Term | D145: 6526 | F145: 3042
C146: Hourly Labor Rate
C147: Site Visit
C149: * Verify customer current pricing prior to quote.
C150: **All rates and fees above reflect service for one (1) unit with the exception of Block of Time service.
C151: *Block of Time is available in 1 Year Term only and is priced as such no matter the term selection on this template.
B155: Quote Special Instructions:
B158: =Start_Here!E36 -> Terms and Conditions
B159: =Start_Here!E37 -> Ask your local sales rep for estimated lead times. Verify when placing order
B160: =Start_Here!E38 -> All orders subject to acceptance by Tennant Sales and Service Company, Minneapolis, Minnesota
B161: =Start_Here!E39 -> Prices subject to change without notice. Subject to any applicable taxes.
B162: =Start_Here!E40 -> Terms: Net 30 days. Payable in Canadian Funds
B163: =Start_Here!E41 -> Freight: Accessories, parts, supplies, detergents, and floor coatings orders delivered DDP
B164: =Start_Here!E42 -> shipping point Frt PPD. Machine orders delivered DDP shipping point Frt PPD and add.
B165: =Start_Here!E43 -> Returned Merchandise is subject to a restocking fee.
B166: =Start_Here!E45 -> Printed General Terms and Conditions are also available upon request.
B167: =Start_Here!E46 -> 0
E169: Quote Date : | G169: =Letter!$A$25 -> 2014-10-02
A170: Order Placement Information: To place your order, fill in PO# and customer signatures,
A171: call or fax to the numbers listed below. Customer Purchase Order is required.
A172: If information is missing, orders will be entered and held until all information is received.
C173: Customer Number | E173: Cust Grp 3
C174: =Start_Here!$C$25 -> 0 | E174: =Start_Here!$C$29 -> 0
C175: =Start_Here!$B$18 -> Who Owns the Machine? (Sold-To Info) (Please Verify)
A176: Company | C176: =Start_Here!$C$19 -> Company Name
A177: Address | C177: =Start_Here!$C$20 -> Address
C178: =Start_Here!$C$21 -> City, State Zip
A179: Name | C179: =Start_Here!$C$22 -> Contact Name
A180: Phone | C180: =Start_Here!$C$23 -> Contact Phone
C181: =Start_Here!$B$11 -> Where is the Machine Being Shipped? (Ship-To Info) (Please Verify)
A182: Company | C182: =Start_Here!$C$12 -> Company Name
A183: Address | C183: =Start_Here!$C$13 -> Address
C184: =Start_Here!$C$14 -> City, State Zip
A185: Name | C185: =Start_Here!$C$15 -> Contact Name
A186: Phone | C186: =Start_Here!$C$16 -> Contact Phone
C187: =Start_Here!$B$31 -> Shipping / Carrier Instructions: | E187: Order Special Instructions:
C188: =Start_Here!$C$32 -> 0
C190: Customer Purchase Order No.
C191: (please attach copy)
C194: Tax Exempt | E194: Yes
E195: No
C196: If Yes, attach a copy of your exemption certificate.
C198: Requested Delivery Date
C199: =Start_Here!$C$28 -> 0
C201: =Start_Here!$C$26 -> 0 | E201: =Start_Here!$C$27 -> 0
C202: Authorized Buyer (please print) | E202: Phone Number
C205: Authorized Buyer Signature
C207: =Start_Here!$C$41 -> Rep Name
C208: Tennant Representative
A210: Specialized Maintenance Equipment
B215: SPECIAL INFORMATION
B217: 1 | C217: Standard Configurations are set configurations as listed and cannot be altered.
C218: However, these are partial configurations which require the selection of
C219: Fire Extinguisher, Brushes, Operator Manuals, Service Manual, and Shipment Packaging.
B221: 2 | C221: Shipping Weights and Dimensions | D221: Skid w/Carton
C223: Weight (w/240AH Batteries) | D223: 2200 lbs / 998 Kg
C224: Length | D224: 85" / 2159 mm
C225: Width | D225: 46" / 1169 mm
C226: Height | D226: 63" / 1600 mm
B228: 12 | C228: A French and English manual will be supplied for all units shipping into Quebec, Canada at no charge. An additional manual
C229: can be ordered (for a total of 3 manuals) for an additional charge as stated under 'Additional Operator Manual'.
B231: 13 | C231: Skid w/Carton, Non-Stackable is the default packaging method and will be added to the configuration unless otherwise specified.
C232: The Skid w/Carton, Non-Stackable (PN 9009900) includes the crate and all bracketry for shipping.

Sheet T16_Standard_Config
A1: T16_Standard_Config | C1: =Start_Here!$C19 -> Company Name
A2: =SUM(G115) -> 0 | C2: =Start_Here!$C20 -> Address
C3: =Start_Here!$C21 -> City, State Zip
C4: =Start_Here!$C22 -> Contact Name
C5: =Start_Here!$C$41 -> Rep Name
C6: =Start_Here!$C$37 -> Tennant Sales and Service Company
C7: =Start_Here!$C$38 -> 10400 Clean Street
C8: =Start_Here!$C$39 -> Eden Prairie, MN 55344
C9: =Start_Here!$C$43 -> 800-553-8033 | E9: Quote Date : | G9: =Letter!$A$25 -> 2014-10-02
C11: =Help!C2 -> CAN Date Rev - 5/6/2025
C12: BUILT-IN “TENNANT VALUE” INCLUDES:
C14: 36V, 235 AH Battery Pack | E14: Removable Tool Caddy and Large Cargo Net Storage Area
C15: 20 Amp, 115 Volt 60 Hz Charger | E15: Standard Cylindrical or Disk Scrubbing Brushes (Select One)
C16: Two Speed Electronic Overdrive Transmission with | E16: Hygienic Non-Corrosive Duramer™ Solution and Recovery Tanks
C17: AC Propel Motor | E17: 50 gal (190 L) Solution Tank
C18: Disk or Cylindrcial Scrubbing - 36 in (910 mm) path | E18: 60 gal (225 L) Recovery Tank
C19: Steering Wheel Mounted, Touch-N-GO Control Module | E19: 10 gal (38 L) Demisting Chamber
C20: 1-Step™ One-Button Scrub Operation | E20: Parabolic Rear Squeegee
C21: 3 Down-Pressure Settings | E21: SmartRelease™ Breakaway System
C22: Steering Wheel Mounted Horn | E22: Linatex Squeegee Blades
C23: On Board Diagnostics | E23: Cast Aluminum Rear Squeegee Frame
C24: Water Shutoff Thumb Switch | E24: No Tool Squeegee and Brush Change
C25: Automatic: | E25: In-Line Vacuum Fan Air Filter
C26: Parking Brake | E26: High Visibility Maintenance Touch Points
C27: Squeegee Lift | E27: Underwriters Laboratory (UL®) "E" Certification
C28: Water Shutoff | E28: Cup Holder
C29: Brush Shutoff When Idle | E29: Operator Manual and Video
C30: Brush Shutoff at 80% Battery Discharge | E30: Front and Rear Non-Marking Tires
C34: TENNANT COMPANY WARRANTY
C35: 36 MONTHS OR 2000 HOURS - PARTS
C36: 24 MONTHS - LABOR
C37: 6 MONTHS - TRAVEL
C38: 10 YEARS ON DURAMERTM TANKS
E40: Quote Request Information
G41: Fax (quote only)
G42: Mail (quote,lit, specs)
G43: Fax + Mail
E45: Primary Use
G46: Inside
G47: Outside
C49: Description | D49: Reference # | E49: Price Each | F49: Qty | G49: Extended Price
B50: Standard Configurations (Note 1) | F50: =SUM(F52:F58) -> 0
C52: T16 Rider - Disk Scrubber, Conventional Cleaning Technology, Wet 360AH C/20, Manual Battery Watering System, On-Board 20A 85-130V AC 50/60Hz 1Ph Charger, UL® Type E, Standard Seat | D52: T16-1000D | E52: 56693 | G52: =F52*E52 -> 0
C53: Choice of HD Front Bumper, Overhead Guard, Fire Extinguisher, Brushes, Operator Manual, Service Manual, and Shipment Packaging available. | F53: =SUM(F52) -> 0
C55: T16 Rider - Cylindrical Scrubber, Conventional Cleaning Technology, Wet 240AH C/20 Battery, Off-Board 21A 85-265V AC 50/60Hz 1Ph Charger, UL® Type E, Standard Seat | D55: T16-1001C | E55: 52691 | G55: =F55*E55 -> 0
C56: Choice of HD Front Bumper, Overhead Guard, Fire Extinguisher, Brushes, Operator Manual, Service Manual, and Shipment Packaging available. | F56: =SUM(F55) -> 0
C58: T16 Rider - Cylindrical Scrubber, ec-H20 ®Cleaning Technology, Wet 360AH C/20 Battery, Off-Board 21A 85-265V AC 50/60Hz 1Ph Charger, UL® Type E, Safety Light Package, Spray Nozzle with Hose, Heavy Duty Squeegee Protection, Deluxe Seat w/Armrests | D58: T16-2000C | E58: 65623 | G58: =F58*E58 -> 0
C59: Choice of HD Front Bumper, Overhead Guard, Fire Extinguisher, Brushes, Operator Manual, Service Manual, and Shipment Packaging available. | F59: =SUM(F58) -> 0
C61: T16 Rider - Cylindrical Scrubber, Conventional Cleaning Technology, Wet 360AH C/20 Battery, Manual Battery Watering, On-Board 20A 85-130V AC 50/60Hz 1ph Charger, UL® Type E, Safety Light Package (LED Headlight and AV BU Alarm), Productivity Package (Scrubbing Side Brush, Spray Nozzle with Hose and Vacuum Wand), Heavy Duty Squeegee Protection | D61: T16-2003C | E61: 67155 | G61: =F61*E61 -> 0
C62: Choice of HD Front Bumper, Overhead Guard, Fire Extinguisher, Brushes, Operator Manual, Service Manual, and Shipment Packaging available. | F62: =SUM(F61) -> 0
C64: T16 Rider - Cylindrical Scrubber, ec-H20 ®Cleaning Technology, Wet 360AH C/20 Battery, On-Board 20A 85-130V AC 50/60Hz 1ph Charger, UL® Type E, Safety Light Package, Scrubbing Side Brush, Spray Nozzle with Hose, Heavy Duty Squeegee Protection, Deluxe Seat w/Armrest | D64: T16-3000C | E64: 73456 | G64: =F64*E64 -> 0
C65: Choice of HD Front Bumper, Overhead Guard, Fire Extinguisher, Brushes, Operator Manual, Service Manual, and Shipment Packaging available. | F65: =SUM(F64) -> 0
B67: Machine Protection & Safety | F67: =SUM(F68:F70) -> 0
C68: Heavy Duty Front Bumper | D68: 9009856 | E68: 1411 | G68: =F68*E68 -> 0
C69: Overhead Guard (order Heavy Duty Front Bumper also) (Note 22) | D69: 9008018 | E69: 3052 | G69: 0
C70: Fire Extinguisher | D70: 9008079 | E70: 513 | G70: 0
B72: Brushes and Pads | D72: Reference Number | E72: Price | F72: =SUM(F73,F79,F83) -> 0 | H72: =IFERROR(IFERROR(VLOOKUP(D72,Surcharge!A:B,2,FALSE)*F72, VLOOKUP(D72 & "",Surcharge!A:B,2,FALSE)*F72), "") -> 
C73: Disk Scrubbing Brushes/Pads (2 Required) | F73: =SUM(F74:F77) -> 0 | H73: =IFERROR(IFERROR(VLOOKUP(D73,Surcharge!A:B,2,FALSE)*F73, VLOOKUP(D73 & "",Surcharge!A:B,2,FALSE)*F73), "") -> 
C74: Polypropylene Brush | D74: 1220188 | E74: N/C | G74: =IF(F74=0," ","N/C") ->  | H74: =IFERROR(IFERROR(VLOOKUP(D74,Surcharge!A:B,2,FALSE)*F74, VLOOKUP(D74 & "",Surcharge!A:B,2,FALSE)*F74), "") -> 
C75: Super Abrasive Brush | D75: 1220190 | E75: 295 | G75: =F75*E75 -> 0 | H75: =IFERROR(IFERROR(VLOOKUP(D75,Surcharge!A:B,2,FALSE)*F75, VLOOKUP(D75 & "",Surcharge!A:B,2,FALSE)*F75), "") -> 
H76: =IFERROR(IFERROR(VLOOKUP(D76,Surcharge!A:B,2,FALSE)*F76, VLOOKUP(D76 & "",Surcharge!A:B,2,FALSE)*F76), "") -> 
C77: Pad Driver | D77: 1220200 | E77: N/C | G77: =IF(F77=0," ","N/C") ->  | H77: =IFERROR(IFERROR(VLOOKUP(D77,Surcharge!A:B,2,FALSE)*F77, VLOOKUP(D77 & "",Surcharge!A:B,2,FALSE)*F77), "") -> 
H78: =IFERROR(IFERROR(VLOOKUP(D78,Surcharge!A:B,2,FALSE)*F78, VLOOKUP(D78 & "",Surcharge!A:B,2,FALSE)*F78), "") -> 
C79: Cylindrical Scrubbing Brushes (2 Required) | F79: =SUM(F80:F81) -> 0 | H79: =IFERROR(IFERROR(VLOOKUP(D79,Surcharge!A:B,2,FALSE)*F79, VLOOKUP(D79 & "",Surcharge!A:B,2,FALSE)*F79), "") -> 
C80: Polypropylene Brush | D80: 1053893 | E80: N/C | G80: =IF(F80=0," ","N/C") ->  | H80: =IFERROR(IFERROR(VLOOKUP(D80,Surcharge!A:B,2,FALSE)*F80, VLOOKUP(D80 & "",Surcharge!A:B,2,FALSE)*F80), "") -> 
C81: Super Abrasive Brush | D81: 1062578 | E81: 295 | G81: =F81*E81 -> 0 | H81: =IFERROR(IFERROR(VLOOKUP(D81,Surcharge!A:B,2,FALSE)*F81, VLOOKUP(D81 & "",Surcharge!A:B,2,FALSE)*F81), "") -> 
H82: =IFERROR(IFERROR(VLOOKUP(D82,Surcharge!A:B,2,FALSE)*F82, VLOOKUP(D82 & "",Surcharge!A:B,2,FALSE)*F82), "") -> 
C83: Disk Scrubbing Brush/Pad and Sweeping Brush for Side Brush Option (1 Required) | F83: =SUM(F84:F87) -> 0 | H83: =IFERROR(IFERROR(VLOOKUP(D83,Surcharge!A:B,2,FALSE)*F83, VLOOKUP(D83 & "",Surcharge!A:B,2,FALSE)*F83), "") -> 
C84: Polypropylene Scrubbing Brush | D84: 1220240 | E84: N/C | G84: =IF(F84=0," ","N/C") ->  | H84: =IFERROR(IFERROR(VLOOKUP(D84,Surcharge!A:B,2,FALSE)*F84, VLOOKUP(D84 & "",Surcharge!A:B,2,FALSE)*F84), "") -> 
C85: Super Abrasive Brush | D85: 1220232 | E85: 295 | G85: =F85*E85 -> 0 | H85: =IFERROR(IFERROR(VLOOKUP(D85,Surcharge!A:B,2,FALSE)*F85, VLOOKUP(D85 & "",Surcharge!A:B,2,FALSE)*F85), "") -> 
H86: =IFERROR(IFERROR(VLOOKUP(D86,Surcharge!A:B,2,FALSE)*F86, VLOOKUP(D86 & "",Surcharge!A:B,2,FALSE)*F86), "") -> 
C87: Pad Driver | D87: 1220243 | E87: N/C | G87: =IF(F87=0," ","N/C") ->  | H87: =IFERROR(IFERROR(VLOOKUP(D87,Surcharge!A:B,2,FALSE)*F87, VLOOKUP(D87 & "",Surcharge!A:B,2,FALSE)*F87), "") -> 
H88: =IFERROR(IFERROR(VLOOKUP(D88,Surcharge!A:B,2,FALSE)*F88, VLOOKUP(D88 & "",Surcharge!A:B,2,FALSE)*F88), "") -> 
B89: Support (Note 21) | D89: Reference Number | E89: Price | F89: =SUM(F90:F95) -> 0 | H89: =IFERROR(IFERROR(VLOOKUP(D89,Surcharge!A:B,2,FALSE)*F89, VLOOKUP(D89 & "",Surcharge!A:B,2,FALSE)*F89), "") -> 
C90: Operator Manual (English) | D90: 9008142 | E90: N/C | G90: =IF(F90=0," ","N/C") ->  | H90: =IFERROR(IFERROR(VLOOKUP(D90,Surcharge!A:B,2,FALSE)*F90, VLOOKUP(D90 & "",Surcharge!A:B,2,FALSE)*F90), "") -> 
C91: Operator Manual (Spanish) | D91: 9008143 | E91: N/C | G91: =IF(F91=0," ","N/C") ->  | H91: =IFERROR(IFERROR(VLOOKUP(D91,Surcharge!A:B,2,FALSE)*F91, VLOOKUP(D91 & "",Surcharge!A:B,2,FALSE)*F91), "") -> 
C92: Operator Manual (French) (Note 22) | D92: 9008144 | E92: N/C | G92: =IF(F92=0," ","N/C") ->  | H92: =IFERROR(IFERROR(VLOOKUP(D92,Surcharge!A:B,2,FALSE)*F92, VLOOKUP(D92 & "",Surcharge!A:B,2,FALSE)*F92), "") -> 
C93: Service Manual | D93: 9008149 | E93: 368 | G93: =F93*E93 -> 0
H94: =IFERROR(IFERROR(VLOOKUP(D94,Surcharge!A:B,2,FALSE)*F94, VLOOKUP(D94 & "",Surcharge!A:B,2,FALSE)*F94), "") -> 
C95: Packaging | F95: =SUM(F96:F97) -> 0 | H95: =IFERROR(IFERROR(VLOOKUP(D95,Surcharge!A:B,2,FALSE)*F95, VLOOKUP(D95 & "",Surcharge!A:B,2,FALSE)*F95), "") -> 
C96: Crate - Non-Pre-Sweep | D96: 9008063 | E96: N/C | G96: =IF(F96=0," ","N/C") ->  | H96: =IFERROR(IFERROR(VLOOKUP(D96,Surcharge!A:B,2,FALSE)*F96, VLOOKUP(D96 & "",Surcharge!A:B,2,FALSE)*F96), "") -> 
C97: Crate - Pre-Sweep | D97: 9008056 | E97: N/C | G97: =IF(F97=0," ","N/C") ->  | H97: =IFERROR(IFERROR(VLOOKUP(D97,Surcharge!A:B,2,FALSE)*F97, VLOOKUP(D97 & "",Surcharge!A:B,2,FALSE)*F97), "") -> 
E100: =ROUND(SUM(G52:G99), 0) -> 0 | F100: =SUM(E101) -> 0
D101: Machine Subtotal | E101: =ROUND(SUM(G52:G99), 0) -> 0 | F101: =F100 -> 0
B102: Discounts | F102: =SUM(F103) -> 0
F103: =SUM(F105:F108) -> 0
D104: Applicable Currency Adj % | F104: =IF(E104 <> "", 1, 0) -> 0 | G104: =IF(F104*(E104*0.01)*E100 < 0, F104*(E104*0.01)*E100, -(F104*(E104*0.01)*E100)) -> 0
D105: Discount % | F105: =IF(E105 <> "", 1, 0) -> 0 | G105: =IF(F105*(E105*0.01)*(E100+G104) < 0, F105*(E105*0.01)*(E100+G104), -(F105*(E105*0.01)*(E100+G104))) -> 0
D106: Discount $ | F106: =IF(E106 <> "", 1, 0) -> 0 | G106: =IF(F106*E106 < 0, F106*E106, -(F106*E106)) -> 0
D107: Discount $ | F107: =IF(E107 <> "", 1, 0) -> 0 | G107: =IF(F107*E107 < 0, F107*E107, -(F107*E107)) -> 0
D108: Discount $ | F108: =IF(E108 <> "", 1, 0) -> 0 | G108: =IF(F108*E108 < 0, F108*E108, -(F108*E108)) -> 0
D109: Discount Total | E109: =SUM(G104:G108) -> 0 | F109: =SUM(E109) -> 0
F110: =#REF! -> 
F111: =F110 -> 
C112: Prepaid and Add | D112: Freight | F112: =IF(E112 <> "", 1, 0) -> 0 | G112: =F112*E112 -> 0
C113: Subject to all applicable taxes | D113: Tax | F113: =IF(E113 <> "", 1, 0) -> 0 | G113: =F113*E113 -> 0
F114: =SUM(F115) -> 0
D115: MACHINE TOTAL* | F115: =SUM(G115) -> 0 | G115: =SUM(G52:G113) -> 0 | N115: This goes to "My Documents"
G116: =SUM(G115) -> 0
C121: First Western Equipment Finance - Leasing Calculation Option: | D121: Option 1 | F121: Option 2 | J121: =Financing!A38 -> Rates 2025 - Rev 2/4/2025
D122: Monthly Payment | E122: Cost Per Day | F122: Monthly Payment | G122: Cost Per Day | J122: =Financing!A39 -> “Blank Payment Amounts Indicate The Financing Option Or Purchase Options Selected Are Not
C123: Purchase Option: | D123: FWEF: $1 Buyout Lease | F123: FWEF: Municipal Lease | J123: =Financing!A40 -> Applicable Or The Machine Total Is Below The Minimum Amount For The Selected Vendor”
C124: 24 Months | D124: FALSE | E124: 0 | F124: FALSE | G124: 0 | J124: =Financing!A41 -> "Quoted monthly payments are estimates only and are based on a certain level of credit rating.
C125: 30 Months | D125: FALSE | E125: 0 | F125: FALSE | G125: 0 | J125: =Financing!A42 -> Actual monthly payments may be higher depending on your credit rating."
C126: 36 Months | D126: FALSE | E126: 0 | F126: FALSE | G126: 0 | J126: =Financing!A43 -> “Financing rates do not include Pre-Paid Service”
C127: 48 Months | D127: 0 | E127: 0 | F127: 0 | G127: 0 | I127: =Financing!A44 -> 0
D129: Benefits of Equipment Financing:
D130: • Spreads out investment over time. | F130: • Keep current with latest technology.
D131: • Preserve capital. | F131: • Service and parts bundling available.
D132: • Low monthly payment. | F132: • Pay for labor savings as you go.
B134: TennantTrue | E134: 0 | F134: 0
C136: Is customer interested in service program? | D136: Yes | E136: *State/County selection required for TennantTrue service options
C138: If not, why?
C140: Term: | D140: 36 | G140: AB Brushes | H140: No
C141: Monthly machine usage (hrs): | D141: < 30/mo. (Avg. 1hr./day)
C143: TennantTrue: | D143: Gold Contract | F143: Silver Contract
C144: Per Visit | F144: 611
C145: Monthly | D145: 231 | F145: 127
C146: Annually | F146: 1490
C147: Pre-Pay Full Term | D147: 7977 | F147: 4379
C148: Hourly Labor Rate
C149: Site Visit
C151: * Verify customer current pricing prior to quote.
C152: **All rates and fees above reflect service for one (1) unit with the exception of Block of Time service.
C153: *Block of Time is available in 1 Year Term only and is priced as such no matter the term selection on this template.
B157: Quote Special Instructions:
B160: =Start_Here!E36 -> Terms and Conditions
B161: =Start_Here!E37 -> Ask your local sales rep for estimated lead times. Verify when placing order
B162: =Start_Here!E38 -> All orders subject to acceptance by Tennant Sales and Service Company, Minneapolis, Minnesota
B163: =Start_Here!E39 -> Prices subject to change without notice. Subject to any applicable taxes.
B164: =Start_Here!E40 -> Terms: Net 30 days. Payable in Canadian Funds
B165: =Start_Here!E41 -> Freight: Accessories, parts, supplies, detergents, and floor coatings orders delivered DDP
B166: =Start_Here!E42 -> shipping point Frt PPD. Machine orders delivered DDP shipping point Frt PPD and add.
B167: =Start_Here!E43 -> Returned Merchandise is subject to a restocking fee.
B168: =Start_Here!E45 -> Printed General Terms and Conditions are also available upon request.
B169: =Start_Here!E46 -> 0
E173: Quote Date : | G173: =Letter!$A$25 -> 2014-10-02
A174: Order Placement Information: To place your order, fill in PO# and customer signatures,
A175: call or fax to the numbers listed below. Customer Purchase Order is required.
A176: If information is missing, orders will be entered and held until all information is received.
C177: Customer Number | E177: Cust Grp 3
C178: =Start_Here!$C$25 -> 0 | E178: =Start_Here!$C$29 -> 0
C179: =Start_Here!$B$18 -> Who Owns the Machine? (Sold-To Info) (Please Verify)
A180: Company | C180: =Start_Here!$C$19 -> Company Name
A181: Address | C181: =Start_Here!$C$20 -> Address
C182: =Start_Here!$C$21 -> City, State Zip
A183: Name | C183: =Start_Here!$C$22 -> Contact Name
A184: Phone | C184: =Start_Here!$C$23 -> Contact Phone
C185: =Start_Here!$B$11 -> Where is the Machine Being Shipped? (Ship-To Info) (Please Verify)
A186: Company | C186: =Start_Here!$C$12 -> Company Name
A187: Address | C187: =Start_Here!$C$13 -> Address
C188: =Start_Here!$C$14 -> City, State Zip
A189: Name | C189: =Start_Here!$C$15 -> Contact Name
A190: Phone | C190: =Start_Here!$C$16 -> Contact Phone
C191: =Start_Here!$B$31 -> Shipping / Carrier Instructions: | E191: Order Special Instructions:
C192: =Start_Here!$C$32 -> 0
C194: Customer Purchase Order No.
C195: (please attach copy)
C198: Tax Exempt | E198: Yes
E199: No
C200: If Yes, attach a copy of your exemption certificate.
C202: Requested Delivery Date
C203: =Start_Here!$C$28 -> 0
C205: =Start_Here!$C$26 -> 0 | E205: =Start_Here!$C$27 -> 0
C206: Authorized Buyer (please print) | E206: Phone Number
C209: Authorized Buyer Signature
C211: =Start_Here!$C$41 -> Rep Name
C212: Tennant Representative
A214: Specialized Maintenance Equipment
A215: =Start_Here!$C$48 -> TENNANT · 10400 Clean Street · Eden Prairie, MN 55344 ·
A216: =Start_Here!$C$49 -> PHONE:800-553-8033 · FAX:763-513-2116
B219: SPECIAL INFORMATION
B220: 1 | C220: Standard Configurations are set configurations as listed and cannot be altered.
C221: However, these are partial configurations which require the selection of Heavy Duty Front Bumper, Overhead Guard,
C222: Fire Extinguisher, Brushes, Operator Manuals, Service Manual, and Shipment Packaging.
B224: 2 | C224: Shipping Weight and Dimensions | D224: Crate
C226: Weight (w/240AH Battery) | D226: 2100 lbs / 953 Kg
C227: Length | D227: 90" / 2,286 mm
C228: Width | D228: 55" / 1,397mm
C229: Height | D229: 66" / 1,677 mm
B232: 21 | C232: Additional hard copy Operator and Parts Manuals can be ordered or digital copies can be downloaded from www.Tennantco.com.
B234: 22 | C234: A French and English manual will be supplied for all units shipping into Quebec, Canada at no charge. An additional manual
C235: can be ordered (for a total of 3 manuals) for an additional charge as stated under 'Additional Operator Manual'.

Sheet T2
A1: T2 | C1: =Start_Here!$C19 -> Company Name
A2: =SUM(G97) -> 0 | C2: =Start_Here!$C20 -> Address
C3: =Start_Here!$C21 -> City, State Zip
C4: =Start_Here!$C22 -> Contact Name
C5: =Start_Here!$C$41 -> Rep Name
C6: =Start_Here!$C$37 -> Tennant Sales and Service Company
C7: =Start_Here!$C$38 -> 10400 Clean Street
C8: =Start_Here!$C$39 -> Eden Prairie, MN 55344
C9: =Start_Here!$C$43 -> 800-553-8033 | E9: Quote Date : | G9: =Letter!$A$25 -> 2014-10-02
C11: =Help!C2 -> CAN Date Rev - 5/6/2025
C12: BUILT-IN “TENNANT VALUE” INCLUDES:
C14: 26 l/6.9 gal Solution Tank & 36 l/9.5 gal Recovery Tank | E14: Standard (2) 12V 105 AH Batteries
C15: Rugged DuramerTM Tank Construction | E15: Battery Tray
C16: Hygienic Recovery Tank | E16: On-board Charger
C17: 10 l/2.6 gal Demisting Chamber to Protect Vac Fan | E17: Recovery Tank Debris Tray
C18: Adjustable Solution Flow | E18: Unsurpassed Ergonomic Design
C19: Extremely Low Noise Level (≤68 dBa) | E19: Adjustable Console Height
C20: Pad Assist - less than 2 kg/4.5 lbs of push force requried | E20: Trigger Design
C21: .75 kW/1 HP brush motor, 230 RPM | E21: Front Bucket Fill Port
C22: Cast Aluminum Scrub Deck | E22: On-board Pad Driver Hang
C23: Cast Aluminum Squeegee Frame | E23: Gray Solid Urethane Tires
C24: Breakaway Squeegee Design | E24: Automotive Triple-Sealed Electrical Connectors
C25: Factory Set Squeegee Assembly for Maximium Recovery | E25: 10cm /4" Edge & Reach Under Cleaning
C26: 100% Recovery in 180º Point Turns | E26: Key Switch for Safety
C27: Urethane Squeegee Blades | E27: No Tool Brush / Squegee Change
C28: Squegee Hang | E28: Includes Pad Driver
C30: TENNANT COMPANY WARRANTY
C31: 3 YEARS OR 2500 HOURS ON ALL COMPONENTS, 3 YEARS LABOR
C32: 90 DAYS TRAVEL, 10 YEARS ON DURAMERTM TANKS
E36: Quote Request Information
G37: Fax (quote only)
G38: Mail (quote,lit, specs)
G39: Fax + Mail
C42: Description | D42: Reference No. | E42: Canada Price | F42: Qty. | G42: Extended Price
B43: Base Configuration | D43: Reference Number | E43: Price | F43: =SUM(F44,F47,F52) -> 0 | H43: =IFERROR(IFERROR(VLOOKUP(D43,Surcharge!A:B,2,FALSE)*F43, VLOOKUP(D43 & "",Surcharge!A:B,2,FALSE)*F43), "") ->  | L43: =SUM(F43) -> 0 | M43: Surcharge Qty
C44: Cleaning Type | F44: =SUM(F45) -> 0 | H44: =IFERROR(IFERROR(VLOOKUP(D44,Surcharge!A:B,2,FALSE)*F44, VLOOKUP(D44 & "",Surcharge!A:B,2,FALSE)*F44), "") ->  | L44: 0 | M44: Surcharge Qty
C45: T2 Walk-Behind Scrubber 430 mm/17" - Disk | D45: T2-430-D | E45: 12345 | G45: =F45*E45 -> 0 | H45: =IFERROR(IFERROR(VLOOKUP(D45,Surcharge!A:B,2,FALSE)*F45, VLOOKUP(D45 & "",Surcharge!A:B,2,FALSE)*F45), "") ->  | L45: 0 | M45: Surcharge Qty | Q45: M-T2VK_BASE_T2-430-D
H46: =IFERROR(IFERROR(VLOOKUP(D46,Surcharge!A:B,2,FALSE)*F46, VLOOKUP(D46 & "",Surcharge!A:B,2,FALSE)*F46), "") ->  | L46: =SUM(F46) -> 0 | M46: Surcharge Qty
C47: Battery Type | F47: =SUM(F48:F50) -> 0 | H47: =IFERROR(IFERROR(VLOOKUP(D47,Surcharge!A:B,2,FALSE)*F47, VLOOKUP(D47 & "",Surcharge!A:B,2,FALSE)*F47), "") ->  | L47: =SUM(F47) -> 0 | M47: Surcharge Qty
C48: Wet 105AH C/20 (Kit of 2 batteries) | D48: 1030291 | E48: N/C | G48: =IF(F48=0," ","N/C") ->  | H48: =IFERROR(IFERROR(VLOOKUP(D48,Surcharge!A:B,2,FALSE)*F48, VLOOKUP(D48 & "",Surcharge!A:B,2,FALSE)*F48), "") ->  | L48: =SUM(F48) -> 0 | M48: Surcharge Qty | Q48: M-T2VK_BTY_W105C20
C49: Sealed/MF Gel 102AH C/20 (Kit of 2 batteries) | D49: 1071125 | E49: 522 | G49: =F49*E49 -> 0 | H49: =IFERROR(IFERROR(VLOOKUP(D49,Surcharge!A:B,2,FALSE)*F49, VLOOKUP(D49 & "",Surcharge!A:B,2,FALSE)*F49), "") -> 0 | L49: 0 | M49: Surcharge Qty | Q49: M-T2VK_BTY_G102C20
C50: Without Battery | E50: -630 | G50: =F50*E50 -> 0 | H50: =IFERROR(IFERROR(VLOOKUP(D50,Surcharge!A:B,2,FALSE)*F50, VLOOKUP(D50 & "",Surcharge!A:B,2,FALSE)*F50), "") ->  | L50: 0 | M50: Surcharge Qty | Q50: M-T2VK_BTY_WO
H51: =IFERROR(IFERROR(VLOOKUP(D51,Surcharge!A:B,2,FALSE)*F51, VLOOKUP(D51 & "",Surcharge!A:B,2,FALSE)*F51), "") ->  | L51: 0 | M51: Surcharge Qty
C52: Charger | F52: =SUM(F53:F53) -> 0 | H52: =IFERROR(IFERROR(VLOOKUP(D52,Surcharge!A:B,2,FALSE)*F52, VLOOKUP(D52 & "",Surcharge!A:B,2,FALSE)*F52), "") -> 
C53: 9A 100-240V AC 50/60Hz 1 Ph - on board | D53: 1066718 | E53: N/C | G53: =IF(F53=0," ","N/C") ->  | H53: =IFERROR(IFERROR(VLOOKUP(D53,Surcharge!A:B,2,FALSE)*F53, VLOOKUP(D53 & "",Surcharge!A:B,2,FALSE)*F53), "") ->  | Q53: M-T2VK_CHG_9A100V5060H1P
H54: =IFERROR(IFERROR(VLOOKUP(D54,Surcharge!A:B,2,FALSE)*F54, VLOOKUP(D54 & "",Surcharge!A:B,2,FALSE)*F54), "") -> 
B55: Pad Driver and Pads (Note 2) | D55: Reference Number | F55: =SUM(F56:F57) -> 0 | H55: =IFERROR(IFERROR(VLOOKUP(D55,Surcharge!A:B,2,FALSE)*F55, VLOOKUP(D55 & "",Surcharge!A:B,2,FALSE)*F55), "") -> 
C56: Polypropylene | D56: 1016765 | G56: =F56*E56 -> 0 | H56: =IFERROR(IFERROR(VLOOKUP(D56,Surcharge!A:B,2,FALSE)*F56, VLOOKUP(D56 & "",Surcharge!A:B,2,FALSE)*F56), "") -> 
C57: Nylon | D57: 1016764 | E57: 346 | G57: 0 | H57: =IFERROR(IFERROR(VLOOKUP(D57,Surcharge!A:B,2,FALSE)*F57, VLOOKUP(D57 & "",Surcharge!A:B,2,FALSE)*F57), "") ->  | Q57: M-T2VK_CLNTOL_PYP
E58: 425 | H58: =IFERROR(IFERROR(VLOOKUP(D58,Surcharge!A:B,2,FALSE)*F58, VLOOKUP(D58 & "",Surcharge!A:B,2,FALSE)*F58), "") ->  | Q58: M-T2VK_CLNTOL_NYL
C59: 430mm/17" Disk Pad Driver/Pads (1 Required) | F59: =SUM(F60:F64) -> 0 | H59: =IFERROR(IFERROR(VLOOKUP(D59,Surcharge!A:B,2,FALSE)*F59, VLOOKUP(D59 & "",Surcharge!A:B,2,FALSE)*F59), "") -> 
C60: Pad Driver | D60: 1016813 | E60: N/C | G60: =IF(F60=0," ","N/C") ->  | H60: =IFERROR(IFERROR(VLOOKUP(D60,Surcharge!A:B,2,FALSE)*F60, VLOOKUP(D60 & "",Surcharge!A:B,2,FALSE)*F60), "") ->  | Q60: M-T2VK_CLNTOL_PAD
C61: Pads | F61: =SUM(F62:F64) -> 0 | H61: =IFERROR(IFERROR(VLOOKUP(D61,Surcharge!A:B,2,FALSE)*F61, VLOOKUP(D61 & "",Surcharge!A:B,2,FALSE)*F61), "") -> 
C62: Blue Scrubbing - 3M | D62: 1050270 | E62: 31.1 | G62: =F62*E62 -> 0 | H62: =IFERROR(IFERROR(VLOOKUP(D62,Surcharge!A:B,2,FALSE)*F62, VLOOKUP(D62 & "",Surcharge!A:B,2,FALSE)*F62), "") ->  | Q62: M-T2VK_PADTYP_BLU3
C63: Red Cleaning - 3M | D63: 1050271 | E63: 31.1 | G63: 0 | H63: =IFERROR(IFERROR(VLOOKUP(D63,Surcharge!A:B,2,FALSE)*F63, VLOOKUP(D63 & "",Surcharge!A:B,2,FALSE)*F63), "") ->  | Q63: M-T2VK_PADTYP_RED3
C64: White Polishing - 3M | D64: 1050273 | E64: 31.1 | G64: 0 | H64: =IFERROR(IFERROR(VLOOKUP(D64,Surcharge!A:B,2,FALSE)*F64, VLOOKUP(D64 & "",Surcharge!A:B,2,FALSE)*F64), "") ->  | Q64: M-T2VK_PADTYP_WHT3
H65: =IFERROR(IFERROR(VLOOKUP(D65,Surcharge!A:B,2,FALSE)*F65, VLOOKUP(D65 & "",Surcharge!A:B,2,FALSE)*F65), "") -> 
B66: Support | F66: =SUM(F67:F71) -> 0 | H66: =IFERROR(IFERROR(VLOOKUP(D66,Surcharge!A:B,2,FALSE)*F66, VLOOKUP(D66 & "",Surcharge!A:B,2,FALSE)*F66), "") -> 
C67: T2 Operator Manual (English/Spanish/French) | D67: 9008844 | E67: N/C | G67: =IF(F67=0," ","N/C") ->  | H67: =IFERROR(IFERROR(VLOOKUP(D67,Surcharge!A:B,2,FALSE)*F67, VLOOKUP(D67 & "",Surcharge!A:B,2,FALSE)*F67), "") ->  | Q67: M-T2VK_ADLOPRMNL
C68: Additional Operator Manual | D68: see above | E68: 200 | G68: =F68*E68 -> 0 | H68: =IFERROR(IFERROR(VLOOKUP(D68,Surcharge!A:B,2,FALSE)*F68, VLOOKUP(D68 & "",Surcharge!A:B,2,FALSE)*F68), "") ->  | Q68: M-T2VK_PARMNL
C69: T2 Parts Manual | D69: 9008845 | E69: 81 | G69: =F69*E69 -> 0 | H69: =IFERROR(IFERROR(VLOOKUP(D69,Surcharge!A:B,2,FALSE)*F69, VLOOKUP(D69 & "",Surcharge!A:B,2,FALSE)*F69), "") ->  | Q69: M-T2VK_ADLOPRMNL
H70: =IFERROR(IFERROR(VLOOKUP(D70,Surcharge!A:B,2,FALSE)*F70, VLOOKUP(D70 & "",Surcharge!A:B,2,FALSE)*F70), "") -> 
C71: Packaging | F71: =SUM(F72:F72) -> 0 | H71: =IFERROR(IFERROR(VLOOKUP(D71,Surcharge!A:B,2,FALSE)*F71, VLOOKUP(D71 & "",Surcharge!A:B,2,FALSE)*F71), "") -> 
C72: Skid w/Carton, Stackable | D72: 9011196 | E72: N/C | G72: =IF(F72=0," ","N/C") ->  | H72: =IFERROR(IFERROR(VLOOKUP(D72,Surcharge!A:B,2,FALSE)*F72, VLOOKUP(D72 & "",Surcharge!A:B,2,FALSE)*F72), "") ->  | Q72: M-T2VK_PKG_SSKD
H73: =IFERROR(IFERROR(VLOOKUP(D73,Surcharge!A:B,2,FALSE)*F73, VLOOKUP(D73 & "",Surcharge!A:B,2,FALSE)*F73), "") -> 
B76: Custom Solution--write in description, qty, price, and PN if applicable | F76: =SUM(F77) -> 0
E77: Insert Prices Here | F77: =SUM(F78:F81) -> 0
D78: Custom | F78: =IF(E78 <> "", 1, 0) -> 0 | G78: =F78*E78 -> 0
D79: Custom | F79: =IF(E79 <> "", 1, 0) -> 0 | G79: =F79*E79 -> 0
D80: Custom | F80: =IF(E80 <> "", 1, 0) -> 0 | G80: =F80*E80 -> 0
D81: Custom | F81: =IF(E81 <> "", 1, 0) -> 0 | G81: =F81*E81 -> 0
E82: =ROUND(SUM(G43:G81), 0) -> 0 | F82: =SUM(E83) -> 0
D83: Machine Subtotal | E83: =ROUND(SUM(G43:G81), 0) -> 0 | F83: =F82 -> 0
B84: Discounts | F84: =SUM(F85) -> 0
F85: =SUM(F87:F90) -> 0
D86: Applicable Currency Adj % | F86: =IF(E86 <> "", 1, 0) -> 0 | G86: =IF(F86*(E86*0.01)*E82 < 0, F86*(E86*0.01)*E82, -(F86*(E86*0.01)*E82)) -> 0
D87: Discount % | F87: =IF(E87 <> "", 1, 0) -> 0 | G87: =IF(F87*(E87*0.01)*(E82+G86) < 0, F87*(E87*0.01)*(E82+G86), -(F87*(E87*0.01)*(E82+G86))) -> 0
D88: Discount $ | F88: =IF(E88 <> "", 1, 0) -> 0 | G88: =IF(F88*E88 < 0, F88*E88, -(F88*E88)) -> 0
D89: Discount $ | F89: =IF(E89 <> "", 1, 0) -> 0 | G89: =IF(F89*E89 < 0, F89*E89, -(F89*E89)) -> 0
D90: Discount $ | F90: =IF(E90 <> "", 1, 0) -> 0 | G90: =IF(F90*E90 < 0, F90*E90, -(F90*E90)) -> 0
D91: Discount Total | E91: =SUM(G86:G90) -> 0 | F91: =SUM(E91) -> 0
F92: =#REF! -> 
F93: =F92 -> 
C94: Prepaid and Add | D94: Freight | F94: =IF(E94 <> "", 1, 0) -> 0 | G94: =F94*E94 -> 0
C95: Subject to all applicable taxes | D95: Tax | F95: =IF(E95 <> "", 1, 0) -> 0 | G95: =F95*E95 -> 0
F96: =SUM(F97) -> 0
D97: MACHINE TOTAL* | F97: =SUM(G97) -> 0 | G97: =SUM(G43:G95) -> 0 | N97: This goes to "My Documents"
G98: =SUM(G97) -> 0
C103: First Western Equipment Finance - Leasing Calculation Option: | D103: Option 1 | F103: Option 2 | I103: =Financing!A38 -> Rates 2025 - Rev 2/4/2025
D104: Monthly Payment | E104: Cost Per Day | F104: Monthly Payment | G104: Cost Per Day | I104: =Financing!A39 -> “Blank Payment Amounts Indicate The Financing Option Or Purchase Options Selected Are Not
C105: Purchase Option: | D105: FWEF: $1 Buyout Lease | F105: FWEF: Municipal Lease | I105: =Financing!A40 -> Applicable Or The Machine Total Is Below The Minimum Amount For The Selected Vendor”
C106: 24 Months | D106: FALSE | E106: 0 | F106: FALSE | G106: 0 | I106: =Financing!A41 -> "Quoted monthly payments are estimates only and are based on a certain level of credit rating.
C107: 30 Months | D107: FALSE | E107: 0 | F107: FALSE | G107: 0 | I107: =Financing!A42 -> Actual monthly payments may be higher depending on your credit rating."
C108: 36 Months | D108: FALSE | E108: 0 | F108: FALSE | G108: 0 | I108: =Financing!A43 -> “Financing rates do not include Pre-Paid Service”
C109: 48 Months | D109: 0 | E109: 0 | F109: 0 | G109: 0
D111: Benefits of Equipment Financing:
D112: • Spreads out investment over time. | F112: • Keep current with latest technology.
D113: • Preserve capital. | F113: • Service and parts bundling available.
D114: • Low monthly payment. | F114: • Pay for labor savings as you go.
B115: TennantTrue | E115: 0 | F115: 0
C117: Is customer interested in service program? | D117: Yes | E117: *State/County selection required for TennantTrue service options
C119: If not, why?
C121: Term: | D121: 36 | G121: AB Brushes | H121: No
C122: Monthly machine usage (hrs): | D122: < 30/mo. (Avg. 1hr./day)
C124: TennantTrue: | D124: Gold Contract | F124: Silver Contract
C125: Per Visit | F125: 425
C126: Monthly | D126: 120 | F126: 69
C127: Annually | F127: 816
C128: Pre-Pay Full Term | D128: 4162 | F128: 2397
C129: Hourly Labor Rate
C130: Site Visit
C132: * Verify customer current pricing prior to quote.
C133: **All rates and fees above reflect service for one (1) unit with the exception of Block of Time service.
C134: *Block of Time is available in 1 Year Term only and is priced as such no matter the term selection on this template.
C138: Quote Special Instructions:
C141: =Start_Here!E36 -> Terms and Conditions
C142: =Start_Here!E37 -> Ask your local sales rep for estimated lead times. Verify when placing order
C143: =Start_Here!E38 -> All orders subject to acceptance by Tennant Sales and Service Company, Minneapolis, Minnesota
C144: =Start_Here!E39 -> Prices subject to change without notice. Subject to any applicable taxes.
C145: =Start_Here!E40 -> Terms: Net 30 days. Payable in Canadian Funds
C146: =Start_Here!E41 -> Freight: Accessories, parts, supplies, detergents, and floor coatings orders delivered DDP
C147: =Start_Here!E42 -> shipping point Frt PPD. Machine orders delivered DDP shipping point Frt PPD and add.
C148: =Start_Here!E43 -> Returned Merchandise is subject to a restocking fee.
C149: =Start_Here!E45 -> Printed General Terms and Conditions are also available upon request.
C150: =Start_Here!E46 -> 0
E153: Quote Date : | G153: =Letter!$A$25 -> 2014-10-02
A154: Order Placement Information: To place your order, fill in PO# and customer signatures,
A155: call or fax to the numbers listed below. Customer Purchase Order is required.
